Workbook

Sheet L_star Graphs (hidden)

Sheet Advanced Dashboard (hidden)
A2: Vehicle Profiles (Base Case)
C5: 8.9 Liter Spark Ignition Trucks | K5: 11.9 Liter Spark Ignition Trucks | S5: 15 Liter High Pressure Direct Injection Trucks
D7: Natural Gas Fuel Type | F7: CNG | L7: Natural Gas Fuel Type | N7: CNG | T7: Natural Gas Fuel Type | V7: LNG
D8: Efficiency Penalty | F8: 0.165 | L8: Efficiency Penalty | N8: 0.13 | T8: Efficiency Penalty | V8: 0.13
D10: Diesel Trucks | L10: Diesel Trucks | T10: Diesel Trucks
D11: CH4 Emissions (g/mile) | F11: 2.075444606 | L11: CH4 Emissions (g/mile) | N11: 2.075444606 | T11: CH4 Emissions (g/mile) | V11: 2.075444606
D12: CO2 Emission (g/mile) | F12: 1816.452938 | L12: CO2 Emission (g/mile) | N12: 1816.452938 | T12: CO2 Emission (g/mile) | V12: 1816.452938
D13: Fuel Economy (mpdge) | F13: 7 | L13: Fuel Economy (mpdge) | N13: 7 | T13: Fuel Economy (mpdge) | V13: 7
D15: Natural Gas Trucks | G15: % Throughput | L15: Natural Gas Trucks | O15: % Throughput | T15: Natural Gas Trucks | W15: % Throughput
D16: CH4 Emissions (g/mile) | F16: =F17+F18 -> 9.107275778 | G16: =G17+G18 -> 9.107275778 | L16: CH4 Emissions (g/mile) | N16: =N17+N18 -> 9.107275778 | O16: =O17+O18 ->  | T16: CH4 Emissions (g/mile) | V16: =V17+V18 -> 9.107275778 | W16: =W17+W18 -> 
D17: Upstream | F17: 6.507275778 | G17: 6.507275778 | L17: Upstream | N17: 6.507275778 | O17: =(N17*#REF!*#REF!)/(#REF!*#REF!) ->  | T17: Upstream | V17: 6.507275778 | W17: =(V17*#REF!*#REF!)/(#REF!*#REF!) -> 
D18: In-Use | F18: 2.6 | G18: 2.6 | L18: In-Use | N18: 2.6 | O18: =(N18*#REF!*#REF!)/(#REF!*#REF!) ->  | T18: In-Use | V18: 2.6 | W18: =(V18*#REF!*#REF!)/(#REF!*#REF!) -> 
D19: CO2 Emission (g/mile) | F19: 1479.022157 | L19: CO2 Emission (g/mile) | N19: 1479.022157 | T19: CO2 Emission (g/mile) | V19: 1479.022157
D20: Fuel Economy (mpgde) | F20: =F13*(1-F8) -> 5.845 | L20: Fuel Economy (mpgde) | N20: =N13*(1-N8) -> 6.09 | T20: Fuel Economy (mpgde) | V20: =V13*(1-V8) -> 6.09
A23: Reductions (Policy Case)
D26: Natural Gas Trucks | G26: % Throughput | L26: Natural Gas Trucks | O26: % Throughput | T26: Natural Gas Trucks | W26: % Throughput
D27: CH4 Emissions (g/mile) | F27: =F28+F29 -> 9.107275778 | G27: =G28+G29 -> 9.107275778 | L27: CH4 Emissions (g/mile) | N27: =N28+N29 -> 9.107275778 | O27: =O28+O29 ->  | T27: CH4 Emissions (g/mile) | V27: =V28+V29 -> 9.107275778 | W27: =W28+W29 -> 9.107275778
D28: Upstream | F28: 6.507275778 | G28: 6.507275778 | L28: Upstream | N28: 6.507275778 | O28: =(N28*#REF!*#REF!)/(#REF!*#REF!) ->  | T28: Upstream | V28: 6.507275778 | W28: 6.507275778
D29: In-Use | F29: 2.6 | G29: 2.6 | L29: In-Use | N29: 2.6 | O29: =(N29*#REF!*#REF!)/(#REF!*#REF!) ->  | T29: In-Use | V29: 2.6 | W29: 2.6
D30: Fuel Economy (mpgde) | F30: =F23*(1-F18) -> 0 | L30: Fuel Economy (mpgde) | N30: =N13*(1-N31) -> 7 | T30: Fuel Economy (mpgde) | V30: =V23*(1-V18) -> 0
D31: Efficiency Penalty | L31: Efficiency Penalty | N31: 0 | T31: Efficiency Penalty

Sheet Scenario results
A1: Scenario | B1: Natural Gas Case | C1: Comparison Case | D1: NG Leakage* | E1: Ratio of Cumulative Radiative Forcing | I1: Power Plant Heat Rate | K1: Emissions (kg/MWh)
E2: CO2e(20) | F2: Continuous TWP (20) | G2: CO2e(100) | H2: Continuous TWP(100) | I2: Gas Case | J2: Comparison Case | K2: Upstream CH4 NG Case | L2: Upstream CO2 NG Case | M2: Combustion CO2 NG Case | N2: Upstream CH4 Comparison Case | O2: Upstream CO2 Comparison Case | P2: Combustion CO2 Comparison Case
A3: 1 | B3: Average DFW Gas | C3: Average DFW Gas (no CH4) | D3: Base | E3: =(K3*84+L3+M3)/(N3*84+O3+P3) -> 1.412469423 | F3: ='TWP Calcs'!B38+1 -> 2.47886626 | G3: =(K3*28+L3+M3)/(N3*28+O3+P3) -> 1.137489808 | H3: =1+'TWP Calcs'!B118 -> 2.219914659 | I3: 8194.037265 | J3: 8194.037265 | K3: =EFs!G3 -> 2.337784811 | L3: =EFs!H3 -> 40.98991063 | M3: =EFs!I3 -> 435.1033788 | N3: 0 | O3: =L3 -> 40.98991063 | P3: =M3 -> 435.1033788
A4: 2 | B4: Average DFW Gas | C4: Average DFW Gas (no CH4) | D4: -0.45 | E4: =(K4*84+L4+M4)/(N4*84+O4+P4) -> 1.226858182 | F4: ='TWP Calcs'!C38+1 -> 2.263376443 | G4: 1.075619394 | H4: =1+'TWP Calcs'!C118 -> 2.120953062 | I4: 8194.037265 | J4: 8194.037265 | K4: ='TWP Calcs'!C5 -> 1.285781646 | L4: =L3 -> 40.98991063 | M4: =M3 -> 435.1033788 | N4: =N3 -> 0 | O4: =O3 -> 40.98991063 | P4: =P3 -> 435.1033788
A5: 5 | B5: Average DFW Gas | C5: Average TX Coal (LIG) | D5: Base | E5: =(K5*84+L5+M5)/(N5*84+O5+P5) -> 0.6675385572 | F5: ='TWP Calcs'!G38 -> 0.6935731704 | G5: =(28*K5+L5+M5)/(N5*28+O5+P5) -> 0.5553045289 | H5: ='TWP Calcs'!G118 -> 0.5897155915 | I5: 8194.037265 | J5: 9817.377016 | K5: ='TWP Calcs'!$G$5 -> 2.337784811 | L5: =L4 -> 40.98991063 | M5: =M4 -> 435.1033788 | N5: =EFs!G6 -> 0.5741142126 | O5: =EFs!H6 -> 0 | P5: =EFs!I6 -> 959.1577345
A6: 8 | B6: Average DFW Gas | C6: Average TX Coal (SUB -low gassy) | D6: Base | E6: =(K6*84+(L6+M6))/(N6*84+(O6+P6)) -> 0.6902178346 | F6: ='TWP Calcs'!J$38 -> 0.7215607436 | G6: 0.5593862304 | H6: ='TWP Calcs'!J$118 -> 0.5987774284 | I6: 8194.037265 | J6: 9817.377016 | K6: =K3 -> 2.337784811 | L6: =L5 -> 40.98991063 | M6: 435.1033788 | N6: =EFs!$G$7 -> 0.1101014245 | O6: =EFs!$H$7 -> 10.78501564 | P6: =EFs!$I$7 -> 954.249046
A7: 9 | B7: Average DFW Gas | C7: Average TX Coal (SUB - low gassy) | D7: -0.45 | E7: =(K7*84+L7+M7)/(N7*84+O7+P7) -> 0.5995169768 | F7: ='TWP Calcs'!K$38 -> 0.6164200714 | G7: 0.5289600613 | H7: ='TWP Calcs'!K$118 -> 0.5502035631 | I7: 8194.037265 | J7: 9817.377016 | K7: =K4 -> 1.285781646 | L7: 40.98991063 | M7: 435.1033788 | N7: =EFs!$G$7 -> 0.1101014245 | O7: =EFs!$H$7 -> 10.78501564 | P7: =EFs!$I$7 -> 954.249046
A8: 10 | B8: Average DFW Gas | C8: Average TX Coal (SUB - low gassy) | D8: None | E8: 0.4886603728 | F8: ='TWP Calcs'!L$38 -> 0.4879148054 | G8: 0.4917725212 | H8: ='TWP Calcs'!L$118 -> 0.4908355056 | I8: 8194.037265 | J8: 9817.377016 | K8: ='TWP Calcs'!L5 -> 0 | L8: 40.98991063 | M8: 435.1033788 | N8: =EFs!$G$7 -> 0.1101014245 | O8: =EFs!$H$7 -> 10.78501564 | P8: =EFs!$I$7 -> 954.249046
A9: 11 | B9: Average DFW Gas | C9: Average TX Coal (BIT - gassy) | D9: Base | E9: 0.5756980606 | F9: ='TWP Calcs'!M$38 -> 0.5831345371 | G9: 0.5387078947 | H9: ='TWP Calcs'!M$118 -> 0.5509949094 | I9: 8194.037265 | J9: 9817.377016 | K9: =K3 -> 2.337784811 | L9: 40.98991063 | M9: 435.1033788 | N9: =EFs!$G$8 -> 2.907356895 | O9: =EFs!$H$8 -> 7.910859804 | P9: =EFs!$I$8 -> 915.9612756
A10: 12 | B10: Average DFW Gas | C10: Average TX Coal (BIT- gassy) | D10: -0.45 | E10: 0.5000461355 | F10: ='TWP Calcs'!N$38 -> 0.498164342 | G10: 0.5094064628 | H10: ='TWP Calcs'!N$118 -> 0.5062972451 | I10: 8194.037265 | J10: 9817.377016 | K10: =K4 -> 1.285781646 | L10: 40.98991063 | M10: 435.1033788 | N10: =EFs!$G$8 -> 2.907356895 | O10: =EFs!$H$8 -> 7.910859804 | P10: =EFs!$I$8 -> 915.9612756
A11: 13 | B11: Average DFW Gas | C11: Average TX Coal (BIT - gassy) | D11: -0.9 | E11: 0.4243942104 | F11: ='TWP Calcs'!O$38 -> 0.4131941468 | G11: 0.4801050309 | H11: ='TWP Calcs'!O$118 -> 0.4615995807 | I11: 8194.037265 | J11: 9817.377016 | K11: =0.1*K3 -> 0.2337784811 | L11: 40.98991063 | M11: 435.1033788 | N11: =EFs!$G$8 -> 2.907356895 | O11: =EFs!$H$8 -> 7.910859804 | P11: =EFs!$I$8 -> 915.9612756
A12: 14 | B12: Average DFW Gas | C12: Best Case TX Coal (SUB - low gassy) | D12: Base | E12: 0.7845966985 | F12: ='TWP Calcs'!P$38 -> 0.8202253677 | G12: 0.6358754694 | H12: ='TWP Calcs'!P$118 -> 0.6806529328 | I12: 8194.037265 | J12: 8636.448151 | K12: =K9 -> 2.337784811 | L12: 40.98991063 | M12: 435.1033788 | N12: =EFs!$G$9 -> 0.09685736244 | O12: =EFs!$H$9 -> 9.487689865 | P12: =EFs!$I$9 -> 839.4627603
A13: 15 | B13: Average DFW Gas | C13: Best Case TX Coal (SUB - low gassy) | D13: -0.45 | E13: 0.6814936055 | F13: ='TWP Calcs'!Q$38 -> 0.700707992 | G13: 0.601288893 | H13: ='TWP Calcs'!Q$118 -> 0.6254371844 | I13: 8194.037265 | J13: 8636.448151 | K13: =K10 -> 1.285781646 | L13: 40.98991063 | M13: 435.1033788 | N13: =EFs!$G$9 -> 0.09685736244 | O13: =EFs!$H$9 -> 9.487689865 | P13: =EFs!$I$9 -> 839.4627603
A14: 16 | B14: Average DFW Gas | C14: Best Case TX Coal (SUB - low gassy) | D14: -0.9 | E14: 0.5783905125 | F14: ='TWP Calcs'!R$38 -> 0.5811906162 | G14: 0.5667023165 | H14: ='TWP Calcs'!R$118 -> 0.570221436 | I14: 8194.037265 | J14: 8636.448151 | K14: =K11 -> 0.2337784811 | L14: 40.98991063 | M14: 435.1033788 | N14: =EFs!$G$9 -> 0.09685736244 | O14: =EFs!$H$9 -> 9.487689865 | P14: =EFs!$I$9 -> 839.4627603
A15: 17 | B15: Best DFW Gas | C15: =$C$6 -> Average TX Coal (SUB -low gassy) | D15: Base | E15: 0.5539298181 | F15: ='TWP Calcs'!S$38 -> 0.5790838651 | G15: 0.4489317681 | H15: ='TWP Calcs'!S$118 -> 0.4805449169 | I15: 6576.071124 | J15: 9817.377016 | K15: =EFs!$G$4 -> 1.876173942 | L15: =EFs!$H$4 -> 32.89618523 | M15: =EFs!$I$4 -> 349.1893767 | N15: =EFs!$G$7 -> 0.1101014245 | O15: =EFs!$H$7 -> 10.78501564 | P15: =EFs!$I$7 -> 954.249046
A16: 18 | B16: Best DFW Gas | C16: Average TX Coal (SUB -low gassy) | D16: -0.45 | E16: 0.4811384367 | F16: ='TWP Calcs'!T$38 -> 0.4947039049 | G16: 0.4245134446 | H16: ='TWP Calcs'!T$118 -> 0.4415622784 | I16: 6576.071124 | J16: 9817.377016 | K16: =K15*0.55 -> 1.031895668 | L16: =EFs!$H$4 -> 32.89618523 | M16: =EFs!$I$4 -> 349.1893767 | N16: =EFs!$G$7 -> 0.1101014245 | O16: =EFs!$H$7 -> 10.78501564 | P16: =EFs!$I$7 -> 954.249046
A17: 19 | B17: Best DFW Gas | C17: Average TX Coal (SUB -low gassy) | D17: -0.9 | E17: 0.4083470552 | F17: ='TWP Calcs'!U$38 -> 0.4103239447 | G17: 0.4000951211 | H17: ='TWP Calcs'!U$118 -> 0.4025796399 | I17: 6576.071124 | J17: 9817.377016 | K17: =K15*0.1 -> 0.1876173942 | L17: =EFs!$H$4 -> 32.89618523 | M17: =EFs!$I$4 -> 349.1893767 | N17: =EFs!$G$7 -> 0.1101014245 | O17: =EFs!$H$7 -> 10.78501564 | P17: =EFs!$I$7 -> 954.249046
A18: 20 | B18: Worst DFW Gas | C18: Average TX Coal (SUB -low gassy) | D18: Base | E18: 1.204319817 | F18: ='TWP Calcs'!V$38 -> 1.259008184 | G18: 0.9760395761 | H18: ='TWP Calcs'!V$118 -> 1.044770921 | I18: 14297.28553 | J18: 9817.377016 | K18: =EFs!$G$5 -> 4.079060893 | L18: =EFs!$H$5 -> 71.52084342 | M18: =EFs!$I$5 -> 759.1858618 | N18: =EFs!$G$7 -> 0.1101014245 | O18: =EFs!$H$7 -> 10.78501564 | P18: =EFs!$I$7 -> 954.249046
A19: 21 | B19: Worst DFW Gas | C19: Average TX Coal (SUB -low gassy) | D19: -0.45 | E19: 1.046061315 | F19: ='TWP Calcs'!W$38 -> 1.075554514 | G19: 0.9229507733 | H19: ='TWP Calcs'!W$118 -> 0.9600172892 | I19: 14297.28553 | J19: 9817.377016 | K19: =0.55*EFs!$G$5 -> 2.243483491 | L19: =EFs!$H$5 -> 71.52084342 | M19: =EFs!$I$5 -> 759.1858618 | N19: =EFs!$G$7 -> 0.1101014245 | O19: =EFs!$H$7 -> 10.78501564 | P19: =EFs!$I$7 -> 954.249046
A20: 22 | B20: Worst DFW Gas | C20: Average TX Coal (SUB -low gassy) | D20: -0.9 | E20: 0.8878028134 | F20: ='TWP Calcs'!X$38 -> 0.8921008437 | G20: 0.8698619706 | H20: ='TWP Calcs'!X$118 -> 0.8752636569 | I20: 14297.28553 | J20: 9817.377016 | K20: =0.1*K18 -> 0.4079060893 | L20: =EFs!$H$5 -> 71.52084342 | M20: =EFs!$I$5 -> 759.1858618 | N20: =EFs!$G$7 -> 0.1101014245 | O20: =EFs!$H$7 -> 10.78501564 | P20: =EFs!$I$7 -> 954.249046
A21: 23 | B21: Worst DFW Gas | C21: Best Case TX Coal (SUB - low gassy) | D21: Base | E21: 1.368995852 | F21: ='TWP Calcs'!Y$38 -> 1.431162186 | G21: 1.109501074 | H21: ='TWP Calcs'!Y$118 -> 1.187630592 | I21: 14297.28553 | J21: 8636.448151 | K21: =EFs!$G$5 -> 4.079060893 | L21: =EFs!$H$5 -> 71.52084342 | M21: =EFs!$I$5 -> 759.1858618 | N21: =EFs!$G$9 -> 0.09685736244 | O21: =EFs!$H$9 -> 9.487689865 | P21: =EFs!$I$9 -> 839.4627603
A22: 24 | B22: Worst DFW Gas | C22: Best Case TX Coal (SUB - low gassy) | D22: -0.45 | E22: 1.189097432 | F22: ='TWP Calcs'!Z$38 -> 1.222623465 | G22: 1.049153026 | H22: ='TWP Calcs'!Z$118 -> 1.091287935 | I22: 14297.28553 | J22: 8636.448151 | K22: =K19 -> 2.243483491 | L22: =EFs!$H$5 -> 71.52084342 | M22: =EFs!$I$5 -> 759.1858618 | N22: =EFs!$G$9 -> 0.09685736244 | O22: =EFs!$H$9 -> 9.487689865 | P22: =EFs!$I$9 -> 839.4627603
A23: 25 | B23: Worst DFW Gas | C23: Best Case TX Coal (SUB - low gassy) | D23: -0.9 | E23: 1.009199011 | F23: ='TWP Calcs'!AA$38 -> 1.014084745 | G23: 0.9888049772 | H23: ='TWP Calcs'!AA$118 -> 0.9949452782 | I23: 14297.28553 | J23: 8636.448151 | K23: =K20 -> 0.4079060893 | L23: =EFs!$H$5 -> 71.52084342 | M23: =EFs!$I$5 -> 759.1858618 | N23: =EFs!$G$9 -> 0.09685736244 | O23: =EFs!$H$9 -> 9.487689865 | P23: =EFs!$I$9 -> 839.4627603
A24: 26 | B24: =B7 -> Average DFW Gas | C24: Worst Case TX Coal (Bit-Gassy) | D24: Base | E24: 0.517648351 | F24: ='TWP Calcs'!AB38 -> 0.5243349808 | G24: 0.4843880368 | H24: ='TWP Calcs'!AB118 -> 0.4954361075 | I24: =I3 -> 8194.037265 | J24: 10918 | K24: =K3 -> 2.337784811 | L24: =L3 -> 40.98991063 | M24: 435.1033788 | N24: =EFs!G10 -> 3.233391399 | O24: =EFs!H10 -> 8.79799315 | P24: =EFs!I10 -> 1018.678276
B25: * Base = 1.65% of Barnett gas delivered to T system (~1.3% of production)
D28: Effect of NG leakage on TWP (% of potential climate benefit of switching)
F29: 20 yr | H29: 100 yr
D30: Scenarios | E30: 8 vs 10 | F30: =((1-F8)-(1-F6))/(1-F8) -> 0.4562638027 | H30: =((1-H8)-(1-H6))/(1-H8) -> 0.2119981342
E34: =1-F6 -> 0.2784392564 | G34: =(E35-E34)/E35 -> 0.4562638027
E35: =1-F8 -> 0.5120851946

Sheet TWP Calcs
A1: CH4 RE | B1: Effect of CH4 Losses | G1: Avg DFW Gas vs. Avg TX Coal (LIG) | J1: Avg DFW Gas vs. Avg TX Coal (SUB - low gassy) | M1: Avg DFW Gas vs. Avg TX Coal (BIT - gassy) | P1: Avg DFW Gas vs. Best TX Coal (SUB - low gassy) | S1: Best DFW Gas vs. Avg TX Coal (SUB-low gassy) | V1: Worst DFW Gas vs. Avg TX Coal (SUB - Low Gassy) | Y1: Worst DFW Gas vs Best TX Coal (SUB - low gassy) | AB1: Avg DFW Gas (100%) vs Worst TX Coal (Bit-Gassy) | AC1: Best Gas (100%) - Worst Coal (Gassy BIT) | AD1: Best Gas (10%) - Worst Coal (Gassy BIT) | AE1: Worst Gas (100%) - Worst Coal (Gassy BIT) | AF1: Best Gas (100%) - Best Coal | AG1: Gas (10,750 heat rate) vs Avg coal (low gassy sub) | AJ1: Emission Duration
A2: 120 | B2: 1 | C2: =1+B2 -> 2 | D2: 3F | E2: 3P | F2: 4 | G2: =1+F2 -> 5 | H2: =1+G2 -> 6 | I2: 7 | J2: 8 | K2: 9 | L2: 10 | M2: 11 | N2: 12 | O2: 13 | P2: 14 | Q2: 15 | R2: 16 | S2: 17 | T2: 18 | U2: 19 | V2: 20 | W2: 21 | X2: 22 | Y2: 23 | Z2: 24 | AA2: 25 | AB2: 26 | AC2: 27 | AD2: 28 | AE2: 29 | AF2: 30 | AG2: 31 | AH2: TWP=1 | AI2: Line for RF No CH4
A3: Scanario Label >> | B3: Barnett Gas Plant 100% CH4 | C3: Barnett Gas Plant 55% CH4 | D3: 1% Effect Fleet TWP | E3: 1% Effect Pulse TWP | F3: Avg Gas 10% more NG leakage | G3: Avg. Gas v. Avg. TX Coal (LIG) | H3: 45% less NG leakage | I3: 90% less NG leakage | J3: Avg. Gas v. Avg Coal (low CH4 SUB) | K3: 45% less NG leakage | L3: No NG leakage | M3: Avg TX Coal (BIT- gassy) | N3: 45% less NG leakage | O3: 90% less NG leakage | P3: Avg. Gas v. Best TX Coal (low CH4 SUB) | Q3: 45% less NG leakage | R3: 90% less NG leakage | V3: Worst Gas (100%) - Avg Coal (low CH4 SUB) | W3: Worst Gas (55%) - Avg Coal | X3: Worst Gas (10%) - Avg Coal | Y3: Worst Gas (100%) - Best Coal (low CH4 SUB) | Z3: Worst Gas (45%) - Best Coal | AA3: Worst Gas (10%) - Best Coal | AB3: Avg. Gas v. Worst TX Coal (Gassy BIT) | AC3: Best Gas (100%) - Worst Coal (Gassy BIT) | AD3: =AD1 -> Best Gas (10%) - Worst Coal (Gassy BIT) | AE3: =AE1 -> Worst Gas (100%) - Worst Coal (Gassy BIT) | AF3: Best Gas (100%) - Best Coal (low CH4 SUB) | AG3: Gas (10,750 heat rate) vs Avg. coal (low CH4 SUB) | AJ3: Avg Gas vs Avg Coal
A4: Emissions kg/MWh) | AJ4: Fleet | AK4: Pulse | AL4: Service Life
A5: E1,CH4 | B5: =EFs!G3 -> 2.337784811 | C5: =B5*0.55 -> 1.285781646 | D5: =16*(0.01) -> 0.16 | E5: =D5 -> 0.16 | F5: =B5*1.1 -> 2.571563293 | G5: =B5 -> 2.337784811 | H5: =G5*0.55 -> 1.285781646 | I5: =G5*0.1 -> 0.2337784811 | J5: =B5 -> 2.337784811 | K5: =J5*0.55 -> 1.285781646 | L5: 0 | M5: =B5 -> 2.337784811 | N5: =H5 -> 1.285781646 | O5: =M5*0.1 -> 0.2337784811 | P5: =B5 -> 2.337784811 | Q5: =H5 -> 1.285781646 | R5: =I5 -> 0.2337784811 | S5: =EFs!G4 -> 1.876173942 | T5: =S5*0.55 -> 1.031895668 | U5: =S5*0.1 -> 0.1876173942 | V5: =EFs!G5 -> 4.079060893 | W5: =V5*0.55 -> 2.243483491 | X5: =V5*0.1 -> 0.4079060893 | Y5: =V5 -> 4.079060893 | Z5: =W5 -> 2.243483491 | AA5: =X5 -> 0.4079060893 | AB5: =B5 -> 2.337784811 | AC5: =S5 -> 1.876173942 | AD5: =AC5*0.1 -> 0.1876173942 | AE5: =Y5 -> 4.079060893 | AF5: =AC5 -> 1.876173942 | AG5: ='TWP Calcs'!J5*10750/8194 -> 3.067023032 | AJ5: =J5 -> 2.337784811 | AK5: =J5 -> 2.337784811 | AL5: =J5 -> 2.337784811
A6: E1,CO2 | B6: =EFs!H3+EFs!I3 -> 476.0932894 | C6: =B6 -> 476.0932894 | D6: =44+D5*(EFs!E3/EFs!D3) -> 46.80538468 | E6: =D6 -> 46.80538468 | F6: =C6 -> 476.0932894 | G6: =B6 -> 476.0932894 | H6: =B6 -> 476.0932894 | I6: =G6 -> 476.0932894 | J6: =B6 -> 476.0932894 | K6: =J6 -> 476.0932894 | L6: =J6 -> 476.0932894 | M6: =K6 -> 476.0932894 | N6: =M6 -> 476.0932894 | O6: =M6 -> 476.0932894 | P6: =B6 -> 476.0932894 | Q6: =B6 -> 476.0932894 | R6: =B6 -> 476.0932894 | S6: =EFs!H4+EFs!I4 -> 382.0855619 | T6: =S6 -> 382.0855619 | U6: =S6 -> 382.0855619 | V6: =EFs!H5+EFs!I5 -> 830.7067052 | W6: =V6 -> 830.7067052 | X6: =V6 -> 830.7067052 | Y6: =V6 -> 830.7067052 | Z6: =V6 -> 830.7067052 | AA6: =V6 -> 830.7067052 | AB6: =B6 -> 476.0932894 | AC6: =S6 -> 382.0855619 | AD6: =AC6 -> 382.0855619 | AE6: =Y6 -> 830.7067052 | AF6: =AC6 -> 382.0855619 | AG6: ='TWP Calcs'!J6*10750/8194 -> 624.6037175 | AJ6: =J6 -> 476.0932894 | AK6: 473.6029692 | AL6: 473.6029692
A7: E2,CH4 | B7: 0 | C7: =B7 -> 0 | D7: 0 | E7: 0 | F7: =J7 -> 0.1101014245 | G7: =EFs!G6 -> 0.5741142126 | H7: =G7 -> 0.5741142126 | I7: =G7 -> 0.5741142126 | J7: =EFs!G7 -> 0.1101014245 | K7: =J7 -> 0.1101014245 | L7: =J7 -> 0.1101014245 | M7: =EFs!G8 -> 2.907356895 | N7: =M7 -> 2.907356895 | O7: =M7 -> 2.907356895 | P7: =EFs!G9 -> 0.09685736244 | Q7: =P7 -> 0.09685736244 | R7: =Q7 -> 0.09685736244 | S7: =J7 -> 0.1101014245 | T7: =K7 -> 0.1101014245 | U7: 0.1101014245 | V7: =J7 -> 0.1101014245 | W7: =V7 -> 0.1101014245 | X7: =V7 -> 0.1101014245 | Y7: =$P$7 -> 0.09685736244 | Z7: =$P$7 -> 0.09685736244 | AA7: =$P$7 -> 0.09685736244 | AB7: =EFs!G10 -> 3.233391399 | AC7: =AB7 -> 3.233391399 | AD7: =AC7 -> 3.233391399 | AE7: =AB7 -> 3.233391399 | AF7: =P7 -> 0.09685736244 | AG7: =J7 -> 0.1101014245 | AJ7: =J7 -> 0.1101014245 | AK7: 0.1101014245 | AL7: 0.1101014245
A8: E2,CO2 | B8: =B6 -> 476.0932894 | C8: =B8 -> 476.0932894 | D8: =D6 -> 46.80538468 | E8: =D8 -> 46.80538468 | F8: =J8 -> 965.0340616 | G8: =EFs!H6+EFs!I6 -> 959.1577345 | H8: =G8 -> 959.1577345 | I8: =G8 -> 959.1577345 | J8: =EFs!H7+EFs!I7 -> 965.0340616 | K8: =J8 -> 965.0340616 | L8: =J8 -> 965.0340616 | M8: =EFs!H8+EFs!I8 -> 923.8721354 | N8: =M8 -> 923.8721354 | O8: =M8 -> 923.8721354 | P8: =EFs!H9+EFs!I9 -> 848.9504502 | Q8: =P8 -> 848.9504502 | R8: =P8 -> 848.9504502 | S8: =J8 -> 965.0340616 | T8: 965.0340616 | U8: 965.0340616 | V8: =J8 -> 965.0340616 | W8: =V8 -> 965.0340616 | X8: =V8 -> 965.0340616 | Y8: =$P$8 -> 848.9504502 | Z8: =$P$8 -> 848.9504502 | AA8: =$P$8 -> 848.9504502 | AB8: =EFs!H10+EFs!I10 -> 1027.476269 | AC8: =AB8 -> 1027.476269 | AD8: =AC8 -> 1027.476269 | AE8: =AB8 -> 1027.476269 | AF8: =P8 -> 848.9504502 | AG8: =J8 -> 965.0340616 | AJ8: =J8 -> 965.0340616 | AK8: 965.0340616 | AL8: 965.0340616
A9: Years | B9: Fleet TWP w and w/o CH4 losses | E9: Pulse TWP
A10: 0.1 | B10: =(((('TWP Calcs'!B$5)*'TWP Calcs'!$A$2*'TRF calcs '!$B3)+'TWP Calcs'!B$6*('TRF calcs '!$C3+'TRF calcs '!$D3+'TRF calcs '!$E3+'TRF calcs '!$F3))/(('TWP Calcs'!B$7*'TWP Calcs'!$A$2*'TRF calcs '!$B3)+('TWP Calcs'!B$8*('TRF calcs '!$C3+'TRF calcs '!$D3+'TRF calcs '!$E3+'TRF calcs '!$F3)))) -> 1.589077302 | C10: =(((('TWP Calcs'!C$5)*'TWP Calcs'!$A$2*'TRF calcs '!$B3)+'TWP Calcs'!C$6*('TRF calcs '!$C3+'TRF calcs '!$D3+'TRF calcs '!$E3+'TRF calcs '!$F3))/(('TWP Calcs'!C$7*'TWP Calcs'!$A$2*'TRF calcs '!$B3)+('TWP Calcs'!C$8*('TRF calcs '!$C3+'TRF calcs '!$D3+'TRF calcs '!$E3+'TRF calcs '!$F3)))) -> 1.323992516 | D10: =(((('TWP Calcs'!D$5)*'TWP Calcs'!$A$2*'TRF calcs '!$B3)+'TWP Calcs'!D$6*('TRF calcs '!$C3+'TRF calcs '!$D3+'TRF calcs '!$E3+'TRF calcs '!$F3))/(('TWP Calcs'!D$7*'TWP Calcs'!$A$2*'TRF calcs '!$B3)+('TWP Calcs'!D$8*('TRF calcs '!$C3+'TRF calcs '!$D3+'TRF calcs '!$E3+'TRF calcs '!$F3)))) -> 1.410094533 | E10: =(((('TWP Calcs'!E$5)*'TWP Calcs'!$A$2*'TRF calcs '!$G3)+'TWP Calcs'!E$6*('TRF calcs '!$H3+'TRF calcs '!$I3+'TRF calcs '!$J3+'TRF calcs '!$K3))/(('TWP Calcs'!E$7*'TWP Calcs'!$A$2*'TRF calcs '!$G3)+('TWP Calcs'!E$8*('TRF calcs '!$H3+'TRF calcs '!$I3+'TRF calcs '!$J3+'TRF calcs '!$K3)))) -> 1.410035528 | F10: =(((('TWP Calcs'!F$5)*'TWP Calcs'!$A$2*'TRF calcs '!$B3)+'TWP Calcs'!F$6*('TRF calcs '!$C3+'TRF calcs '!$D3+'TRF calcs '!$E3+'TRF calcs '!$F3))/(('TWP Calcs'!F$7*'TWP Calcs'!$A$2*'TRF calcs '!$B3)+('TWP Calcs'!F$8*('TRF calcs '!$C3+'TRF calcs '!$D3+'TRF calcs '!$E3+'TRF calcs '!$F3)))) -> 0.8020450793 | G10: =(((('TWP Calcs'!G$5)*'TWP Calcs'!$A$2*'TRF calcs '!$B3)+'TWP Calcs'!G$6*('TRF calcs '!$C3+'TRF calcs '!$D3+'TRF calcs '!$E3+'TRF calcs '!$F3))/(('TWP Calcs'!G$7*'TWP Calcs'!$A$2*'TRF calcs '!$B3)+('TWP Calcs'!G$8*('TRF calcs '!$C3+'TRF calcs '!$D3+'TRF calcs '!$E3+'TRF calcs '!$F3)))) -> 0.7359196089 | H10: =(((('TWP Calcs'!H$5)*'TWP Calcs'!$A$2*'TRF calcs '!$B3)+'TWP Calcs'!H$6*('TRF calcs '!$C3+'TRF calcs '!$D3+'TRF calcs '!$E3+'TRF calcs '!$F3))/(('TWP Calcs'!H$7*'TWP Calcs'!$A$2*'TRF calcs '!$B3)+('TWP Calcs'!H$8*('TRF calcs '!$C3+'TRF calcs '!$D3+'TRF calcs '!$E3+'TRF calcs '!$F3)))) -> 0.6131558568 | I10: =(((('TWP Calcs'!I$5)*'TWP Calcs'!$A$2*'TRF calcs '!$B3)+'TWP Calcs'!I$6*('TRF calcs '!$C3+'TRF calcs '!$D3+'TRF calcs '!$E3+'TRF calcs '!$F3))/(('TWP Calcs'!I$7*'TWP Calcs'!$A$2*'TRF calcs '!$B3)+('TWP Calcs'!I$8*('TRF calcs '!$C3+'TRF calcs '!$D3+'TRF calcs '!$E3+'TRF calcs '!$F3)))) -> 0.4903921048 | J10: =(((('TWP Calcs'!J$5)*'TWP Calcs'!$A$2*'TRF calcs '!$B3)+'TWP Calcs'!J$6*('TRF calcs '!$C3+'TRF calcs '!$D3+'TRF calcs '!$E3+'TRF calcs '!$F3))/(('TWP Calcs'!J$7*'TWP Calcs'!$A$2*'TRF calcs '!$B3)+('TWP Calcs'!J$8*('TRF calcs '!$C3+'TRF calcs '!$D3+'TRF calcs '!$E3+'TRF calcs '!$F3)))) -> 0.7733757321 | K10: =(((('TWP Calcs'!K$5)*'TWP Calcs'!$A$2*'TRF calcs '!$B3)+'TWP Calcs'!K$6*('TRF calcs '!$C3+'TRF calcs '!$D3+'TRF calcs '!$E3+'TRF calcs '!$F3))/(('TWP Calcs'!K$7*'TWP Calcs'!$A$2*'TRF calcs '!$B3)+('TWP Calcs'!K$8*('TRF calcs '!$C3+'TRF calcs '!$D3+'TRF calcs '!$E3+'TRF calcs '!$F3)))) -> 0.6443636695 | L10: =(((('TWP Calcs'!L$5)*'TWP Calcs'!$A$2*'TRF calcs '!$B3)+'TWP Calcs'!L$6*('TRF calcs '!$C3+'TRF calcs '!$D3+'TRF calcs '!$E3+'TRF calcs '!$F3))/(('TWP Calcs'!L$7*'TWP Calcs'!$A$2*'TRF calcs '!$B3)+('TWP Calcs'!L$8*('TRF calcs '!$C3+'TRF calcs '!$D3+'TRF calcs '!$E3+'TRF calcs '!$F3)))) -> 0.4866822597 | M10: =(((('TWP Calcs'!M$5)*'TWP Calcs'!$A$2*'TRF calcs '!$B3)+'TWP Calcs'!M$6*('TRF calcs '!$C3+'TRF calcs '!$D3+'TRF calcs '!$E3+'TRF calcs '!$F3))/(('TWP Calcs'!M$7*'TWP Calcs'!$A$2*'TRF calcs '!$B3)+('TWP Calcs'!M$8*('TRF calcs '!$C3+'TRF calcs '!$D3+'TRF calcs '!$E3+'TRF calcs '!$F3)))) -> 0.5944640113 | N10: =(((('TWP Calcs'!N$5)*'TWP Calcs'!$A$2*'TRF calcs '!$B3)+'TWP Calcs'!N$6*('TRF calcs '!$C3+'TRF calcs '!$D3+'TRF calcs '!$E3+'TRF calcs '!$F3))/(('TWP Calcs'!N$7*'TWP Calcs'!$A$2*'TRF calcs '!$B3)+('TWP Calcs'!N$8*('TRF calcs '!$C3+'TRF calcs '!$D3+'TRF calcs '!$E3+'TRF calcs '!$F3)))) -> 0.495297429 | O10: =(((('TWP Calcs'!O$5)*'TWP Calcs'!$A$2*'TRF calcs '!$B3)+'TWP Calcs'!O$6*('TRF calcs '!$C3+'TRF calcs '!$D3+'TRF calcs '!$E3+'TRF calcs '!$F3))/(('TWP Calcs'!O$7*'TWP Calcs'!$A$2*'TRF calcs '!$B3)+('TWP Calcs'!O$8*('TRF calcs '!$C3+'TRF calcs '!$D3+'TRF calcs '!$E3+'TRF calcs '!$F3)))) -> 0.3961308467 | P10: =(((('TWP Calcs'!P$5)*'TWP Calcs'!$A$2*'TRF calcs '!$B3)+'TWP Calcs'!P$6*('TRF calcs '!$C3+'TRF calcs '!$D3+'TRF calcs '!$E3+'TRF calcs '!$F3))/(('TWP Calcs'!P$7*'TWP Calcs'!$A$2*'TRF calcs '!$B3)+('TWP Calcs'!P$8*('TRF calcs '!$C3+'TRF calcs '!$D3+'TRF calcs '!$E3+'TRF calcs '!$F3)))) -> 0.8791254234 | Q10: =(((('TWP Calcs'!Q$5)*'TWP Calcs'!$A$2*'TRF calcs '!$B3)+'TWP Calcs'!Q$6*('TRF calcs '!$C3+'TRF calcs '!$D3+'TRF calcs '!$E3+'TRF calcs '!$F3))/(('TWP Calcs'!Q$7*'TWP Calcs'!$A$2*'TRF calcs '!$B3)+('TWP Calcs'!Q$8*('TRF calcs '!$C3+'TRF calcs '!$D3+'TRF calcs '!$E3+'TRF calcs '!$F3)))) -> 0.732472536 | R10: =(((('TWP Calcs'!R$5)*'TWP Calcs'!$A$2*'TRF calcs '!$B3)+'TWP Calcs'!R$6*('TRF calcs '!$C3+'TRF calcs '!$D3+'TRF calcs '!$E3+'TRF calcs '!$F3))/(('TWP Calcs'!R$7*'TWP Calcs'!$A$2*'TRF calcs '!$B3)+('TWP Calcs'!R$8*('TRF calcs '!$C3+'TRF calcs '!$D3+'TRF calcs '!$E3+'TRF calcs '!$F3)))) -> 0.5858196487 | S10: =(((('TWP Calcs'!S$5)*'TWP Calcs'!$A$2*'TRF calcs '!$B3)+'TWP Calcs'!S$6*('TRF calcs '!$C3+'TRF calcs '!$D3+'TRF calcs '!$E3+'TRF calcs '!$F3))/(('TWP Calcs'!S$7*'TWP Calcs'!$A$2*'TRF calcs '!$B3)+('TWP Calcs'!S$8*('TRF calcs '!$C3+'TRF calcs '!$D3+'TRF calcs '!$E3+'TRF calcs '!$F3)))) -> 0.6206676459 | T10: =(((('TWP Calcs'!T$5)*'TWP Calcs'!$A$2*'TRF calcs '!$B3)+'TWP Calcs'!T$6*('TRF calcs '!$C3+'TRF calcs '!$D3+'TRF calcs '!$E3+'TRF calcs '!$F3))/(('TWP Calcs'!T$7*'TWP Calcs'!$A$2*'TRF calcs '!$B3)+('TWP Calcs'!T$8*('TRF calcs '!$C3+'TRF calcs '!$D3+'TRF calcs '!$E3+'TRF calcs '!$F3)))) -> 0.5171298572 | U10: =(((('TWP Calcs'!U$5)*'TWP Calcs'!$A$2*'TRF calcs '!$B3)+'TWP Calcs'!U$6*('TRF calcs '!$C3+'TRF calcs '!$D3+'TRF calcs '!$E3+'TRF calcs '!$F3))/(('TWP Calcs'!U$7*'TWP Calcs'!$A$2*'TRF calcs '!$B3)+('TWP Calcs'!U$8*('TRF calcs '!$C3+'TRF calcs '!$D3+'TRF calcs '!$E3+'TRF calcs '!$F3)))) -> 0.4135920685 | V10: =(((('TWP Calcs'!V$5)*'TWP Calcs'!$A$2*'TRF calcs '!$B3)+'TWP Calcs'!V$6*('TRF calcs '!$C3+'TRF calcs '!$D3+'TRF calcs '!$E3+'TRF calcs '!$F3))/(('TWP Calcs'!V$7*'TWP Calcs'!$A$2*'TRF calcs '!$B3)+('TWP Calcs'!V$8*('TRF calcs '!$C3+'TRF calcs '!$D3+'TRF calcs '!$E3+'TRF calcs '!$F3)))) -> 1.349417059 | W10: =(((('TWP Calcs'!W$5)*'TWP Calcs'!$A$2*'TRF calcs '!$B3)+'TWP Calcs'!W$6*('TRF calcs '!$C3+'TRF calcs '!$D3+'TRF calcs '!$E3+'TRF calcs '!$F3))/(('TWP Calcs'!W$7*'TWP Calcs'!$A$2*'TRF calcs '!$B3)+('TWP Calcs'!W$8*('TRF calcs '!$C3+'TRF calcs '!$D3+'TRF calcs '!$E3+'TRF calcs '!$F3)))) -> 1.124311627 | X10: =(((('TWP Calcs'!X$5)*'TWP Calcs'!$A$2*'TRF calcs '!$B3)+'TWP Calcs'!X$6*('TRF calcs '!$C3+'TRF calcs '!$D3+'TRF calcs '!$E3+'TRF calcs '!$F3))/(('TWP Calcs'!X$7*'TWP Calcs'!$A$2*'TRF calcs '!$B3)+('TWP Calcs'!X$8*('TRF calcs '!$C3+'TRF calcs '!$D3+'TRF calcs '!$E3+'TRF calcs '!$F3)))) -> 0.8992061954 | Y10: =(((('TWP Calcs'!Y$5)*'TWP Calcs'!$A$2*'TRF calcs '!$B3)+'TWP Calcs'!Y$6*('TRF calcs '!$C3+'TRF calcs '!$D3+'TRF calcs '!$E3+'TRF calcs '!$F3))/(('TWP Calcs'!Y$7*'TWP Calcs'!$A$2*'TRF calcs '!$B3)+('TWP Calcs'!Y$8*('TRF calcs '!$C3+'TRF calcs '!$D3+'TRF calcs '!$E3+'TRF calcs '!$F3)))) -> 1.53393337 | Z10: =(((('TWP Calcs'!Z$5)*'TWP Calcs'!$A$2*'TRF calcs '!$B3)+'TWP Calcs'!Z$6*('TRF calcs '!$C3+'TRF calcs '!$D3+'TRF calcs '!$E3+'TRF calcs '!$F3))/(('TWP Calcs'!Z$7*'TWP Calcs'!$A$2*'TRF calcs '!$B3)+('TWP Calcs'!Z$8*('TRF calcs '!$C3+'TRF calcs '!$D3+'TRF calcs '!$E3+'TRF calcs '!$F3)))) -> 1.278047518 | AA10: =(((('TWP Calcs'!AA$5)*'TWP Calcs'!$A$2*'TRF calcs '!$B3)+'TWP Calcs'!AA$6*('TRF calcs '!$C3+'TRF calcs '!$D3+'TRF calcs '!$E3+'TRF calcs '!$F3))/(('TWP Calcs'!AA$7*'TWP Calcs'!$A$2*'TRF calcs '!$B3)+('TWP Calcs'!AA$8*('TRF calcs '!$C3+'TRF calcs '!$D3+'TRF calcs '!$E3+'TRF calcs '!$F3)))) -> 1.022161667 | AB10: =(((('TWP Calcs'!AB$5)*'TWP Calcs'!$A$2*'TRF calcs '!$B3)+'TWP Calcs'!AB$6*('TRF calcs '!$C3+'TRF calcs '!$D3+'TRF calcs '!$E3+'TRF calcs '!$F3))/(('TWP Calcs'!AB$7*'TWP Calcs'!$A$2*'TRF calcs '!$B3)+('TWP Calcs'!AB$8*('TRF calcs '!$C3+'TRF calcs '!$D3+'TRF calcs '!$E3+'TRF calcs '!$F3)))) -> 0.5345220633 | AC10: =(((('TWP Calcs'!AC$5)*'TWP Calcs'!$A$2*'TRF calcs '!$B3)+'TWP Calcs'!AC$6*('TRF calcs '!$C3+'TRF calcs '!$D3+'TRF calcs '!$E3+'TRF calcs '!$F3))/(('TWP Calcs'!AC$7*'TWP Calcs'!$A$2*'TRF calcs '!$B3)+('TWP Calcs'!AC$8*('TRF calcs '!$C3+'TRF calcs '!$D3+'TRF calcs '!$E3+'TRF calcs '!$F3)))) -> 0.4289771931 | AD10: =(((('TWP Calcs'!AD$5)*'TWP Calcs'!$A$2*'TRF calcs '!$B3)+'TWP Calcs'!AD$6*('TRF calcs '!$C3+'TRF calcs '!$D3+'TRF calcs '!$E3+'TRF calcs '!$F3))/(('TWP Calcs'!AD$7*'TWP Calcs'!$A$2*'TRF calcs '!$B3)+('TWP Calcs'!AD$8*('TRF calcs '!$C3+'TRF calcs '!$D3+'TRF calcs '!$E3+'TRF calcs '!$F3)))) -> 0.2858559904 | AE10: =(((('TWP Calcs'!AE$5)*'TWP Calcs'!$A$2*'TRF calcs '!$B3)+'TWP Calcs'!AE$6*('TRF calcs '!$C3+'TRF calcs '!$D3+'TRF calcs '!$E3+'TRF calcs '!$F3))/(('TWP Calcs'!AE$7*'TWP Calcs'!$A$2*'TRF calcs '!$B3)+('TWP Calcs'!AE$8*('TRF calcs '!$C3+'TRF calcs '!$D3+'TRF calcs '!$E3+'TRF calcs '!$F3)))) -> 0.9326555781 | AF10: =(((('TWP Calcs'!AF$5)*'TWP Calcs'!$A$2*'TRF calcs '!$B3)+'TWP Calcs'!AF$6*('TRF calcs '!$C3+'TRF calcs '!$D3+'TRF calcs '!$E3+'TRF calcs '!$F3))/(('TWP Calcs'!AF$7*'TWP Calcs'!$A$2*'TRF calcs '!$B3)+('TWP Calcs'!AF$8*('TRF calcs '!$C3+'TRF calcs '!$D3+'TRF calcs '!$E3+'TRF calcs '!$F3)))) -> 0.7055363704 | AG10: =(((('TWP Calcs'!AG$5)*'TWP Calcs'!$A$2*'TRF calcs '!$B3)+'TWP Calcs'!AG$6*('TRF calcs '!$C3+'TRF calcs '!$D3+'TRF calcs '!$E3+'TRF calcs '!$F3))/(('TWP Calcs'!AG$7*'TWP Calcs'!$A$2*'TRF calcs '!$B3)+('TWP Calcs'!AG$8*('TRF calcs '!$C3+'TRF calcs '!$D3+'TRF calcs '!$E3+'TRF calcs '!$F3)))) -> 1.014619126 | AH10: 1 | AI10: 0 | AJ10: =(((('TWP Calcs'!AJ$5)*'TWP Calcs'!$A$2*'TRF calcs '!$B3)+'TWP Calcs'!AJ$6*('TRF calcs '!$C3+'TRF calcs '!$D3+'TRF calcs '!$E3+'TRF calcs '!$F3))/(('TWP Calcs'!AJ$7*'TWP Calcs'!$A$2*'TRF calcs '!$B3)+('TWP Calcs'!AJ$8*('TRF calcs '!$C3+'TRF calcs '!$D3+'TRF calcs '!$E3+'TRF calcs '!$F3)))) -> 0.7733757321 | AK10: =(((('TWP Calcs'!AK$5)*'TWP Calcs'!$A$2*'TRF calcs '!$G3)+'TWP Calcs'!AK$6*('TRF calcs '!$H3+'TRF calcs '!$I3+'TRF calcs '!$J3+'TRF calcs '!$K3))/(('TWP Calcs'!AK$7*'TWP Calcs'!$A$2*'TRF calcs '!$G3)+('TWP Calcs'!AK$8*('TRF calcs '!$H3+'TRF calcs '!$I3+'TRF calcs '!$J3+'TRF calcs '!$K3)))) -> 0.7707902708 | AL10: =(((('TWP Calcs'!AL$5)*'TWP Calcs'!$A$2*'TRF calcs '!$L3)+'TWP Calcs'!AL$6*('TRF calcs '!$M3+'TRF calcs '!$N3+'TRF calcs '!$O3+'TRF calcs '!$P3))/(('TWP Calcs'!AL$7*'TWP Calcs'!$A$2*'TRF calcs '!$L3)+('TWP Calcs'!AL$8*('TRF calcs '!$M3+'TRF calcs '!$N3+'TRF calcs '!$O3+'TRF calcs '!$P3)))) -> 0.7708300237
A11: 0.2 | B11: =(((('TWP Calcs'!B$5)*'TWP Calcs'!$A$2*'TRF calcs '!$B4)+'TWP Calcs'!B$6*('TRF calcs '!$C4+'TRF calcs '!$D4+'TRF calcs '!$E4+'TRF calcs '!$F4))/(('TWP Calcs'!B$7*'TWP Calcs'!$A$2*'TRF calcs '!$B4)+('TWP Calcs'!B$8*('TRF calcs '!$C4+'TRF calcs '!$D4+'TRF calcs '!$E4+'TRF calcs '!$F4)))) -> 1.588903445 | C11: =(((('TWP Calcs'!C$5)*'TWP Calcs'!$A$2*'TRF calcs '!$B4)+'TWP Calcs'!C$6*('TRF calcs '!$C4+'TRF calcs '!$D4+'TRF calcs '!$E4+'TRF calcs '!$F4))/(('TWP Calcs'!C$7*'TWP Calcs'!$A$2*'TRF calcs '!$B4)+('TWP Calcs'!C$8*('TRF calcs '!$C4+'TRF calcs '!$D4+'TRF calcs '!$E4+'TRF calcs '!$F4)))) -> 1.323896895 | D11: =(((('TWP Calcs'!D$5)*'TWP Calcs'!$A$2*'TRF calcs '!$B4)+'TWP Calcs'!D$6*('TRF calcs '!$C4+'TRF calcs '!$D4+'TRF calcs '!$E4+'TRF calcs '!$F4))/(('TWP Calcs'!D$7*'TWP Calcs'!$A$2*'TRF calcs '!$B4)+('TWP Calcs'!D$8*('TRF calcs '!$C4+'TRF calcs '!$D4+'TRF calcs '!$E4+'TRF calcs '!$F4)))) -> 1.409973501 | E11: =(((('TWP Calcs'!E$5)*'TWP Calcs'!$A$2*'TRF calcs '!$G4)+'TWP Calcs'!E$6*('TRF calcs '!$H4+'TRF calcs '!$I4+'TRF calcs '!$J4+'TRF calcs '!$K4))/(('TWP Calcs'!E$7*'TWP Calcs'!$A$2*'TRF calcs '!$G4)+('TWP Calcs'!E$8*('TRF calcs '!$H4+'TRF calcs '!$I4+'TRF calcs '!$J4+'TRF calcs '!$K4)))) -> 1.409849023 | F11: =(((('TWP Calcs'!F$5)*'TWP Calcs'!$A$2*'TRF calcs '!$B4)+'TWP Calcs'!F$6*('TRF calcs '!$C4+'TRF calcs '!$D4+'TRF calcs '!$E4+'TRF calcs '!$F4))/(('TWP Calcs'!F$7*'TWP Calcs'!$A$2*'TRF calcs '!$B4)+('TWP Calcs'!F$8*('TRF calcs '!$C4+'TRF calcs '!$D4+'TRF calcs '!$E4+'TRF calcs '!$F4)))) -> 0.801955201 | G11: =(((('TWP Calcs'!G$5)*'TWP Calcs'!$A$2*'TRF calcs '!$B4)+'TWP Calcs'!G$6*('TRF calcs '!$C4+'TRF calcs '!$D4+'TRF calcs '!$E4+'TRF calcs '!$F4))/(('TWP Calcs'!G$7*'TWP Calcs'!$A$2*'TRF calcs '!$B4)+('TWP Calcs'!G$8*('TRF calcs '!$C4+'TRF calcs '!$D4+'TRF calcs '!$E4+'TRF calcs '!$F4)))) -> 0.7358536439 | H11: =(((('TWP Calcs'!H$5)*'TWP Calcs'!$A$2*'TRF calcs '!$B4)+'TWP Calcs'!H$6*('TRF calcs '!$C4+'TRF calcs '!$D4+'TRF calcs '!$E4+'TRF calcs '!$F4))/(('TWP Calcs'!H$7*'TWP Calcs'!$A$2*'TRF calcs '!$B4)+('TWP Calcs'!H$8*('TRF calcs '!$C4+'TRF calcs '!$D4+'TRF calcs '!$E4+'TRF calcs '!$F4)))) -> 0.6131236969 | I11: =(((('TWP Calcs'!I$5)*'TWP Calcs'!$A$2*'TRF calcs '!$B4)+'TWP Calcs'!I$6*('TRF calcs '!$C4+'TRF calcs '!$D4+'TRF calcs '!$E4+'TRF calcs '!$F4))/(('TWP Calcs'!I$7*'TWP Calcs'!$A$2*'TRF calcs '!$B4)+('TWP Calcs'!I$8*('TRF calcs '!$C4+'TRF calcs '!$D4+'TRF calcs '!$E4+'TRF calcs '!$F4)))) -> 0.4903937498 | J11: =(((('TWP Calcs'!J$5)*'TWP Calcs'!$A$2*'TRF calcs '!$B4)+'TWP Calcs'!J$6*('TRF calcs '!$C4+'TRF calcs '!$D4+'TRF calcs '!$E4+'TRF calcs '!$F4))/(('TWP Calcs'!J$7*'TWP Calcs'!$A$2*'TRF calcs '!$B4)+('TWP Calcs'!J$8*('TRF calcs '!$C4+'TRF calcs '!$D4+'TRF calcs '!$E4+'TRF calcs '!$F4)))) -> 0.7732942008 | K11: =(((('TWP Calcs'!K$5)*'TWP Calcs'!$A$2*'TRF calcs '!$B4)+'TWP Calcs'!K$6*('TRF calcs '!$C4+'TRF calcs '!$D4+'TRF calcs '!$E4+'TRF calcs '!$F4))/(('TWP Calcs'!K$7*'TWP Calcs'!$A$2*'TRF calcs '!$B4)+('TWP Calcs'!K$8*('TRF calcs '!$C4+'TRF calcs '!$D4+'TRF calcs '!$E4+'TRF calcs '!$F4)))) -> 0.6443197001 | L11: =(((('TWP Calcs'!L$5)*'TWP Calcs'!$A$2*'TRF calcs '!$B4)+'TWP Calcs'!L$6*('TRF calcs '!$C4+'TRF calcs '!$D4+'TRF calcs '!$E4+'TRF calcs '!$F4))/(('TWP Calcs'!L$7*'TWP Calcs'!$A$2*'TRF calcs '!$B4)+('TWP Calcs'!L$8*('TRF calcs '!$C4+'TRF calcs '!$D4+'TRF calcs '!$E4+'TRF calcs '!$F4)))) -> 0.4866841992 | M11: =(((('TWP Calcs'!M$5)*'TWP Calcs'!$A$2*'TRF calcs '!$B4)+'TWP Calcs'!M$6*('TRF calcs '!$C4+'TRF calcs '!$D4+'TRF calcs '!$E4+'TRF calcs '!$F4))/(('TWP Calcs'!M$7*'TWP Calcs'!$A$2*'TRF calcs '!$B4)+('TWP Calcs'!M$8*('TRF calcs '!$C4+'TRF calcs '!$D4+'TRF calcs '!$E4+'TRF calcs '!$F4)))) -> 0.5944470543 | N11: =(((('TWP Calcs'!N$5)*'TWP Calcs'!$A$2*'TRF calcs '!$B4)+'TWP Calcs'!N$6*('TRF calcs '!$C4+'TRF calcs '!$D4+'TRF calcs '!$E4+'TRF calcs '!$F4))/(('TWP Calcs'!N$7*'TWP Calcs'!$A$2*'TRF calcs '!$B4)+('TWP Calcs'!N$8*('TRF calcs '!$C4+'TRF calcs '!$D4+'TRF calcs '!$E4+'TRF calcs '!$F4)))) -> 0.49530172 | O11: =(((('TWP Calcs'!O$5)*'TWP Calcs'!$A$2*'TRF calcs '!$B4)+'TWP Calcs'!O$6*('TRF calcs '!$C4+'TRF calcs '!$D4+'TRF calcs '!$E4+'TRF calcs '!$F4))/(('TWP Calcs'!O$7*'TWP Calcs'!$A$2*'TRF calcs '!$B4)+('TWP Calcs'!O$8*('TRF calcs '!$C4+'TRF calcs '!$D4+'TRF calcs '!$E4+'TRF calcs '!$F4)))) -> 0.3961563857 | P11: =(((('TWP Calcs'!P$5)*'TWP Calcs'!$A$2*'TRF calcs '!$B4)+'TWP Calcs'!P$6*('TRF calcs '!$C4+'TRF calcs '!$D4+'TRF calcs '!$E4+'TRF calcs '!$F4))/(('TWP Calcs'!P$7*'TWP Calcs'!$A$2*'TRF calcs '!$B4)+('TWP Calcs'!P$8*('TRF calcs '!$C4+'TRF calcs '!$D4+'TRF calcs '!$E4+'TRF calcs '!$F4)))) -> 0.8790327437 | Q11: =(((('TWP Calcs'!Q$5)*'TWP Calcs'!$A$2*'TRF calcs '!$B4)+'TWP Calcs'!Q$6*('TRF calcs '!$C4+'TRF calcs '!$D4+'TRF calcs '!$E4+'TRF calcs '!$F4))/(('TWP Calcs'!Q$7*'TWP Calcs'!$A$2*'TRF calcs '!$B4)+('TWP Calcs'!Q$8*('TRF calcs '!$C4+'TRF calcs '!$D4+'TRF calcs '!$E4+'TRF calcs '!$F4)))) -> 0.7324225543 | R11: =(((('TWP Calcs'!R$5)*'TWP Calcs'!$A$2*'TRF calcs '!$B4)+'TWP Calcs'!R$6*('TRF calcs '!$C4+'TRF calcs '!$D4+'TRF calcs '!$E4+'TRF calcs '!$F4))/(('TWP Calcs'!R$7*'TWP Calcs'!$A$2*'TRF calcs '!$B4)+('TWP Calcs'!R$8*('TRF calcs '!$C4+'TRF calcs '!$D4+'TRF calcs '!$E4+'TRF calcs '!$F4)))) -> 0.5858123649 | S11: =(((('TWP Calcs'!S$5)*'TWP Calcs'!$A$2*'TRF calcs '!$B4)+'TWP Calcs'!S$6*('TRF calcs '!$C4+'TRF calcs '!$D4+'TRF calcs '!$E4+'TRF calcs '!$F4))/(('TWP Calcs'!S$7*'TWP Calcs'!$A$2*'TRF calcs '!$B4)+('TWP Calcs'!S$8*('TRF calcs '!$C4+'TRF calcs '!$D4+'TRF calcs '!$E4+'TRF calcs '!$F4)))) -> 0.6206022135 | T11: =(((('TWP Calcs'!T$5)*'TWP Calcs'!$A$2*'TRF calcs '!$B4)+'TWP Calcs'!T$6*('TRF calcs '!$C4+'TRF calcs '!$D4+'TRF calcs '!$E4+'TRF calcs '!$F4))/(('TWP Calcs'!T$7*'TWP Calcs'!$A$2*'TRF calcs '!$B4)+('TWP Calcs'!T$8*('TRF calcs '!$C4+'TRF calcs '!$D4+'TRF calcs '!$E4+'TRF calcs '!$F4)))) -> 0.5170945698 | U11: =(((('TWP Calcs'!U$5)*'TWP Calcs'!$A$2*'TRF calcs '!$B4)+'TWP Calcs'!U$6*('TRF calcs '!$C4+'TRF calcs '!$D4+'TRF calcs '!$E4+'TRF calcs '!$F4))/(('TWP Calcs'!U$7*'TWP Calcs'!$A$2*'TRF calcs '!$B4)+('TWP Calcs'!U$8*('TRF calcs '!$C4+'TRF calcs '!$D4+'TRF calcs '!$E4+'TRF calcs '!$F4)))) -> 0.413586926 | V11: =(((('TWP Calcs'!V$5)*'TWP Calcs'!$A$2*'TRF calcs '!$B4)+'TWP Calcs'!V$6*('TRF calcs '!$C4+'TRF calcs '!$D4+'TRF calcs '!$E4+'TRF calcs '!$F4))/(('TWP Calcs'!V$7*'TWP Calcs'!$A$2*'TRF calcs '!$B4)+('TWP Calcs'!V$8*('TRF calcs '!$C4+'TRF calcs '!$D4+'TRF calcs '!$E4+'TRF calcs '!$F4)))) -> 1.3492748 | W11: =(((('TWP Calcs'!W$5)*'TWP Calcs'!$A$2*'TRF calcs '!$B4)+'TWP Calcs'!W$6*('TRF calcs '!$C4+'TRF calcs '!$D4+'TRF calcs '!$E4+'TRF calcs '!$F4))/(('TWP Calcs'!W$7*'TWP Calcs'!$A$2*'TRF calcs '!$B4)+('TWP Calcs'!W$8*('TRF calcs '!$C4+'TRF calcs '!$D4+'TRF calcs '!$E4+'TRF calcs '!$F4)))) -> 1.124234907 | X11: =(((('TWP Calcs'!X$5)*'TWP Calcs'!$A$2*'TRF calcs '!$B4)+'TWP Calcs'!X$6*('TRF calcs '!$C4+'TRF calcs '!$D4+'TRF calcs '!$E4+'TRF calcs '!$F4))/(('TWP Calcs'!X$7*'TWP Calcs'!$A$2*'TRF calcs '!$B4)+('TWP Calcs'!X$8*('TRF calcs '!$C4+'TRF calcs '!$D4+'TRF calcs '!$E4+'TRF calcs '!$F4)))) -> 0.8991950151 | Y11: =(((('TWP Calcs'!Y$5)*'TWP Calcs'!$A$2*'TRF calcs '!$B4)+'TWP Calcs'!Y$6*('TRF calcs '!$C4+'TRF calcs '!$D4+'TRF calcs '!$E4+'TRF calcs '!$F4))/(('TWP Calcs'!Y$7*'TWP Calcs'!$A$2*'TRF calcs '!$B4)+('TWP Calcs'!Y$8*('TRF calcs '!$C4+'TRF calcs '!$D4+'TRF calcs '!$E4+'TRF calcs '!$F4)))) -> 1.533771659 | Z11: =(((('TWP Calcs'!Z$5)*'TWP Calcs'!$A$2*'TRF calcs '!$B4)+'TWP Calcs'!Z$6*('TRF calcs '!$C4+'TRF calcs '!$D4+'TRF calcs '!$E4+'TRF calcs '!$F4))/(('TWP Calcs'!Z$7*'TWP Calcs'!$A$2*'TRF calcs '!$B4)+('TWP Calcs'!Z$8*('TRF calcs '!$C4+'TRF calcs '!$D4+'TRF calcs '!$E4+'TRF calcs '!$F4)))) -> 1.277960308 | AA11: =(((('TWP Calcs'!AA$5)*'TWP Calcs'!$A$2*'TRF calcs '!$B4)+'TWP Calcs'!AA$6*('TRF calcs '!$C4+'TRF calcs '!$D4+'TRF calcs '!$E4+'TRF calcs '!$F4))/(('TWP Calcs'!AA$7*'TWP Calcs'!$A$2*'TRF calcs '!$B4)+('TWP Calcs'!AA$8*('TRF calcs '!$C4+'TRF calcs '!$D4+'TRF calcs '!$E4+'TRF calcs '!$F4)))) -> 1.022148958 | AB11: =(((('TWP Calcs'!AB$5)*'TWP Calcs'!$A$2*'TRF calcs '!$B4)+'TWP Calcs'!AB$6*('TRF calcs '!$C4+'TRF calcs '!$D4+'TRF calcs '!$E4+'TRF calcs '!$F4))/(('TWP Calcs'!AB$7*'TWP Calcs'!$A$2*'TRF calcs '!$B4)+('TWP Calcs'!AB$8*('TRF calcs '!$C4+'TRF calcs '!$D4+'TRF calcs '!$E4+'TRF calcs '!$F4)))) -> 0.5345068161 | AC11: =(((('TWP Calcs'!AC$5)*'TWP Calcs'!$A$2*'TRF calcs '!$B4)+'TWP Calcs'!AC$6*('TRF calcs '!$C4+'TRF calcs '!$D4+'TRF calcs '!$E4+'TRF calcs '!$F4))/(('TWP Calcs'!AC$7*'TWP Calcs'!$A$2*'TRF calcs '!$B4)+('TWP Calcs'!AC$8*('TRF calcs '!$C4+'TRF calcs '!$D4+'TRF calcs '!$E4+'TRF calcs '!$F4)))) -> 0.4289649565 | AD11: =(((('TWP Calcs'!AD$5)*'TWP Calcs'!$A$2*'TRF calcs '!$B4)+'TWP Calcs'!AD$6*('TRF calcs '!$C4+'TRF calcs '!$D4+'TRF calcs '!$E4+'TRF calcs '!$F4))/(('TWP Calcs'!AD$7*'TWP Calcs'!$A$2*'TRF calcs '!$B4)+('TWP Calcs'!AD$8*('TRF calcs '!$C4+'TRF calcs '!$D4+'TRF calcs '!$E4+'TRF calcs '!$F4)))) -> 0.2858744198 | AE11: =(((('TWP Calcs'!AE$5)*'TWP Calcs'!$A$2*'TRF calcs '!$B4)+'TWP Calcs'!AE$6*('TRF calcs '!$C4+'TRF calcs '!$D4+'TRF calcs '!$E4+'TRF calcs '!$F4))/(('TWP Calcs'!AE$7*'TWP Calcs'!$A$2*'TRF calcs '!$B4)+('TWP Calcs'!AE$8*('TRF calcs '!$C4+'TRF calcs '!$D4+'TRF calcs '!$E4+'TRF calcs '!$F4)))) -> 0.9326289741 | AF11: =(((('TWP Calcs'!AF$5)*'TWP Calcs'!$A$2*'TRF calcs '!$B4)+'TWP Calcs'!AF$6*('TRF calcs '!$C4+'TRF calcs '!$D4+'TRF calcs '!$E4+'TRF calcs '!$F4))/(('TWP Calcs'!AF$7*'TWP Calcs'!$A$2*'TRF calcs '!$B4)+('TWP Calcs'!AF$8*('TRF calcs '!$C4+'TRF calcs '!$D4+'TRF calcs '!$E4+'TRF calcs '!$F4)))) -> 0.7054619909 | AG11: =(((('TWP Calcs'!AG$5)*'TWP Calcs'!$A$2*'TRF calcs '!$B4)+'TWP Calcs'!AG$6*('TRF calcs '!$C4+'TRF calcs '!$D4+'TRF calcs '!$E4+'TRF calcs '!$F4))/(('TWP Calcs'!AG$7*'TWP Calcs'!$A$2*'TRF calcs '!$B4)+('TWP Calcs'!AG$8*('TRF calcs '!$C4+'TRF calcs '!$D4+'TRF calcs '!$E4+'TRF calcs '!$F4)))) -> 1.014512162 | AH11: 1 | AI11: 0 | AJ11: =(((('TWP Calcs'!AJ$5)*'TWP Calcs'!$A$2*'TRF calcs '!$B4)+'TWP Calcs'!AJ$6*('TRF calcs '!$C4+'TRF calcs '!$D4+'TRF calcs '!$E4+'TRF calcs '!$F4))/(('TWP Calcs'!AJ$7*'TWP Calcs'!$A$2*'TRF calcs '!$B4)+('TWP Calcs'!AJ$8*('TRF calcs '!$C4+'TRF calcs '!$D4+'TRF calcs '!$E4+'TRF calcs '!$F4)))) -> 0.7732942008 | AK11: =(((('TWP Calcs'!AK$5)*'TWP Calcs'!$A$2*'TRF calcs '!$G4)+'TWP Calcs'!AK$6*('TRF calcs '!$H4+'TRF calcs '!$I4+'TRF calcs '!$J4+'TRF calcs '!$K4))/(('TWP Calcs'!AK$7*'TWP Calcs'!$A$2*'TRF calcs '!$G4)+('TWP Calcs'!AK$8*('TRF calcs '!$H4+'TRF calcs '!$I4+'TRF calcs '!$J4+'TRF calcs '!$K4)))) -> 0.7706646192 | AL11: =(((('TWP Calcs'!AL$5)*'TWP Calcs'!$A$2*'TRF calcs '!$L4)+'TWP Calcs'!AL$6*('TRF calcs '!$M4+'TRF calcs '!$N4+'TRF calcs '!$O4+'TRF calcs '!$P4))/(('TWP Calcs'!AL$7*'TWP Calcs'!$A$2*'TRF calcs '!$L4)+('TWP Calcs'!AL$8*('TRF calcs '!$M4+'TRF calcs '!$N4+'TRF calcs '!$O4+'TRF calcs '!$P4)))) -> 0.7707484823
A12: 0.3 | B12: =(((('TWP Calcs'!B$5)*'TWP Calcs'!$A$2*'TRF calcs '!$B5)+'TWP Calcs'!B$6*('TRF calcs '!$C5+'TRF calcs '!$D5+'TRF calcs '!$E5+'TRF calcs '!$F5))/(('TWP Calcs'!B$7*'TWP Calcs'!$A$2*'TRF calcs '!$B5)+('TWP Calcs'!B$8*('TRF calcs '!$C5+'TRF calcs '!$D5+'TRF calcs '!$E5+'TRF calcs '!$F5)))) -> 1.588720581 | C12: =(((('TWP Calcs'!C$5)*'TWP Calcs'!$A$2*'TRF calcs '!$B5)+'TWP Calcs'!C$6*('TRF calcs '!$C5+'TRF calcs '!$D5+'TRF calcs '!$E5+'TRF calcs '!$F5))/(('TWP Calcs'!C$7*'TWP Calcs'!$A$2*'TRF calcs '!$B5)+('TWP Calcs'!C$8*('TRF calcs '!$C5+'TRF calcs '!$D5+'TRF calcs '!$E5+'TRF calcs '!$F5)))) -> 1.32379632 | D12: =(((('TWP Calcs'!D$5)*'TWP Calcs'!$A$2*'TRF calcs '!$B5)+'TWP Calcs'!D$6*('TRF calcs '!$C5+'TRF calcs '!$D5+'TRF calcs '!$E5+'TRF calcs '!$F5))/(('TWP Calcs'!D$7*'TWP Calcs'!$A$2*'TRF calcs '!$B5)+('TWP Calcs'!D$8*('TRF calcs '!$C5+'TRF calcs '!$D5+'TRF calcs '!$E5+'TRF calcs '!$F5)))) -> 1.409846197 | E12: =(((('TWP Calcs'!E$5)*'TWP Calcs'!$A$2*'TRF calcs '!$G5)+'TWP Calcs'!E$6*('TRF calcs '!$H5+'TRF calcs '!$I5+'TRF calcs '!$J5+'TRF calcs '!$K5))/(('TWP Calcs'!E$7*'TWP Calcs'!$A$2*'TRF calcs '!$G5)+('TWP Calcs'!E$8*('TRF calcs '!$H5+'TRF calcs '!$I5+'TRF calcs '!$J5+'TRF calcs '!$K5)))) -> 1.409649885 | F12: =(((('TWP Calcs'!F$5)*'TWP Calcs'!$A$2*'TRF calcs '!$B5)+'TWP Calcs'!F$6*('TRF calcs '!$C5+'TRF calcs '!$D5+'TRF calcs '!$E5+'TRF calcs '!$F5))/(('TWP Calcs'!F$7*'TWP Calcs'!$A$2*'TRF calcs '!$B5)+('TWP Calcs'!F$8*('TRF calcs '!$C5+'TRF calcs '!$D5+'TRF calcs '!$E5+'TRF calcs '!$F5)))) -> 0.8018606651 | G12: =(((('TWP Calcs'!G$5)*'TWP Calcs'!$A$2*'TRF calcs '!$B5)+'TWP Calcs'!G$6*('TRF calcs '!$C5+'TRF calcs '!$D5+'TRF calcs '!$E5+'TRF calcs '!$F5))/(('TWP Calcs'!G$7*'TWP Calcs'!$A$2*'TRF calcs '!$B5)+('TWP Calcs'!G$8*('TRF calcs '!$C5+'TRF calcs '!$D5+'TRF calcs '!$E5+'TRF calcs '!$F5)))) -> 0.7357842584 | H12: =(((('TWP Calcs'!H$5)*'TWP Calcs'!$A$2*'TRF calcs '!$B5)+'TWP Calcs'!H$6*('TRF calcs '!$C5+'TRF calcs '!$D5+'TRF calcs '!$E5+'TRF calcs '!$F5))/(('TWP Calcs'!H$7*'TWP Calcs'!$A$2*'TRF calcs '!$B5)+('TWP Calcs'!H$8*('TRF calcs '!$C5+'TRF calcs '!$D5+'TRF calcs '!$E5+'TRF calcs '!$F5)))) -> 0.6130898693 | I12: =(((('TWP Calcs'!I$5)*'TWP Calcs'!$A$2*'TRF calcs '!$B5)+'TWP Calcs'!I$6*('TRF calcs '!$C5+'TRF calcs '!$D5+'TRF calcs '!$E5+'TRF calcs '!$F5))/(('TWP Calcs'!I$7*'TWP Calcs'!$A$2*'TRF calcs '!$B5)+('TWP Calcs'!I$8*('TRF calcs '!$C5+'TRF calcs '!$D5+'TRF calcs '!$E5+'TRF calcs '!$F5)))) -> 0.4903954801 | J12: =(((('TWP Calcs'!J$5)*'TWP Calcs'!$A$2*'TRF calcs '!$B5)+'TWP Calcs'!J$6*('TRF calcs '!$C5+'TRF calcs '!$D5+'TRF calcs '!$E5+'TRF calcs '!$F5))/(('TWP Calcs'!J$7*'TWP Calcs'!$A$2*'TRF calcs '!$B5)+('TWP Calcs'!J$8*('TRF calcs '!$C5+'TRF calcs '!$D5+'TRF calcs '!$E5+'TRF calcs '!$F5)))) -> 0.7732084445 | K12: =(((('TWP Calcs'!K$5)*'TWP Calcs'!$A$2*'TRF calcs '!$B5)+'TWP Calcs'!K$6*('TRF calcs '!$C5+'TRF calcs '!$D5+'TRF calcs '!$E5+'TRF calcs '!$F5))/(('TWP Calcs'!K$7*'TWP Calcs'!$A$2*'TRF calcs '!$B5)+('TWP Calcs'!K$8*('TRF calcs '!$C5+'TRF calcs '!$D5+'TRF calcs '!$E5+'TRF calcs '!$F5)))) -> 0.6442734521 | L12: =(((('TWP Calcs'!L$5)*'TWP Calcs'!$A$2*'TRF calcs '!$B5)+'TWP Calcs'!L$6*('TRF calcs '!$C5+'TRF calcs '!$D5+'TRF calcs '!$E5+'TRF calcs '!$F5))/(('TWP Calcs'!L$7*'TWP Calcs'!$A$2*'TRF calcs '!$B5)+('TWP Calcs'!L$8*('TRF calcs '!$C5+'TRF calcs '!$D5+'TRF calcs '!$E5+'TRF calcs '!$F5)))) -> 0.4866862391 | M12: =(((('TWP Calcs'!M$5)*'TWP Calcs'!$A$2*'TRF calcs '!$B5)+'TWP Calcs'!M$6*('TRF calcs '!$C5+'TRF calcs '!$D5+'TRF calcs '!$E5+'TRF calcs '!$F5))/(('TWP Calcs'!M$7*'TWP Calcs'!$A$2*'TRF calcs '!$B5)+('TWP Calcs'!M$8*('TRF calcs '!$C5+'TRF calcs '!$D5+'TRF calcs '!$E5+'TRF calcs '!$F5)))) -> 0.5944292156 | N12: =(((('TWP Calcs'!N$5)*'TWP Calcs'!$A$2*'TRF calcs '!$B5)+'TWP Calcs'!N$6*('TRF calcs '!$C5+'TRF calcs '!$D5+'TRF calcs '!$E5+'TRF calcs '!$F5))/(('TWP Calcs'!N$7*'TWP Calcs'!$A$2*'TRF calcs '!$B5)+('TWP Calcs'!N$8*('TRF calcs '!$C5+'TRF calcs '!$D5+'TRF calcs '!$E5+'TRF calcs '!$F5)))) -> 0.495306234 | O12: =(((('TWP Calcs'!O$5)*'TWP Calcs'!$A$2*'TRF calcs '!$B5)+'TWP Calcs'!O$6*('TRF calcs '!$C5+'TRF calcs '!$D5+'TRF calcs '!$E5+'TRF calcs '!$F5))/(('TWP Calcs'!O$7*'TWP Calcs'!$A$2*'TRF calcs '!$B5)+('TWP Calcs'!O$8*('TRF calcs '!$C5+'TRF calcs '!$D5+'TRF calcs '!$E5+'TRF calcs '!$F5)))) -> 0.3961832524 | P12: =(((('TWP Calcs'!P$5)*'TWP Calcs'!$A$2*'TRF calcs '!$B5)+'TWP Calcs'!P$6*('TRF calcs '!$C5+'TRF calcs '!$D5+'TRF calcs '!$E5+'TRF calcs '!$F5))/(('TWP Calcs'!P$7*'TWP Calcs'!$A$2*'TRF calcs '!$B5)+('TWP Calcs'!P$8*('TRF calcs '!$C5+'TRF calcs '!$D5+'TRF calcs '!$E5+'TRF calcs '!$F5)))) -> 0.8789352613 | Q12: =(((('TWP Calcs'!Q$5)*'TWP Calcs'!$A$2*'TRF calcs '!$B5)+'TWP Calcs'!Q$6*('TRF calcs '!$C5+'TRF calcs '!$D5+'TRF calcs '!$E5+'TRF calcs '!$F5))/(('TWP Calcs'!Q$7*'TWP Calcs'!$A$2*'TRF calcs '!$B5)+('TWP Calcs'!Q$8*('TRF calcs '!$C5+'TRF calcs '!$D5+'TRF calcs '!$E5+'TRF calcs '!$F5)))) -> 0.7323699824 | R12: =(((('TWP Calcs'!R$5)*'TWP Calcs'!$A$2*'TRF calcs '!$B5)+'TWP Calcs'!R$6*('TRF calcs '!$C5+'TRF calcs '!$D5+'TRF calcs '!$E5+'TRF calcs '!$F5))/(('TWP Calcs'!R$7*'TWP Calcs'!$A$2*'TRF calcs '!$B5)+('TWP Calcs'!R$8*('TRF calcs '!$C5+'TRF calcs '!$D5+'TRF calcs '!$E5+'TRF calcs '!$F5)))) -> 0.5858047036 | S12: =(((('TWP Calcs'!S$5)*'TWP Calcs'!$A$2*'TRF calcs '!$B5)+'TWP Calcs'!S$6*('TRF calcs '!$C5+'TRF calcs '!$D5+'TRF calcs '!$E5+'TRF calcs '!$F5))/(('TWP Calcs'!S$7*'TWP Calcs'!$A$2*'TRF calcs '!$B5)+('TWP Calcs'!S$8*('TRF calcs '!$C5+'TRF calcs '!$D5+'TRF calcs '!$E5+'TRF calcs '!$F5)))) -> 0.6205333904 | T12: =(((('TWP Calcs'!T$5)*'TWP Calcs'!$A$2*'TRF calcs '!$B5)+'TWP Calcs'!T$6*('TRF calcs '!$C5+'TRF calcs '!$D5+'TRF calcs '!$E5+'TRF calcs '!$F5))/(('TWP Calcs'!T$7*'TWP Calcs'!$A$2*'TRF calcs '!$B5)+('TWP Calcs'!T$8*('TRF calcs '!$C5+'TRF calcs '!$D5+'TRF calcs '!$E5+'TRF calcs '!$F5)))) -> 0.5170574538 | U12: =(((('TWP Calcs'!U$5)*'TWP Calcs'!$A$2*'TRF calcs '!$B5)+'TWP Calcs'!U$6*('TRF calcs '!$C5+'TRF calcs '!$D5+'TRF calcs '!$E5+'TRF calcs '!$F5))/(('TWP Calcs'!U$7*'TWP Calcs'!$A$2*'TRF calcs '!$B5)+('TWP Calcs'!U$8*('TRF calcs '!$C5+'TRF calcs '!$D5+'TRF calcs '!$E5+'TRF calcs '!$F5)))) -> 0.4135815171 | V12: =(((('TWP Calcs'!V$5)*'TWP Calcs'!$A$2*'TRF calcs '!$B5)+'TWP Calcs'!V$6*('TRF calcs '!$C5+'TRF calcs '!$D5+'TRF calcs '!$E5+'TRF calcs '!$F5))/(('TWP Calcs'!V$7*'TWP Calcs'!$A$2*'TRF calcs '!$B5)+('TWP Calcs'!V$8*('TRF calcs '!$C5+'TRF calcs '!$D5+'TRF calcs '!$E5+'TRF calcs '!$F5)))) -> 1.349125169 | W12: =(((('TWP Calcs'!W$5)*'TWP Calcs'!$A$2*'TRF calcs '!$B5)+'TWP Calcs'!W$6*('TRF calcs '!$C5+'TRF calcs '!$D5+'TRF calcs '!$E5+'TRF calcs '!$F5))/(('TWP Calcs'!W$7*'TWP Calcs'!$A$2*'TRF calcs '!$B5)+('TWP Calcs'!W$8*('TRF calcs '!$C5+'TRF calcs '!$D5+'TRF calcs '!$E5+'TRF calcs '!$F5)))) -> 1.124154212 | X12: =(((('TWP Calcs'!X$5)*'TWP Calcs'!$A$2*'TRF calcs '!$B5)+'TWP Calcs'!X$6*('TRF calcs '!$C5+'TRF calcs '!$D5+'TRF calcs '!$E5+'TRF calcs '!$F5))/(('TWP Calcs'!X$7*'TWP Calcs'!$A$2*'TRF calcs '!$B5)+('TWP Calcs'!X$8*('TRF calcs '!$C5+'TRF calcs '!$D5+'TRF calcs '!$E5+'TRF calcs '!$F5)))) -> 0.8991832554 | Y12: =(((('TWP Calcs'!Y$5)*'TWP Calcs'!$A$2*'TRF calcs '!$B5)+'TWP Calcs'!Y$6*('TRF calcs '!$C5+'TRF calcs '!$D5+'TRF calcs '!$E5+'TRF calcs '!$F5))/(('TWP Calcs'!Y$7*'TWP Calcs'!$A$2*'TRF calcs '!$B5)+('TWP Calcs'!Y$8*('TRF calcs '!$C5+'TRF calcs '!$D5+'TRF calcs '!$E5+'TRF calcs '!$F5)))) -> 1.533601568 | Z12: =(((('TWP Calcs'!Z$5)*'TWP Calcs'!$A$2*'TRF calcs '!$B5)+'TWP Calcs'!Z$6*('TRF calcs '!$C5+'TRF calcs '!$D5+'TRF calcs '!$E5+'TRF calcs '!$F5))/(('TWP Calcs'!Z$7*'TWP Calcs'!$A$2*'TRF calcs '!$B5)+('TWP Calcs'!Z$8*('TRF calcs '!$C5+'TRF calcs '!$D5+'TRF calcs '!$E5+'TRF calcs '!$F5)))) -> 1.277868579 | AA12: =(((('TWP Calcs'!AA$5)*'TWP Calcs'!$A$2*'TRF calcs '!$B5)+'TWP Calcs'!AA$6*('TRF calcs '!$C5+'TRF calcs '!$D5+'TRF calcs '!$E5+'TRF calcs '!$F5))/(('TWP Calcs'!AA$7*'TWP Calcs'!$A$2*'TRF calcs '!$B5)+('TWP Calcs'!AA$8*('TRF calcs '!$C5+'TRF calcs '!$D5+'TRF calcs '!$E5+'TRF calcs '!$F5)))) -> 1.02213559 | AB12: =(((('TWP Calcs'!AB$5)*'TWP Calcs'!$A$2*'TRF calcs '!$B5)+'TWP Calcs'!AB$6*('TRF calcs '!$C5+'TRF calcs '!$D5+'TRF calcs '!$E5+'TRF calcs '!$F5))/(('TWP Calcs'!AB$7*'TWP Calcs'!$A$2*'TRF calcs '!$B5)+('TWP Calcs'!AB$8*('TRF calcs '!$C5+'TRF calcs '!$D5+'TRF calcs '!$E5+'TRF calcs '!$F5)))) -> 0.5344907762 | AC12: =(((('TWP Calcs'!AC$5)*'TWP Calcs'!$A$2*'TRF calcs '!$B5)+'TWP Calcs'!AC$6*('TRF calcs '!$C5+'TRF calcs '!$D5+'TRF calcs '!$E5+'TRF calcs '!$F5))/(('TWP Calcs'!AC$7*'TWP Calcs'!$A$2*'TRF calcs '!$B5)+('TWP Calcs'!AC$8*('TRF calcs '!$C5+'TRF calcs '!$D5+'TRF calcs '!$E5+'TRF calcs '!$F5)))) -> 0.4289520838 | AD12: =(((('TWP Calcs'!AD$5)*'TWP Calcs'!$A$2*'TRF calcs '!$B5)+'TWP Calcs'!AD$6*('TRF calcs '!$C5+'TRF calcs '!$D5+'TRF calcs '!$E5+'TRF calcs '!$F5))/(('TWP Calcs'!AD$7*'TWP Calcs'!$A$2*'TRF calcs '!$B5)+('TWP Calcs'!AD$8*('TRF calcs '!$C5+'TRF calcs '!$D5+'TRF calcs '!$E5+'TRF calcs '!$F5)))) -> 0.2858938074 | AE12: =(((('TWP Calcs'!AE$5)*'TWP Calcs'!$A$2*'TRF calcs '!$B5)+'TWP Calcs'!AE$6*('TRF calcs '!$C5+'TRF calcs '!$D5+'TRF calcs '!$E5+'TRF calcs '!$F5))/(('TWP Calcs'!AE$7*'TWP Calcs'!$A$2*'TRF calcs '!$B5)+('TWP Calcs'!AE$8*('TRF calcs '!$C5+'TRF calcs '!$D5+'TRF calcs '!$E5+'TRF calcs '!$F5)))) -> 0.9326009871 | AF12: =(((('TWP Calcs'!AF$5)*'TWP Calcs'!$A$2*'TRF calcs '!$B5)+'TWP Calcs'!AF$6*('TRF calcs '!$C5+'TRF calcs '!$D5+'TRF calcs '!$E5+'TRF calcs '!$F5))/(('TWP Calcs'!AF$7*'TWP Calcs'!$A$2*'TRF calcs '!$B5)+('TWP Calcs'!AF$8*('TRF calcs '!$C5+'TRF calcs '!$D5+'TRF calcs '!$E5+'TRF calcs '!$F5)))) -> 0.7053837571 | AG12: =(((('TWP Calcs'!AG$5)*'TWP Calcs'!$A$2*'TRF calcs '!$B5)+'TWP Calcs'!AG$6*('TRF calcs '!$C5+'TRF calcs '!$D5+'TRF calcs '!$E5+'TRF calcs '!$F5))/(('TWP Calcs'!AG$7*'TWP Calcs'!$A$2*'TRF calcs '!$B5)+('TWP Calcs'!AG$8*('TRF calcs '!$C5+'TRF calcs '!$D5+'TRF calcs '!$E5+'TRF calcs '!$F5)))) -> 1.014399656 | AH12: 1 | AI12: 0 | AJ12: =(((('TWP Calcs'!AJ$5)*'TWP Calcs'!$A$2*'TRF calcs '!$B5)+'TWP Calcs'!AJ$6*('TRF calcs '!$C5+'TRF calcs '!$D5+'TRF calcs '!$E5+'TRF calcs '!$F5))/(('TWP Calcs'!AJ$7*'TWP Calcs'!$A$2*'TRF calcs '!$B5)+('TWP Calcs'!AJ$8*('TRF calcs '!$C5+'TRF calcs '!$D5+'TRF calcs '!$E5+'TRF calcs '!$F5)))) -> 0.7732084445 | AK12: =(((('TWP Calcs'!AK$5)*'TWP Calcs'!$A$2*'TRF calcs '!$G5)+'TWP Calcs'!AK$6*('TRF calcs '!$H5+'TRF calcs '!$I5+'TRF calcs '!$J5+'TRF calcs '!$K5))/(('TWP Calcs'!AK$7*'TWP Calcs'!$A$2*'TRF calcs '!$G5)+('TWP Calcs'!AK$8*('TRF calcs '!$H5+'TRF calcs '!$I5+'TRF calcs '!$J5+'TRF calcs '!$K5)))) -> 0.7705304543 | AL12: =(((('TWP Calcs'!AL$5)*'TWP Calcs'!$A$2*'TRF calcs '!$L5)+'TWP Calcs'!AL$6*('TRF calcs '!$M5+'TRF calcs '!$N5+'TRF calcs '!$O5+'TRF calcs '!$P5))/(('TWP Calcs'!AL$7*'TWP Calcs'!$A$2*'TRF calcs '!$L5)+('TWP Calcs'!AL$8*('TRF calcs '!$M5+'TRF calcs '!$N5+'TRF calcs '!$O5+'TRF calcs '!$P5)))) -> 0.7706627153
A13: 0.4 | B13: =(((('TWP Calcs'!B$5)*'TWP Calcs'!$A$2*'TRF calcs '!$B6)+'TWP Calcs'!B$6*('TRF calcs '!$C6+'TRF calcs '!$D6+'TRF calcs '!$E6+'TRF calcs '!$F6))/(('TWP Calcs'!B$7*'TWP Calcs'!$A$2*'TRF calcs '!$B6)+('TWP Calcs'!B$8*('TRF calcs '!$C6+'TRF calcs '!$D6+'TRF calcs '!$E6+'TRF calcs '!$F6)))) -> 1.588528826 | C13: =(((('TWP Calcs'!C$5)*'TWP Calcs'!$A$2*'TRF calcs '!$B6)+'TWP Calcs'!C$6*('TRF calcs '!$C6+'TRF calcs '!$D6+'TRF calcs '!$E6+'TRF calcs '!$F6))/(('TWP Calcs'!C$7*'TWP Calcs'!$A$2*'TRF calcs '!$B6)+('TWP Calcs'!C$8*('TRF calcs '!$C6+'TRF calcs '!$D6+'TRF calcs '!$E6+'TRF calcs '!$F6)))) -> 1.323690854 | D13: =(((('TWP Calcs'!D$5)*'TWP Calcs'!$A$2*'TRF calcs '!$B6)+'TWP Calcs'!D$6*('TRF calcs '!$C6+'TRF calcs '!$D6+'TRF calcs '!$E6+'TRF calcs '!$F6))/(('TWP Calcs'!D$7*'TWP Calcs'!$A$2*'TRF calcs '!$B6)+('TWP Calcs'!D$8*('TRF calcs '!$C6+'TRF calcs '!$D6+'TRF calcs '!$E6+'TRF calcs '!$F6)))) -> 1.409712704 | E13: =(((('TWP Calcs'!E$5)*'TWP Calcs'!$A$2*'TRF calcs '!$G6)+'TWP Calcs'!E$6*('TRF calcs '!$H6+'TRF calcs '!$I6+'TRF calcs '!$J6+'TRF calcs '!$K6))/(('TWP Calcs'!E$7*'TWP Calcs'!$A$2*'TRF calcs '!$G6)+('TWP Calcs'!E$8*('TRF calcs '!$H6+'TRF calcs '!$I6+'TRF calcs '!$J6+'TRF calcs '!$K6)))) -> 1.409438298 | F13: =(((('TWP Calcs'!F$5)*'TWP Calcs'!$A$2*'TRF calcs '!$B6)+'TWP Calcs'!F$6*('TRF calcs '!$C6+'TRF calcs '!$D6+'TRF calcs '!$E6+'TRF calcs '!$F6))/(('TWP Calcs'!F$7*'TWP Calcs'!$A$2*'TRF calcs '!$B6)+('TWP Calcs'!F$8*('TRF calcs '!$C6+'TRF calcs '!$D6+'TRF calcs '!$E6+'TRF calcs '!$F6)))) -> 0.801761532 | G13: =(((('TWP Calcs'!G$5)*'TWP Calcs'!$A$2*'TRF calcs '!$B6)+'TWP Calcs'!G$6*('TRF calcs '!$C6+'TRF calcs '!$D6+'TRF calcs '!$E6+'TRF calcs '!$F6))/(('TWP Calcs'!G$7*'TWP Calcs'!$A$2*'TRF calcs '!$B6)+('TWP Calcs'!G$8*('TRF calcs '!$C6+'TRF calcs '!$D6+'TRF calcs '!$E6+'TRF calcs '!$F6)))) -> 0.7357114963 | H13: =(((('TWP Calcs'!H$5)*'TWP Calcs'!$A$2*'TRF calcs '!$B6)+'TWP Calcs'!H$6*('TRF calcs '!$C6+'TRF calcs '!$D6+'TRF calcs '!$E6+'TRF calcs '!$F6))/(('TWP Calcs'!H$7*'TWP Calcs'!$A$2*'TRF calcs '!$B6)+('TWP Calcs'!H$8*('TRF calcs '!$C6+'TRF calcs '!$D6+'TRF calcs '!$E6+'TRF calcs '!$F6)))) -> 0.6130543955 | I13: =(((('TWP Calcs'!I$5)*'TWP Calcs'!$A$2*'TRF calcs '!$B6)+'TWP Calcs'!I$6*('TRF calcs '!$C6+'TRF calcs '!$D6+'TRF calcs '!$E6+'TRF calcs '!$F6))/(('TWP Calcs'!I$7*'TWP Calcs'!$A$2*'TRF calcs '!$B6)+('TWP Calcs'!I$8*('TRF calcs '!$C6+'TRF calcs '!$D6+'TRF calcs '!$E6+'TRF calcs '!$F6)))) -> 0.4903972946 | J13: =(((('TWP Calcs'!J$5)*'TWP Calcs'!$A$2*'TRF calcs '!$B6)+'TWP Calcs'!J$6*('TRF calcs '!$C6+'TRF calcs '!$D6+'TRF calcs '!$E6+'TRF calcs '!$F6))/(('TWP Calcs'!J$7*'TWP Calcs'!$A$2*'TRF calcs '!$B6)+('TWP Calcs'!J$8*('TRF calcs '!$C6+'TRF calcs '!$D6+'TRF calcs '!$E6+'TRF calcs '!$F6)))) -> 0.773118518 | K13: =(((('TWP Calcs'!K$5)*'TWP Calcs'!$A$2*'TRF calcs '!$B6)+'TWP Calcs'!K$6*('TRF calcs '!$C6+'TRF calcs '!$D6+'TRF calcs '!$E6+'TRF calcs '!$F6))/(('TWP Calcs'!K$7*'TWP Calcs'!$A$2*'TRF calcs '!$B6)+('TWP Calcs'!K$8*('TRF calcs '!$C6+'TRF calcs '!$D6+'TRF calcs '!$E6+'TRF calcs '!$F6)))) -> 0.6442249551 | L13: =(((('TWP Calcs'!L$5)*'TWP Calcs'!$A$2*'TRF calcs '!$B6)+'TWP Calcs'!L$6*('TRF calcs '!$C6+'TRF calcs '!$D6+'TRF calcs '!$E6+'TRF calcs '!$F6))/(('TWP Calcs'!L$7*'TWP Calcs'!$A$2*'TRF calcs '!$B6)+('TWP Calcs'!L$8*('TRF calcs '!$C6+'TRF calcs '!$D6+'TRF calcs '!$E6+'TRF calcs '!$F6)))) -> 0.4866883782 | M13: =(((('TWP Calcs'!M$5)*'TWP Calcs'!$A$2*'TRF calcs '!$B6)+'TWP Calcs'!M$6*('TRF calcs '!$C6+'TRF calcs '!$D6+'TRF calcs '!$E6+'TRF calcs '!$F6))/(('TWP Calcs'!M$7*'TWP Calcs'!$A$2*'TRF calcs '!$B6)+('TWP Calcs'!M$8*('TRF calcs '!$C6+'TRF calcs '!$D6+'TRF calcs '!$E6+'TRF calcs '!$F6)))) -> 0.5944105064 | N13: =(((('TWP Calcs'!N$5)*'TWP Calcs'!$A$2*'TRF calcs '!$B6)+'TWP Calcs'!N$6*('TRF calcs '!$C6+'TRF calcs '!$D6+'TRF calcs '!$E6+'TRF calcs '!$F6))/(('TWP Calcs'!N$7*'TWP Calcs'!$A$2*'TRF calcs '!$B6)+('TWP Calcs'!N$8*('TRF calcs '!$C6+'TRF calcs '!$D6+'TRF calcs '!$E6+'TRF calcs '!$F6)))) -> 0.4953109684 | O13: =(((('TWP Calcs'!O$5)*'TWP Calcs'!$A$2*'TRF calcs '!$B6)+'TWP Calcs'!O$6*('TRF calcs '!$C6+'TRF calcs '!$D6+'TRF calcs '!$E6+'TRF calcs '!$F6))/(('TWP Calcs'!O$7*'TWP Calcs'!$A$2*'TRF calcs '!$B6)+('TWP Calcs'!O$8*('TRF calcs '!$C6+'TRF calcs '!$D6+'TRF calcs '!$E6+'TRF calcs '!$F6)))) -> 0.3962114303 | P13: =(((('TWP Calcs'!P$5)*'TWP Calcs'!$A$2*'TRF calcs '!$B6)+'TWP Calcs'!P$6*('TRF calcs '!$C6+'TRF calcs '!$D6+'TRF calcs '!$E6+'TRF calcs '!$F6))/(('TWP Calcs'!P$7*'TWP Calcs'!$A$2*'TRF calcs '!$B6)+('TWP Calcs'!P$8*('TRF calcs '!$C6+'TRF calcs '!$D6+'TRF calcs '!$E6+'TRF calcs '!$F6)))) -> 0.8788330384 | Q13: =(((('TWP Calcs'!Q$5)*'TWP Calcs'!$A$2*'TRF calcs '!$B6)+'TWP Calcs'!Q$6*('TRF calcs '!$C6+'TRF calcs '!$D6+'TRF calcs '!$E6+'TRF calcs '!$F6))/(('TWP Calcs'!Q$7*'TWP Calcs'!$A$2*'TRF calcs '!$B6)+('TWP Calcs'!Q$8*('TRF calcs '!$C6+'TRF calcs '!$D6+'TRF calcs '!$E6+'TRF calcs '!$F6)))) -> 0.7323148541 | R13: =(((('TWP Calcs'!R$5)*'TWP Calcs'!$A$2*'TRF calcs '!$B6)+'TWP Calcs'!R$6*('TRF calcs '!$C6+'TRF calcs '!$D6+'TRF calcs '!$E6+'TRF calcs '!$F6))/(('TWP Calcs'!R$7*'TWP Calcs'!$A$2*'TRF calcs '!$B6)+('TWP Calcs'!R$8*('TRF calcs '!$C6+'TRF calcs '!$D6+'TRF calcs '!$E6+'TRF calcs '!$F6)))) -> 0.5857966698 | S13: =(((('TWP Calcs'!S$5)*'TWP Calcs'!$A$2*'TRF calcs '!$B6)+'TWP Calcs'!S$6*('TRF calcs '!$C6+'TRF calcs '!$D6+'TRF calcs '!$E6+'TRF calcs '!$F6))/(('TWP Calcs'!S$7*'TWP Calcs'!$A$2*'TRF calcs '!$B6)+('TWP Calcs'!S$8*('TRF calcs '!$C6+'TRF calcs '!$D6+'TRF calcs '!$E6+'TRF calcs '!$F6)))) -> 0.6204612204 | T13: =(((('TWP Calcs'!T$5)*'TWP Calcs'!$A$2*'TRF calcs '!$B6)+'TWP Calcs'!T$6*('TRF calcs '!$C6+'TRF calcs '!$D6+'TRF calcs '!$E6+'TRF calcs '!$F6))/(('TWP Calcs'!T$7*'TWP Calcs'!$A$2*'TRF calcs '!$B6)+('TWP Calcs'!T$8*('TRF calcs '!$C6+'TRF calcs '!$D6+'TRF calcs '!$E6+'TRF calcs '!$F6)))) -> 0.5170185328 | U13: =(((('TWP Calcs'!U$5)*'TWP Calcs'!$A$2*'TRF calcs '!$B6)+'TWP Calcs'!U$6*('TRF calcs '!$C6+'TRF calcs '!$D6+'TRF calcs '!$E6+'TRF calcs '!$F6))/(('TWP Calcs'!U$7*'TWP Calcs'!$A$2*'TRF calcs '!$B6)+('TWP Calcs'!U$8*('TRF calcs '!$C6+'TRF calcs '!$D6+'TRF calcs '!$E6+'TRF calcs '!$F6)))) -> 0.4135758452 | V13: =(((('TWP Calcs'!V$5)*'TWP Calcs'!$A$2*'TRF calcs '!$B6)+'TWP Calcs'!V$6*('TRF calcs '!$C6+'TRF calcs '!$D6+'TRF calcs '!$E6+'TRF calcs '!$F6))/(('TWP Calcs'!V$7*'TWP Calcs'!$A$2*'TRF calcs '!$B6)+('TWP Calcs'!V$8*('TRF calcs '!$C6+'TRF calcs '!$D6+'TRF calcs '!$E6+'TRF calcs '!$F6)))) -> 1.348968261 | W13: =(((('TWP Calcs'!W$5)*'TWP Calcs'!$A$2*'TRF calcs '!$B6)+'TWP Calcs'!W$6*('TRF calcs '!$C6+'TRF calcs '!$D6+'TRF calcs '!$E6+'TRF calcs '!$F6))/(('TWP Calcs'!W$7*'TWP Calcs'!$A$2*'TRF calcs '!$B6)+('TWP Calcs'!W$8*('TRF calcs '!$C6+'TRF calcs '!$D6+'TRF calcs '!$E6+'TRF calcs '!$F6)))) -> 1.124069593 | X13: =(((('TWP Calcs'!X$5)*'TWP Calcs'!$A$2*'TRF calcs '!$B6)+'TWP Calcs'!X$6*('TRF calcs '!$C6+'TRF calcs '!$D6+'TRF calcs '!$E6+'TRF calcs '!$F6))/(('TWP Calcs'!X$7*'TWP Calcs'!$A$2*'TRF calcs '!$B6)+('TWP Calcs'!X$8*('TRF calcs '!$C6+'TRF calcs '!$D6+'TRF calcs '!$E6+'TRF calcs '!$F6)))) -> 0.8991709238 | Y13: =(((('TWP Calcs'!Y$5)*'TWP Calcs'!$A$2*'TRF calcs '!$B6)+'TWP Calcs'!Y$6*('TRF calcs '!$C6+'TRF calcs '!$D6+'TRF calcs '!$E6+'TRF calcs '!$F6))/(('TWP Calcs'!Y$7*'TWP Calcs'!$A$2*'TRF calcs '!$B6)+('TWP Calcs'!Y$8*('TRF calcs '!$C6+'TRF calcs '!$D6+'TRF calcs '!$E6+'TRF calcs '!$F6)))) -> 1.533423205 | Z13: =(((('TWP Calcs'!Z$5)*'TWP Calcs'!$A$2*'TRF calcs '!$B6)+'TWP Calcs'!Z$6*('TRF calcs '!$C6+'TRF calcs '!$D6+'TRF calcs '!$E6+'TRF calcs '!$F6))/(('TWP Calcs'!Z$7*'TWP Calcs'!$A$2*'TRF calcs '!$B6)+('TWP Calcs'!Z$8*('TRF calcs '!$C6+'TRF calcs '!$D6+'TRF calcs '!$E6+'TRF calcs '!$F6)))) -> 1.277772388 | AA13: =(((('TWP Calcs'!AA$5)*'TWP Calcs'!$A$2*'TRF calcs '!$B6)+'TWP Calcs'!AA$6*('TRF calcs '!$C6+'TRF calcs '!$D6+'TRF calcs '!$E6+'TRF calcs '!$F6))/(('TWP Calcs'!AA$7*'TWP Calcs'!$A$2*'TRF calcs '!$B6)+('TWP Calcs'!AA$8*('TRF calcs '!$C6+'TRF calcs '!$D6+'TRF calcs '!$E6+'TRF calcs '!$F6)))) -> 1.022121572 | AB13: =(((('TWP Calcs'!AB$5)*'TWP Calcs'!$A$2*'TRF calcs '!$B6)+'TWP Calcs'!AB$6*('TRF calcs '!$C6+'TRF calcs '!$D6+'TRF calcs '!$E6+'TRF calcs '!$F6))/(('TWP Calcs'!AB$7*'TWP Calcs'!$A$2*'TRF calcs '!$B6)+('TWP Calcs'!AB$8*('TRF calcs '!$C6+'TRF calcs '!$D6+'TRF calcs '!$E6+'TRF calcs '!$F6)))) -> 0.5344739535 | AC13: =(((('TWP Calcs'!AC$5)*'TWP Calcs'!$A$2*'TRF calcs '!$B6)+'TWP Calcs'!AC$6*('TRF calcs '!$C6+'TRF calcs '!$D6+'TRF calcs '!$E6+'TRF calcs '!$F6))/(('TWP Calcs'!AC$7*'TWP Calcs'!$A$2*'TRF calcs '!$B6)+('TWP Calcs'!AC$8*('TRF calcs '!$C6+'TRF calcs '!$D6+'TRF calcs '!$E6+'TRF calcs '!$F6)))) -> 0.4289385829 | AD13: =(((('TWP Calcs'!AD$5)*'TWP Calcs'!$A$2*'TRF calcs '!$B6)+'TWP Calcs'!AD$6*('TRF calcs '!$C6+'TRF calcs '!$D6+'TRF calcs '!$E6+'TRF calcs '!$F6))/(('TWP Calcs'!AD$7*'TWP Calcs'!$A$2*'TRF calcs '!$B6)+('TWP Calcs'!AD$8*('TRF calcs '!$C6+'TRF calcs '!$D6+'TRF calcs '!$E6+'TRF calcs '!$F6)))) -> 0.2859141411 | AE13: =(((('TWP Calcs'!AE$5)*'TWP Calcs'!$A$2*'TRF calcs '!$B6)+'TWP Calcs'!AE$6*('TRF calcs '!$C6+'TRF calcs '!$D6+'TRF calcs '!$E6+'TRF calcs '!$F6))/(('TWP Calcs'!AE$7*'TWP Calcs'!$A$2*'TRF calcs '!$B6)+('TWP Calcs'!AE$8*('TRF calcs '!$C6+'TRF calcs '!$D6+'TRF calcs '!$E6+'TRF calcs '!$F6)))) -> 0.9325716342 | AF13: =(((('TWP Calcs'!AF$5)*'TWP Calcs'!$A$2*'TRF calcs '!$B6)+'TWP Calcs'!AF$6*('TRF calcs '!$C6+'TRF calcs '!$D6+'TRF calcs '!$E6+'TRF calcs '!$F6))/(('TWP Calcs'!AF$7*'TWP Calcs'!$A$2*'TRF calcs '!$B6)+('TWP Calcs'!AF$8*('TRF calcs '!$C6+'TRF calcs '!$D6+'TRF calcs '!$E6+'TRF calcs '!$F6)))) -> 0.7053017187 | AG13: =(((('TWP Calcs'!AG$5)*'TWP Calcs'!$A$2*'TRF calcs '!$B6)+'TWP Calcs'!AG$6*('TRF calcs '!$C6+'TRF calcs '!$D6+'TRF calcs '!$E6+'TRF calcs '!$F6))/(('TWP Calcs'!AG$7*'TWP Calcs'!$A$2*'TRF calcs '!$B6)+('TWP Calcs'!AG$8*('TRF calcs '!$C6+'TRF calcs '!$D6+'TRF calcs '!$E6+'TRF calcs '!$F6)))) -> 1.014281678 | AH13: 1 | AI13: 0 | AJ13: =(((('TWP Calcs'!AJ$5)*'TWP Calcs'!$A$2*'TRF calcs '!$B6)+'TWP Calcs'!AJ$6*('TRF calcs '!$C6+'TRF calcs '!$D6+'TRF calcs '!$E6+'TRF calcs '!$F6))/(('TWP Calcs'!AJ$7*'TWP Calcs'!$A$2*'TRF calcs '!$B6)+('TWP Calcs'!AJ$8*('TRF calcs '!$C6+'TRF calcs '!$D6+'TRF calcs '!$E6+'TRF calcs '!$F6)))) -> 0.773118518 | AK13: =(((('TWP Calcs'!AK$5)*'TWP Calcs'!$A$2*'TRF calcs '!$G6)+'TWP Calcs'!AK$6*('TRF calcs '!$H6+'TRF calcs '!$I6+'TRF calcs '!$J6+'TRF calcs '!$K6))/(('TWP Calcs'!AK$7*'TWP Calcs'!$A$2*'TRF calcs '!$G6)+('TWP Calcs'!AK$8*('TRF calcs '!$H6+'TRF calcs '!$I6+'TRF calcs '!$J6+'TRF calcs '!$K6)))) -> 0.7703879006 | AL13: =(((('TWP Calcs'!AL$5)*'TWP Calcs'!$A$2*'TRF calcs '!$L6)+'TWP Calcs'!AL$6*('TRF calcs '!$M6+'TRF calcs '!$N6+'TRF calcs '!$O6+'TRF calcs '!$P6))/(('TWP Calcs'!AL$7*'TWP Calcs'!$A$2*'TRF calcs '!$L6)+('TWP Calcs'!AL$8*('TRF calcs '!$M6+'TRF calcs '!$N6+'TRF calcs '!$O6+'TRF calcs '!$P6)))) -> 0.7705727776
A14: 0.5 | B14: =(((('TWP Calcs'!B$5)*'TWP Calcs'!$A$2*'TRF calcs '!$B7)+'TWP Calcs'!B$6*('TRF calcs '!$C7+'TRF calcs '!$D7+'TRF calcs '!$E7+'TRF calcs '!$F7))/(('TWP Calcs'!B$7*'TWP Calcs'!$A$2*'TRF calcs '!$B7)+('TWP Calcs'!B$8*('TRF calcs '!$C7+'TRF calcs '!$D7+'TRF calcs '!$E7+'TRF calcs '!$F7)))) -> 1.588328296 | C14: =(((('TWP Calcs'!C$5)*'TWP Calcs'!$A$2*'TRF calcs '!$B7)+'TWP Calcs'!C$6*('TRF calcs '!$C7+'TRF calcs '!$D7+'TRF calcs '!$E7+'TRF calcs '!$F7))/(('TWP Calcs'!C$7*'TWP Calcs'!$A$2*'TRF calcs '!$B7)+('TWP Calcs'!C$8*('TRF calcs '!$C7+'TRF calcs '!$D7+'TRF calcs '!$E7+'TRF calcs '!$F7)))) -> 1.323580563 | D14: =(((('TWP Calcs'!D$5)*'TWP Calcs'!$A$2*'TRF calcs '!$B7)+'TWP Calcs'!D$6*('TRF calcs '!$C7+'TRF calcs '!$D7+'TRF calcs '!$E7+'TRF calcs '!$F7))/(('TWP Calcs'!D$7*'TWP Calcs'!$A$2*'TRF calcs '!$B7)+('TWP Calcs'!D$8*('TRF calcs '!$C7+'TRF calcs '!$D7+'TRF calcs '!$E7+'TRF calcs '!$F7)))) -> 1.409573102 | E14: =(((('TWP Calcs'!E$5)*'TWP Calcs'!$A$2*'TRF calcs '!$G7)+'TWP Calcs'!E$6*('TRF calcs '!$H7+'TRF calcs '!$I7+'TRF calcs '!$J7+'TRF calcs '!$K7))/(('TWP Calcs'!E$7*'TWP Calcs'!$A$2*'TRF calcs '!$G7)+('TWP Calcs'!E$8*('TRF calcs '!$H7+'TRF calcs '!$I7+'TRF calcs '!$J7+'TRF calcs '!$K7)))) -> 1.409214448 | F14: =(((('TWP Calcs'!F$5)*'TWP Calcs'!$A$2*'TRF calcs '!$B7)+'TWP Calcs'!F$6*('TRF calcs '!$C7+'TRF calcs '!$D7+'TRF calcs '!$E7+'TRF calcs '!$F7))/(('TWP Calcs'!F$7*'TWP Calcs'!$A$2*'TRF calcs '!$B7)+('TWP Calcs'!F$8*('TRF calcs '!$C7+'TRF calcs '!$D7+'TRF calcs '!$E7+'TRF calcs '!$F7)))) -> 0.8016578616 | G14: =(((('TWP Calcs'!G$5)*'TWP Calcs'!$A$2*'TRF calcs '!$B7)+'TWP Calcs'!G$6*('TRF calcs '!$C7+'TRF calcs '!$D7+'TRF calcs '!$E7+'TRF calcs '!$F7))/(('TWP Calcs'!G$7*'TWP Calcs'!$A$2*'TRF calcs '!$B7)+('TWP Calcs'!G$8*('TRF calcs '!$C7+'TRF calcs '!$D7+'TRF calcs '!$E7+'TRF calcs '!$F7)))) -> 0.7356354012 | H14: =(((('TWP Calcs'!H$5)*'TWP Calcs'!$A$2*'TRF calcs '!$B7)+'TWP Calcs'!H$6*('TRF calcs '!$C7+'TRF calcs '!$D7+'TRF calcs '!$E7+'TRF calcs '!$F7))/(('TWP Calcs'!H$7*'TWP Calcs'!$A$2*'TRF calcs '!$B7)+('TWP Calcs'!H$8*('TRF calcs '!$C7+'TRF calcs '!$D7+'TRF calcs '!$E7+'TRF calcs '!$F7)))) -> 0.6130172967 | I14: =(((('TWP Calcs'!I$5)*'TWP Calcs'!$A$2*'TRF calcs '!$B7)+'TWP Calcs'!I$6*('TRF calcs '!$C7+'TRF calcs '!$D7+'TRF calcs '!$E7+'TRF calcs '!$F7))/(('TWP Calcs'!I$7*'TWP Calcs'!$A$2*'TRF calcs '!$B7)+('TWP Calcs'!I$8*('TRF calcs '!$C7+'TRF calcs '!$D7+'TRF calcs '!$E7+'TRF calcs '!$F7)))) -> 0.4903991922 | J14: =(((('TWP Calcs'!J$5)*'TWP Calcs'!$A$2*'TRF calcs '!$B7)+'TWP Calcs'!J$6*('TRF calcs '!$C7+'TRF calcs '!$D7+'TRF calcs '!$E7+'TRF calcs '!$F7))/(('TWP Calcs'!J$7*'TWP Calcs'!$A$2*'TRF calcs '!$B7)+('TWP Calcs'!J$8*('TRF calcs '!$C7+'TRF calcs '!$D7+'TRF calcs '!$E7+'TRF calcs '!$F7)))) -> 0.7730244756 | K14: =(((('TWP Calcs'!K$5)*'TWP Calcs'!$A$2*'TRF calcs '!$B7)+'TWP Calcs'!K$6*('TRF calcs '!$C7+'TRF calcs '!$D7+'TRF calcs '!$E7+'TRF calcs '!$F7))/(('TWP Calcs'!K$7*'TWP Calcs'!$A$2*'TRF calcs '!$B7)+('TWP Calcs'!K$8*('TRF calcs '!$C7+'TRF calcs '!$D7+'TRF calcs '!$E7+'TRF calcs '!$F7)))) -> 0.6441742384 | L14: =(((('TWP Calcs'!L$5)*'TWP Calcs'!$A$2*'TRF calcs '!$B7)+'TWP Calcs'!L$6*('TRF calcs '!$C7+'TRF calcs '!$D7+'TRF calcs '!$E7+'TRF calcs '!$F7))/(('TWP Calcs'!L$7*'TWP Calcs'!$A$2*'TRF calcs '!$B7)+('TWP Calcs'!L$8*('TRF calcs '!$C7+'TRF calcs '!$D7+'TRF calcs '!$E7+'TRF calcs '!$F7)))) -> 0.4866906152 | M14: =(((('TWP Calcs'!M$5)*'TWP Calcs'!$A$2*'TRF calcs '!$B7)+'TWP Calcs'!M$6*('TRF calcs '!$C7+'TRF calcs '!$D7+'TRF calcs '!$E7+'TRF calcs '!$F7))/(('TWP Calcs'!M$7*'TWP Calcs'!$A$2*'TRF calcs '!$B7)+('TWP Calcs'!M$8*('TRF calcs '!$C7+'TRF calcs '!$D7+'TRF calcs '!$E7+'TRF calcs '!$F7)))) -> 0.5943909375 | N14: =(((('TWP Calcs'!N$5)*'TWP Calcs'!$A$2*'TRF calcs '!$B7)+'TWP Calcs'!N$6*('TRF calcs '!$C7+'TRF calcs '!$D7+'TRF calcs '!$E7+'TRF calcs '!$F7))/(('TWP Calcs'!N$7*'TWP Calcs'!$A$2*'TRF calcs '!$B7)+('TWP Calcs'!N$8*('TRF calcs '!$C7+'TRF calcs '!$D7+'TRF calcs '!$E7+'TRF calcs '!$F7)))) -> 0.4953159203 | O14: =(((('TWP Calcs'!O$5)*'TWP Calcs'!$A$2*'TRF calcs '!$B7)+'TWP Calcs'!O$6*('TRF calcs '!$C7+'TRF calcs '!$D7+'TRF calcs '!$E7+'TRF calcs '!$F7))/(('TWP Calcs'!O$7*'TWP Calcs'!$A$2*'TRF calcs '!$B7)+('TWP Calcs'!O$8*('TRF calcs '!$C7+'TRF calcs '!$D7+'TRF calcs '!$E7+'TRF calcs '!$F7)))) -> 0.396240903 | P14: =(((('TWP Calcs'!P$5)*'TWP Calcs'!$A$2*'TRF calcs '!$B7)+'TWP Calcs'!P$6*('TRF calcs '!$C7+'TRF calcs '!$D7+'TRF calcs '!$E7+'TRF calcs '!$F7))/(('TWP Calcs'!P$7*'TWP Calcs'!$A$2*'TRF calcs '!$B7)+('TWP Calcs'!P$8*('TRF calcs '!$C7+'TRF calcs '!$D7+'TRF calcs '!$E7+'TRF calcs '!$F7)))) -> 0.8787261368 | Q14: =(((('TWP Calcs'!Q$5)*'TWP Calcs'!$A$2*'TRF calcs '!$B7)+'TWP Calcs'!Q$6*('TRF calcs '!$C7+'TRF calcs '!$D7+'TRF calcs '!$E7+'TRF calcs '!$F7))/(('TWP Calcs'!Q$7*'TWP Calcs'!$A$2*'TRF calcs '!$B7)+('TWP Calcs'!Q$8*('TRF calcs '!$C7+'TRF calcs '!$D7+'TRF calcs '!$E7+'TRF calcs '!$F7)))) -> 0.7322572025 | R14: =(((('TWP Calcs'!R$5)*'TWP Calcs'!$A$2*'TRF calcs '!$B7)+'TWP Calcs'!R$6*('TRF calcs '!$C7+'TRF calcs '!$D7+'TRF calcs '!$E7+'TRF calcs '!$F7))/(('TWP Calcs'!R$7*'TWP Calcs'!$A$2*'TRF calcs '!$B7)+('TWP Calcs'!R$8*('TRF calcs '!$C7+'TRF calcs '!$D7+'TRF calcs '!$E7+'TRF calcs '!$F7)))) -> 0.5857882682 | S14: =(((('TWP Calcs'!S$5)*'TWP Calcs'!$A$2*'TRF calcs '!$B7)+'TWP Calcs'!S$6*('TRF calcs '!$C7+'TRF calcs '!$D7+'TRF calcs '!$E7+'TRF calcs '!$F7))/(('TWP Calcs'!S$7*'TWP Calcs'!$A$2*'TRF calcs '!$B7)+('TWP Calcs'!S$8*('TRF calcs '!$C7+'TRF calcs '!$D7+'TRF calcs '!$E7+'TRF calcs '!$F7)))) -> 0.6203857473 | T14: =(((('TWP Calcs'!T$5)*'TWP Calcs'!$A$2*'TRF calcs '!$B7)+'TWP Calcs'!T$6*('TRF calcs '!$C7+'TRF calcs '!$D7+'TRF calcs '!$E7+'TRF calcs '!$F7))/(('TWP Calcs'!T$7*'TWP Calcs'!$A$2*'TRF calcs '!$B7)+('TWP Calcs'!T$8*('TRF calcs '!$C7+'TRF calcs '!$D7+'TRF calcs '!$E7+'TRF calcs '!$F7)))) -> 0.5169778305 | U14: =(((('TWP Calcs'!U$5)*'TWP Calcs'!$A$2*'TRF calcs '!$B7)+'TWP Calcs'!U$6*('TRF calcs '!$C7+'TRF calcs '!$D7+'TRF calcs '!$E7+'TRF calcs '!$F7))/(('TWP Calcs'!U$7*'TWP Calcs'!$A$2*'TRF calcs '!$B7)+('TWP Calcs'!U$8*('TRF calcs '!$C7+'TRF calcs '!$D7+'TRF calcs '!$E7+'TRF calcs '!$F7)))) -> 0.4135699137 | V14: =(((('TWP Calcs'!V$5)*'TWP Calcs'!$A$2*'TRF calcs '!$B7)+'TWP Calcs'!V$6*('TRF calcs '!$C7+'TRF calcs '!$D7+'TRF calcs '!$E7+'TRF calcs '!$F7))/(('TWP Calcs'!V$7*'TWP Calcs'!$A$2*'TRF calcs '!$B7)+('TWP Calcs'!V$8*('TRF calcs '!$C7+'TRF calcs '!$D7+'TRF calcs '!$E7+'TRF calcs '!$F7)))) -> 1.348804172 | W14: =(((('TWP Calcs'!W$5)*'TWP Calcs'!$A$2*'TRF calcs '!$B7)+'TWP Calcs'!W$6*('TRF calcs '!$C7+'TRF calcs '!$D7+'TRF calcs '!$E7+'TRF calcs '!$F7))/(('TWP Calcs'!W$7*'TWP Calcs'!$A$2*'TRF calcs '!$B7)+('TWP Calcs'!W$8*('TRF calcs '!$C7+'TRF calcs '!$D7+'TRF calcs '!$E7+'TRF calcs '!$F7)))) -> 1.1239811 | X14: =(((('TWP Calcs'!X$5)*'TWP Calcs'!$A$2*'TRF calcs '!$B7)+'TWP Calcs'!X$6*('TRF calcs '!$C7+'TRF calcs '!$D7+'TRF calcs '!$E7+'TRF calcs '!$F7))/(('TWP Calcs'!X$7*'TWP Calcs'!$A$2*'TRF calcs '!$B7)+('TWP Calcs'!X$8*('TRF calcs '!$C7+'TRF calcs '!$D7+'TRF calcs '!$E7+'TRF calcs '!$F7)))) -> 0.8991580279 | Y14: =(((('TWP Calcs'!Y$5)*'TWP Calcs'!$A$2*'TRF calcs '!$B7)+'TWP Calcs'!Y$6*('TRF calcs '!$C7+'TRF calcs '!$D7+'TRF calcs '!$E7+'TRF calcs '!$F7))/(('TWP Calcs'!Y$7*'TWP Calcs'!$A$2*'TRF calcs '!$B7)+('TWP Calcs'!Y$8*('TRF calcs '!$C7+'TRF calcs '!$D7+'TRF calcs '!$E7+'TRF calcs '!$F7)))) -> 1.533236679 | Z14: =(((('TWP Calcs'!Z$5)*'TWP Calcs'!$A$2*'TRF calcs '!$B7)+'TWP Calcs'!Z$6*('TRF calcs '!$C7+'TRF calcs '!$D7+'TRF calcs '!$E7+'TRF calcs '!$F7))/(('TWP Calcs'!Z$7*'TWP Calcs'!$A$2*'TRF calcs '!$B7)+('TWP Calcs'!Z$8*('TRF calcs '!$C7+'TRF calcs '!$D7+'TRF calcs '!$E7+'TRF calcs '!$F7)))) -> 1.277671796 | AA14: =(((('TWP Calcs'!AA$5)*'TWP Calcs'!$A$2*'TRF calcs '!$B7)+'TWP Calcs'!AA$6*('TRF calcs '!$C7+'TRF calcs '!$D7+'TRF calcs '!$E7+'TRF calcs '!$F7))/(('TWP Calcs'!AA$7*'TWP Calcs'!$A$2*'TRF calcs '!$B7)+('TWP Calcs'!AA$8*('TRF calcs '!$C7+'TRF calcs '!$D7+'TRF calcs '!$E7+'TRF calcs '!$F7)))) -> 1.022106913 | AB14: =(((('TWP Calcs'!AB$5)*'TWP Calcs'!$A$2*'TRF calcs '!$B7)+'TWP Calcs'!AB$6*('TRF calcs '!$C7+'TRF calcs '!$D7+'TRF calcs '!$E7+'TRF calcs '!$F7))/(('TWP Calcs'!AB$7*'TWP Calcs'!$A$2*'TRF calcs '!$B7)+('TWP Calcs'!AB$8*('TRF calcs '!$C7+'TRF calcs '!$D7+'TRF calcs '!$E7+'TRF calcs '!$F7)))) -> 0.5344563578 | AC14: =(((('TWP Calcs'!AC$5)*'TWP Calcs'!$A$2*'TRF calcs '!$B7)+'TWP Calcs'!AC$6*('TRF calcs '!$C7+'TRF calcs '!$D7+'TRF calcs '!$E7+'TRF calcs '!$F7))/(('TWP Calcs'!AC$7*'TWP Calcs'!$A$2*'TRF calcs '!$B7)+('TWP Calcs'!AC$8*('TRF calcs '!$C7+'TRF calcs '!$D7+'TRF calcs '!$E7+'TRF calcs '!$F7)))) -> 0.4289244615 | AD14: =(((('TWP Calcs'!AD$5)*'TWP Calcs'!$A$2*'TRF calcs '!$B7)+'TWP Calcs'!AD$6*('TRF calcs '!$C7+'TRF calcs '!$D7+'TRF calcs '!$E7+'TRF calcs '!$F7))/(('TWP Calcs'!AD$7*'TWP Calcs'!$A$2*'TRF calcs '!$B7)+('TWP Calcs'!AD$8*('TRF calcs '!$C7+'TRF calcs '!$D7+'TRF calcs '!$E7+'TRF calcs '!$F7)))) -> 0.2859354092 | AE14: =(((('TWP Calcs'!AE$5)*'TWP Calcs'!$A$2*'TRF calcs '!$B7)+'TWP Calcs'!AE$6*('TRF calcs '!$C7+'TRF calcs '!$D7+'TRF calcs '!$E7+'TRF calcs '!$F7))/(('TWP Calcs'!AE$7*'TWP Calcs'!$A$2*'TRF calcs '!$B7)+('TWP Calcs'!AE$8*('TRF calcs '!$C7+'TRF calcs '!$D7+'TRF calcs '!$E7+'TRF calcs '!$F7)))) -> 0.9325409325 | AF14: =(((('TWP Calcs'!AF$5)*'TWP Calcs'!$A$2*'TRF calcs '!$B7)+'TWP Calcs'!AF$6*('TRF calcs '!$C7+'TRF calcs '!$D7+'TRF calcs '!$E7+'TRF calcs '!$F7))/(('TWP Calcs'!AF$7*'TWP Calcs'!$A$2*'TRF calcs '!$B7)+('TWP Calcs'!AF$8*('TRF calcs '!$C7+'TRF calcs '!$D7+'TRF calcs '!$E7+'TRF calcs '!$F7)))) -> 0.7052159256 | AG14: =(((('TWP Calcs'!AG$5)*'TWP Calcs'!$A$2*'TRF calcs '!$B7)+'TWP Calcs'!AG$6*('TRF calcs '!$C7+'TRF calcs '!$D7+'TRF calcs '!$E7+'TRF calcs '!$F7))/(('TWP Calcs'!AG$7*'TWP Calcs'!$A$2*'TRF calcs '!$B7)+('TWP Calcs'!AG$8*('TRF calcs '!$C7+'TRF calcs '!$D7+'TRF calcs '!$E7+'TRF calcs '!$F7)))) -> 1.0141583 | AH14: 1 | AI14: 0 | AJ14: =(((('TWP Calcs'!AJ$5)*'TWP Calcs'!$A$2*'TRF calcs '!$B7)+'TWP Calcs'!AJ$6*('TRF calcs '!$C7+'TRF calcs '!$D7+'TRF calcs '!$E7+'TRF calcs '!$F7))/(('TWP Calcs'!AJ$7*'TWP Calcs'!$A$2*'TRF calcs '!$B7)+('TWP Calcs'!AJ$8*('TRF calcs '!$C7+'TRF calcs '!$D7+'TRF calcs '!$E7+'TRF calcs '!$F7)))) -> 0.7730244756 | AK14: =(((('TWP Calcs'!AK$5)*'TWP Calcs'!$A$2*'TRF calcs '!$G7)+'TWP Calcs'!AK$6*('TRF calcs '!$H7+'TRF calcs '!$I7+'TRF calcs '!$J7+'TRF calcs '!$K7))/(('TWP Calcs'!AK$7*'TWP Calcs'!$A$2*'TRF calcs '!$G7)+('TWP Calcs'!AK$8*('TRF calcs '!$H7+'TRF calcs '!$I7+'TRF calcs '!$J7+'TRF calcs '!$K7)))) -> 0.7702370825 | AL14: =(((('TWP Calcs'!AL$5)*'TWP Calcs'!$A$2*'TRF calcs '!$L7)+'TWP Calcs'!AL$6*('TRF calcs '!$M7+'TRF calcs '!$N7+'TRF calcs '!$O7+'TRF calcs '!$P7))/(('TWP Calcs'!AL$7*'TWP Calcs'!$A$2*'TRF calcs '!$L7)+('TWP Calcs'!AL$8*('TRF calcs '!$M7+'TRF calcs '!$N7+'TRF calcs '!$O7+'TRF calcs '!$P7)))) -> 0.7704787235
A15: 0.6 | B15: =(((('TWP Calcs'!B$5)*'TWP Calcs'!$A$2*'TRF calcs '!$B8)+'TWP Calcs'!B$6*('TRF calcs '!$C8+'TRF calcs '!$D8+'TRF calcs '!$E8+'TRF calcs '!$F8))/(('TWP Calcs'!B$7*'TWP Calcs'!$A$2*'TRF calcs '!$B8)+('TWP Calcs'!B$8*('TRF calcs '!$C8+'TRF calcs '!$D8+'TRF calcs '!$E8+'TRF calcs '!$F8)))) -> 1.588119107 | C15: =(((('TWP Calcs'!C$5)*'TWP Calcs'!$A$2*'TRF calcs '!$B8)+'TWP Calcs'!C$6*('TRF calcs '!$C8+'TRF calcs '!$D8+'TRF calcs '!$E8+'TRF calcs '!$F8))/(('TWP Calcs'!C$7*'TWP Calcs'!$A$2*'TRF calcs '!$B8)+('TWP Calcs'!C$8*('TRF calcs '!$C8+'TRF calcs '!$D8+'TRF calcs '!$E8+'TRF calcs '!$F8)))) -> 1.323465509 | D15: =(((('TWP Calcs'!D$5)*'TWP Calcs'!$A$2*'TRF calcs '!$B8)+'TWP Calcs'!D$6*('TRF calcs '!$C8+'TRF calcs '!$D8+'TRF calcs '!$E8+'TRF calcs '!$F8))/(('TWP Calcs'!D$7*'TWP Calcs'!$A$2*'TRF calcs '!$B8)+('TWP Calcs'!D$8*('TRF calcs '!$C8+'TRF calcs '!$D8+'TRF calcs '!$E8+'TRF calcs '!$F8)))) -> 1.409427472 | E15: =(((('TWP Calcs'!E$5)*'TWP Calcs'!$A$2*'TRF calcs '!$G8)+'TWP Calcs'!E$6*('TRF calcs '!$H8+'TRF calcs '!$I8+'TRF calcs '!$J8+'TRF calcs '!$K8))/(('TWP Calcs'!E$7*'TWP Calcs'!$A$2*'TRF calcs '!$G8)+('TWP Calcs'!E$8*('TRF calcs '!$H8+'TRF calcs '!$I8+'TRF calcs '!$J8+'TRF calcs '!$K8)))) -> 1.408978518 | F15: =(((('TWP Calcs'!F$5)*'TWP Calcs'!$A$2*'TRF calcs '!$B8)+'TWP Calcs'!F$6*('TRF calcs '!$C8+'TRF calcs '!$D8+'TRF calcs '!$E8+'TRF calcs '!$F8))/(('TWP Calcs'!F$7*'TWP Calcs'!$A$2*'TRF calcs '!$B8)+('TWP Calcs'!F$8*('TRF calcs '!$C8+'TRF calcs '!$D8+'TRF calcs '!$E8+'TRF calcs '!$F8)))) -> 0.8015497137 | G15: =(((('TWP Calcs'!G$5)*'TWP Calcs'!$A$2*'TRF calcs '!$B8)+'TWP Calcs'!G$6*('TRF calcs '!$C8+'TRF calcs '!$D8+'TRF calcs '!$E8+'TRF calcs '!$F8))/(('TWP Calcs'!G$7*'TWP Calcs'!$A$2*'TRF calcs '!$B8)+('TWP Calcs'!G$8*('TRF calcs '!$C8+'TRF calcs '!$D8+'TRF calcs '!$E8+'TRF calcs '!$F8)))) -> 0.7355560165 | H15: =(((('TWP Calcs'!H$5)*'TWP Calcs'!$A$2*'TRF calcs '!$B8)+'TWP Calcs'!H$6*('TRF calcs '!$C8+'TRF calcs '!$D8+'TRF calcs '!$E8+'TRF calcs '!$F8))/(('TWP Calcs'!H$7*'TWP Calcs'!$A$2*'TRF calcs '!$B8)+('TWP Calcs'!H$8*('TRF calcs '!$C8+'TRF calcs '!$D8+'TRF calcs '!$E8+'TRF calcs '!$F8)))) -> 0.6129785942 | I15: =(((('TWP Calcs'!I$5)*'TWP Calcs'!$A$2*'TRF calcs '!$B8)+'TWP Calcs'!I$6*('TRF calcs '!$C8+'TRF calcs '!$D8+'TRF calcs '!$E8+'TRF calcs '!$F8))/(('TWP Calcs'!I$7*'TWP Calcs'!$A$2*'TRF calcs '!$B8)+('TWP Calcs'!I$8*('TRF calcs '!$C8+'TRF calcs '!$D8+'TRF calcs '!$E8+'TRF calcs '!$F8)))) -> 0.4904011719 | J15: =(((('TWP Calcs'!J$5)*'TWP Calcs'!$A$2*'TRF calcs '!$B8)+'TWP Calcs'!J$6*('TRF calcs '!$C8+'TRF calcs '!$D8+'TRF calcs '!$E8+'TRF calcs '!$F8))/(('TWP Calcs'!J$7*'TWP Calcs'!$A$2*'TRF calcs '!$B8)+('TWP Calcs'!J$8*('TRF calcs '!$C8+'TRF calcs '!$D8+'TRF calcs '!$E8+'TRF calcs '!$F8)))) -> 0.7729263714 | K15: =(((('TWP Calcs'!K$5)*'TWP Calcs'!$A$2*'TRF calcs '!$B8)+'TWP Calcs'!K$6*('TRF calcs '!$C8+'TRF calcs '!$D8+'TRF calcs '!$E8+'TRF calcs '!$F8))/(('TWP Calcs'!K$7*'TWP Calcs'!$A$2*'TRF calcs '!$B8)+('TWP Calcs'!K$8*('TRF calcs '!$C8+'TRF calcs '!$D8+'TRF calcs '!$E8+'TRF calcs '!$F8)))) -> 0.6441213313 | L15: =(((('TWP Calcs'!L$5)*'TWP Calcs'!$A$2*'TRF calcs '!$B8)+'TWP Calcs'!L$6*('TRF calcs '!$C8+'TRF calcs '!$D8+'TRF calcs '!$E8+'TRF calcs '!$F8))/(('TWP Calcs'!L$7*'TWP Calcs'!$A$2*'TRF calcs '!$B8)+('TWP Calcs'!L$8*('TRF calcs '!$C8+'TRF calcs '!$D8+'TRF calcs '!$E8+'TRF calcs '!$F8)))) -> 0.4866929489 | M15: =(((('TWP Calcs'!M$5)*'TWP Calcs'!$A$2*'TRF calcs '!$B8)+'TWP Calcs'!M$6*('TRF calcs '!$C8+'TRF calcs '!$D8+'TRF calcs '!$E8+'TRF calcs '!$F8))/(('TWP Calcs'!M$7*'TWP Calcs'!$A$2*'TRF calcs '!$B8)+('TWP Calcs'!M$8*('TRF calcs '!$C8+'TRF calcs '!$D8+'TRF calcs '!$E8+'TRF calcs '!$F8)))) -> 0.5943705197 | N15: =(((('TWP Calcs'!N$5)*'TWP Calcs'!$A$2*'TRF calcs '!$B8)+'TWP Calcs'!N$6*('TRF calcs '!$C8+'TRF calcs '!$D8+'TRF calcs '!$E8+'TRF calcs '!$F8))/(('TWP Calcs'!N$7*'TWP Calcs'!$A$2*'TRF calcs '!$B8)+('TWP Calcs'!N$8*('TRF calcs '!$C8+'TRF calcs '!$D8+'TRF calcs '!$E8+'TRF calcs '!$F8)))) -> 0.495321087 | O15: =(((('TWP Calcs'!O$5)*'TWP Calcs'!$A$2*'TRF calcs '!$B8)+'TWP Calcs'!O$6*('TRF calcs '!$C8+'TRF calcs '!$D8+'TRF calcs '!$E8+'TRF calcs '!$F8))/(('TWP Calcs'!O$7*'TWP Calcs'!$A$2*'TRF calcs '!$B8)+('TWP Calcs'!O$8*('TRF calcs '!$C8+'TRF calcs '!$D8+'TRF calcs '!$E8+'TRF calcs '!$F8)))) -> 0.3962716542 | P15: =(((('TWP Calcs'!P$5)*'TWP Calcs'!$A$2*'TRF calcs '!$B8)+'TWP Calcs'!P$6*('TRF calcs '!$C8+'TRF calcs '!$D8+'TRF calcs '!$E8+'TRF calcs '!$F8))/(('TWP Calcs'!P$7*'TWP Calcs'!$A$2*'TRF calcs '!$B8)+('TWP Calcs'!P$8*('TRF calcs '!$C8+'TRF calcs '!$D8+'TRF calcs '!$E8+'TRF calcs '!$F8)))) -> 0.8786146181 | Q15: =(((('TWP Calcs'!Q$5)*'TWP Calcs'!$A$2*'TRF calcs '!$B8)+'TWP Calcs'!Q$6*('TRF calcs '!$C8+'TRF calcs '!$D8+'TRF calcs '!$E8+'TRF calcs '!$F8))/(('TWP Calcs'!Q$7*'TWP Calcs'!$A$2*'TRF calcs '!$B8)+('TWP Calcs'!Q$8*('TRF calcs '!$C8+'TRF calcs '!$D8+'TRF calcs '!$E8+'TRF calcs '!$F8)))) -> 0.732197061 | R15: =(((('TWP Calcs'!R$5)*'TWP Calcs'!$A$2*'TRF calcs '!$B8)+'TWP Calcs'!R$6*('TRF calcs '!$C8+'TRF calcs '!$D8+'TRF calcs '!$E8+'TRF calcs '!$F8))/(('TWP Calcs'!R$7*'TWP Calcs'!$A$2*'TRF calcs '!$B8)+('TWP Calcs'!R$8*('TRF calcs '!$C8+'TRF calcs '!$D8+'TRF calcs '!$E8+'TRF calcs '!$F8)))) -> 0.5857795038 | S15: =(((('TWP Calcs'!S$5)*'TWP Calcs'!$A$2*'TRF calcs '!$B8)+'TWP Calcs'!S$6*('TRF calcs '!$C8+'TRF calcs '!$D8+'TRF calcs '!$E8+'TRF calcs '!$F8))/(('TWP Calcs'!S$7*'TWP Calcs'!$A$2*'TRF calcs '!$B8)+('TWP Calcs'!S$8*('TRF calcs '!$C8+'TRF calcs '!$D8+'TRF calcs '!$E8+'TRF calcs '!$F8)))) -> 0.6203070145 | T15: =(((('TWP Calcs'!T$5)*'TWP Calcs'!$A$2*'TRF calcs '!$B8)+'TWP Calcs'!T$6*('TRF calcs '!$C8+'TRF calcs '!$D8+'TRF calcs '!$E8+'TRF calcs '!$F8))/(('TWP Calcs'!T$7*'TWP Calcs'!$A$2*'TRF calcs '!$B8)+('TWP Calcs'!T$8*('TRF calcs '!$C8+'TRF calcs '!$D8+'TRF calcs '!$E8+'TRF calcs '!$F8)))) -> 0.5169353702 | U15: =(((('TWP Calcs'!U$5)*'TWP Calcs'!$A$2*'TRF calcs '!$B8)+'TWP Calcs'!U$6*('TRF calcs '!$C8+'TRF calcs '!$D8+'TRF calcs '!$E8+'TRF calcs '!$F8))/(('TWP Calcs'!U$7*'TWP Calcs'!$A$2*'TRF calcs '!$B8)+('TWP Calcs'!U$8*('TRF calcs '!$C8+'TRF calcs '!$D8+'TRF calcs '!$E8+'TRF calcs '!$F8)))) -> 0.413563726 | V15: =(((('TWP Calcs'!V$5)*'TWP Calcs'!$A$2*'TRF calcs '!$B8)+'TWP Calcs'!V$6*('TRF calcs '!$C8+'TRF calcs '!$D8+'TRF calcs '!$E8+'TRF calcs '!$F8))/(('TWP Calcs'!V$7*'TWP Calcs'!$A$2*'TRF calcs '!$B8)+('TWP Calcs'!V$8*('TRF calcs '!$C8+'TRF calcs '!$D8+'TRF calcs '!$E8+'TRF calcs '!$F8)))) -> 1.348632996 | W15: =(((('TWP Calcs'!W$5)*'TWP Calcs'!$A$2*'TRF calcs '!$B8)+'TWP Calcs'!W$6*('TRF calcs '!$C8+'TRF calcs '!$D8+'TRF calcs '!$E8+'TRF calcs '!$F8))/(('TWP Calcs'!W$7*'TWP Calcs'!$A$2*'TRF calcs '!$B8)+('TWP Calcs'!W$8*('TRF calcs '!$C8+'TRF calcs '!$D8+'TRF calcs '!$E8+'TRF calcs '!$F8)))) -> 1.123888786 | X15: =(((('TWP Calcs'!X$5)*'TWP Calcs'!$A$2*'TRF calcs '!$B8)+'TWP Calcs'!X$6*('TRF calcs '!$C8+'TRF calcs '!$D8+'TRF calcs '!$E8+'TRF calcs '!$F8))/(('TWP Calcs'!X$7*'TWP Calcs'!$A$2*'TRF calcs '!$B8)+('TWP Calcs'!X$8*('TRF calcs '!$C8+'TRF calcs '!$D8+'TRF calcs '!$E8+'TRF calcs '!$F8)))) -> 0.8991445749 | Y15: =(((('TWP Calcs'!Y$5)*'TWP Calcs'!$A$2*'TRF calcs '!$B8)+'TWP Calcs'!Y$6*('TRF calcs '!$C8+'TRF calcs '!$D8+'TRF calcs '!$E8+'TRF calcs '!$F8))/(('TWP Calcs'!Y$7*'TWP Calcs'!$A$2*'TRF calcs '!$B8)+('TWP Calcs'!Y$8*('TRF calcs '!$C8+'TRF calcs '!$D8+'TRF calcs '!$E8+'TRF calcs '!$F8)))) -> 1.533042096 | Z15: =(((('TWP Calcs'!Z$5)*'TWP Calcs'!$A$2*'TRF calcs '!$B8)+'TWP Calcs'!Z$6*('TRF calcs '!$C8+'TRF calcs '!$D8+'TRF calcs '!$E8+'TRF calcs '!$F8))/(('TWP Calcs'!Z$7*'TWP Calcs'!$A$2*'TRF calcs '!$B8)+('TWP Calcs'!Z$8*('TRF calcs '!$C8+'TRF calcs '!$D8+'TRF calcs '!$E8+'TRF calcs '!$F8)))) -> 1.277566858 | AA15: =(((('TWP Calcs'!AA$5)*'TWP Calcs'!$A$2*'TRF calcs '!$B8)+'TWP Calcs'!AA$6*('TRF calcs '!$C8+'TRF calcs '!$D8+'TRF calcs '!$E8+'TRF calcs '!$F8))/(('TWP Calcs'!AA$7*'TWP Calcs'!$A$2*'TRF calcs '!$B8)+('TWP Calcs'!AA$8*('TRF calcs '!$C8+'TRF calcs '!$D8+'TRF calcs '!$E8+'TRF calcs '!$F8)))) -> 1.02209162 | AB15: =(((('TWP Calcs'!AB$5)*'TWP Calcs'!$A$2*'TRF calcs '!$B8)+'TWP Calcs'!AB$6*('TRF calcs '!$C8+'TRF calcs '!$D8+'TRF calcs '!$E8+'TRF calcs '!$F8))/(('TWP Calcs'!AB$7*'TWP Calcs'!$A$2*'TRF calcs '!$B8)+('TWP Calcs'!AB$8*('TRF calcs '!$C8+'TRF calcs '!$D8+'TRF calcs '!$E8+'TRF calcs '!$F8)))) -> 0.5344379988 | AC15: =(((('TWP Calcs'!AC$5)*'TWP Calcs'!$A$2*'TRF calcs '!$B8)+'TWP Calcs'!AC$6*('TRF calcs '!$C8+'TRF calcs '!$D8+'TRF calcs '!$E8+'TRF calcs '!$F8))/(('TWP Calcs'!AC$7*'TWP Calcs'!$A$2*'TRF calcs '!$B8)+('TWP Calcs'!AC$8*('TRF calcs '!$C8+'TRF calcs '!$D8+'TRF calcs '!$E8+'TRF calcs '!$F8)))) -> 0.4289097276 | AD15: =(((('TWP Calcs'!AD$5)*'TWP Calcs'!$A$2*'TRF calcs '!$B8)+'TWP Calcs'!AD$6*('TRF calcs '!$C8+'TRF calcs '!$D8+'TRF calcs '!$E8+'TRF calcs '!$F8))/(('TWP Calcs'!AD$7*'TWP Calcs'!$A$2*'TRF calcs '!$B8)+('TWP Calcs'!AD$8*('TRF calcs '!$C8+'TRF calcs '!$D8+'TRF calcs '!$E8+'TRF calcs '!$F8)))) -> 0.2859575999 | AE15: =(((('TWP Calcs'!AE$5)*'TWP Calcs'!$A$2*'TRF calcs '!$B8)+'TWP Calcs'!AE$6*('TRF calcs '!$C8+'TRF calcs '!$D8+'TRF calcs '!$E8+'TRF calcs '!$F8))/(('TWP Calcs'!AE$7*'TWP Calcs'!$A$2*'TRF calcs '!$B8)+('TWP Calcs'!AE$8*('TRF calcs '!$C8+'TRF calcs '!$D8+'TRF calcs '!$E8+'TRF calcs '!$F8)))) -> 0.932508899 | AF15: =(((('TWP Calcs'!AF$5)*'TWP Calcs'!$A$2*'TRF calcs '!$B8)+'TWP Calcs'!AF$6*('TRF calcs '!$C8+'TRF calcs '!$D8+'TRF calcs '!$E8+'TRF calcs '!$F8))/(('TWP Calcs'!AF$7*'TWP Calcs'!$A$2*'TRF calcs '!$B8)+('TWP Calcs'!AF$8*('TRF calcs '!$C8+'TRF calcs '!$D8+'TRF calcs '!$E8+'TRF calcs '!$F8)))) -> 0.705126427 | AG15: =(((('TWP Calcs'!AG$5)*'TWP Calcs'!$A$2*'TRF calcs '!$B8)+'TWP Calcs'!AG$6*('TRF calcs '!$C8+'TRF calcs '!$D8+'TRF calcs '!$E8+'TRF calcs '!$F8))/(('TWP Calcs'!AG$7*'TWP Calcs'!$A$2*'TRF calcs '!$B8)+('TWP Calcs'!AG$8*('TRF calcs '!$C8+'TRF calcs '!$D8+'TRF calcs '!$E8+'TRF calcs '!$F8)))) -> 1.014029594 | AH15: 1 | AI15: 0 | AJ15: =(((('TWP Calcs'!AJ$5)*'TWP Calcs'!$A$2*'TRF calcs '!$B8)+'TWP Calcs'!AJ$6*('TRF calcs '!$C8+'TRF calcs '!$D8+'TRF calcs '!$E8+'TRF calcs '!$F8))/(('TWP Calcs'!AJ$7*'TWP Calcs'!$A$2*'TRF calcs '!$B8)+('TWP Calcs'!AJ$8*('TRF calcs '!$C8+'TRF calcs '!$D8+'TRF calcs '!$E8+'TRF calcs '!$F8)))) -> 0.7729263714 | AK15: =(((('TWP Calcs'!AK$5)*'TWP Calcs'!$A$2*'TRF calcs '!$G8)+'TWP Calcs'!AK$6*('TRF calcs '!$H8+'TRF calcs '!$I8+'TRF calcs '!$J8+'TRF calcs '!$K8))/(('TWP Calcs'!AK$7*'TWP Calcs'!$A$2*'TRF calcs '!$G8)+('TWP Calcs'!AK$8*('TRF calcs '!$H8+'TRF calcs '!$I8+'TRF calcs '!$J8+'TRF calcs '!$K8)))) -> 0.7700781237 | AL15: =(((('TWP Calcs'!AL$5)*'TWP Calcs'!$A$2*'TRF calcs '!$L8)+'TWP Calcs'!AL$6*('TRF calcs '!$M8+'TRF calcs '!$N8+'TRF calcs '!$O8+'TRF calcs '!$P8))/(('TWP Calcs'!AL$7*'TWP Calcs'!$A$2*'TRF calcs '!$L8)+('TWP Calcs'!AL$8*('TRF calcs '!$M8+'TRF calcs '!$N8+'TRF calcs '!$O8+'TRF calcs '!$P8)))) -> 0.7703806071
A16: 0.7 | B16: =(((('TWP Calcs'!B$5)*'TWP Calcs'!$A$2*'TRF calcs '!$B9)+'TWP Calcs'!B$6*('TRF calcs '!$C9+'TRF calcs '!$D9+'TRF calcs '!$E9+'TRF calcs '!$F9))/(('TWP Calcs'!B$7*'TWP Calcs'!$A$2*'TRF calcs '!$B9)+('TWP Calcs'!B$8*('TRF calcs '!$C9+'TRF calcs '!$D9+'TRF calcs '!$E9+'TRF calcs '!$F9)))) -> 1.587901374 | C16: =(((('TWP Calcs'!C$5)*'TWP Calcs'!$A$2*'TRF calcs '!$B9)+'TWP Calcs'!C$6*('TRF calcs '!$C9+'TRF calcs '!$D9+'TRF calcs '!$E9+'TRF calcs '!$F9))/(('TWP Calcs'!C$7*'TWP Calcs'!$A$2*'TRF calcs '!$B9)+('TWP Calcs'!C$8*('TRF calcs '!$C9+'TRF calcs '!$D9+'TRF calcs '!$E9+'TRF calcs '!$F9)))) -> 1.323345756 | D16: =(((('TWP Calcs'!D$5)*'TWP Calcs'!$A$2*'TRF calcs '!$B9)+'TWP Calcs'!D$6*('TRF calcs '!$C9+'TRF calcs '!$D9+'TRF calcs '!$E9+'TRF calcs '!$F9))/(('TWP Calcs'!D$7*'TWP Calcs'!$A$2*'TRF calcs '!$B9)+('TWP Calcs'!D$8*('TRF calcs '!$C9+'TRF calcs '!$D9+'TRF calcs '!$E9+'TRF calcs '!$F9)))) -> 1.409275894 | E16: =(((('TWP Calcs'!E$5)*'TWP Calcs'!$A$2*'TRF calcs '!$G9)+'TWP Calcs'!E$6*('TRF calcs '!$H9+'TRF calcs '!$I9+'TRF calcs '!$J9+'TRF calcs '!$K9))/(('TWP Calcs'!E$7*'TWP Calcs'!$A$2*'TRF calcs '!$G9)+('TWP Calcs'!E$8*('TRF calcs '!$H9+'TRF calcs '!$I9+'TRF calcs '!$J9+'TRF calcs '!$K9)))) -> 1.408730694 | F16: =(((('TWP Calcs'!F$5)*'TWP Calcs'!$A$2*'TRF calcs '!$B9)+'TWP Calcs'!F$6*('TRF calcs '!$C9+'TRF calcs '!$D9+'TRF calcs '!$E9+'TRF calcs '!$F9))/(('TWP Calcs'!F$7*'TWP Calcs'!$A$2*'TRF calcs '!$B9)+('TWP Calcs'!F$8*('TRF calcs '!$C9+'TRF calcs '!$D9+'TRF calcs '!$E9+'TRF calcs '!$F9)))) -> 0.8014371474 | G16: =(((('TWP Calcs'!G$5)*'TWP Calcs'!$A$2*'TRF calcs '!$B9)+'TWP Calcs'!G$6*('TRF calcs '!$C9+'TRF calcs '!$D9+'TRF calcs '!$E9+'TRF calcs '!$F9))/(('TWP Calcs'!G$7*'TWP Calcs'!$A$2*'TRF calcs '!$B9)+('TWP Calcs'!G$8*('TRF calcs '!$C9+'TRF calcs '!$D9+'TRF calcs '!$E9+'TRF calcs '!$F9)))) -> 0.7354733854 | H16: =(((('TWP Calcs'!H$5)*'TWP Calcs'!$A$2*'TRF calcs '!$B9)+'TWP Calcs'!H$6*('TRF calcs '!$C9+'TRF calcs '!$D9+'TRF calcs '!$E9+'TRF calcs '!$F9))/(('TWP Calcs'!H$7*'TWP Calcs'!$A$2*'TRF calcs '!$B9)+('TWP Calcs'!H$8*('TRF calcs '!$C9+'TRF calcs '!$D9+'TRF calcs '!$E9+'TRF calcs '!$F9)))) -> 0.612938309 | I16: =(((('TWP Calcs'!I$5)*'TWP Calcs'!$A$2*'TRF calcs '!$B9)+'TWP Calcs'!I$6*('TRF calcs '!$C9+'TRF calcs '!$D9+'TRF calcs '!$E9+'TRF calcs '!$F9))/(('TWP Calcs'!I$7*'TWP Calcs'!$A$2*'TRF calcs '!$B9)+('TWP Calcs'!I$8*('TRF calcs '!$C9+'TRF calcs '!$D9+'TRF calcs '!$E9+'TRF calcs '!$F9)))) -> 0.4904032325 | J16: =(((('TWP Calcs'!J$5)*'TWP Calcs'!$A$2*'TRF calcs '!$B9)+'TWP Calcs'!J$6*('TRF calcs '!$C9+'TRF calcs '!$D9+'TRF calcs '!$E9+'TRF calcs '!$F9))/(('TWP Calcs'!J$7*'TWP Calcs'!$A$2*'TRF calcs '!$B9)+('TWP Calcs'!J$8*('TRF calcs '!$C9+'TRF calcs '!$D9+'TRF calcs '!$E9+'TRF calcs '!$F9)))) -> 0.7728242593 | K16: =(((('TWP Calcs'!K$5)*'TWP Calcs'!$A$2*'TRF calcs '!$B9)+'TWP Calcs'!K$6*('TRF calcs '!$C9+'TRF calcs '!$D9+'TRF calcs '!$E9+'TRF calcs '!$F9))/(('TWP Calcs'!K$7*'TWP Calcs'!$A$2*'TRF calcs '!$B9)+('TWP Calcs'!K$8*('TRF calcs '!$C9+'TRF calcs '!$D9+'TRF calcs '!$E9+'TRF calcs '!$F9)))) -> 0.6440662626 | L16: =(((('TWP Calcs'!L$5)*'TWP Calcs'!$A$2*'TRF calcs '!$B9)+'TWP Calcs'!L$6*('TRF calcs '!$C9+'TRF calcs '!$D9+'TRF calcs '!$E9+'TRF calcs '!$F9))/(('TWP Calcs'!L$7*'TWP Calcs'!$A$2*'TRF calcs '!$B9)+('TWP Calcs'!L$8*('TRF calcs '!$C9+'TRF calcs '!$D9+'TRF calcs '!$E9+'TRF calcs '!$F9)))) -> 0.4866953779 | M16: =(((('TWP Calcs'!M$5)*'TWP Calcs'!$A$2*'TRF calcs '!$B9)+'TWP Calcs'!M$6*('TRF calcs '!$C9+'TRF calcs '!$D9+'TRF calcs '!$E9+'TRF calcs '!$F9))/(('TWP Calcs'!M$7*'TWP Calcs'!$A$2*'TRF calcs '!$B9)+('TWP Calcs'!M$8*('TRF calcs '!$C9+'TRF calcs '!$D9+'TRF calcs '!$E9+'TRF calcs '!$F9)))) -> 0.5943492637 | N16: =(((('TWP Calcs'!N$5)*'TWP Calcs'!$A$2*'TRF calcs '!$B9)+'TWP Calcs'!N$6*('TRF calcs '!$C9+'TRF calcs '!$D9+'TRF calcs '!$E9+'TRF calcs '!$F9))/(('TWP Calcs'!N$7*'TWP Calcs'!$A$2*'TRF calcs '!$B9)+('TWP Calcs'!N$8*('TRF calcs '!$C9+'TRF calcs '!$D9+'TRF calcs '!$E9+'TRF calcs '!$F9)))) -> 0.4953264658 | O16: =(((('TWP Calcs'!O$5)*'TWP Calcs'!$A$2*'TRF calcs '!$B9)+'TWP Calcs'!O$6*('TRF calcs '!$C9+'TRF calcs '!$D9+'TRF calcs '!$E9+'TRF calcs '!$F9))/(('TWP Calcs'!O$7*'TWP Calcs'!$A$2*'TRF calcs '!$B9)+('TWP Calcs'!O$8*('TRF calcs '!$C9+'TRF calcs '!$D9+'TRF calcs '!$E9+'TRF calcs '!$F9)))) -> 0.3963036678 | P16: =(((('TWP Calcs'!P$5)*'TWP Calcs'!$A$2*'TRF calcs '!$B9)+'TWP Calcs'!P$6*('TRF calcs '!$C9+'TRF calcs '!$D9+'TRF calcs '!$E9+'TRF calcs '!$F9))/(('TWP Calcs'!P$7*'TWP Calcs'!$A$2*'TRF calcs '!$B9)+('TWP Calcs'!P$8*('TRF calcs '!$C9+'TRF calcs '!$D9+'TRF calcs '!$E9+'TRF calcs '!$F9)))) -> 0.8784985434 | Q16: =(((('TWP Calcs'!Q$5)*'TWP Calcs'!$A$2*'TRF calcs '!$B9)+'TWP Calcs'!Q$6*('TRF calcs '!$C9+'TRF calcs '!$D9+'TRF calcs '!$E9+'TRF calcs '!$F9))/(('TWP Calcs'!Q$7*'TWP Calcs'!$A$2*'TRF calcs '!$B9)+('TWP Calcs'!Q$8*('TRF calcs '!$C9+'TRF calcs '!$D9+'TRF calcs '!$E9+'TRF calcs '!$F9)))) -> 0.7321344624 | R16: =(((('TWP Calcs'!R$5)*'TWP Calcs'!$A$2*'TRF calcs '!$B9)+'TWP Calcs'!R$6*('TRF calcs '!$C9+'TRF calcs '!$D9+'TRF calcs '!$E9+'TRF calcs '!$F9))/(('TWP Calcs'!R$7*'TWP Calcs'!$A$2*'TRF calcs '!$B9)+('TWP Calcs'!R$8*('TRF calcs '!$C9+'TRF calcs '!$D9+'TRF calcs '!$E9+'TRF calcs '!$F9)))) -> 0.5857703814 | S16: =(((('TWP Calcs'!S$5)*'TWP Calcs'!$A$2*'TRF calcs '!$B9)+'TWP Calcs'!S$6*('TRF calcs '!$C9+'TRF calcs '!$D9+'TRF calcs '!$E9+'TRF calcs '!$F9))/(('TWP Calcs'!S$7*'TWP Calcs'!$A$2*'TRF calcs '!$B9)+('TWP Calcs'!S$8*('TRF calcs '!$C9+'TRF calcs '!$D9+'TRF calcs '!$E9+'TRF calcs '!$F9)))) -> 0.620225065 | T16: =(((('TWP Calcs'!T$5)*'TWP Calcs'!$A$2*'TRF calcs '!$B9)+'TWP Calcs'!T$6*('TRF calcs '!$C9+'TRF calcs '!$D9+'TRF calcs '!$E9+'TRF calcs '!$F9))/(('TWP Calcs'!T$7*'TWP Calcs'!$A$2*'TRF calcs '!$B9)+('TWP Calcs'!T$8*('TRF calcs '!$C9+'TRF calcs '!$D9+'TRF calcs '!$E9+'TRF calcs '!$F9)))) -> 0.5168911752 | U16: =(((('TWP Calcs'!U$5)*'TWP Calcs'!$A$2*'TRF calcs '!$B9)+'TWP Calcs'!U$6*('TRF calcs '!$C9+'TRF calcs '!$D9+'TRF calcs '!$E9+'TRF calcs '!$F9))/(('TWP Calcs'!U$7*'TWP Calcs'!$A$2*'TRF calcs '!$B9)+('TWP Calcs'!U$8*('TRF calcs '!$C9+'TRF calcs '!$D9+'TRF calcs '!$E9+'TRF calcs '!$F9)))) -> 0.4135572854 | V16: =(((('TWP Calcs'!V$5)*'TWP Calcs'!$A$2*'TRF calcs '!$B9)+'TWP Calcs'!V$6*('TRF calcs '!$C9+'TRF calcs '!$D9+'TRF calcs '!$E9+'TRF calcs '!$F9))/(('TWP Calcs'!V$7*'TWP Calcs'!$A$2*'TRF calcs '!$B9)+('TWP Calcs'!V$8*('TRF calcs '!$C9+'TRF calcs '!$D9+'TRF calcs '!$E9+'TRF calcs '!$F9)))) -> 1.348454827 | W16: =(((('TWP Calcs'!W$5)*'TWP Calcs'!$A$2*'TRF calcs '!$B9)+'TWP Calcs'!W$6*('TRF calcs '!$C9+'TRF calcs '!$D9+'TRF calcs '!$E9+'TRF calcs '!$F9))/(('TWP Calcs'!W$7*'TWP Calcs'!$A$2*'TRF calcs '!$B9)+('TWP Calcs'!W$8*('TRF calcs '!$C9+'TRF calcs '!$D9+'TRF calcs '!$E9+'TRF calcs '!$F9)))) -> 1.1237927 | X16: =(((('TWP Calcs'!X$5)*'TWP Calcs'!$A$2*'TRF calcs '!$B9)+'TWP Calcs'!X$6*('TRF calcs '!$C9+'TRF calcs '!$D9+'TRF calcs '!$E9+'TRF calcs '!$F9))/(('TWP Calcs'!X$7*'TWP Calcs'!$A$2*'TRF calcs '!$B9)+('TWP Calcs'!X$8*('TRF calcs '!$C9+'TRF calcs '!$D9+'TRF calcs '!$E9+'TRF calcs '!$F9)))) -> 0.8991305723 | Y16: =(((('TWP Calcs'!Y$5)*'TWP Calcs'!$A$2*'TRF calcs '!$B9)+'TWP Calcs'!Y$6*('TRF calcs '!$C9+'TRF calcs '!$D9+'TRF calcs '!$E9+'TRF calcs '!$F9))/(('TWP Calcs'!Y$7*'TWP Calcs'!$A$2*'TRF calcs '!$B9)+('TWP Calcs'!Y$8*('TRF calcs '!$C9+'TRF calcs '!$D9+'TRF calcs '!$E9+'TRF calcs '!$F9)))) -> 1.532839565 | Z16: =(((('TWP Calcs'!Z$5)*'TWP Calcs'!$A$2*'TRF calcs '!$B9)+'TWP Calcs'!Z$6*('TRF calcs '!$C9+'TRF calcs '!$D9+'TRF calcs '!$E9+'TRF calcs '!$F9))/(('TWP Calcs'!Z$7*'TWP Calcs'!$A$2*'TRF calcs '!$B9)+('TWP Calcs'!Z$8*('TRF calcs '!$C9+'TRF calcs '!$D9+'TRF calcs '!$E9+'TRF calcs '!$F9)))) -> 1.277457634 | AA16: =(((('TWP Calcs'!AA$5)*'TWP Calcs'!$A$2*'TRF calcs '!$B9)+'TWP Calcs'!AA$6*('TRF calcs '!$C9+'TRF calcs '!$D9+'TRF calcs '!$E9+'TRF calcs '!$F9))/(('TWP Calcs'!AA$7*'TWP Calcs'!$A$2*'TRF calcs '!$B9)+('TWP Calcs'!AA$8*('TRF calcs '!$C9+'TRF calcs '!$D9+'TRF calcs '!$E9+'TRF calcs '!$F9)))) -> 1.022075703 | AB16: =(((('TWP Calcs'!AB$5)*'TWP Calcs'!$A$2*'TRF calcs '!$B9)+'TWP Calcs'!AB$6*('TRF calcs '!$C9+'TRF calcs '!$D9+'TRF calcs '!$E9+'TRF calcs '!$F9))/(('TWP Calcs'!AB$7*'TWP Calcs'!$A$2*'TRF calcs '!$B9)+('TWP Calcs'!AB$8*('TRF calcs '!$C9+'TRF calcs '!$D9+'TRF calcs '!$E9+'TRF calcs '!$F9)))) -> 0.5344188862 | AC16: =(((('TWP Calcs'!AC$5)*'TWP Calcs'!$A$2*'TRF calcs '!$B9)+'TWP Calcs'!AC$6*('TRF calcs '!$C9+'TRF calcs '!$D9+'TRF calcs '!$E9+'TRF calcs '!$F9))/(('TWP Calcs'!AC$7*'TWP Calcs'!$A$2*'TRF calcs '!$B9)+('TWP Calcs'!AC$8*('TRF calcs '!$C9+'TRF calcs '!$D9+'TRF calcs '!$E9+'TRF calcs '!$F9)))) -> 0.4288943889 | AD16: =(((('TWP Calcs'!AD$5)*'TWP Calcs'!$A$2*'TRF calcs '!$B9)+'TWP Calcs'!AD$6*('TRF calcs '!$C9+'TRF calcs '!$D9+'TRF calcs '!$E9+'TRF calcs '!$F9))/(('TWP Calcs'!AD$7*'TWP Calcs'!$A$2*'TRF calcs '!$B9)+('TWP Calcs'!AD$8*('TRF calcs '!$C9+'TRF calcs '!$D9+'TRF calcs '!$E9+'TRF calcs '!$F9)))) -> 0.2859807016 | AE16: =(((('TWP Calcs'!AE$5)*'TWP Calcs'!$A$2*'TRF calcs '!$B9)+'TWP Calcs'!AE$6*('TRF calcs '!$C9+'TRF calcs '!$D9+'TRF calcs '!$E9+'TRF calcs '!$F9))/(('TWP Calcs'!AE$7*'TWP Calcs'!$A$2*'TRF calcs '!$B9)+('TWP Calcs'!AE$8*('TRF calcs '!$C9+'TRF calcs '!$D9+'TRF calcs '!$E9+'TRF calcs '!$F9)))) -> 0.9324755504 | AF16: =(((('TWP Calcs'!AF$5)*'TWP Calcs'!$A$2*'TRF calcs '!$B9)+'TWP Calcs'!AF$6*('TRF calcs '!$C9+'TRF calcs '!$D9+'TRF calcs '!$E9+'TRF calcs '!$F9))/(('TWP Calcs'!AF$7*'TWP Calcs'!$A$2*'TRF calcs '!$B9)+('TWP Calcs'!AF$8*('TRF calcs '!$C9+'TRF calcs '!$D9+'TRF calcs '!$E9+'TRF calcs '!$F9)))) -> 0.705033272 | AG16: =(((('TWP Calcs'!AG$5)*'TWP Calcs'!$A$2*'TRF calcs '!$B9)+'TWP Calcs'!AG$6*('TRF calcs '!$C9+'TRF calcs '!$D9+'TRF calcs '!$E9+'TRF calcs '!$F9))/(('TWP Calcs'!AG$7*'TWP Calcs'!$A$2*'TRF calcs '!$B9)+('TWP Calcs'!AG$8*('TRF calcs '!$C9+'TRF calcs '!$D9+'TRF calcs '!$E9+'TRF calcs '!$F9)))) -> 1.013895629 | AH16: 1 | AI16: 0 | AJ16: =(((('TWP Calcs'!AJ$5)*'TWP Calcs'!$A$2*'TRF calcs '!$B9)+'TWP Calcs'!AJ$6*('TRF calcs '!$C9+'TRF calcs '!$D9+'TRF calcs '!$E9+'TRF calcs '!$F9))/(('TWP Calcs'!AJ$7*'TWP Calcs'!$A$2*'TRF calcs '!$B9)+('TWP Calcs'!AJ$8*('TRF calcs '!$C9+'TRF calcs '!$D9+'TRF calcs '!$E9+'TRF calcs '!$F9)))) -> 0.7728242593 | AK16: =(((('TWP Calcs'!AK$5)*'TWP Calcs'!$A$2*'TRF calcs '!$G9)+'TWP Calcs'!AK$6*('TRF calcs '!$H9+'TRF calcs '!$I9+'TRF calcs '!$J9+'TRF calcs '!$K9))/(('TWP Calcs'!AK$7*'TWP Calcs'!$A$2*'TRF calcs '!$G9)+('TWP Calcs'!AK$8*('TRF calcs '!$H9+'TRF calcs '!$I9+'TRF calcs '!$J9+'TRF calcs '!$K9)))) -> 0.7699111478 | AL16: =(((('TWP Calcs'!AL$5)*'TWP Calcs'!$A$2*'TRF calcs '!$L9)+'TWP Calcs'!AL$6*('TRF calcs '!$M9+'TRF calcs '!$N9+'TRF calcs '!$O9+'TRF calcs '!$P9))/(('TWP Calcs'!AL$7*'TWP Calcs'!$A$2*'TRF calcs '!$L9)+('TWP Calcs'!AL$8*('TRF calcs '!$M9+'TRF calcs '!$N9+'TRF calcs '!$O9+'TRF calcs '!$P9)))) -> 0.7702784823
A17: 0.8 | B17: =(((('TWP Calcs'!B$5)*'TWP Calcs'!$A$2*'TRF calcs '!$B10)+'TWP Calcs'!B$6*('TRF calcs '!$C10+'TRF calcs '!$D10+'TRF calcs '!$E10+'TRF calcs '!$F10))/(('TWP Calcs'!B$7*'TWP Calcs'!$A$2*'TRF calcs '!$B10)+('TWP Calcs'!B$8*('TRF calcs '!$C10+'TRF calcs '!$D10+'TRF calcs '!$E10+'TRF calcs '!$F10)))) -> 1.587675211 | C17: =(((('TWP Calcs'!C$5)*'TWP Calcs'!$A$2*'TRF calcs '!$B10)+'TWP Calcs'!C$6*('TRF calcs '!$C10+'TRF calcs '!$D10+'TRF calcs '!$E10+'TRF calcs '!$F10))/(('TWP Calcs'!C$7*'TWP Calcs'!$A$2*'TRF calcs '!$B10)+('TWP Calcs'!C$8*('TRF calcs '!$C10+'TRF calcs '!$D10+'TRF calcs '!$E10+'TRF calcs '!$F10)))) -> 1.323221366 | D17: =(((('TWP Calcs'!D$5)*'TWP Calcs'!$A$2*'TRF calcs '!$B10)+'TWP Calcs'!D$6*('TRF calcs '!$C10+'TRF calcs '!$D10+'TRF calcs '!$E10+'TRF calcs '!$F10))/(('TWP Calcs'!D$7*'TWP Calcs'!$A$2*'TRF calcs '!$B10)+('TWP Calcs'!D$8*('TRF calcs '!$C10+'TRF calcs '!$D10+'TRF calcs '!$E10+'TRF calcs '!$F10)))) -> 1.409118448 | E17: =(((('TWP Calcs'!E$5)*'TWP Calcs'!$A$2*'TRF calcs '!$G10)+'TWP Calcs'!E$6*('TRF calcs '!$H10+'TRF calcs '!$I10+'TRF calcs '!$J10+'TRF calcs '!$K10))/(('TWP Calcs'!E$7*'TWP Calcs'!$A$2*'TRF calcs '!$G10)+('TWP Calcs'!E$8*('TRF calcs '!$H10+'TRF calcs '!$I10+'TRF calcs '!$J10+'TRF calcs '!$K10)))) -> 1.408471158 | F17: =(((('TWP Calcs'!F$5)*'TWP Calcs'!$A$2*'TRF calcs '!$B10)+'TWP Calcs'!F$6*('TRF calcs '!$C10+'TRF calcs '!$D10+'TRF calcs '!$E10+'TRF calcs '!$F10))/(('TWP Calcs'!F$7*'TWP Calcs'!$A$2*'TRF calcs '!$B10)+('TWP Calcs'!F$8*('TRF calcs '!$C10+'TRF calcs '!$D10+'TRF calcs '!$E10+'TRF calcs '!$F10)))) -> 0.8013202216 | G17: =(((('TWP Calcs'!G$5)*'TWP Calcs'!$A$2*'TRF calcs '!$B10)+'TWP Calcs'!G$6*('TRF calcs '!$C10+'TRF calcs '!$D10+'TRF calcs '!$E10+'TRF calcs '!$F10))/(('TWP Calcs'!G$7*'TWP Calcs'!$A$2*'TRF calcs '!$B10)+('TWP Calcs'!G$8*('TRF calcs '!$C10+'TRF calcs '!$D10+'TRF calcs '!$E10+'TRF calcs '!$F10)))) -> 0.7353875506 | H17: =(((('TWP Calcs'!H$5)*'TWP Calcs'!$A$2*'TRF calcs '!$B10)+'TWP Calcs'!H$6*('TRF calcs '!$C10+'TRF calcs '!$D10+'TRF calcs '!$E10+'TRF calcs '!$F10))/(('TWP Calcs'!H$7*'TWP Calcs'!$A$2*'TRF calcs '!$B10)+('TWP Calcs'!H$8*('TRF calcs '!$C10+'TRF calcs '!$D10+'TRF calcs '!$E10+'TRF calcs '!$F10)))) -> 0.6128964618 | I17: =(((('TWP Calcs'!I$5)*'TWP Calcs'!$A$2*'TRF calcs '!$B10)+'TWP Calcs'!I$6*('TRF calcs '!$C10+'TRF calcs '!$D10+'TRF calcs '!$E10+'TRF calcs '!$F10))/(('TWP Calcs'!I$7*'TWP Calcs'!$A$2*'TRF calcs '!$B10)+('TWP Calcs'!I$8*('TRF calcs '!$C10+'TRF calcs '!$D10+'TRF calcs '!$E10+'TRF calcs '!$F10)))) -> 0.490405373 | J17: =(((('TWP Calcs'!J$5)*'TWP Calcs'!$A$2*'TRF calcs '!$B10)+'TWP Calcs'!J$6*('TRF calcs '!$C10+'TRF calcs '!$D10+'TRF calcs '!$E10+'TRF calcs '!$F10))/(('TWP Calcs'!J$7*'TWP Calcs'!$A$2*'TRF calcs '!$B10)+('TWP Calcs'!J$8*('TRF calcs '!$C10+'TRF calcs '!$D10+'TRF calcs '!$E10+'TRF calcs '!$F10)))) -> 0.7727181924 | K17: =(((('TWP Calcs'!K$5)*'TWP Calcs'!$A$2*'TRF calcs '!$B10)+'TWP Calcs'!K$6*('TRF calcs '!$C10+'TRF calcs '!$D10+'TRF calcs '!$E10+'TRF calcs '!$F10))/(('TWP Calcs'!K$7*'TWP Calcs'!$A$2*'TRF calcs '!$B10)+('TWP Calcs'!K$8*('TRF calcs '!$C10+'TRF calcs '!$D10+'TRF calcs '!$E10+'TRF calcs '!$F10)))) -> 0.6440090613 | L17: =(((('TWP Calcs'!L$5)*'TWP Calcs'!$A$2*'TRF calcs '!$B10)+'TWP Calcs'!L$6*('TRF calcs '!$C10+'TRF calcs '!$D10+'TRF calcs '!$E10+'TRF calcs '!$F10))/(('TWP Calcs'!L$7*'TWP Calcs'!$A$2*'TRF calcs '!$B10)+('TWP Calcs'!L$8*('TRF calcs '!$C10+'TRF calcs '!$D10+'TRF calcs '!$E10+'TRF calcs '!$F10)))) -> 0.4866979009 | M17: =(((('TWP Calcs'!M$5)*'TWP Calcs'!$A$2*'TRF calcs '!$B10)+'TWP Calcs'!M$6*('TRF calcs '!$C10+'TRF calcs '!$D10+'TRF calcs '!$E10+'TRF calcs '!$F10))/(('TWP Calcs'!M$7*'TWP Calcs'!$A$2*'TRF calcs '!$B10)+('TWP Calcs'!M$8*('TRF calcs '!$C10+'TRF calcs '!$D10+'TRF calcs '!$E10+'TRF calcs '!$F10)))) -> 0.5943271802 | N17: =(((('TWP Calcs'!N$5)*'TWP Calcs'!$A$2*'TRF calcs '!$B10)+'TWP Calcs'!N$6*('TRF calcs '!$C10+'TRF calcs '!$D10+'TRF calcs '!$E10+'TRF calcs '!$F10))/(('TWP Calcs'!N$7*'TWP Calcs'!$A$2*'TRF calcs '!$B10)+('TWP Calcs'!N$8*('TRF calcs '!$C10+'TRF calcs '!$D10+'TRF calcs '!$E10+'TRF calcs '!$F10)))) -> 0.495332054 | O17: =(((('TWP Calcs'!O$5)*'TWP Calcs'!$A$2*'TRF calcs '!$B10)+'TWP Calcs'!O$6*('TRF calcs '!$C10+'TRF calcs '!$D10+'TRF calcs '!$E10+'TRF calcs '!$F10))/(('TWP Calcs'!O$7*'TWP Calcs'!$A$2*'TRF calcs '!$B10)+('TWP Calcs'!O$8*('TRF calcs '!$C10+'TRF calcs '!$D10+'TRF calcs '!$E10+'TRF calcs '!$F10)))) -> 0.3963369278 | P17: =(((('TWP Calcs'!P$5)*'TWP Calcs'!$A$2*'TRF calcs '!$B10)+'TWP Calcs'!P$6*('TRF calcs '!$C10+'TRF calcs '!$D10+'TRF calcs '!$E10+'TRF calcs '!$F10))/(('TWP Calcs'!P$7*'TWP Calcs'!$A$2*'TRF calcs '!$B10)+('TWP Calcs'!P$8*('TRF calcs '!$C10+'TRF calcs '!$D10+'TRF calcs '!$E10+'TRF calcs '!$F10)))) -> 0.8783779732 | Q17: =(((('TWP Calcs'!Q$5)*'TWP Calcs'!$A$2*'TRF calcs '!$B10)+'TWP Calcs'!Q$6*('TRF calcs '!$C10+'TRF calcs '!$D10+'TRF calcs '!$E10+'TRF calcs '!$F10))/(('TWP Calcs'!Q$7*'TWP Calcs'!$A$2*'TRF calcs '!$B10)+('TWP Calcs'!Q$8*('TRF calcs '!$C10+'TRF calcs '!$D10+'TRF calcs '!$E10+'TRF calcs '!$F10)))) -> 0.7320694394 | R17: =(((('TWP Calcs'!R$5)*'TWP Calcs'!$A$2*'TRF calcs '!$B10)+'TWP Calcs'!R$6*('TRF calcs '!$C10+'TRF calcs '!$D10+'TRF calcs '!$E10+'TRF calcs '!$F10))/(('TWP Calcs'!R$7*'TWP Calcs'!$A$2*'TRF calcs '!$B10)+('TWP Calcs'!R$8*('TRF calcs '!$C10+'TRF calcs '!$D10+'TRF calcs '!$E10+'TRF calcs '!$F10)))) -> 0.5857609056 | S17: =(((('TWP Calcs'!S$5)*'TWP Calcs'!$A$2*'TRF calcs '!$B10)+'TWP Calcs'!S$6*('TRF calcs '!$C10+'TRF calcs '!$D10+'TRF calcs '!$E10+'TRF calcs '!$F10))/(('TWP Calcs'!S$7*'TWP Calcs'!$A$2*'TRF calcs '!$B10)+('TWP Calcs'!S$8*('TRF calcs '!$C10+'TRF calcs '!$D10+'TRF calcs '!$E10+'TRF calcs '!$F10)))) -> 0.6201399418 | T17: =(((('TWP Calcs'!T$5)*'TWP Calcs'!$A$2*'TRF calcs '!$B10)+'TWP Calcs'!T$6*('TRF calcs '!$C10+'TRF calcs '!$D10+'TRF calcs '!$E10+'TRF calcs '!$F10))/(('TWP Calcs'!T$7*'TWP Calcs'!$A$2*'TRF calcs '!$B10)+('TWP Calcs'!T$8*('TRF calcs '!$C10+'TRF calcs '!$D10+'TRF calcs '!$E10+'TRF calcs '!$F10)))) -> 0.5168452686 | U17: =(((('TWP Calcs'!U$5)*'TWP Calcs'!$A$2*'TRF calcs '!$B10)+'TWP Calcs'!U$6*('TRF calcs '!$C10+'TRF calcs '!$D10+'TRF calcs '!$E10+'TRF calcs '!$F10))/(('TWP Calcs'!U$7*'TWP Calcs'!$A$2*'TRF calcs '!$B10)+('TWP Calcs'!U$8*('TRF calcs '!$C10+'TRF calcs '!$D10+'TRF calcs '!$E10+'TRF calcs '!$F10)))) -> 0.4135505955 | V17: =(((('TWP Calcs'!V$5)*'TWP Calcs'!$A$2*'TRF calcs '!$B10)+'TWP Calcs'!V$6*('TRF calcs '!$C10+'TRF calcs '!$D10+'TRF calcs '!$E10+'TRF calcs '!$F10))/(('TWP Calcs'!V$7*'TWP Calcs'!$A$2*'TRF calcs '!$B10)+('TWP Calcs'!V$8*('TRF calcs '!$C10+'TRF calcs '!$D10+'TRF calcs '!$E10+'TRF calcs '!$F10)))) -> 1.348269757 | W17: =(((('TWP Calcs'!W$5)*'TWP Calcs'!$A$2*'TRF calcs '!$B10)+'TWP Calcs'!W$6*('TRF calcs '!$C10+'TRF calcs '!$D10+'TRF calcs '!$E10+'TRF calcs '!$F10))/(('TWP Calcs'!W$7*'TWP Calcs'!$A$2*'TRF calcs '!$B10)+('TWP Calcs'!W$8*('TRF calcs '!$C10+'TRF calcs '!$D10+'TRF calcs '!$E10+'TRF calcs '!$F10)))) -> 1.123692892 | X17: =(((('TWP Calcs'!X$5)*'TWP Calcs'!$A$2*'TRF calcs '!$B10)+'TWP Calcs'!X$6*('TRF calcs '!$C10+'TRF calcs '!$D10+'TRF calcs '!$E10+'TRF calcs '!$F10))/(('TWP Calcs'!X$7*'TWP Calcs'!$A$2*'TRF calcs '!$B10)+('TWP Calcs'!X$8*('TRF calcs '!$C10+'TRF calcs '!$D10+'TRF calcs '!$E10+'TRF calcs '!$F10)))) -> 0.8991160275 | Y17: =(((('TWP Calcs'!Y$5)*'TWP Calcs'!$A$2*'TRF calcs '!$B10)+'TWP Calcs'!Y$6*('TRF calcs '!$C10+'TRF calcs '!$D10+'TRF calcs '!$E10+'TRF calcs '!$F10))/(('TWP Calcs'!Y$7*'TWP Calcs'!$A$2*'TRF calcs '!$B10)+('TWP Calcs'!Y$8*('TRF calcs '!$C10+'TRF calcs '!$D10+'TRF calcs '!$E10+'TRF calcs '!$F10)))) -> 1.532629189 | Z17: =(((('TWP Calcs'!Z$5)*'TWP Calcs'!$A$2*'TRF calcs '!$B10)+'TWP Calcs'!Z$6*('TRF calcs '!$C10+'TRF calcs '!$D10+'TRF calcs '!$E10+'TRF calcs '!$F10))/(('TWP Calcs'!Z$7*'TWP Calcs'!$A$2*'TRF calcs '!$B10)+('TWP Calcs'!Z$8*('TRF calcs '!$C10+'TRF calcs '!$D10+'TRF calcs '!$E10+'TRF calcs '!$F10)))) -> 1.277344179 | AA17: =(((('TWP Calcs'!AA$5)*'TWP Calcs'!$A$2*'TRF calcs '!$B10)+'TWP Calcs'!AA$6*('TRF calcs '!$C10+'TRF calcs '!$D10+'TRF calcs '!$E10+'TRF calcs '!$F10))/(('TWP Calcs'!AA$7*'TWP Calcs'!$A$2*'TRF calcs '!$B10)+('TWP Calcs'!AA$8*('TRF calcs '!$C10+'TRF calcs '!$D10+'TRF calcs '!$E10+'TRF calcs '!$F10)))) -> 1.022059169 | AB17: =(((('TWP Calcs'!AB$5)*'TWP Calcs'!$A$2*'TRF calcs '!$B10)+'TWP Calcs'!AB$6*('TRF calcs '!$C10+'TRF calcs '!$D10+'TRF calcs '!$E10+'TRF calcs '!$F10))/(('TWP Calcs'!AB$7*'TWP Calcs'!$A$2*'TRF calcs '!$B10)+('TWP Calcs'!AB$8*('TRF calcs '!$C10+'TRF calcs '!$D10+'TRF calcs '!$E10+'TRF calcs '!$F10)))) -> 0.5343990294 | AC17: =(((('TWP Calcs'!AC$5)*'TWP Calcs'!$A$2*'TRF calcs '!$B10)+'TWP Calcs'!AC$6*('TRF calcs '!$C10+'TRF calcs '!$D10+'TRF calcs '!$E10+'TRF calcs '!$F10))/(('TWP Calcs'!AC$7*'TWP Calcs'!$A$2*'TRF calcs '!$B10)+('TWP Calcs'!AC$8*('TRF calcs '!$C10+'TRF calcs '!$D10+'TRF calcs '!$E10+'TRF calcs '!$F10)))) -> 0.428878453 | AD17: =(((('TWP Calcs'!AD$5)*'TWP Calcs'!$A$2*'TRF calcs '!$B10)+'TWP Calcs'!AD$6*('TRF calcs '!$C10+'TRF calcs '!$D10+'TRF calcs '!$E10+'TRF calcs '!$F10))/(('TWP Calcs'!AD$7*'TWP Calcs'!$A$2*'TRF calcs '!$B10)+('TWP Calcs'!AD$8*('TRF calcs '!$C10+'TRF calcs '!$D10+'TRF calcs '!$E10+'TRF calcs '!$F10)))) -> 0.2860047026 | AE17: =(((('TWP Calcs'!AE$5)*'TWP Calcs'!$A$2*'TRF calcs '!$B10)+'TWP Calcs'!AE$6*('TRF calcs '!$C10+'TRF calcs '!$D10+'TRF calcs '!$E10+'TRF calcs '!$F10))/(('TWP Calcs'!AE$7*'TWP Calcs'!$A$2*'TRF calcs '!$B10)+('TWP Calcs'!AE$8*('TRF calcs '!$C10+'TRF calcs '!$D10+'TRF calcs '!$E10+'TRF calcs '!$F10)))) -> 0.9324409035 | AF17: =(((('TWP Calcs'!AF$5)*'TWP Calcs'!$A$2*'TRF calcs '!$B10)+'TWP Calcs'!AF$6*('TRF calcs '!$C10+'TRF calcs '!$D10+'TRF calcs '!$E10+'TRF calcs '!$F10))/(('TWP Calcs'!AF$7*'TWP Calcs'!$A$2*'TRF calcs '!$B10)+('TWP Calcs'!AF$8*('TRF calcs '!$C10+'TRF calcs '!$D10+'TRF calcs '!$E10+'TRF calcs '!$F10)))) -> 0.7049365092 | AG17: =(((('TWP Calcs'!AG$5)*'TWP Calcs'!$A$2*'TRF calcs '!$B10)+'TWP Calcs'!AG$6*('TRF calcs '!$C10+'TRF calcs '!$D10+'TRF calcs '!$E10+'TRF calcs '!$F10))/(('TWP Calcs'!AG$7*'TWP Calcs'!$A$2*'TRF calcs '!$B10)+('TWP Calcs'!AG$8*('TRF calcs '!$C10+'TRF calcs '!$D10+'TRF calcs '!$E10+'TRF calcs '!$F10)))) -> 1.013756477 | AH17: 1 | AI17: 0 | AJ17: =(((('TWP Calcs'!AJ$5)*'TWP Calcs'!$A$2*'TRF calcs '!$B10)+'TWP Calcs'!AJ$6*('TRF calcs '!$C10+'TRF calcs '!$D10+'TRF calcs '!$E10+'TRF calcs '!$F10))/(('TWP Calcs'!AJ$7*'TWP Calcs'!$A$2*'TRF calcs '!$B10)+('TWP Calcs'!AJ$8*('TRF calcs '!$C10+'TRF calcs '!$D10+'TRF calcs '!$E10+'TRF calcs '!$F10)))) -> 0.7727181924 | AK17: =(((('TWP Calcs'!AK$5)*'TWP Calcs'!$A$2*'TRF calcs '!$G10)+'TWP Calcs'!AK$6*('TRF calcs '!$H10+'TRF calcs '!$I10+'TRF calcs '!$J10+'TRF calcs '!$K10))/(('TWP Calcs'!AK$7*'TWP Calcs'!$A$2*'TRF calcs '!$G10)+('TWP Calcs'!AK$8*('TRF calcs '!$H10+'TRF calcs '!$I10+'TRF calcs '!$J10+'TRF calcs '!$K10)))) -> 0.769736278 | AL17: =(((('TWP Calcs'!AL$5)*'TWP Calcs'!$A$2*'TRF calcs '!$L10)+'TWP Calcs'!AL$6*('TRF calcs '!$M10+'TRF calcs '!$N10+'TRF calcs '!$O10+'TRF calcs '!$P10))/(('TWP Calcs'!AL$7*'TWP Calcs'!$A$2*'TRF calcs '!$L10)+('TWP Calcs'!AL$8*('TRF calcs '!$M10+'TRF calcs '!$N10+'TRF calcs '!$O10+'TRF calcs '!$P10)))) -> 0.7701724023
A18: 0.9 | B18: =(((('TWP Calcs'!B$5)*'TWP Calcs'!$A$2*'TRF calcs '!$B11)+'TWP Calcs'!B$6*('TRF calcs '!$C11+'TRF calcs '!$D11+'TRF calcs '!$E11+'TRF calcs '!$F11))/(('TWP Calcs'!B$7*'TWP Calcs'!$A$2*'TRF calcs '!$B11)+('TWP Calcs'!B$8*('TRF calcs '!$C11+'TRF calcs '!$D11+'TRF calcs '!$E11+'TRF calcs '!$F11)))) -> 1.587440731 | C18: =(((('TWP Calcs'!C$5)*'TWP Calcs'!$A$2*'TRF calcs '!$B11)+'TWP Calcs'!C$6*('TRF calcs '!$C11+'TRF calcs '!$D11+'TRF calcs '!$E11+'TRF calcs '!$F11))/(('TWP Calcs'!C$7*'TWP Calcs'!$A$2*'TRF calcs '!$B11)+('TWP Calcs'!C$8*('TRF calcs '!$C11+'TRF calcs '!$D11+'TRF calcs '!$E11+'TRF calcs '!$F11)))) -> 1.323092402 | D18: =(((('TWP Calcs'!D$5)*'TWP Calcs'!$A$2*'TRF calcs '!$B11)+'TWP Calcs'!D$6*('TRF calcs '!$C11+'TRF calcs '!$D11+'TRF calcs '!$E11+'TRF calcs '!$F11))/(('TWP Calcs'!D$7*'TWP Calcs'!$A$2*'TRF calcs '!$B11)+('TWP Calcs'!D$8*('TRF calcs '!$C11+'TRF calcs '!$D11+'TRF calcs '!$E11+'TRF calcs '!$F11)))) -> 1.408955211 | E18: =(((('TWP Calcs'!E$5)*'TWP Calcs'!$A$2*'TRF calcs '!$G11)+'TWP Calcs'!E$6*('TRF calcs '!$H11+'TRF calcs '!$I11+'TRF calcs '!$J11+'TRF calcs '!$K11))/(('TWP Calcs'!E$7*'TWP Calcs'!$A$2*'TRF calcs '!$G11)+('TWP Calcs'!E$8*('TRF calcs '!$H11+'TRF calcs '!$I11+'TRF calcs '!$J11+'TRF calcs '!$K11)))) -> 1.408200092 | F18: =(((('TWP Calcs'!F$5)*'TWP Calcs'!$A$2*'TRF calcs '!$B11)+'TWP Calcs'!F$6*('TRF calcs '!$C11+'TRF calcs '!$D11+'TRF calcs '!$E11+'TRF calcs '!$F11))/(('TWP Calcs'!F$7*'TWP Calcs'!$A$2*'TRF calcs '!$B11)+('TWP Calcs'!F$8*('TRF calcs '!$C11+'TRF calcs '!$D11+'TRF calcs '!$E11+'TRF calcs '!$F11)))) -> 0.8011989947 | G18: =(((('TWP Calcs'!G$5)*'TWP Calcs'!$A$2*'TRF calcs '!$B11)+'TWP Calcs'!G$6*('TRF calcs '!$C11+'TRF calcs '!$D11+'TRF calcs '!$E11+'TRF calcs '!$F11))/(('TWP Calcs'!G$7*'TWP Calcs'!$A$2*'TRF calcs '!$B11)+('TWP Calcs'!G$8*('TRF calcs '!$C11+'TRF calcs '!$D11+'TRF calcs '!$E11+'TRF calcs '!$F11)))) -> 0.7352985548 | H18: =(((('TWP Calcs'!H$5)*'TWP Calcs'!$A$2*'TRF calcs '!$B11)+'TWP Calcs'!H$6*('TRF calcs '!$C11+'TRF calcs '!$D11+'TRF calcs '!$E11+'TRF calcs '!$F11))/(('TWP Calcs'!H$7*'TWP Calcs'!$A$2*'TRF calcs '!$B11)+('TWP Calcs'!H$8*('TRF calcs '!$C11+'TRF calcs '!$D11+'TRF calcs '!$E11+'TRF calcs '!$F11)))) -> 0.6128530736 | I18: =(((('TWP Calcs'!I$5)*'TWP Calcs'!$A$2*'TRF calcs '!$B11)+'TWP Calcs'!I$6*('TRF calcs '!$C11+'TRF calcs '!$D11+'TRF calcs '!$E11+'TRF calcs '!$F11))/(('TWP Calcs'!I$7*'TWP Calcs'!$A$2*'TRF calcs '!$B11)+('TWP Calcs'!I$8*('TRF calcs '!$C11+'TRF calcs '!$D11+'TRF calcs '!$E11+'TRF calcs '!$F11)))) -> 0.4904075924 | J18: =(((('TWP Calcs'!J$5)*'TWP Calcs'!$A$2*'TRF calcs '!$B11)+'TWP Calcs'!J$6*('TRF calcs '!$C11+'TRF calcs '!$D11+'TRF calcs '!$E11+'TRF calcs '!$F11))/(('TWP Calcs'!J$7*'TWP Calcs'!$A$2*'TRF calcs '!$B11)+('TWP Calcs'!J$8*('TRF calcs '!$C11+'TRF calcs '!$D11+'TRF calcs '!$E11+'TRF calcs '!$F11)))) -> 0.772608224 | K18: =(((('TWP Calcs'!K$5)*'TWP Calcs'!$A$2*'TRF calcs '!$B11)+'TWP Calcs'!K$6*('TRF calcs '!$C11+'TRF calcs '!$D11+'TRF calcs '!$E11+'TRF calcs '!$F11))/(('TWP Calcs'!K$7*'TWP Calcs'!$A$2*'TRF calcs '!$B11)+('TWP Calcs'!K$8*('TRF calcs '!$C11+'TRF calcs '!$D11+'TRF calcs '!$E11+'TRF calcs '!$F11)))) -> 0.6439497558 | L18: =(((('TWP Calcs'!L$5)*'TWP Calcs'!$A$2*'TRF calcs '!$B11)+'TWP Calcs'!L$6*('TRF calcs '!$C11+'TRF calcs '!$D11+'TRF calcs '!$E11+'TRF calcs '!$F11))/(('TWP Calcs'!L$7*'TWP Calcs'!$A$2*'TRF calcs '!$B11)+('TWP Calcs'!L$8*('TRF calcs '!$C11+'TRF calcs '!$D11+'TRF calcs '!$E11+'TRF calcs '!$F11)))) -> 0.4867005168 | M18: =(((('TWP Calcs'!M$5)*'TWP Calcs'!$A$2*'TRF calcs '!$B11)+'TWP Calcs'!M$6*('TRF calcs '!$C11+'TRF calcs '!$D11+'TRF calcs '!$E11+'TRF calcs '!$F11))/(('TWP Calcs'!M$7*'TWP Calcs'!$A$2*'TRF calcs '!$B11)+('TWP Calcs'!M$8*('TRF calcs '!$C11+'TRF calcs '!$D11+'TRF calcs '!$E11+'TRF calcs '!$F11)))) -> 0.5943042797 | N18: =(((('TWP Calcs'!N$5)*'TWP Calcs'!$A$2*'TRF calcs '!$B11)+'TWP Calcs'!N$6*('TRF calcs '!$C11+'TRF calcs '!$D11+'TRF calcs '!$E11+'TRF calcs '!$F11))/(('TWP Calcs'!N$7*'TWP Calcs'!$A$2*'TRF calcs '!$B11)+('TWP Calcs'!N$8*('TRF calcs '!$C11+'TRF calcs '!$D11+'TRF calcs '!$E11+'TRF calcs '!$F11)))) -> 0.4953378489 | O18: =(((('TWP Calcs'!O$5)*'TWP Calcs'!$A$2*'TRF calcs '!$B11)+'TWP Calcs'!O$6*('TRF calcs '!$C11+'TRF calcs '!$D11+'TRF calcs '!$E11+'TRF calcs '!$F11))/(('TWP Calcs'!O$7*'TWP Calcs'!$A$2*'TRF calcs '!$B11)+('TWP Calcs'!O$8*('TRF calcs '!$C11+'TRF calcs '!$D11+'TRF calcs '!$E11+'TRF calcs '!$F11)))) -> 0.3963714182 | P18: =(((('TWP Calcs'!P$5)*'TWP Calcs'!$A$2*'TRF calcs '!$B11)+'TWP Calcs'!P$6*('TRF calcs '!$C11+'TRF calcs '!$D11+'TRF calcs '!$E11+'TRF calcs '!$F11))/(('TWP Calcs'!P$7*'TWP Calcs'!$A$2*'TRF calcs '!$B11)+('TWP Calcs'!P$8*('TRF calcs '!$C11+'TRF calcs '!$D11+'TRF calcs '!$E11+'TRF calcs '!$F11)))) -> 0.8782529679 | Q18: =(((('TWP Calcs'!Q$5)*'TWP Calcs'!$A$2*'TRF calcs '!$B11)+'TWP Calcs'!Q$6*('TRF calcs '!$C11+'TRF calcs '!$D11+'TRF calcs '!$E11+'TRF calcs '!$F11))/(('TWP Calcs'!Q$7*'TWP Calcs'!$A$2*'TRF calcs '!$B11)+('TWP Calcs'!Q$8*('TRF calcs '!$C11+'TRF calcs '!$D11+'TRF calcs '!$E11+'TRF calcs '!$F11)))) -> 0.7320020246 | R18: =(((('TWP Calcs'!R$5)*'TWP Calcs'!$A$2*'TRF calcs '!$B11)+'TWP Calcs'!R$6*('TRF calcs '!$C11+'TRF calcs '!$D11+'TRF calcs '!$E11+'TRF calcs '!$F11))/(('TWP Calcs'!R$7*'TWP Calcs'!$A$2*'TRF calcs '!$B11)+('TWP Calcs'!R$8*('TRF calcs '!$C11+'TRF calcs '!$D11+'TRF calcs '!$E11+'TRF calcs '!$F11)))) -> 0.5857510813 | S18: =(((('TWP Calcs'!S$5)*'TWP Calcs'!$A$2*'TRF calcs '!$B11)+'TWP Calcs'!S$6*('TRF calcs '!$C11+'TRF calcs '!$D11+'TRF calcs '!$E11+'TRF calcs '!$F11))/(('TWP Calcs'!S$7*'TWP Calcs'!$A$2*'TRF calcs '!$B11)+('TWP Calcs'!S$8*('TRF calcs '!$C11+'TRF calcs '!$D11+'TRF calcs '!$E11+'TRF calcs '!$F11)))) -> 0.6200516873 | T18: =(((('TWP Calcs'!T$5)*'TWP Calcs'!$A$2*'TRF calcs '!$B11)+'TWP Calcs'!T$6*('TRF calcs '!$C11+'TRF calcs '!$D11+'TRF calcs '!$E11+'TRF calcs '!$F11))/(('TWP Calcs'!T$7*'TWP Calcs'!$A$2*'TRF calcs '!$B11)+('TWP Calcs'!T$8*('TRF calcs '!$C11+'TRF calcs '!$D11+'TRF calcs '!$E11+'TRF calcs '!$F11)))) -> 0.5167976734 | U18: =(((('TWP Calcs'!U$5)*'TWP Calcs'!$A$2*'TRF calcs '!$B11)+'TWP Calcs'!U$6*('TRF calcs '!$C11+'TRF calcs '!$D11+'TRF calcs '!$E11+'TRF calcs '!$F11))/(('TWP Calcs'!U$7*'TWP Calcs'!$A$2*'TRF calcs '!$B11)+('TWP Calcs'!U$8*('TRF calcs '!$C11+'TRF calcs '!$D11+'TRF calcs '!$E11+'TRF calcs '!$F11)))) -> 0.4135436595 | V18: =(((('TWP Calcs'!V$5)*'TWP Calcs'!$A$2*'TRF calcs '!$B11)+'TWP Calcs'!V$6*('TRF calcs '!$C11+'TRF calcs '!$D11+'TRF calcs '!$E11+'TRF calcs '!$F11))/(('TWP Calcs'!V$7*'TWP Calcs'!$A$2*'TRF calcs '!$B11)+('TWP Calcs'!V$8*('TRF calcs '!$C11+'TRF calcs '!$D11+'TRF calcs '!$E11+'TRF calcs '!$F11)))) -> 1.34807788 | W18: =(((('TWP Calcs'!W$5)*'TWP Calcs'!$A$2*'TRF calcs '!$B11)+'TWP Calcs'!W$6*('TRF calcs '!$C11+'TRF calcs '!$D11+'TRF calcs '!$E11+'TRF calcs '!$F11))/(('TWP Calcs'!W$7*'TWP Calcs'!$A$2*'TRF calcs '!$B11)+('TWP Calcs'!W$8*('TRF calcs '!$C11+'TRF calcs '!$D11+'TRF calcs '!$E11+'TRF calcs '!$F11)))) -> 1.123589414 | X18: =(((('TWP Calcs'!X$5)*'TWP Calcs'!$A$2*'TRF calcs '!$B11)+'TWP Calcs'!X$6*('TRF calcs '!$C11+'TRF calcs '!$D11+'TRF calcs '!$E11+'TRF calcs '!$F11))/(('TWP Calcs'!X$7*'TWP Calcs'!$A$2*'TRF calcs '!$B11)+('TWP Calcs'!X$8*('TRF calcs '!$C11+'TRF calcs '!$D11+'TRF calcs '!$E11+'TRF calcs '!$F11)))) -> 0.8991009476 | Y18: =(((('TWP Calcs'!Y$5)*'TWP Calcs'!$A$2*'TRF calcs '!$B11)+'TWP Calcs'!Y$6*('TRF calcs '!$C11+'TRF calcs '!$D11+'TRF calcs '!$E11+'TRF calcs '!$F11))/(('TWP Calcs'!Y$7*'TWP Calcs'!$A$2*'TRF calcs '!$B11)+('TWP Calcs'!Y$8*('TRF calcs '!$C11+'TRF calcs '!$D11+'TRF calcs '!$E11+'TRF calcs '!$F11)))) -> 1.532411075 | Z18: =(((('TWP Calcs'!Z$5)*'TWP Calcs'!$A$2*'TRF calcs '!$B11)+'TWP Calcs'!Z$6*('TRF calcs '!$C11+'TRF calcs '!$D11+'TRF calcs '!$E11+'TRF calcs '!$F11))/(('TWP Calcs'!Z$7*'TWP Calcs'!$A$2*'TRF calcs '!$B11)+('TWP Calcs'!Z$8*('TRF calcs '!$C11+'TRF calcs '!$D11+'TRF calcs '!$E11+'TRF calcs '!$F11)))) -> 1.277226551 | AA18: =(((('TWP Calcs'!AA$5)*'TWP Calcs'!$A$2*'TRF calcs '!$B11)+'TWP Calcs'!AA$6*('TRF calcs '!$C11+'TRF calcs '!$D11+'TRF calcs '!$E11+'TRF calcs '!$F11))/(('TWP Calcs'!AA$7*'TWP Calcs'!$A$2*'TRF calcs '!$B11)+('TWP Calcs'!AA$8*('TRF calcs '!$C11+'TRF calcs '!$D11+'TRF calcs '!$E11+'TRF calcs '!$F11)))) -> 1.022042027 | AB18: =(((('TWP Calcs'!AB$5)*'TWP Calcs'!$A$2*'TRF calcs '!$B11)+'TWP Calcs'!AB$6*('TRF calcs '!$C11+'TRF calcs '!$D11+'TRF calcs '!$E11+'TRF calcs '!$F11))/(('TWP Calcs'!AB$7*'TWP Calcs'!$A$2*'TRF calcs '!$B11)+('TWP Calcs'!AB$8*('TRF calcs '!$C11+'TRF calcs '!$D11+'TRF calcs '!$E11+'TRF calcs '!$F11)))) -> 0.534378438 | AC18: =(((('TWP Calcs'!AC$5)*'TWP Calcs'!$A$2*'TRF calcs '!$B11)+'TWP Calcs'!AC$6*('TRF calcs '!$C11+'TRF calcs '!$D11+'TRF calcs '!$E11+'TRF calcs '!$F11))/(('TWP Calcs'!AC$7*'TWP Calcs'!$A$2*'TRF calcs '!$B11)+('TWP Calcs'!AC$8*('TRF calcs '!$C11+'TRF calcs '!$D11+'TRF calcs '!$E11+'TRF calcs '!$F11)))) -> 0.4288619275 | AD18: =(((('TWP Calcs'!AD$5)*'TWP Calcs'!$A$2*'TRF calcs '!$B11)+'TWP Calcs'!AD$6*('TRF calcs '!$C11+'TRF calcs '!$D11+'TRF calcs '!$E11+'TRF calcs '!$F11))/(('TWP Calcs'!AD$7*'TWP Calcs'!$A$2*'TRF calcs '!$B11)+('TWP Calcs'!AD$8*('TRF calcs '!$C11+'TRF calcs '!$D11+'TRF calcs '!$E11+'TRF calcs '!$F11)))) -> 0.2860295916 | AE18: =(((('TWP Calcs'!AE$5)*'TWP Calcs'!$A$2*'TRF calcs '!$B11)+'TWP Calcs'!AE$6*('TRF calcs '!$C11+'TRF calcs '!$D11+'TRF calcs '!$E11+'TRF calcs '!$F11))/(('TWP Calcs'!AE$7*'TWP Calcs'!$A$2*'TRF calcs '!$B11)+('TWP Calcs'!AE$8*('TRF calcs '!$C11+'TRF calcs '!$D11+'TRF calcs '!$E11+'TRF calcs '!$F11)))) -> 0.9324049749 | AF18: =(((('TWP Calcs'!AF$5)*'TWP Calcs'!$A$2*'TRF calcs '!$B11)+'TWP Calcs'!AF$6*('TRF calcs '!$C11+'TRF calcs '!$D11+'TRF calcs '!$E11+'TRF calcs '!$F11))/(('TWP Calcs'!AF$7*'TWP Calcs'!$A$2*'TRF calcs '!$B11)+('TWP Calcs'!AF$8*('TRF calcs '!$C11+'TRF calcs '!$D11+'TRF calcs '!$E11+'TRF calcs '!$F11)))) -> 0.704836187 | AG18: =(((('TWP Calcs'!AG$5)*'TWP Calcs'!$A$2*'TRF calcs '!$B11)+'TWP Calcs'!AG$6*('TRF calcs '!$C11+'TRF calcs '!$D11+'TRF calcs '!$E11+'TRF calcs '!$F11))/(('TWP Calcs'!AG$7*'TWP Calcs'!$A$2*'TRF calcs '!$B11)+('TWP Calcs'!AG$8*('TRF calcs '!$C11+'TRF calcs '!$D11+'TRF calcs '!$E11+'TRF calcs '!$F11)))) -> 1.013612205 | AH18: 1 | AI18: 0 | AJ18: =(((('TWP Calcs'!AJ$5)*'TWP Calcs'!$A$2*'TRF calcs '!$B11)+'TWP Calcs'!AJ$6*('TRF calcs '!$C11+'TRF calcs '!$D11+'TRF calcs '!$E11+'TRF calcs '!$F11))/(('TWP Calcs'!AJ$7*'TWP Calcs'!$A$2*'TRF calcs '!$B11)+('TWP Calcs'!AJ$8*('TRF calcs '!$C11+'TRF calcs '!$D11+'TRF calcs '!$E11+'TRF calcs '!$F11)))) -> 0.772608224 | AK18: =(((('TWP Calcs'!AK$5)*'TWP Calcs'!$A$2*'TRF calcs '!$G11)+'TWP Calcs'!AK$6*('TRF calcs '!$H11+'TRF calcs '!$I11+'TRF calcs '!$J11+'TRF calcs '!$K11))/(('TWP Calcs'!AK$7*'TWP Calcs'!$A$2*'TRF calcs '!$G11)+('TWP Calcs'!AK$8*('TRF calcs '!$H11+'TRF calcs '!$I11+'TRF calcs '!$J11+'TRF calcs '!$K11)))) -> 0.7695536369 | AL18: =(((('TWP Calcs'!AL$5)*'TWP Calcs'!$A$2*'TRF calcs '!$L11)+'TWP Calcs'!AL$6*('TRF calcs '!$M11+'TRF calcs '!$N11+'TRF calcs '!$O11+'TRF calcs '!$P11))/(('TWP Calcs'!AL$7*'TWP Calcs'!$A$2*'TRF calcs '!$L11)+('TWP Calcs'!AL$8*('TRF calcs '!$M11+'TRF calcs '!$N11+'TRF calcs '!$O11+'TRF calcs '!$P11)))) -> 0.7700624201
A19: 1 | B19: =(((('TWP Calcs'!B$5)*'TWP Calcs'!$A$2*'TRF calcs '!$B12)+'TWP Calcs'!B$6*('TRF calcs '!$C12+'TRF calcs '!$D12+'TRF calcs '!$E12+'TRF calcs '!$F12))/(('TWP Calcs'!B$7*'TWP Calcs'!$A$2*'TRF calcs '!$B12)+('TWP Calcs'!B$8*('TRF calcs '!$C12+'TRF calcs '!$D12+'TRF calcs '!$E12+'TRF calcs '!$F12)))) -> 1.587198046 | C19: =(((('TWP Calcs'!C$5)*'TWP Calcs'!$A$2*'TRF calcs '!$B12)+'TWP Calcs'!C$6*('TRF calcs '!$C12+'TRF calcs '!$D12+'TRF calcs '!$E12+'TRF calcs '!$F12))/(('TWP Calcs'!C$7*'TWP Calcs'!$A$2*'TRF calcs '!$B12)+('TWP Calcs'!C$8*('TRF calcs '!$C12+'TRF calcs '!$D12+'TRF calcs '!$E12+'TRF calcs '!$F12)))) -> 1.322958925 | D19: =(((('TWP Calcs'!D$5)*'TWP Calcs'!$A$2*'TRF calcs '!$B12)+'TWP Calcs'!D$6*('TRF calcs '!$C12+'TRF calcs '!$D12+'TRF calcs '!$E12+'TRF calcs '!$F12))/(('TWP Calcs'!D$7*'TWP Calcs'!$A$2*'TRF calcs '!$B12)+('TWP Calcs'!D$8*('TRF calcs '!$C12+'TRF calcs '!$D12+'TRF calcs '!$E12+'TRF calcs '!$F12)))) -> 1.408786263 | E19: =(((('TWP Calcs'!E$5)*'TWP Calcs'!$A$2*'TRF calcs '!$G12)+'TWP Calcs'!E$6*('TRF calcs '!$H12+'TRF calcs '!$I12+'TRF calcs '!$J12+'TRF calcs '!$K12))/(('TWP Calcs'!E$7*'TWP Calcs'!$A$2*'TRF calcs '!$G12)+('TWP Calcs'!E$8*('TRF calcs '!$H12+'TRF calcs '!$I12+'TRF calcs '!$J12+'TRF calcs '!$K12)))) -> 1.40791768 | F19: =(((('TWP Calcs'!F$5)*'TWP Calcs'!$A$2*'TRF calcs '!$B12)+'TWP Calcs'!F$6*('TRF calcs '!$C12+'TRF calcs '!$D12+'TRF calcs '!$E12+'TRF calcs '!$F12))/(('TWP Calcs'!F$7*'TWP Calcs'!$A$2*'TRF calcs '!$B12)+('TWP Calcs'!F$8*('TRF calcs '!$C12+'TRF calcs '!$D12+'TRF calcs '!$E12+'TRF calcs '!$F12)))) -> 0.8010735249 | G19: =(((('TWP Calcs'!G$5)*'TWP Calcs'!$A$2*'TRF calcs '!$B12)+'TWP Calcs'!G$6*('TRF calcs '!$C12+'TRF calcs '!$D12+'TRF calcs '!$E12+'TRF calcs '!$F12))/(('TWP Calcs'!G$7*'TWP Calcs'!$A$2*'TRF calcs '!$B12)+('TWP Calcs'!G$8*('TRF calcs '!$C12+'TRF calcs '!$D12+'TRF calcs '!$E12+'TRF calcs '!$F12)))) -> 0.73520644 | H19: =(((('TWP Calcs'!H$5)*'TWP Calcs'!$A$2*'TRF calcs '!$B12)+'TWP Calcs'!H$6*('TRF calcs '!$C12+'TRF calcs '!$D12+'TRF calcs '!$E12+'TRF calcs '!$F12))/(('TWP Calcs'!H$7*'TWP Calcs'!$A$2*'TRF calcs '!$B12)+('TWP Calcs'!H$8*('TRF calcs '!$C12+'TRF calcs '!$D12+'TRF calcs '!$E12+'TRF calcs '!$F12)))) -> 0.6128081648 | I19: =(((('TWP Calcs'!I$5)*'TWP Calcs'!$A$2*'TRF calcs '!$B12)+'TWP Calcs'!I$6*('TRF calcs '!$C12+'TRF calcs '!$D12+'TRF calcs '!$E12+'TRF calcs '!$F12))/(('TWP Calcs'!I$7*'TWP Calcs'!$A$2*'TRF calcs '!$B12)+('TWP Calcs'!I$8*('TRF calcs '!$C12+'TRF calcs '!$D12+'TRF calcs '!$E12+'TRF calcs '!$F12)))) -> 0.4904098895 | J19: =(((('TWP Calcs'!J$5)*'TWP Calcs'!$A$2*'TRF calcs '!$B12)+'TWP Calcs'!J$6*('TRF calcs '!$C12+'TRF calcs '!$D12+'TRF calcs '!$E12+'TRF calcs '!$F12))/(('TWP Calcs'!J$7*'TWP Calcs'!$A$2*'TRF calcs '!$B12)+('TWP Calcs'!J$8*('TRF calcs '!$C12+'TRF calcs '!$D12+'TRF calcs '!$E12+'TRF calcs '!$F12)))) -> 0.7724944066 | K19: =(((('TWP Calcs'!K$5)*'TWP Calcs'!$A$2*'TRF calcs '!$B12)+'TWP Calcs'!K$6*('TRF calcs '!$C12+'TRF calcs '!$D12+'TRF calcs '!$E12+'TRF calcs '!$F12))/(('TWP Calcs'!K$7*'TWP Calcs'!$A$2*'TRF calcs '!$B12)+('TWP Calcs'!K$8*('TRF calcs '!$C12+'TRF calcs '!$D12+'TRF calcs '!$E12+'TRF calcs '!$F12)))) -> 0.6438883745 | L19: =(((('TWP Calcs'!L$5)*'TWP Calcs'!$A$2*'TRF calcs '!$B12)+'TWP Calcs'!L$6*('TRF calcs '!$C12+'TRF calcs '!$D12+'TRF calcs '!$E12+'TRF calcs '!$F12))/(('TWP Calcs'!L$7*'TWP Calcs'!$A$2*'TRF calcs '!$B12)+('TWP Calcs'!L$8*('TRF calcs '!$C12+'TRF calcs '!$D12+'TRF calcs '!$E12+'TRF calcs '!$F12)))) -> 0.4867032242 | M19: =(((('TWP Calcs'!M$5)*'TWP Calcs'!$A$2*'TRF calcs '!$B12)+'TWP Calcs'!M$6*('TRF calcs '!$C12+'TRF calcs '!$D12+'TRF calcs '!$E12+'TRF calcs '!$F12))/(('TWP Calcs'!M$7*'TWP Calcs'!$A$2*'TRF calcs '!$B12)+('TWP Calcs'!M$8*('TRF calcs '!$C12+'TRF calcs '!$D12+'TRF calcs '!$E12+'TRF calcs '!$F12)))) -> 0.5942805726 | N19: =(((('TWP Calcs'!N$5)*'TWP Calcs'!$A$2*'TRF calcs '!$B12)+'TWP Calcs'!N$6*('TRF calcs '!$C12+'TRF calcs '!$D12+'TRF calcs '!$E12+'TRF calcs '!$F12))/(('TWP Calcs'!N$7*'TWP Calcs'!$A$2*'TRF calcs '!$B12)+('TWP Calcs'!N$8*('TRF calcs '!$C12+'TRF calcs '!$D12+'TRF calcs '!$E12+'TRF calcs '!$F12)))) -> 0.495343848 | O19: =(((('TWP Calcs'!O$5)*'TWP Calcs'!$A$2*'TRF calcs '!$B12)+'TWP Calcs'!O$6*('TRF calcs '!$C12+'TRF calcs '!$D12+'TRF calcs '!$E12+'TRF calcs '!$F12))/(('TWP Calcs'!O$7*'TWP Calcs'!$A$2*'TRF calcs '!$B12)+('TWP Calcs'!O$8*('TRF calcs '!$C12+'TRF calcs '!$D12+'TRF calcs '!$E12+'TRF calcs '!$F12)))) -> 0.3964071234 | P19: =(((('TWP Calcs'!P$5)*'TWP Calcs'!$A$2*'TRF calcs '!$B12)+'TWP Calcs'!P$6*('TRF calcs '!$C12+'TRF calcs '!$D12+'TRF calcs '!$E12+'TRF calcs '!$F12))/(('TWP Calcs'!P$7*'TWP Calcs'!$A$2*'TRF calcs '!$B12)+('TWP Calcs'!P$8*('TRF calcs '!$C12+'TRF calcs '!$D12+'TRF calcs '!$E12+'TRF calcs '!$F12)))) -> 0.8781235874 | Q19: =(((('TWP Calcs'!Q$5)*'TWP Calcs'!$A$2*'TRF calcs '!$B12)+'TWP Calcs'!Q$6*('TRF calcs '!$C12+'TRF calcs '!$D12+'TRF calcs '!$E12+'TRF calcs '!$F12))/(('TWP Calcs'!Q$7*'TWP Calcs'!$A$2*'TRF calcs '!$B12)+('TWP Calcs'!Q$8*('TRF calcs '!$C12+'TRF calcs '!$D12+'TRF calcs '!$E12+'TRF calcs '!$F12)))) -> 0.7319322502 | R19: =(((('TWP Calcs'!R$5)*'TWP Calcs'!$A$2*'TRF calcs '!$B12)+'TWP Calcs'!R$6*('TRF calcs '!$C12+'TRF calcs '!$D12+'TRF calcs '!$E12+'TRF calcs '!$F12))/(('TWP Calcs'!R$7*'TWP Calcs'!$A$2*'TRF calcs '!$B12)+('TWP Calcs'!R$8*('TRF calcs '!$C12+'TRF calcs '!$D12+'TRF calcs '!$E12+'TRF calcs '!$F12)))) -> 0.5857409131 | S19: =(((('TWP Calcs'!S$5)*'TWP Calcs'!$A$2*'TRF calcs '!$B12)+'TWP Calcs'!S$6*('TRF calcs '!$C12+'TRF calcs '!$D12+'TRF calcs '!$E12+'TRF calcs '!$F12))/(('TWP Calcs'!S$7*'TWP Calcs'!$A$2*'TRF calcs '!$B12)+('TWP Calcs'!S$8*('TRF calcs '!$C12+'TRF calcs '!$D12+'TRF calcs '!$E12+'TRF calcs '!$F12)))) -> 0.6199603439 | T19: =(((('TWP Calcs'!T$5)*'TWP Calcs'!$A$2*'TRF calcs '!$B12)+'TWP Calcs'!T$6*('TRF calcs '!$C12+'TRF calcs '!$D12+'TRF calcs '!$E12+'TRF calcs '!$F12))/(('TWP Calcs'!T$7*'TWP Calcs'!$A$2*'TRF calcs '!$B12)+('TWP Calcs'!T$8*('TRF calcs '!$C12+'TRF calcs '!$D12+'TRF calcs '!$E12+'TRF calcs '!$F12)))) -> 0.5167484123 | U19: =(((('TWP Calcs'!U$5)*'TWP Calcs'!$A$2*'TRF calcs '!$B12)+'TWP Calcs'!U$6*('TRF calcs '!$C12+'TRF calcs '!$D12+'TRF calcs '!$E12+'TRF calcs '!$F12))/(('TWP Calcs'!U$7*'TWP Calcs'!$A$2*'TRF calcs '!$B12)+('TWP Calcs'!U$8*('TRF calcs '!$C12+'TRF calcs '!$D12+'TRF calcs '!$E12+'TRF calcs '!$F12)))) -> 0.4135364807 | V19: =(((('TWP Calcs'!V$5)*'TWP Calcs'!$A$2*'TRF calcs '!$B12)+'TWP Calcs'!V$6*('TRF calcs '!$C12+'TRF calcs '!$D12+'TRF calcs '!$E12+'TRF calcs '!$F12))/(('TWP Calcs'!V$7*'TWP Calcs'!$A$2*'TRF calcs '!$B12)+('TWP Calcs'!V$8*('TRF calcs '!$C12+'TRF calcs '!$D12+'TRF calcs '!$E12+'TRF calcs '!$F12)))) -> 1.347879287 | W19: =(((('TWP Calcs'!W$5)*'TWP Calcs'!$A$2*'TRF calcs '!$B12)+'TWP Calcs'!W$6*('TRF calcs '!$C12+'TRF calcs '!$D12+'TRF calcs '!$E12+'TRF calcs '!$F12))/(('TWP Calcs'!W$7*'TWP Calcs'!$A$2*'TRF calcs '!$B12)+('TWP Calcs'!W$8*('TRF calcs '!$C12+'TRF calcs '!$D12+'TRF calcs '!$E12+'TRF calcs '!$F12)))) -> 1.123482313 | X19: =(((('TWP Calcs'!X$5)*'TWP Calcs'!$A$2*'TRF calcs '!$B12)+'TWP Calcs'!X$6*('TRF calcs '!$C12+'TRF calcs '!$D12+'TRF calcs '!$E12+'TRF calcs '!$F12))/(('TWP Calcs'!X$7*'TWP Calcs'!$A$2*'TRF calcs '!$B12)+('TWP Calcs'!X$8*('TRF calcs '!$C12+'TRF calcs '!$D12+'TRF calcs '!$E12+'TRF calcs '!$F12)))) -> 0.8990853399 | Y19: =(((('TWP Calcs'!Y$5)*'TWP Calcs'!$A$2*'TRF calcs '!$B12)+'TWP Calcs'!Y$6*('TRF calcs '!$C12+'TRF calcs '!$D12+'TRF calcs '!$E12+'TRF calcs '!$F12))/(('TWP Calcs'!Y$7*'TWP Calcs'!$A$2*'TRF calcs '!$B12)+('TWP Calcs'!Y$8*('TRF calcs '!$C12+'TRF calcs '!$D12+'TRF calcs '!$E12+'TRF calcs '!$F12)))) -> 1.532185326 | Z19: =(((('TWP Calcs'!Z$5)*'TWP Calcs'!$A$2*'TRF calcs '!$B12)+'TWP Calcs'!Z$6*('TRF calcs '!$C12+'TRF calcs '!$D12+'TRF calcs '!$E12+'TRF calcs '!$F12))/(('TWP Calcs'!Z$7*'TWP Calcs'!$A$2*'TRF calcs '!$B12)+('TWP Calcs'!Z$8*('TRF calcs '!$C12+'TRF calcs '!$D12+'TRF calcs '!$E12+'TRF calcs '!$F12)))) -> 1.277104806 | AA19: =(((('TWP Calcs'!AA$5)*'TWP Calcs'!$A$2*'TRF calcs '!$B12)+'TWP Calcs'!AA$6*('TRF calcs '!$C12+'TRF calcs '!$D12+'TRF calcs '!$E12+'TRF calcs '!$F12))/(('TWP Calcs'!AA$7*'TWP Calcs'!$A$2*'TRF calcs '!$B12)+('TWP Calcs'!AA$8*('TRF calcs '!$C12+'TRF calcs '!$D12+'TRF calcs '!$E12+'TRF calcs '!$F12)))) -> 1.022024286 | AB19: =(((('TWP Calcs'!AB$5)*'TWP Calcs'!$A$2*'TRF calcs '!$B12)+'TWP Calcs'!AB$6*('TRF calcs '!$C12+'TRF calcs '!$D12+'TRF calcs '!$E12+'TRF calcs '!$F12))/(('TWP Calcs'!AB$7*'TWP Calcs'!$A$2*'TRF calcs '!$B12)+('TWP Calcs'!AB$8*('TRF calcs '!$C12+'TRF calcs '!$D12+'TRF calcs '!$E12+'TRF calcs '!$F12)))) -> 0.5343571214 | AC19: =(((('TWP Calcs'!AC$5)*'TWP Calcs'!$A$2*'TRF calcs '!$B12)+'TWP Calcs'!AC$6*('TRF calcs '!$C12+'TRF calcs '!$D12+'TRF calcs '!$E12+'TRF calcs '!$F12))/(('TWP Calcs'!AC$7*'TWP Calcs'!$A$2*'TRF calcs '!$B12)+('TWP Calcs'!AC$8*('TRF calcs '!$C12+'TRF calcs '!$D12+'TRF calcs '!$E12+'TRF calcs '!$F12)))) -> 0.42884482 | AD19: =(((('TWP Calcs'!AD$5)*'TWP Calcs'!$A$2*'TRF calcs '!$B12)+'TWP Calcs'!AD$6*('TRF calcs '!$C12+'TRF calcs '!$D12+'TRF calcs '!$E12+'TRF calcs '!$F12))/(('TWP Calcs'!AD$7*'TWP Calcs'!$A$2*'TRF calcs '!$B12)+('TWP Calcs'!AD$8*('TRF calcs '!$C12+'TRF calcs '!$D12+'TRF calcs '!$E12+'TRF calcs '!$F12)))) -> 0.2860553572 | AE19: =(((('TWP Calcs'!AE$5)*'TWP Calcs'!$A$2*'TRF calcs '!$B12)+'TWP Calcs'!AE$6*('TRF calcs '!$C12+'TRF calcs '!$D12+'TRF calcs '!$E12+'TRF calcs '!$F12))/(('TWP Calcs'!AE$7*'TWP Calcs'!$A$2*'TRF calcs '!$B12)+('TWP Calcs'!AE$8*('TRF calcs '!$C12+'TRF calcs '!$D12+'TRF calcs '!$E12+'TRF calcs '!$F12)))) -> 0.9323677808 | AF19: =(((('TWP Calcs'!AF$5)*'TWP Calcs'!$A$2*'TRF calcs '!$B12)+'TWP Calcs'!AF$6*('TRF calcs '!$C12+'TRF calcs '!$D12+'TRF calcs '!$E12+'TRF calcs '!$F12))/(('TWP Calcs'!AF$7*'TWP Calcs'!$A$2*'TRF calcs '!$B12)+('TWP Calcs'!AF$8*('TRF calcs '!$C12+'TRF calcs '!$D12+'TRF calcs '!$E12+'TRF calcs '!$F12)))) -> 0.7047323535 | AG19: =(((('TWP Calcs'!AG$5)*'TWP Calcs'!$A$2*'TRF calcs '!$B12)+'TWP Calcs'!AG$6*('TRF calcs '!$C12+'TRF calcs '!$D12+'TRF calcs '!$E12+'TRF calcs '!$F12))/(('TWP Calcs'!AG$7*'TWP Calcs'!$A$2*'TRF calcs '!$B12)+('TWP Calcs'!AG$8*('TRF calcs '!$C12+'TRF calcs '!$D12+'TRF calcs '!$E12+'TRF calcs '!$F12)))) -> 1.013462884 | AH19: 1 | AI19: 0 | AJ19: =(((('TWP Calcs'!AJ$5)*'TWP Calcs'!$A$2*'TRF calcs '!$B12)+'TWP Calcs'!AJ$6*('TRF calcs '!$C12+'TRF calcs '!$D12+'TRF calcs '!$E12+'TRF calcs '!$F12))/(('TWP Calcs'!AJ$7*'TWP Calcs'!$A$2*'TRF calcs '!$B12)+('TWP Calcs'!AJ$8*('TRF calcs '!$C12+'TRF calcs '!$D12+'TRF calcs '!$E12+'TRF calcs '!$F12)))) -> 0.7724944066 | AK19: =(((('TWP Calcs'!AK$5)*'TWP Calcs'!$A$2*'TRF calcs '!$G12)+'TWP Calcs'!AK$6*('TRF calcs '!$H12+'TRF calcs '!$I12+'TRF calcs '!$J12+'TRF calcs '!$K12))/(('TWP Calcs'!AK$7*'TWP Calcs'!$A$2*'TRF calcs '!$G12)+('TWP Calcs'!AK$8*('TRF calcs '!$H12+'TRF calcs '!$I12+'TRF calcs '!$J12+'TRF calcs '!$K12)))) -> 0.7693633467 | AL19: =(((('TWP Calcs'!AL$5)*'TWP Calcs'!$A$2*'TRF calcs '!$L12)+'TWP Calcs'!AL$6*('TRF calcs '!$M12+'TRF calcs '!$N12+'TRF calcs '!$O12+'TRF calcs '!$P12))/(('TWP Calcs'!AL$7*'TWP Calcs'!$A$2*'TRF calcs '!$L12)+('TWP Calcs'!AL$8*('TRF calcs '!$M12+'TRF calcs '!$N12+'TRF calcs '!$O12+'TRF calcs '!$P12)))) -> 0.7699485886
A20: 2 | B20: =(((('TWP Calcs'!B$5)*'TWP Calcs'!$A$2*'TRF calcs '!$B13)+'TWP Calcs'!B$6*('TRF calcs '!$C13+'TRF calcs '!$D13+'TRF calcs '!$E13+'TRF calcs '!$F13))/(('TWP Calcs'!B$7*'TWP Calcs'!$A$2*'TRF calcs '!$B13)+('TWP Calcs'!B$8*('TRF calcs '!$C13+'TRF calcs '!$D13+'TRF calcs '!$E13+'TRF calcs '!$F13)))) -> 1.584344162 | C20: =(((('TWP Calcs'!C$5)*'TWP Calcs'!$A$2*'TRF calcs '!$B13)+'TWP Calcs'!C$6*('TRF calcs '!$C13+'TRF calcs '!$D13+'TRF calcs '!$E13+'TRF calcs '!$F13))/(('TWP Calcs'!C$7*'TWP Calcs'!$A$2*'TRF calcs '!$B13)+('TWP Calcs'!C$8*('TRF calcs '!$C13+'TRF calcs '!$D13+'TRF calcs '!$E13+'TRF calcs '!$F13)))) -> 1.321389289 | D20: =(((('TWP Calcs'!D$5)*'TWP Calcs'!$A$2*'TRF calcs '!$B13)+'TWP Calcs'!D$6*('TRF calcs '!$C13+'TRF calcs '!$D13+'TRF calcs '!$E13+'TRF calcs '!$F13))/(('TWP Calcs'!D$7*'TWP Calcs'!$A$2*'TRF calcs '!$B13)+('TWP Calcs'!D$8*('TRF calcs '!$C13+'TRF calcs '!$D13+'TRF calcs '!$E13+'TRF calcs '!$F13)))) -> 1.406799491 | E20: =(((('TWP Calcs'!E$5)*'TWP Calcs'!$A$2*'TRF calcs '!$G13)+'TWP Calcs'!E$6*('TRF calcs '!$H13+'TRF calcs '!$I13+'TRF calcs '!$J13+'TRF calcs '!$K13))/(('TWP Calcs'!E$7*'TWP Calcs'!$A$2*'TRF calcs '!$G13)+('TWP Calcs'!E$8*('TRF calcs '!$H13+'TRF calcs '!$I13+'TRF calcs '!$J13+'TRF calcs '!$K13)))) -> 1.404508873 | F20: =(((('TWP Calcs'!F$5)*'TWP Calcs'!$A$2*'TRF calcs '!$B13)+'TWP Calcs'!F$6*('TRF calcs '!$C13+'TRF calcs '!$D13+'TRF calcs '!$E13+'TRF calcs '!$F13))/(('TWP Calcs'!F$7*'TWP Calcs'!$A$2*'TRF calcs '!$B13)+('TWP Calcs'!F$8*('TRF calcs '!$C13+'TRF calcs '!$D13+'TRF calcs '!$E13+'TRF calcs '!$F13)))) -> 0.7995979378 | G20: =(((('TWP Calcs'!G$5)*'TWP Calcs'!$A$2*'TRF calcs '!$B13)+'TWP Calcs'!G$6*('TRF calcs '!$C13+'TRF calcs '!$D13+'TRF calcs '!$E13+'TRF calcs '!$F13))/(('TWP Calcs'!G$7*'TWP Calcs'!$A$2*'TRF calcs '!$B13)+('TWP Calcs'!G$8*('TRF calcs '!$C13+'TRF calcs '!$D13+'TRF calcs '!$E13+'TRF calcs '!$F13)))) -> 0.7341228206 | H20: =(((('TWP Calcs'!H$5)*'TWP Calcs'!$A$2*'TRF calcs '!$B13)+'TWP Calcs'!H$6*('TRF calcs '!$C13+'TRF calcs '!$D13+'TRF calcs '!$E13+'TRF calcs '!$F13))/(('TWP Calcs'!H$7*'TWP Calcs'!$A$2*'TRF calcs '!$B13)+('TWP Calcs'!H$8*('TRF calcs '!$C13+'TRF calcs '!$D13+'TRF calcs '!$E13+'TRF calcs '!$F13)))) -> 0.6122798665 | I20: =(((('TWP Calcs'!I$5)*'TWP Calcs'!$A$2*'TRF calcs '!$B13)+'TWP Calcs'!I$6*('TRF calcs '!$C13+'TRF calcs '!$D13+'TRF calcs '!$E13+'TRF calcs '!$F13))/(('TWP Calcs'!I$7*'TWP Calcs'!$A$2*'TRF calcs '!$B13)+('TWP Calcs'!I$8*('TRF calcs '!$C13+'TRF calcs '!$D13+'TRF calcs '!$E13+'TRF calcs '!$F13)))) -> 0.4904369124 | J20: =(((('TWP Calcs'!J$5)*'TWP Calcs'!$A$2*'TRF calcs '!$B13)+'TWP Calcs'!J$6*('TRF calcs '!$C13+'TRF calcs '!$D13+'TRF calcs '!$E13+'TRF calcs '!$F13))/(('TWP Calcs'!J$7*'TWP Calcs'!$A$2*'TRF calcs '!$B13)+('TWP Calcs'!J$8*('TRF calcs '!$C13+'TRF calcs '!$D13+'TRF calcs '!$E13+'TRF calcs '!$F13)))) -> 0.7711558585 | K20: =(((('TWP Calcs'!K$5)*'TWP Calcs'!$A$2*'TRF calcs '!$B13)+'TWP Calcs'!K$6*('TRF calcs '!$C13+'TRF calcs '!$D13+'TRF calcs '!$E13+'TRF calcs '!$F13))/(('TWP Calcs'!K$7*'TWP Calcs'!$A$2*'TRF calcs '!$B13)+('TWP Calcs'!K$8*('TRF calcs '!$C13+'TRF calcs '!$D13+'TRF calcs '!$E13+'TRF calcs '!$F13)))) -> 0.6431665013 | L20: =(((('TWP Calcs'!L$5)*'TWP Calcs'!$A$2*'TRF calcs '!$B13)+'TWP Calcs'!L$6*('TRF calcs '!$C13+'TRF calcs '!$D13+'TRF calcs '!$E13+'TRF calcs '!$F13))/(('TWP Calcs'!L$7*'TWP Calcs'!$A$2*'TRF calcs '!$B13)+('TWP Calcs'!L$8*('TRF calcs '!$C13+'TRF calcs '!$D13+'TRF calcs '!$E13+'TRF calcs '!$F13)))) -> 0.4867350648 | M20: =(((('TWP Calcs'!M$5)*'TWP Calcs'!$A$2*'TRF calcs '!$B13)+'TWP Calcs'!M$6*('TRF calcs '!$C13+'TRF calcs '!$D13+'TRF calcs '!$E13+'TRF calcs '!$F13))/(('TWP Calcs'!M$7*'TWP Calcs'!$A$2*'TRF calcs '!$B13)+('TWP Calcs'!M$8*('TRF calcs '!$C13+'TRF calcs '!$D13+'TRF calcs '!$E13+'TRF calcs '!$F13)))) -> 0.5940013832 | N20: =(((('TWP Calcs'!N$5)*'TWP Calcs'!$A$2*'TRF calcs '!$B13)+'TWP Calcs'!N$6*('TRF calcs '!$C13+'TRF calcs '!$D13+'TRF calcs '!$E13+'TRF calcs '!$F13))/(('TWP Calcs'!N$7*'TWP Calcs'!$A$2*'TRF calcs '!$B13)+('TWP Calcs'!N$8*('TRF calcs '!$C13+'TRF calcs '!$D13+'TRF calcs '!$E13+'TRF calcs '!$F13)))) -> 0.4954144966 | O20: =(((('TWP Calcs'!O$5)*'TWP Calcs'!$A$2*'TRF calcs '!$B13)+'TWP Calcs'!O$6*('TRF calcs '!$C13+'TRF calcs '!$D13+'TRF calcs '!$E13+'TRF calcs '!$F13))/(('TWP Calcs'!O$7*'TWP Calcs'!$A$2*'TRF calcs '!$B13)+('TWP Calcs'!O$8*('TRF calcs '!$C13+'TRF calcs '!$D13+'TRF calcs '!$E13+'TRF calcs '!$F13)))) -> 0.39682761 | P20: =(((('TWP Calcs'!P$5)*'TWP Calcs'!$A$2*'TRF calcs '!$B13)+'TWP Calcs'!P$6*('TRF calcs '!$C13+'TRF calcs '!$D13+'TRF calcs '!$E13+'TRF calcs '!$F13))/(('TWP Calcs'!P$7*'TWP Calcs'!$A$2*'TRF calcs '!$B13)+('TWP Calcs'!P$8*('TRF calcs '!$C13+'TRF calcs '!$D13+'TRF calcs '!$E13+'TRF calcs '!$F13)))) -> 0.8766020091 | Q20: =(((('TWP Calcs'!Q$5)*'TWP Calcs'!$A$2*'TRF calcs '!$B13)+'TWP Calcs'!Q$6*('TRF calcs '!$C13+'TRF calcs '!$D13+'TRF calcs '!$E13+'TRF calcs '!$F13))/(('TWP Calcs'!Q$7*'TWP Calcs'!$A$2*'TRF calcs '!$B13)+('TWP Calcs'!Q$8*('TRF calcs '!$C13+'TRF calcs '!$D13+'TRF calcs '!$E13+'TRF calcs '!$F13)))) -> 0.7311116697 | R20: =(((('TWP Calcs'!R$5)*'TWP Calcs'!$A$2*'TRF calcs '!$B13)+'TWP Calcs'!R$6*('TRF calcs '!$C13+'TRF calcs '!$D13+'TRF calcs '!$E13+'TRF calcs '!$F13))/(('TWP Calcs'!R$7*'TWP Calcs'!$A$2*'TRF calcs '!$B13)+('TWP Calcs'!R$8*('TRF calcs '!$C13+'TRF calcs '!$D13+'TRF calcs '!$E13+'TRF calcs '!$F13)))) -> 0.5856213302 | S20: =(((('TWP Calcs'!S$5)*'TWP Calcs'!$A$2*'TRF calcs '!$B13)+'TWP Calcs'!S$6*('TRF calcs '!$C13+'TRF calcs '!$D13+'TRF calcs '!$E13+'TRF calcs '!$F13))/(('TWP Calcs'!S$7*'TWP Calcs'!$A$2*'TRF calcs '!$B13)+('TWP Calcs'!S$8*('TRF calcs '!$C13+'TRF calcs '!$D13+'TRF calcs '!$E13+'TRF calcs '!$F13)))) -> 0.6188861008 | T20: =(((('TWP Calcs'!T$5)*'TWP Calcs'!$A$2*'TRF calcs '!$B13)+'TWP Calcs'!T$6*('TRF calcs '!$C13+'TRF calcs '!$D13+'TRF calcs '!$E13+'TRF calcs '!$F13))/(('TWP Calcs'!T$7*'TWP Calcs'!$A$2*'TRF calcs '!$B13)+('TWP Calcs'!T$8*('TRF calcs '!$C13+'TRF calcs '!$D13+'TRF calcs '!$E13+'TRF calcs '!$F13)))) -> 0.5161690777 | U20: =(((('TWP Calcs'!U$5)*'TWP Calcs'!$A$2*'TRF calcs '!$B13)+'TWP Calcs'!U$6*('TRF calcs '!$C13+'TRF calcs '!$D13+'TRF calcs '!$E13+'TRF calcs '!$F13))/(('TWP Calcs'!U$7*'TWP Calcs'!$A$2*'TRF calcs '!$B13)+('TWP Calcs'!U$8*('TRF calcs '!$C13+'TRF calcs '!$D13+'TRF calcs '!$E13+'TRF calcs '!$F13)))) -> 0.4134520545 | V20: =(((('TWP Calcs'!V$5)*'TWP Calcs'!$A$2*'TRF calcs '!$B13)+'TWP Calcs'!V$6*('TRF calcs '!$C13+'TRF calcs '!$D13+'TRF calcs '!$E13+'TRF calcs '!$F13))/(('TWP Calcs'!V$7*'TWP Calcs'!$A$2*'TRF calcs '!$B13)+('TWP Calcs'!V$8*('TRF calcs '!$C13+'TRF calcs '!$D13+'TRF calcs '!$E13+'TRF calcs '!$F13)))) -> 1.345543734 | W20: =(((('TWP Calcs'!W$5)*'TWP Calcs'!$A$2*'TRF calcs '!$B13)+'TWP Calcs'!W$6*('TRF calcs '!$C13+'TRF calcs '!$D13+'TRF calcs '!$E13+'TRF calcs '!$F13))/(('TWP Calcs'!W$7*'TWP Calcs'!$A$2*'TRF calcs '!$B13)+('TWP Calcs'!W$8*('TRF calcs '!$C13+'TRF calcs '!$D13+'TRF calcs '!$E13+'TRF calcs '!$F13)))) -> 1.12222276 | X20: =(((('TWP Calcs'!X$5)*'TWP Calcs'!$A$2*'TRF calcs '!$B13)+'TWP Calcs'!X$6*('TRF calcs '!$C13+'TRF calcs '!$D13+'TRF calcs '!$E13+'TRF calcs '!$F13))/(('TWP Calcs'!X$7*'TWP Calcs'!$A$2*'TRF calcs '!$B13)+('TWP Calcs'!X$8*('TRF calcs '!$C13+'TRF calcs '!$D13+'TRF calcs '!$E13+'TRF calcs '!$F13)))) -> 0.8989017858 | Y20: =(((('TWP Calcs'!Y$5)*'TWP Calcs'!$A$2*'TRF calcs '!$B13)+'TWP Calcs'!Y$6*('TRF calcs '!$C13+'TRF calcs '!$D13+'TRF calcs '!$E13+'TRF calcs '!$F13))/(('TWP Calcs'!Y$7*'TWP Calcs'!$A$2*'TRF calcs '!$B13)+('TWP Calcs'!Y$8*('TRF calcs '!$C13+'TRF calcs '!$D13+'TRF calcs '!$E13+'TRF calcs '!$F13)))) -> 1.529530415 | Z20: =(((('TWP Calcs'!Z$5)*'TWP Calcs'!$A$2*'TRF calcs '!$B13)+'TWP Calcs'!Z$6*('TRF calcs '!$C13+'TRF calcs '!$D13+'TRF calcs '!$E13+'TRF calcs '!$F13))/(('TWP Calcs'!Z$7*'TWP Calcs'!$A$2*'TRF calcs '!$B13)+('TWP Calcs'!Z$8*('TRF calcs '!$C13+'TRF calcs '!$D13+'TRF calcs '!$E13+'TRF calcs '!$F13)))) -> 1.275673024 | AA20: =(((('TWP Calcs'!AA$5)*'TWP Calcs'!$A$2*'TRF calcs '!$B13)+'TWP Calcs'!AA$6*('TRF calcs '!$C13+'TRF calcs '!$D13+'TRF calcs '!$E13+'TRF calcs '!$F13))/(('TWP Calcs'!AA$7*'TWP Calcs'!$A$2*'TRF calcs '!$B13)+('TWP Calcs'!AA$8*('TRF calcs '!$C13+'TRF calcs '!$D13+'TRF calcs '!$E13+'TRF calcs '!$F13)))) -> 1.021815633 | AB20: =(((('TWP Calcs'!AB$5)*'TWP Calcs'!$A$2*'TRF calcs '!$B13)+'TWP Calcs'!AB$6*('TRF calcs '!$C13+'TRF calcs '!$D13+'TRF calcs '!$E13+'TRF calcs '!$F13))/(('TWP Calcs'!AB$7*'TWP Calcs'!$A$2*'TRF calcs '!$B13)+('TWP Calcs'!AB$8*('TRF calcs '!$C13+'TRF calcs '!$D13+'TRF calcs '!$E13+'TRF calcs '!$F13)))) -> 0.5341060837 | AC20: =(((('TWP Calcs'!AC$5)*'TWP Calcs'!$A$2*'TRF calcs '!$B13)+'TWP Calcs'!AC$6*('TRF calcs '!$C13+'TRF calcs '!$D13+'TRF calcs '!$E13+'TRF calcs '!$F13))/(('TWP Calcs'!AC$7*'TWP Calcs'!$A$2*'TRF calcs '!$B13)+('TWP Calcs'!AC$8*('TRF calcs '!$C13+'TRF calcs '!$D13+'TRF calcs '!$E13+'TRF calcs '!$F13)))) -> 0.4286433513 | AD20: =(((('TWP Calcs'!AD$5)*'TWP Calcs'!$A$2*'TRF calcs '!$B13)+'TWP Calcs'!AD$6*('TRF calcs '!$C13+'TRF calcs '!$D13+'TRF calcs '!$E13+'TRF calcs '!$F13))/(('TWP Calcs'!AD$7*'TWP Calcs'!$A$2*'TRF calcs '!$B13)+('TWP Calcs'!AD$8*('TRF calcs '!$C13+'TRF calcs '!$D13+'TRF calcs '!$E13+'TRF calcs '!$F13)))) -> 0.2863587888 | AE20: =(((('TWP Calcs'!AE$5)*'TWP Calcs'!$A$2*'TRF calcs '!$B13)+'TWP Calcs'!AE$6*('TRF calcs '!$C13+'TRF calcs '!$D13+'TRF calcs '!$E13+'TRF calcs '!$F13))/(('TWP Calcs'!AE$7*'TWP Calcs'!$A$2*'TRF calcs '!$B13)+('TWP Calcs'!AE$8*('TRF calcs '!$C13+'TRF calcs '!$D13+'TRF calcs '!$E13+'TRF calcs '!$F13)))) -> 0.9319297601 | AF20: =(((('TWP Calcs'!AF$5)*'TWP Calcs'!$A$2*'TRF calcs '!$B13)+'TWP Calcs'!AF$6*('TRF calcs '!$C13+'TRF calcs '!$D13+'TRF calcs '!$E13+'TRF calcs '!$F13))/(('TWP Calcs'!AF$7*'TWP Calcs'!$A$2*'TRF calcs '!$B13)+('TWP Calcs'!AF$8*('TRF calcs '!$C13+'TRF calcs '!$D13+'TRF calcs '!$E13+'TRF calcs '!$F13)))) -> 0.7035112208 | AG20: =(((('TWP Calcs'!AG$5)*'TWP Calcs'!$A$2*'TRF calcs '!$B13)+'TWP Calcs'!AG$6*('TRF calcs '!$C13+'TRF calcs '!$D13+'TRF calcs '!$E13+'TRF calcs '!$F13))/(('TWP Calcs'!AG$7*'TWP Calcs'!$A$2*'TRF calcs '!$B13)+('TWP Calcs'!AG$8*('TRF calcs '!$C13+'TRF calcs '!$D13+'TRF calcs '!$E13+'TRF calcs '!$F13)))) -> 1.011706795 | AH20: 1 | AI20: 0 | AJ20: =(((('TWP Calcs'!AJ$5)*'TWP Calcs'!$A$2*'TRF calcs '!$B13)+'TWP Calcs'!AJ$6*('TRF calcs '!$C13+'TRF calcs '!$D13+'TRF calcs '!$E13+'TRF calcs '!$F13))/(('TWP Calcs'!AJ$7*'TWP Calcs'!$A$2*'TRF calcs '!$B13)+('TWP Calcs'!AJ$8*('TRF calcs '!$C13+'TRF calcs '!$D13+'TRF calcs '!$E13+'TRF calcs '!$F13)))) -> 0.7711558585 | AK20: =(((('TWP Calcs'!AK$5)*'TWP Calcs'!$A$2*'TRF calcs '!$G13)+'TWP Calcs'!AK$6*('TRF calcs '!$H13+'TRF calcs '!$I13+'TRF calcs '!$J13+'TRF calcs '!$K13))/(('TWP Calcs'!AK$7*'TWP Calcs'!$A$2*'TRF calcs '!$G13)+('TWP Calcs'!AK$8*('TRF calcs '!$H13+'TRF calcs '!$I13+'TRF calcs '!$J13+'TRF calcs '!$K13)))) -> 0.767066206 | AL20: =(((('TWP Calcs'!AL$5)*'TWP Calcs'!$A$2*'TRF calcs '!$L13)+'TWP Calcs'!AL$6*('TRF calcs '!$M13+'TRF calcs '!$N13+'TRF calcs '!$O13+'TRF calcs '!$P13))/(('TWP Calcs'!AL$7*'TWP Calcs'!$A$2*'TRF calcs '!$L13)+('TWP Calcs'!AL$8*('TRF calcs '!$M13+'TRF calcs '!$N13+'TRF calcs '!$O13+'TRF calcs '!$P13)))) -> 0.7686098739
A21: 3 | B21: =(((('TWP Calcs'!B$5)*'TWP Calcs'!$A$2*'TRF calcs '!$B14)+'TWP Calcs'!B$6*('TRF calcs '!$C14+'TRF calcs '!$D14+'TRF calcs '!$E14+'TRF calcs '!$F14))/(('TWP Calcs'!B$7*'TWP Calcs'!$A$2*'TRF calcs '!$B14)+('TWP Calcs'!B$8*('TRF calcs '!$C14+'TRF calcs '!$D14+'TRF calcs '!$E14+'TRF calcs '!$F14)))) -> 1.580787646 | C21: =(((('TWP Calcs'!C$5)*'TWP Calcs'!$A$2*'TRF calcs '!$B14)+'TWP Calcs'!C$6*('TRF calcs '!$C14+'TRF calcs '!$D14+'TRF calcs '!$E14+'TRF calcs '!$F14))/(('TWP Calcs'!C$7*'TWP Calcs'!$A$2*'TRF calcs '!$B14)+('TWP Calcs'!C$8*('TRF calcs '!$C14+'TRF calcs '!$D14+'TRF calcs '!$E14+'TRF calcs '!$F14)))) -> 1.319433205 | D21: =(((('TWP Calcs'!D$5)*'TWP Calcs'!$A$2*'TRF calcs '!$B14)+'TWP Calcs'!D$6*('TRF calcs '!$C14+'TRF calcs '!$D14+'TRF calcs '!$E14+'TRF calcs '!$F14))/(('TWP Calcs'!D$7*'TWP Calcs'!$A$2*'TRF calcs '!$B14)+('TWP Calcs'!D$8*('TRF calcs '!$C14+'TRF calcs '!$D14+'TRF calcs '!$E14+'TRF calcs '!$F14)))) -> 1.404323572 | E21: =(((('TWP Calcs'!E$5)*'TWP Calcs'!$A$2*'TRF calcs '!$G14)+'TWP Calcs'!E$6*('TRF calcs '!$H14+'TRF calcs '!$I14+'TRF calcs '!$J14+'TRF calcs '!$K14))/(('TWP Calcs'!E$7*'TWP Calcs'!$A$2*'TRF calcs '!$G14)+('TWP Calcs'!E$8*('TRF calcs '!$H14+'TRF calcs '!$I14+'TRF calcs '!$J14+'TRF calcs '!$K14)))) -> 1.40015837 | F21: =(((('TWP Calcs'!F$5)*'TWP Calcs'!$A$2*'TRF calcs '!$B14)+'TWP Calcs'!F$6*('TRF calcs '!$C14+'TRF calcs '!$D14+'TRF calcs '!$E14+'TRF calcs '!$F14))/(('TWP Calcs'!F$7*'TWP Calcs'!$A$2*'TRF calcs '!$B14)+('TWP Calcs'!F$8*('TRF calcs '!$C14+'TRF calcs '!$D14+'TRF calcs '!$E14+'TRF calcs '!$F14)))) -> 0.7977587883 | G21: =(((('TWP Calcs'!G$5)*'TWP Calcs'!$A$2*'TRF calcs '!$B14)+'TWP Calcs'!G$6*('TRF calcs '!$C14+'TRF calcs '!$D14+'TRF calcs '!$E14+'TRF calcs '!$F14))/(('TWP Calcs'!G$7*'TWP Calcs'!$A$2*'TRF calcs '!$B14)+('TWP Calcs'!G$8*('TRF calcs '!$C14+'TRF calcs '!$D14+'TRF calcs '!$E14+'TRF calcs '!$F14)))) -> 0.7327714266 | H21: =(((('TWP Calcs'!H$5)*'TWP Calcs'!$A$2*'TRF calcs '!$B14)+'TWP Calcs'!H$6*('TRF calcs '!$C14+'TRF calcs '!$D14+'TRF calcs '!$E14+'TRF calcs '!$F14))/(('TWP Calcs'!H$7*'TWP Calcs'!$A$2*'TRF calcs '!$B14)+('TWP Calcs'!H$8*('TRF calcs '!$C14+'TRF calcs '!$D14+'TRF calcs '!$E14+'TRF calcs '!$F14)))) -> 0.6116210198 | I21: =(((('TWP Calcs'!I$5)*'TWP Calcs'!$A$2*'TRF calcs '!$B14)+'TWP Calcs'!I$6*('TRF calcs '!$C14+'TRF calcs '!$D14+'TRF calcs '!$E14+'TRF calcs '!$F14))/(('TWP Calcs'!I$7*'TWP Calcs'!$A$2*'TRF calcs '!$B14)+('TWP Calcs'!I$8*('TRF calcs '!$C14+'TRF calcs '!$D14+'TRF calcs '!$E14+'TRF calcs '!$F14)))) -> 0.490470613 | J21: =(((('TWP Calcs'!J$5)*'TWP Calcs'!$A$2*'TRF calcs '!$B14)+'TWP Calcs'!J$6*('TRF calcs '!$C14+'TRF calcs '!$D14+'TRF calcs '!$E14+'TRF calcs '!$F14))/(('TWP Calcs'!J$7*'TWP Calcs'!$A$2*'TRF calcs '!$B14)+('TWP Calcs'!J$8*('TRF calcs '!$C14+'TRF calcs '!$D14+'TRF calcs '!$E14+'TRF calcs '!$F14)))) -> 0.7694875121 | K21: =(((('TWP Calcs'!K$5)*'TWP Calcs'!$A$2*'TRF calcs '!$B14)+'TWP Calcs'!K$6*('TRF calcs '!$C14+'TRF calcs '!$D14+'TRF calcs '!$E14+'TRF calcs '!$F14))/(('TWP Calcs'!K$7*'TWP Calcs'!$A$2*'TRF calcs '!$B14)+('TWP Calcs'!K$8*('TRF calcs '!$C14+'TRF calcs '!$D14+'TRF calcs '!$E14+'TRF calcs '!$F14)))) -> 0.6422667694 | L21: =(((('TWP Calcs'!L$5)*'TWP Calcs'!$A$2*'TRF calcs '!$B14)+'TWP Calcs'!L$6*('TRF calcs '!$C14+'TRF calcs '!$D14+'TRF calcs '!$E14+'TRF calcs '!$F14))/(('TWP Calcs'!L$7*'TWP Calcs'!$A$2*'TRF calcs '!$B14)+('TWP Calcs'!L$8*('TRF calcs '!$C14+'TRF calcs '!$D14+'TRF calcs '!$E14+'TRF calcs '!$F14)))) -> 0.4867747505 | M21: =(((('TWP Calcs'!M$5)*'TWP Calcs'!$A$2*'TRF calcs '!$B14)+'TWP Calcs'!M$6*('TRF calcs '!$C14+'TRF calcs '!$D14+'TRF calcs '!$E14+'TRF calcs '!$F14))/(('TWP Calcs'!M$7*'TWP Calcs'!$A$2*'TRF calcs '!$B14)+('TWP Calcs'!M$8*('TRF calcs '!$C14+'TRF calcs '!$D14+'TRF calcs '!$E14+'TRF calcs '!$F14)))) -> 0.5936524152 | N21: =(((('TWP Calcs'!N$5)*'TWP Calcs'!$A$2*'TRF calcs '!$B14)+'TWP Calcs'!N$6*('TRF calcs '!$C14+'TRF calcs '!$D14+'TRF calcs '!$E14+'TRF calcs '!$F14))/(('TWP Calcs'!N$7*'TWP Calcs'!$A$2*'TRF calcs '!$B14)+('TWP Calcs'!N$8*('TRF calcs '!$C14+'TRF calcs '!$D14+'TRF calcs '!$E14+'TRF calcs '!$F14)))) -> 0.4955028027 | O21: =(((('TWP Calcs'!O$5)*'TWP Calcs'!$A$2*'TRF calcs '!$B14)+'TWP Calcs'!O$6*('TRF calcs '!$C14+'TRF calcs '!$D14+'TRF calcs '!$E14+'TRF calcs '!$F14))/(('TWP Calcs'!O$7*'TWP Calcs'!$A$2*'TRF calcs '!$B14)+('TWP Calcs'!O$8*('TRF calcs '!$C14+'TRF calcs '!$D14+'TRF calcs '!$E14+'TRF calcs '!$F14)))) -> 0.3973531901 | P21: =(((('TWP Calcs'!P$5)*'TWP Calcs'!$A$2*'TRF calcs '!$B14)+'TWP Calcs'!P$6*('TRF calcs '!$C14+'TRF calcs '!$D14+'TRF calcs '!$E14+'TRF calcs '!$F14))/(('TWP Calcs'!P$7*'TWP Calcs'!$A$2*'TRF calcs '!$B14)+('TWP Calcs'!P$8*('TRF calcs '!$C14+'TRF calcs '!$D14+'TRF calcs '!$E14+'TRF calcs '!$F14)))) -> 0.8747055368 | Q21: =(((('TWP Calcs'!Q$5)*'TWP Calcs'!$A$2*'TRF calcs '!$B14)+'TWP Calcs'!Q$6*('TRF calcs '!$C14+'TRF calcs '!$D14+'TRF calcs '!$E14+'TRF calcs '!$F14))/(('TWP Calcs'!Q$7*'TWP Calcs'!$A$2*'TRF calcs '!$B14)+('TWP Calcs'!Q$8*('TRF calcs '!$C14+'TRF calcs '!$D14+'TRF calcs '!$E14+'TRF calcs '!$F14)))) -> 0.7300889104 | R21: =(((('TWP Calcs'!R$5)*'TWP Calcs'!$A$2*'TRF calcs '!$B14)+'TWP Calcs'!R$6*('TRF calcs '!$C14+'TRF calcs '!$D14+'TRF calcs '!$E14+'TRF calcs '!$F14))/(('TWP Calcs'!R$7*'TWP Calcs'!$A$2*'TRF calcs '!$B14)+('TWP Calcs'!R$8*('TRF calcs '!$C14+'TRF calcs '!$D14+'TRF calcs '!$E14+'TRF calcs '!$F14)))) -> 0.585472284 | S21: =(((('TWP Calcs'!S$5)*'TWP Calcs'!$A$2*'TRF calcs '!$B14)+'TWP Calcs'!S$6*('TRF calcs '!$C14+'TRF calcs '!$D14+'TRF calcs '!$E14+'TRF calcs '!$F14))/(('TWP Calcs'!S$7*'TWP Calcs'!$A$2*'TRF calcs '!$B14)+('TWP Calcs'!S$8*('TRF calcs '!$C14+'TRF calcs '!$D14+'TRF calcs '!$E14+'TRF calcs '!$F14)))) -> 0.6175471804 | T21: =(((('TWP Calcs'!T$5)*'TWP Calcs'!$A$2*'TRF calcs '!$B14)+'TWP Calcs'!T$6*('TRF calcs '!$C14+'TRF calcs '!$D14+'TRF calcs '!$E14+'TRF calcs '!$F14))/(('TWP Calcs'!T$7*'TWP Calcs'!$A$2*'TRF calcs '!$B14)+('TWP Calcs'!T$8*('TRF calcs '!$C14+'TRF calcs '!$D14+'TRF calcs '!$E14+'TRF calcs '!$F14)))) -> 0.5154470037 | U21: =(((('TWP Calcs'!U$5)*'TWP Calcs'!$A$2*'TRF calcs '!$B14)+'TWP Calcs'!U$6*('TRF calcs '!$C14+'TRF calcs '!$D14+'TRF calcs '!$E14+'TRF calcs '!$F14))/(('TWP Calcs'!U$7*'TWP Calcs'!$A$2*'TRF calcs '!$B14)+('TWP Calcs'!U$8*('TRF calcs '!$C14+'TRF calcs '!$D14+'TRF calcs '!$E14+'TRF calcs '!$F14)))) -> 0.413346827 | V21: =(((('TWP Calcs'!V$5)*'TWP Calcs'!$A$2*'TRF calcs '!$B14)+'TWP Calcs'!V$6*('TRF calcs '!$C14+'TRF calcs '!$D14+'TRF calcs '!$E14+'TRF calcs '!$F14))/(('TWP Calcs'!V$7*'TWP Calcs'!$A$2*'TRF calcs '!$B14)+('TWP Calcs'!V$8*('TRF calcs '!$C14+'TRF calcs '!$D14+'TRF calcs '!$E14+'TRF calcs '!$F14)))) -> 1.342632736 | W21: =(((('TWP Calcs'!W$5)*'TWP Calcs'!$A$2*'TRF calcs '!$B14)+'TWP Calcs'!W$6*('TRF calcs '!$C14+'TRF calcs '!$D14+'TRF calcs '!$E14+'TRF calcs '!$F14))/(('TWP Calcs'!W$7*'TWP Calcs'!$A$2*'TRF calcs '!$B14)+('TWP Calcs'!W$8*('TRF calcs '!$C14+'TRF calcs '!$D14+'TRF calcs '!$E14+'TRF calcs '!$F14)))) -> 1.120652871 | X21: =(((('TWP Calcs'!X$5)*'TWP Calcs'!$A$2*'TRF calcs '!$B14)+'TWP Calcs'!X$6*('TRF calcs '!$C14+'TRF calcs '!$D14+'TRF calcs '!$E14+'TRF calcs '!$F14))/(('TWP Calcs'!X$7*'TWP Calcs'!$A$2*'TRF calcs '!$B14)+('TWP Calcs'!X$8*('TRF calcs '!$C14+'TRF calcs '!$D14+'TRF calcs '!$E14+'TRF calcs '!$F14)))) -> 0.8986730066 | Y21: =(((('TWP Calcs'!Y$5)*'TWP Calcs'!$A$2*'TRF calcs '!$B14)+'TWP Calcs'!Y$6*('TRF calcs '!$C14+'TRF calcs '!$D14+'TRF calcs '!$E14+'TRF calcs '!$F14))/(('TWP Calcs'!Y$7*'TWP Calcs'!$A$2*'TRF calcs '!$B14)+('TWP Calcs'!Y$8*('TRF calcs '!$C14+'TRF calcs '!$D14+'TRF calcs '!$E14+'TRF calcs '!$F14)))) -> 1.526221374 | Z21: =(((('TWP Calcs'!Z$5)*'TWP Calcs'!$A$2*'TRF calcs '!$B14)+'TWP Calcs'!Z$6*('TRF calcs '!$C14+'TRF calcs '!$D14+'TRF calcs '!$E14+'TRF calcs '!$F14))/(('TWP Calcs'!Z$7*'TWP Calcs'!$A$2*'TRF calcs '!$B14)+('TWP Calcs'!Z$8*('TRF calcs '!$C14+'TRF calcs '!$D14+'TRF calcs '!$E14+'TRF calcs '!$F14)))) -> 1.273888473 | AA21: =(((('TWP Calcs'!AA$5)*'TWP Calcs'!$A$2*'TRF calcs '!$B14)+'TWP Calcs'!AA$6*('TRF calcs '!$C14+'TRF calcs '!$D14+'TRF calcs '!$E14+'TRF calcs '!$F14))/(('TWP Calcs'!AA$7*'TWP Calcs'!$A$2*'TRF calcs '!$B14)+('TWP Calcs'!AA$8*('TRF calcs '!$C14+'TRF calcs '!$D14+'TRF calcs '!$E14+'TRF calcs '!$F14)))) -> 1.021555571 | AB21: =(((('TWP Calcs'!AB$5)*'TWP Calcs'!$A$2*'TRF calcs '!$B14)+'TWP Calcs'!AB$6*('TRF calcs '!$C14+'TRF calcs '!$D14+'TRF calcs '!$E14+'TRF calcs '!$F14))/(('TWP Calcs'!AB$7*'TWP Calcs'!$A$2*'TRF calcs '!$B14)+('TWP Calcs'!AB$8*('TRF calcs '!$C14+'TRF calcs '!$D14+'TRF calcs '!$E14+'TRF calcs '!$F14)))) -> 0.5337923034 | AC21: =(((('TWP Calcs'!AC$5)*'TWP Calcs'!$A$2*'TRF calcs '!$B14)+'TWP Calcs'!AC$6*('TRF calcs '!$C14+'TRF calcs '!$D14+'TRF calcs '!$E14+'TRF calcs '!$F14))/(('TWP Calcs'!AC$7*'TWP Calcs'!$A$2*'TRF calcs '!$B14)+('TWP Calcs'!AC$8*('TRF calcs '!$C14+'TRF calcs '!$D14+'TRF calcs '!$E14+'TRF calcs '!$F14)))) -> 0.428391529 | AD21: =(((('TWP Calcs'!AD$5)*'TWP Calcs'!$A$2*'TRF calcs '!$B14)+'TWP Calcs'!AD$6*('TRF calcs '!$C14+'TRF calcs '!$D14+'TRF calcs '!$E14+'TRF calcs '!$F14))/(('TWP Calcs'!AD$7*'TWP Calcs'!$A$2*'TRF calcs '!$B14)+('TWP Calcs'!AD$8*('TRF calcs '!$C14+'TRF calcs '!$D14+'TRF calcs '!$E14+'TRF calcs '!$F14)))) -> 0.286738058 | AE21: =(((('TWP Calcs'!AE$5)*'TWP Calcs'!$A$2*'TRF calcs '!$B14)+'TWP Calcs'!AE$6*('TRF calcs '!$C14+'TRF calcs '!$D14+'TRF calcs '!$E14+'TRF calcs '!$F14))/(('TWP Calcs'!AE$7*'TWP Calcs'!$A$2*'TRF calcs '!$B14)+('TWP Calcs'!AE$8*('TRF calcs '!$C14+'TRF calcs '!$D14+'TRF calcs '!$E14+'TRF calcs '!$F14)))) -> 0.9313822636 | AF21: =(((('TWP Calcs'!AF$5)*'TWP Calcs'!$A$2*'TRF calcs '!$B14)+'TWP Calcs'!AF$6*('TRF calcs '!$C14+'TRF calcs '!$D14+'TRF calcs '!$E14+'TRF calcs '!$F14))/(('TWP Calcs'!AF$7*'TWP Calcs'!$A$2*'TRF calcs '!$B14)+('TWP Calcs'!AF$8*('TRF calcs '!$C14+'TRF calcs '!$D14+'TRF calcs '!$E14+'TRF calcs '!$F14)))) -> 0.7019892193 | AG21: =(((('TWP Calcs'!AG$5)*'TWP Calcs'!$A$2*'TRF calcs '!$B14)+'TWP Calcs'!AG$6*('TRF calcs '!$C14+'TRF calcs '!$D14+'TRF calcs '!$E14+'TRF calcs '!$F14))/(('TWP Calcs'!AG$7*'TWP Calcs'!$A$2*'TRF calcs '!$B14)+('TWP Calcs'!AG$8*('TRF calcs '!$C14+'TRF calcs '!$D14+'TRF calcs '!$E14+'TRF calcs '!$F14)))) -> 1.009518032 | AH21: 1 | AI21: 0 | AJ21: =(((('TWP Calcs'!AJ$5)*'TWP Calcs'!$A$2*'TRF calcs '!$B14)+'TWP Calcs'!AJ$6*('TRF calcs '!$C14+'TRF calcs '!$D14+'TRF calcs '!$E14+'TRF calcs '!$F14))/(('TWP Calcs'!AJ$7*'TWP Calcs'!$A$2*'TRF calcs '!$B14)+('TWP Calcs'!AJ$8*('TRF calcs '!$C14+'TRF calcs '!$D14+'TRF calcs '!$E14+'TRF calcs '!$F14)))) -> 0.7694875121 | AK21: =(((('TWP Calcs'!AK$5)*'TWP Calcs'!$A$2*'TRF calcs '!$G14)+'TWP Calcs'!AK$6*('TRF calcs '!$H14+'TRF calcs '!$I14+'TRF calcs '!$J14+'TRF calcs '!$K14))/(('TWP Calcs'!AK$7*'TWP Calcs'!$A$2*'TRF calcs '!$G14)+('TWP Calcs'!AK$8*('TRF calcs '!$H14+'TRF calcs '!$I14+'TRF calcs '!$J14+'TRF calcs '!$K14)))) -> 0.7641337228 | AL21: =(((('TWP Calcs'!AL$5)*'TWP Calcs'!$A$2*'TRF calcs '!$L14)+'TWP Calcs'!AL$6*('TRF calcs '!$M14+'TRF calcs '!$N14+'TRF calcs '!$O14+'TRF calcs '!$P14))/(('TWP Calcs'!AL$7*'TWP Calcs'!$A$2*'TRF calcs '!$L14)+('TWP Calcs'!AL$8*('TRF calcs '!$M14+'TRF calcs '!$N14+'TRF calcs '!$O14+'TRF calcs '!$P14)))) -> 0.76694132
A22: 4 | B22: =(((('TWP Calcs'!B$5)*'TWP Calcs'!$A$2*'TRF calcs '!$B15)+'TWP Calcs'!B$6*('TRF calcs '!$C15+'TRF calcs '!$D15+'TRF calcs '!$E15+'TRF calcs '!$F15))/(('TWP Calcs'!B$7*'TWP Calcs'!$A$2*'TRF calcs '!$B15)+('TWP Calcs'!B$8*('TRF calcs '!$C15+'TRF calcs '!$D15+'TRF calcs '!$E15+'TRF calcs '!$F15)))) -> 1.57662732 | C22: =(((('TWP Calcs'!C$5)*'TWP Calcs'!$A$2*'TRF calcs '!$B15)+'TWP Calcs'!C$6*('TRF calcs '!$C15+'TRF calcs '!$D15+'TRF calcs '!$E15+'TRF calcs '!$F15))/(('TWP Calcs'!C$7*'TWP Calcs'!$A$2*'TRF calcs '!$B15)+('TWP Calcs'!C$8*('TRF calcs '!$C15+'TRF calcs '!$D15+'TRF calcs '!$E15+'TRF calcs '!$F15)))) -> 1.317145026 | D22: =(((('TWP Calcs'!D$5)*'TWP Calcs'!$A$2*'TRF calcs '!$B15)+'TWP Calcs'!D$6*('TRF calcs '!$C15+'TRF calcs '!$D15+'TRF calcs '!$E15+'TRF calcs '!$F15))/(('TWP Calcs'!D$7*'TWP Calcs'!$A$2*'TRF calcs '!$B15)+('TWP Calcs'!D$8*('TRF calcs '!$C15+'TRF calcs '!$D15+'TRF calcs '!$E15+'TRF calcs '!$F15)))) -> 1.401427301 | E22: =(((('TWP Calcs'!E$5)*'TWP Calcs'!$A$2*'TRF calcs '!$G15)+'TWP Calcs'!E$6*('TRF calcs '!$H15+'TRF calcs '!$I15+'TRF calcs '!$J15+'TRF calcs '!$K15))/(('TWP Calcs'!E$7*'TWP Calcs'!$A$2*'TRF calcs '!$G15)+('TWP Calcs'!E$8*('TRF calcs '!$H15+'TRF calcs '!$I15+'TRF calcs '!$J15+'TRF calcs '!$K15)))) -> 1.395029709 | F22: =(((('TWP Calcs'!F$5)*'TWP Calcs'!$A$2*'TRF calcs '!$B15)+'TWP Calcs'!F$6*('TRF calcs '!$C15+'TRF calcs '!$D15+'TRF calcs '!$E15+'TRF calcs '!$F15))/(('TWP Calcs'!F$7*'TWP Calcs'!$A$2*'TRF calcs '!$B15)+('TWP Calcs'!F$8*('TRF calcs '!$C15+'TRF calcs '!$D15+'TRF calcs '!$E15+'TRF calcs '!$F15)))) -> 0.7956070149 | G22: =(((('TWP Calcs'!G$5)*'TWP Calcs'!$A$2*'TRF calcs '!$B15)+'TWP Calcs'!G$6*('TRF calcs '!$C15+'TRF calcs '!$D15+'TRF calcs '!$E15+'TRF calcs '!$F15))/(('TWP Calcs'!G$7*'TWP Calcs'!$A$2*'TRF calcs '!$B15)+('TWP Calcs'!G$8*('TRF calcs '!$C15+'TRF calcs '!$D15+'TRF calcs '!$E15+'TRF calcs '!$F15)))) -> 0.7311892091 | H22: =(((('TWP Calcs'!H$5)*'TWP Calcs'!$A$2*'TRF calcs '!$B15)+'TWP Calcs'!H$6*('TRF calcs '!$C15+'TRF calcs '!$D15+'TRF calcs '!$E15+'TRF calcs '!$F15))/(('TWP Calcs'!H$7*'TWP Calcs'!$A$2*'TRF calcs '!$B15)+('TWP Calcs'!H$8*('TRF calcs '!$C15+'TRF calcs '!$D15+'TRF calcs '!$E15+'TRF calcs '!$F15)))) -> 0.6108496394 | I22: =(((('TWP Calcs'!I$5)*'TWP Calcs'!$A$2*'TRF calcs '!$B15)+'TWP Calcs'!I$6*('TRF calcs '!$C15+'TRF calcs '!$D15+'TRF calcs '!$E15+'TRF calcs '!$F15))/(('TWP Calcs'!I$7*'TWP Calcs'!$A$2*'TRF calcs '!$B15)+('TWP Calcs'!I$8*('TRF calcs '!$C15+'TRF calcs '!$D15+'TRF calcs '!$E15+'TRF calcs '!$F15)))) -> 0.4905100697 | J22: =(((('TWP Calcs'!J$5)*'TWP Calcs'!$A$2*'TRF calcs '!$B15)+'TWP Calcs'!J$6*('TRF calcs '!$C15+'TRF calcs '!$D15+'TRF calcs '!$E15+'TRF calcs '!$F15))/(('TWP Calcs'!J$7*'TWP Calcs'!$A$2*'TRF calcs '!$B15)+('TWP Calcs'!J$8*('TRF calcs '!$C15+'TRF calcs '!$D15+'TRF calcs '!$E15+'TRF calcs '!$F15)))) -> 0.7675355756 | K22: =(((('TWP Calcs'!K$5)*'TWP Calcs'!$A$2*'TRF calcs '!$B15)+'TWP Calcs'!K$6*('TRF calcs '!$C15+'TRF calcs '!$D15+'TRF calcs '!$E15+'TRF calcs '!$F15))/(('TWP Calcs'!K$7*'TWP Calcs'!$A$2*'TRF calcs '!$B15)+('TWP Calcs'!K$8*('TRF calcs '!$C15+'TRF calcs '!$D15+'TRF calcs '!$E15+'TRF calcs '!$F15)))) -> 0.6412140985 | L22: =(((('TWP Calcs'!L$5)*'TWP Calcs'!$A$2*'TRF calcs '!$B15)+'TWP Calcs'!L$6*('TRF calcs '!$C15+'TRF calcs '!$D15+'TRF calcs '!$E15+'TRF calcs '!$F15))/(('TWP Calcs'!L$7*'TWP Calcs'!$A$2*'TRF calcs '!$B15)+('TWP Calcs'!L$8*('TRF calcs '!$C15+'TRF calcs '!$D15+'TRF calcs '!$E15+'TRF calcs '!$F15)))) -> 0.4868211821 | M22: =(((('TWP Calcs'!M$5)*'TWP Calcs'!$A$2*'TRF calcs '!$B15)+'TWP Calcs'!M$6*('TRF calcs '!$C15+'TRF calcs '!$D15+'TRF calcs '!$E15+'TRF calcs '!$F15))/(('TWP Calcs'!M$7*'TWP Calcs'!$A$2*'TRF calcs '!$B15)+('TWP Calcs'!M$8*('TRF calcs '!$C15+'TRF calcs '!$D15+'TRF calcs '!$E15+'TRF calcs '!$F15)))) -> 0.5932427267 | N22: =(((('TWP Calcs'!N$5)*'TWP Calcs'!$A$2*'TRF calcs '!$B15)+'TWP Calcs'!N$6*('TRF calcs '!$C15+'TRF calcs '!$D15+'TRF calcs '!$E15+'TRF calcs '!$F15))/(('TWP Calcs'!N$7*'TWP Calcs'!$A$2*'TRF calcs '!$B15)+('TWP Calcs'!N$8*('TRF calcs '!$C15+'TRF calcs '!$D15+'TRF calcs '!$E15+'TRF calcs '!$F15)))) -> 0.4956064739 | O22: =(((('TWP Calcs'!O$5)*'TWP Calcs'!$A$2*'TRF calcs '!$B15)+'TWP Calcs'!O$6*('TRF calcs '!$C15+'TRF calcs '!$D15+'TRF calcs '!$E15+'TRF calcs '!$F15))/(('TWP Calcs'!O$7*'TWP Calcs'!$A$2*'TRF calcs '!$B15)+('TWP Calcs'!O$8*('TRF calcs '!$C15+'TRF calcs '!$D15+'TRF calcs '!$E15+'TRF calcs '!$F15)))) -> 0.3979702211 | P22: =(((('TWP Calcs'!P$5)*'TWP Calcs'!$A$2*'TRF calcs '!$B15)+'TWP Calcs'!P$6*('TRF calcs '!$C15+'TRF calcs '!$D15+'TRF calcs '!$E15+'TRF calcs '!$F15))/(('TWP Calcs'!P$7*'TWP Calcs'!$A$2*'TRF calcs '!$B15)+('TWP Calcs'!P$8*('TRF calcs '!$C15+'TRF calcs '!$D15+'TRF calcs '!$E15+'TRF calcs '!$F15)))) -> 0.8724866967 | Q22: =(((('TWP Calcs'!Q$5)*'TWP Calcs'!$A$2*'TRF calcs '!$B15)+'TWP Calcs'!Q$6*('TRF calcs '!$C15+'TRF calcs '!$D15+'TRF calcs '!$E15+'TRF calcs '!$F15))/(('TWP Calcs'!Q$7*'TWP Calcs'!$A$2*'TRF calcs '!$B15)+('TWP Calcs'!Q$8*('TRF calcs '!$C15+'TRF calcs '!$D15+'TRF calcs '!$E15+'TRF calcs '!$F15)))) -> 0.7288922996 | R22: =(((('TWP Calcs'!R$5)*'TWP Calcs'!$A$2*'TRF calcs '!$B15)+'TWP Calcs'!R$6*('TRF calcs '!$C15+'TRF calcs '!$D15+'TRF calcs '!$E15+'TRF calcs '!$F15))/(('TWP Calcs'!R$7*'TWP Calcs'!$A$2*'TRF calcs '!$B15)+('TWP Calcs'!R$8*('TRF calcs '!$C15+'TRF calcs '!$D15+'TRF calcs '!$E15+'TRF calcs '!$F15)))) -> 0.5852979025 | S22: =(((('TWP Calcs'!S$5)*'TWP Calcs'!$A$2*'TRF calcs '!$B15)+'TWP Calcs'!S$6*('TRF calcs '!$C15+'TRF calcs '!$D15+'TRF calcs '!$E15+'TRF calcs '!$F15))/(('TWP Calcs'!S$7*'TWP Calcs'!$A$2*'TRF calcs '!$B15)+('TWP Calcs'!S$8*('TRF calcs '!$C15+'TRF calcs '!$D15+'TRF calcs '!$E15+'TRF calcs '!$F15)))) -> 0.6159806664 | T22: =(((('TWP Calcs'!T$5)*'TWP Calcs'!$A$2*'TRF calcs '!$B15)+'TWP Calcs'!T$6*('TRF calcs '!$C15+'TRF calcs '!$D15+'TRF calcs '!$E15+'TRF calcs '!$F15))/(('TWP Calcs'!T$7*'TWP Calcs'!$A$2*'TRF calcs '!$B15)+('TWP Calcs'!T$8*('TRF calcs '!$C15+'TRF calcs '!$D15+'TRF calcs '!$E15+'TRF calcs '!$F15)))) -> 0.5146021895 | U22: =(((('TWP Calcs'!U$5)*'TWP Calcs'!$A$2*'TRF calcs '!$B15)+'TWP Calcs'!U$6*('TRF calcs '!$C15+'TRF calcs '!$D15+'TRF calcs '!$E15+'TRF calcs '!$F15))/(('TWP Calcs'!U$7*'TWP Calcs'!$A$2*'TRF calcs '!$B15)+('TWP Calcs'!U$8*('TRF calcs '!$C15+'TRF calcs '!$D15+'TRF calcs '!$E15+'TRF calcs '!$F15)))) -> 0.4132237126 | V22: =(((('TWP Calcs'!V$5)*'TWP Calcs'!$A$2*'TRF calcs '!$B15)+'TWP Calcs'!V$6*('TRF calcs '!$C15+'TRF calcs '!$D15+'TRF calcs '!$E15+'TRF calcs '!$F15))/(('TWP Calcs'!V$7*'TWP Calcs'!$A$2*'TRF calcs '!$B15)+('TWP Calcs'!V$8*('TRF calcs '!$C15+'TRF calcs '!$D15+'TRF calcs '!$E15+'TRF calcs '!$F15)))) -> 1.339226919 | W22: =(((('TWP Calcs'!W$5)*'TWP Calcs'!$A$2*'TRF calcs '!$B15)+'TWP Calcs'!W$6*('TRF calcs '!$C15+'TRF calcs '!$D15+'TRF calcs '!$E15+'TRF calcs '!$F15))/(('TWP Calcs'!W$7*'TWP Calcs'!$A$2*'TRF calcs '!$B15)+('TWP Calcs'!W$8*('TRF calcs '!$C15+'TRF calcs '!$D15+'TRF calcs '!$E15+'TRF calcs '!$F15)))) -> 1.118816129 | X22: =(((('TWP Calcs'!X$5)*'TWP Calcs'!$A$2*'TRF calcs '!$B15)+'TWP Calcs'!X$6*('TRF calcs '!$C15+'TRF calcs '!$D15+'TRF calcs '!$E15+'TRF calcs '!$F15))/(('TWP Calcs'!X$7*'TWP Calcs'!$A$2*'TRF calcs '!$B15)+('TWP Calcs'!X$8*('TRF calcs '!$C15+'TRF calcs '!$D15+'TRF calcs '!$E15+'TRF calcs '!$F15)))) -> 0.898405339 | Y22: =(((('TWP Calcs'!Y$5)*'TWP Calcs'!$A$2*'TRF calcs '!$B15)+'TWP Calcs'!Y$6*('TRF calcs '!$C15+'TRF calcs '!$D15+'TRF calcs '!$E15+'TRF calcs '!$F15))/(('TWP Calcs'!Y$7*'TWP Calcs'!$A$2*'TRF calcs '!$B15)+('TWP Calcs'!Y$8*('TRF calcs '!$C15+'TRF calcs '!$D15+'TRF calcs '!$E15+'TRF calcs '!$F15)))) -> 1.522349853 | Z22: =(((('TWP Calcs'!Z$5)*'TWP Calcs'!$A$2*'TRF calcs '!$B15)+'TWP Calcs'!Z$6*('TRF calcs '!$C15+'TRF calcs '!$D15+'TRF calcs '!$E15+'TRF calcs '!$F15))/(('TWP Calcs'!Z$7*'TWP Calcs'!$A$2*'TRF calcs '!$B15)+('TWP Calcs'!Z$8*('TRF calcs '!$C15+'TRF calcs '!$D15+'TRF calcs '!$E15+'TRF calcs '!$F15)))) -> 1.271800578 | AA22: =(((('TWP Calcs'!AA$5)*'TWP Calcs'!$A$2*'TRF calcs '!$B15)+'TWP Calcs'!AA$6*('TRF calcs '!$C15+'TRF calcs '!$D15+'TRF calcs '!$E15+'TRF calcs '!$F15))/(('TWP Calcs'!AA$7*'TWP Calcs'!$A$2*'TRF calcs '!$B15)+('TWP Calcs'!AA$8*('TRF calcs '!$C15+'TRF calcs '!$D15+'TRF calcs '!$E15+'TRF calcs '!$F15)))) -> 1.021251303 | AB22: =(((('TWP Calcs'!AB$5)*'TWP Calcs'!$A$2*'TRF calcs '!$B15)+'TWP Calcs'!AB$6*('TRF calcs '!$C15+'TRF calcs '!$D15+'TRF calcs '!$E15+'TRF calcs '!$F15))/(('TWP Calcs'!AB$7*'TWP Calcs'!$A$2*'TRF calcs '!$B15)+('TWP Calcs'!AB$8*('TRF calcs '!$C15+'TRF calcs '!$D15+'TRF calcs '!$E15+'TRF calcs '!$F15)))) -> 0.5334239253 | AC22: =(((('TWP Calcs'!AC$5)*'TWP Calcs'!$A$2*'TRF calcs '!$B15)+'TWP Calcs'!AC$6*('TRF calcs '!$C15+'TRF calcs '!$D15+'TRF calcs '!$E15+'TRF calcs '!$F15))/(('TWP Calcs'!AC$7*'TWP Calcs'!$A$2*'TRF calcs '!$B15)+('TWP Calcs'!AC$8*('TRF calcs '!$C15+'TRF calcs '!$D15+'TRF calcs '!$E15+'TRF calcs '!$F15)))) -> 0.4280958895 | AD22: =(((('TWP Calcs'!AD$5)*'TWP Calcs'!$A$2*'TRF calcs '!$B15)+'TWP Calcs'!AD$6*('TRF calcs '!$C15+'TRF calcs '!$D15+'TRF calcs '!$E15+'TRF calcs '!$F15))/(('TWP Calcs'!AD$7*'TWP Calcs'!$A$2*'TRF calcs '!$B15)+('TWP Calcs'!AD$8*('TRF calcs '!$C15+'TRF calcs '!$D15+'TRF calcs '!$E15+'TRF calcs '!$F15)))) -> 0.28718332 | AE22: =(((('TWP Calcs'!AE$5)*'TWP Calcs'!$A$2*'TRF calcs '!$B15)+'TWP Calcs'!AE$6*('TRF calcs '!$C15+'TRF calcs '!$D15+'TRF calcs '!$E15+'TRF calcs '!$F15))/(('TWP Calcs'!AE$7*'TWP Calcs'!$A$2*'TRF calcs '!$B15)+('TWP Calcs'!AE$8*('TRF calcs '!$C15+'TRF calcs '!$D15+'TRF calcs '!$E15+'TRF calcs '!$F15)))) -> 0.9307395027 | AF22: =(((('TWP Calcs'!AF$5)*'TWP Calcs'!$A$2*'TRF calcs '!$B15)+'TWP Calcs'!AF$6*('TRF calcs '!$C15+'TRF calcs '!$D15+'TRF calcs '!$E15+'TRF calcs '!$F15))/(('TWP Calcs'!AF$7*'TWP Calcs'!$A$2*'TRF calcs '!$B15)+('TWP Calcs'!AF$8*('TRF calcs '!$C15+'TRF calcs '!$D15+'TRF calcs '!$E15+'TRF calcs '!$F15)))) -> 0.7002085037 | AG22: =(((('TWP Calcs'!AG$5)*'TWP Calcs'!$A$2*'TRF calcs '!$B15)+'TWP Calcs'!AG$6*('TRF calcs '!$C15+'TRF calcs '!$D15+'TRF calcs '!$E15+'TRF calcs '!$F15))/(('TWP Calcs'!AG$7*'TWP Calcs'!$A$2*'TRF calcs '!$B15)+('TWP Calcs'!AG$8*('TRF calcs '!$C15+'TRF calcs '!$D15+'TRF calcs '!$E15+'TRF calcs '!$F15)))) -> 1.006957217 | AH22: 1 | AI22: 0 | AJ22: =(((('TWP Calcs'!AJ$5)*'TWP Calcs'!$A$2*'TRF calcs '!$B15)+'TWP Calcs'!AJ$6*('TRF calcs '!$C15+'TRF calcs '!$D15+'TRF calcs '!$E15+'TRF calcs '!$F15))/(('TWP Calcs'!AJ$7*'TWP Calcs'!$A$2*'TRF calcs '!$B15)+('TWP Calcs'!AJ$8*('TRF calcs '!$C15+'TRF calcs '!$D15+'TRF calcs '!$E15+'TRF calcs '!$F15)))) -> 0.7675355756 | AK22: =(((('TWP Calcs'!AK$5)*'TWP Calcs'!$A$2*'TRF calcs '!$G15)+'TWP Calcs'!AK$6*('TRF calcs '!$H15+'TRF calcs '!$I15+'TRF calcs '!$J15+'TRF calcs '!$K15))/(('TWP Calcs'!AK$7*'TWP Calcs'!$A$2*'TRF calcs '!$G15)+('TWP Calcs'!AK$8*('TRF calcs '!$H15+'TRF calcs '!$I15+'TRF calcs '!$J15+'TRF calcs '!$K15)))) -> 0.7606756371 | AL22: =(((('TWP Calcs'!AL$5)*'TWP Calcs'!$A$2*'TRF calcs '!$L15)+'TWP Calcs'!AL$6*('TRF calcs '!$M15+'TRF calcs '!$N15+'TRF calcs '!$O15+'TRF calcs '!$P15))/(('TWP Calcs'!AL$7*'TWP Calcs'!$A$2*'TRF calcs '!$L15)+('TWP Calcs'!AL$8*('TRF calcs '!$M15+'TRF calcs '!$N15+'TRF calcs '!$O15+'TRF calcs '!$P15)))) -> 0.7649891405
A23: 5 | B23: =(((('TWP Calcs'!B$5)*'TWP Calcs'!$A$2*'TRF calcs '!$B16)+'TWP Calcs'!B$6*('TRF calcs '!$C16+'TRF calcs '!$D16+'TRF calcs '!$E16+'TRF calcs '!$F16))/(('TWP Calcs'!B$7*'TWP Calcs'!$A$2*'TRF calcs '!$B16)+('TWP Calcs'!B$8*('TRF calcs '!$C16+'TRF calcs '!$D16+'TRF calcs '!$E16+'TRF calcs '!$F16)))) -> 1.571953306 | C23: =(((('TWP Calcs'!C$5)*'TWP Calcs'!$A$2*'TRF calcs '!$B16)+'TWP Calcs'!C$6*('TRF calcs '!$C16+'TRF calcs '!$D16+'TRF calcs '!$E16+'TRF calcs '!$F16))/(('TWP Calcs'!C$7*'TWP Calcs'!$A$2*'TRF calcs '!$B16)+('TWP Calcs'!C$8*('TRF calcs '!$C16+'TRF calcs '!$D16+'TRF calcs '!$E16+'TRF calcs '!$F16)))) -> 1.314574318 | D23: =(((('TWP Calcs'!D$5)*'TWP Calcs'!$A$2*'TRF calcs '!$B16)+'TWP Calcs'!D$6*('TRF calcs '!$C16+'TRF calcs '!$D16+'TRF calcs '!$E16+'TRF calcs '!$F16))/(('TWP Calcs'!D$7*'TWP Calcs'!$A$2*'TRF calcs '!$B16)+('TWP Calcs'!D$8*('TRF calcs '!$C16+'TRF calcs '!$D16+'TRF calcs '!$E16+'TRF calcs '!$F16)))) -> 1.398173421 | E23: =(((('TWP Calcs'!E$5)*'TWP Calcs'!$A$2*'TRF calcs '!$G16)+'TWP Calcs'!E$6*('TRF calcs '!$H16+'TRF calcs '!$I16+'TRF calcs '!$J16+'TRF calcs '!$K16))/(('TWP Calcs'!E$7*'TWP Calcs'!$A$2*'TRF calcs '!$G16)+('TWP Calcs'!E$8*('TRF calcs '!$H16+'TRF calcs '!$I16+'TRF calcs '!$J16+'TRF calcs '!$K16)))) -> 1.389271843 | F23: =(((('TWP Calcs'!F$5)*'TWP Calcs'!$A$2*'TRF calcs '!$B16)+'TWP Calcs'!F$6*('TRF calcs '!$C16+'TRF calcs '!$D16+'TRF calcs '!$E16+'TRF calcs '!$F16))/(('TWP Calcs'!F$7*'TWP Calcs'!$A$2*'TRF calcs '!$B16)+('TWP Calcs'!F$8*('TRF calcs '!$C16+'TRF calcs '!$D16+'TRF calcs '!$E16+'TRF calcs '!$F16)))) -> 0.7931890663 | G23: =(((('TWP Calcs'!G$5)*'TWP Calcs'!$A$2*'TRF calcs '!$B16)+'TWP Calcs'!G$6*('TRF calcs '!$C16+'TRF calcs '!$D16+'TRF calcs '!$E16+'TRF calcs '!$F16))/(('TWP Calcs'!G$7*'TWP Calcs'!$A$2*'TRF calcs '!$B16)+('TWP Calcs'!G$8*('TRF calcs '!$C16+'TRF calcs '!$D16+'TRF calcs '!$E16+'TRF calcs '!$F16)))) -> 0.7294098414 | H23: =(((('TWP Calcs'!H$5)*'TWP Calcs'!$A$2*'TRF calcs '!$B16)+'TWP Calcs'!H$6*('TRF calcs '!$C16+'TRF calcs '!$D16+'TRF calcs '!$E16+'TRF calcs '!$F16))/(('TWP Calcs'!H$7*'TWP Calcs'!$A$2*'TRF calcs '!$B16)+('TWP Calcs'!H$8*('TRF calcs '!$C16+'TRF calcs '!$D16+'TRF calcs '!$E16+'TRF calcs '!$F16)))) -> 0.6099821421 | I23: =(((('TWP Calcs'!I$5)*'TWP Calcs'!$A$2*'TRF calcs '!$B16)+'TWP Calcs'!I$6*('TRF calcs '!$C16+'TRF calcs '!$D16+'TRF calcs '!$E16+'TRF calcs '!$F16))/(('TWP Calcs'!I$7*'TWP Calcs'!$A$2*'TRF calcs '!$B16)+('TWP Calcs'!I$8*('TRF calcs '!$C16+'TRF calcs '!$D16+'TRF calcs '!$E16+'TRF calcs '!$F16)))) -> 0.4905544429 | J23: =(((('TWP Calcs'!J$5)*'TWP Calcs'!$A$2*'TRF calcs '!$B16)+'TWP Calcs'!J$6*('TRF calcs '!$C16+'TRF calcs '!$D16+'TRF calcs '!$E16+'TRF calcs '!$F16))/(('TWP Calcs'!J$7*'TWP Calcs'!$A$2*'TRF calcs '!$B16)+('TWP Calcs'!J$8*('TRF calcs '!$C16+'TRF calcs '!$D16+'TRF calcs '!$E16+'TRF calcs '!$F16)))) -> 0.7653421837 | K23: =(((('TWP Calcs'!K$5)*'TWP Calcs'!$A$2*'TRF calcs '!$B16)+'TWP Calcs'!K$6*('TRF calcs '!$C16+'TRF calcs '!$D16+'TRF calcs '!$E16+'TRF calcs '!$F16))/(('TWP Calcs'!K$7*'TWP Calcs'!$A$2*'TRF calcs '!$B16)+('TWP Calcs'!K$8*('TRF calcs '!$C16+'TRF calcs '!$D16+'TRF calcs '!$E16+'TRF calcs '!$F16)))) -> 0.6400312118 | L23: =(((('TWP Calcs'!L$5)*'TWP Calcs'!$A$2*'TRF calcs '!$B16)+'TWP Calcs'!L$6*('TRF calcs '!$C16+'TRF calcs '!$D16+'TRF calcs '!$E16+'TRF calcs '!$F16))/(('TWP Calcs'!L$7*'TWP Calcs'!$A$2*'TRF calcs '!$B16)+('TWP Calcs'!L$8*('TRF calcs '!$C16+'TRF calcs '!$D16+'TRF calcs '!$E16+'TRF calcs '!$F16)))) -> 0.4868733573 | M23: =(((('TWP Calcs'!M$5)*'TWP Calcs'!$A$2*'TRF calcs '!$B16)+'TWP Calcs'!M$6*('TRF calcs '!$C16+'TRF calcs '!$D16+'TRF calcs '!$E16+'TRF calcs '!$F16))/(('TWP Calcs'!M$7*'TWP Calcs'!$A$2*'TRF calcs '!$B16)+('TWP Calcs'!M$8*('TRF calcs '!$C16+'TRF calcs '!$D16+'TRF calcs '!$E16+'TRF calcs '!$F16)))) -> 0.592780546 | N23: =(((('TWP Calcs'!N$5)*'TWP Calcs'!$A$2*'TRF calcs '!$B16)+'TWP Calcs'!N$6*('TRF calcs '!$C16+'TRF calcs '!$D16+'TRF calcs '!$E16+'TRF calcs '!$F16))/(('TWP Calcs'!N$7*'TWP Calcs'!$A$2*'TRF calcs '!$B16)+('TWP Calcs'!N$8*('TRF calcs '!$C16+'TRF calcs '!$D16+'TRF calcs '!$E16+'TRF calcs '!$F16)))) -> 0.4957234284 | O23: =(((('TWP Calcs'!O$5)*'TWP Calcs'!$A$2*'TRF calcs '!$B16)+'TWP Calcs'!O$6*('TRF calcs '!$C16+'TRF calcs '!$D16+'TRF calcs '!$E16+'TRF calcs '!$F16))/(('TWP Calcs'!O$7*'TWP Calcs'!$A$2*'TRF calcs '!$B16)+('TWP Calcs'!O$8*('TRF calcs '!$C16+'TRF calcs '!$D16+'TRF calcs '!$E16+'TRF calcs '!$F16)))) -> 0.3986663107 | P23: =(((('TWP Calcs'!P$5)*'TWP Calcs'!$A$2*'TRF calcs '!$B16)+'TWP Calcs'!P$6*('TRF calcs '!$C16+'TRF calcs '!$D16+'TRF calcs '!$E16+'TRF calcs '!$F16))/(('TWP Calcs'!P$7*'TWP Calcs'!$A$2*'TRF calcs '!$B16)+('TWP Calcs'!P$8*('TRF calcs '!$C16+'TRF calcs '!$D16+'TRF calcs '!$E16+'TRF calcs '!$F16)))) -> 0.8699933853 | Q23: =(((('TWP Calcs'!Q$5)*'TWP Calcs'!$A$2*'TRF calcs '!$B16)+'TWP Calcs'!Q$6*('TRF calcs '!$C16+'TRF calcs '!$D16+'TRF calcs '!$E16+'TRF calcs '!$F16))/(('TWP Calcs'!Q$7*'TWP Calcs'!$A$2*'TRF calcs '!$B16)+('TWP Calcs'!Q$8*('TRF calcs '!$C16+'TRF calcs '!$D16+'TRF calcs '!$E16+'TRF calcs '!$F16)))) -> 0.7275476676 | R23: =(((('TWP Calcs'!R$5)*'TWP Calcs'!$A$2*'TRF calcs '!$B16)+'TWP Calcs'!R$6*('TRF calcs '!$C16+'TRF calcs '!$D16+'TRF calcs '!$E16+'TRF calcs '!$F16))/(('TWP Calcs'!R$7*'TWP Calcs'!$A$2*'TRF calcs '!$B16)+('TWP Calcs'!R$8*('TRF calcs '!$C16+'TRF calcs '!$D16+'TRF calcs '!$E16+'TRF calcs '!$F16)))) -> 0.5851019499 | S23: =(((('TWP Calcs'!S$5)*'TWP Calcs'!$A$2*'TRF calcs '!$B16)+'TWP Calcs'!S$6*('TRF calcs '!$C16+'TRF calcs '!$D16+'TRF calcs '!$E16+'TRF calcs '!$F16))/(('TWP Calcs'!S$7*'TWP Calcs'!$A$2*'TRF calcs '!$B16)+('TWP Calcs'!S$8*('TRF calcs '!$C16+'TRF calcs '!$D16+'TRF calcs '!$E16+'TRF calcs '!$F16)))) -> 0.6142203741 | T23: =(((('TWP Calcs'!T$5)*'TWP Calcs'!$A$2*'TRF calcs '!$B16)+'TWP Calcs'!T$6*('TRF calcs '!$C16+'TRF calcs '!$D16+'TRF calcs '!$E16+'TRF calcs '!$F16))/(('TWP Calcs'!T$7*'TWP Calcs'!$A$2*'TRF calcs '!$B16)+('TWP Calcs'!T$8*('TRF calcs '!$C16+'TRF calcs '!$D16+'TRF calcs '!$E16+'TRF calcs '!$F16)))) -> 0.5136528715 | U23: =(((('TWP Calcs'!U$5)*'TWP Calcs'!$A$2*'TRF calcs '!$B16)+'TWP Calcs'!U$6*('TRF calcs '!$C16+'TRF calcs '!$D16+'TRF calcs '!$E16+'TRF calcs '!$F16))/(('TWP Calcs'!U$7*'TWP Calcs'!$A$2*'TRF calcs '!$B16)+('TWP Calcs'!U$8*('TRF calcs '!$C16+'TRF calcs '!$D16+'TRF calcs '!$E16+'TRF calcs '!$F16)))) -> 0.4130853689 | V23: =(((('TWP Calcs'!V$5)*'TWP Calcs'!$A$2*'TRF calcs '!$B16)+'TWP Calcs'!V$6*('TRF calcs '!$C16+'TRF calcs '!$D16+'TRF calcs '!$E16+'TRF calcs '!$F16))/(('TWP Calcs'!V$7*'TWP Calcs'!$A$2*'TRF calcs '!$B16)+('TWP Calcs'!V$8*('TRF calcs '!$C16+'TRF calcs '!$D16+'TRF calcs '!$E16+'TRF calcs '!$F16)))) -> 1.335399801 | W23: =(((('TWP Calcs'!W$5)*'TWP Calcs'!$A$2*'TRF calcs '!$B16)+'TWP Calcs'!W$6*('TRF calcs '!$C16+'TRF calcs '!$D16+'TRF calcs '!$E16+'TRF calcs '!$F16))/(('TWP Calcs'!W$7*'TWP Calcs'!$A$2*'TRF calcs '!$B16)+('TWP Calcs'!W$8*('TRF calcs '!$C16+'TRF calcs '!$D16+'TRF calcs '!$E16+'TRF calcs '!$F16)))) -> 1.116752181 | X23: =(((('TWP Calcs'!X$5)*'TWP Calcs'!$A$2*'TRF calcs '!$B16)+'TWP Calcs'!X$6*('TRF calcs '!$C16+'TRF calcs '!$D16+'TRF calcs '!$E16+'TRF calcs '!$F16))/(('TWP Calcs'!X$7*'TWP Calcs'!$A$2*'TRF calcs '!$B16)+('TWP Calcs'!X$8*('TRF calcs '!$C16+'TRF calcs '!$D16+'TRF calcs '!$E16+'TRF calcs '!$F16)))) -> 0.8981045608 | Y23: =(((('TWP Calcs'!Y$5)*'TWP Calcs'!$A$2*'TRF calcs '!$B16)+'TWP Calcs'!Y$6*('TRF calcs '!$C16+'TRF calcs '!$D16+'TRF calcs '!$E16+'TRF calcs '!$F16))/(('TWP Calcs'!Y$7*'TWP Calcs'!$A$2*'TRF calcs '!$B16)+('TWP Calcs'!Y$8*('TRF calcs '!$C16+'TRF calcs '!$D16+'TRF calcs '!$E16+'TRF calcs '!$F16)))) -> 1.517999423 | Z23: =(((('TWP Calcs'!Z$5)*'TWP Calcs'!$A$2*'TRF calcs '!$B16)+'TWP Calcs'!Z$6*('TRF calcs '!$C16+'TRF calcs '!$D16+'TRF calcs '!$E16+'TRF calcs '!$F16))/(('TWP Calcs'!Z$7*'TWP Calcs'!$A$2*'TRF calcs '!$B16)+('TWP Calcs'!Z$8*('TRF calcs '!$C16+'TRF calcs '!$D16+'TRF calcs '!$E16+'TRF calcs '!$F16)))) -> 1.26945441 | AA23: =(((('TWP Calcs'!AA$5)*'TWP Calcs'!$A$2*'TRF calcs '!$B16)+'TWP Calcs'!AA$6*('TRF calcs '!$C16+'TRF calcs '!$D16+'TRF calcs '!$E16+'TRF calcs '!$F16))/(('TWP Calcs'!AA$7*'TWP Calcs'!$A$2*'TRF calcs '!$B16)+('TWP Calcs'!AA$8*('TRF calcs '!$C16+'TRF calcs '!$D16+'TRF calcs '!$E16+'TRF calcs '!$F16)))) -> 1.020909397 | AB23: =(((('TWP Calcs'!AB$5)*'TWP Calcs'!$A$2*'TRF calcs '!$B16)+'TWP Calcs'!AB$6*('TRF calcs '!$C16+'TRF calcs '!$D16+'TRF calcs '!$E16+'TRF calcs '!$F16))/(('TWP Calcs'!AB$7*'TWP Calcs'!$A$2*'TRF calcs '!$B16)+('TWP Calcs'!AB$8*('TRF calcs '!$C16+'TRF calcs '!$D16+'TRF calcs '!$E16+'TRF calcs '!$F16)))) -> 0.5330083478 | AC23: =(((('TWP Calcs'!AC$5)*'TWP Calcs'!$A$2*'TRF calcs '!$B16)+'TWP Calcs'!AC$6*('TRF calcs '!$C16+'TRF calcs '!$D16+'TRF calcs '!$E16+'TRF calcs '!$F16))/(('TWP Calcs'!AC$7*'TWP Calcs'!$A$2*'TRF calcs '!$B16)+('TWP Calcs'!AC$8*('TRF calcs '!$C16+'TRF calcs '!$D16+'TRF calcs '!$E16+'TRF calcs '!$F16)))) -> 0.4277623706 | AD23: =(((('TWP Calcs'!AD$5)*'TWP Calcs'!$A$2*'TRF calcs '!$B16)+'TWP Calcs'!AD$6*('TRF calcs '!$C16+'TRF calcs '!$D16+'TRF calcs '!$E16+'TRF calcs '!$F16))/(('TWP Calcs'!AD$7*'TWP Calcs'!$A$2*'TRF calcs '!$B16)+('TWP Calcs'!AD$8*('TRF calcs '!$C16+'TRF calcs '!$D16+'TRF calcs '!$E16+'TRF calcs '!$F16)))) -> 0.2876856323 | AE23: =(((('TWP Calcs'!AE$5)*'TWP Calcs'!$A$2*'TRF calcs '!$B16)+'TWP Calcs'!AE$6*('TRF calcs '!$C16+'TRF calcs '!$D16+'TRF calcs '!$E16+'TRF calcs '!$F16))/(('TWP Calcs'!AE$7*'TWP Calcs'!$A$2*'TRF calcs '!$B16)+('TWP Calcs'!AE$8*('TRF calcs '!$C16+'TRF calcs '!$D16+'TRF calcs '!$E16+'TRF calcs '!$F16)))) -> 0.9300143865 | AF23: =(((('TWP Calcs'!AF$5)*'TWP Calcs'!$A$2*'TRF calcs '!$B16)+'TWP Calcs'!AF$6*('TRF calcs '!$C16+'TRF calcs '!$D16+'TRF calcs '!$E16+'TRF calcs '!$F16))/(('TWP Calcs'!AF$7*'TWP Calcs'!$A$2*'TRF calcs '!$B16)+('TWP Calcs'!AF$8*('TRF calcs '!$C16+'TRF calcs '!$D16+'TRF calcs '!$E16+'TRF calcs '!$F16)))) -> 0.6982075129 | AG23: =(((('TWP Calcs'!AG$5)*'TWP Calcs'!$A$2*'TRF calcs '!$B16)+'TWP Calcs'!AG$6*('TRF calcs '!$C16+'TRF calcs '!$D16+'TRF calcs '!$E16+'TRF calcs '!$F16))/(('TWP Calcs'!AG$7*'TWP Calcs'!$A$2*'TRF calcs '!$B16)+('TWP Calcs'!AG$8*('TRF calcs '!$C16+'TRF calcs '!$D16+'TRF calcs '!$E16+'TRF calcs '!$F16)))) -> 1.004079628 | AH23: 1 | AI23: 0 | AJ23: =(((('TWP Calcs'!AJ$5)*'TWP Calcs'!$A$2*'TRF calcs '!$B16)+'TWP Calcs'!AJ$6*('TRF calcs '!$C16+'TRF calcs '!$D16+'TRF calcs '!$E16+'TRF calcs '!$F16))/(('TWP Calcs'!AJ$7*'TWP Calcs'!$A$2*'TRF calcs '!$B16)+('TWP Calcs'!AJ$8*('TRF calcs '!$C16+'TRF calcs '!$D16+'TRF calcs '!$E16+'TRF calcs '!$F16)))) -> 0.7653421837 | AK23: =(((('TWP Calcs'!AK$5)*'TWP Calcs'!$A$2*'TRF calcs '!$G16)+'TWP Calcs'!AK$6*('TRF calcs '!$H16+'TRF calcs '!$I16+'TRF calcs '!$J16+'TRF calcs '!$K16))/(('TWP Calcs'!AK$7*'TWP Calcs'!$A$2*'TRF calcs '!$G16)+('TWP Calcs'!AK$8*('TRF calcs '!$H16+'TRF calcs '!$I16+'TRF calcs '!$J16+'TRF calcs '!$K16)))) -> 0.7567919069 | AL23: =(((('TWP Calcs'!AL$5)*'TWP Calcs'!$A$2*'TRF calcs '!$L16)+'TWP Calcs'!AL$6*('TRF calcs '!$M16+'TRF calcs '!$N16+'TRF calcs '!$O16+'TRF calcs '!$P16))/(('TWP Calcs'!AL$7*'TWP Calcs'!$A$2*'TRF calcs '!$L16)+('TWP Calcs'!AL$8*('TRF calcs '!$M16+'TRF calcs '!$N16+'TRF calcs '!$O16+'TRF calcs '!$P16)))) -> 0.7627954757
A24: 6 | B24: =(((('TWP Calcs'!B$5)*'TWP Calcs'!$A$2*'TRF calcs '!$B17)+'TWP Calcs'!B$6*('TRF calcs '!$C17+'TRF calcs '!$D17+'TRF calcs '!$E17+'TRF calcs '!$F17))/(('TWP Calcs'!B$7*'TWP Calcs'!$A$2*'TRF calcs '!$B17)+('TWP Calcs'!B$8*('TRF calcs '!$C17+'TRF calcs '!$D17+'TRF calcs '!$E17+'TRF calcs '!$F17)))) -> 1.566847083 | C24: =(((('TWP Calcs'!C$5)*'TWP Calcs'!$A$2*'TRF calcs '!$B17)+'TWP Calcs'!C$6*('TRF calcs '!$C17+'TRF calcs '!$D17+'TRF calcs '!$E17+'TRF calcs '!$F17))/(('TWP Calcs'!C$7*'TWP Calcs'!$A$2*'TRF calcs '!$B17)+('TWP Calcs'!C$8*('TRF calcs '!$C17+'TRF calcs '!$D17+'TRF calcs '!$E17+'TRF calcs '!$F17)))) -> 1.311765896 | D24: =(((('TWP Calcs'!D$5)*'TWP Calcs'!$A$2*'TRF calcs '!$B17)+'TWP Calcs'!D$6*('TRF calcs '!$C17+'TRF calcs '!$D17+'TRF calcs '!$E17+'TRF calcs '!$F17))/(('TWP Calcs'!D$7*'TWP Calcs'!$A$2*'TRF calcs '!$B17)+('TWP Calcs'!D$8*('TRF calcs '!$C17+'TRF calcs '!$D17+'TRF calcs '!$E17+'TRF calcs '!$F17)))) -> 1.394618651 | E24: =(((('TWP Calcs'!E$5)*'TWP Calcs'!$A$2*'TRF calcs '!$G17)+'TWP Calcs'!E$6*('TRF calcs '!$H17+'TRF calcs '!$I17+'TRF calcs '!$J17+'TRF calcs '!$K17))/(('TWP Calcs'!E$7*'TWP Calcs'!$A$2*'TRF calcs '!$G17)+('TWP Calcs'!E$8*('TRF calcs '!$H17+'TRF calcs '!$I17+'TRF calcs '!$J17+'TRF calcs '!$K17)))) -> 1.383017935 | F24: =(((('TWP Calcs'!F$5)*'TWP Calcs'!$A$2*'TRF calcs '!$B17)+'TWP Calcs'!F$6*('TRF calcs '!$C17+'TRF calcs '!$D17+'TRF calcs '!$E17+'TRF calcs '!$F17))/(('TWP Calcs'!F$7*'TWP Calcs'!$A$2*'TRF calcs '!$B17)+('TWP Calcs'!F$8*('TRF calcs '!$C17+'TRF calcs '!$D17+'TRF calcs '!$E17+'TRF calcs '!$F17)))) -> 0.7905469358 | G24: =(((('TWP Calcs'!G$5)*'TWP Calcs'!$A$2*'TRF calcs '!$B17)+'TWP Calcs'!G$6*('TRF calcs '!$C17+'TRF calcs '!$D17+'TRF calcs '!$E17+'TRF calcs '!$F17))/(('TWP Calcs'!G$7*'TWP Calcs'!$A$2*'TRF calcs '!$B17)+('TWP Calcs'!G$8*('TRF calcs '!$C17+'TRF calcs '!$D17+'TRF calcs '!$E17+'TRF calcs '!$F17)))) -> 0.7274637665 | H24: =(((('TWP Calcs'!H$5)*'TWP Calcs'!$A$2*'TRF calcs '!$B17)+'TWP Calcs'!H$6*('TRF calcs '!$C17+'TRF calcs '!$D17+'TRF calcs '!$E17+'TRF calcs '!$F17))/(('TWP Calcs'!H$7*'TWP Calcs'!$A$2*'TRF calcs '!$B17)+('TWP Calcs'!H$8*('TRF calcs '!$C17+'TRF calcs '!$D17+'TRF calcs '!$E17+'TRF calcs '!$F17)))) -> 0.6090333699 | I24: =(((('TWP Calcs'!I$5)*'TWP Calcs'!$A$2*'TRF calcs '!$B17)+'TWP Calcs'!I$6*('TRF calcs '!$C17+'TRF calcs '!$D17+'TRF calcs '!$E17+'TRF calcs '!$F17))/(('TWP Calcs'!I$7*'TWP Calcs'!$A$2*'TRF calcs '!$B17)+('TWP Calcs'!I$8*('TRF calcs '!$C17+'TRF calcs '!$D17+'TRF calcs '!$E17+'TRF calcs '!$F17)))) -> 0.4906029734 | J24: =(((('TWP Calcs'!J$5)*'TWP Calcs'!$A$2*'TRF calcs '!$B17)+'TWP Calcs'!J$6*('TRF calcs '!$C17+'TRF calcs '!$D17+'TRF calcs '!$E17+'TRF calcs '!$F17))/(('TWP Calcs'!J$7*'TWP Calcs'!$A$2*'TRF calcs '!$B17)+('TWP Calcs'!J$8*('TRF calcs '!$C17+'TRF calcs '!$D17+'TRF calcs '!$E17+'TRF calcs '!$F17)))) -> 0.7629454298 | K24: =(((('TWP Calcs'!K$5)*'TWP Calcs'!$A$2*'TRF calcs '!$B17)+'TWP Calcs'!K$6*('TRF calcs '!$C17+'TRF calcs '!$D17+'TRF calcs '!$E17+'TRF calcs '!$F17))/(('TWP Calcs'!K$7*'TWP Calcs'!$A$2*'TRF calcs '!$B17)+('TWP Calcs'!K$8*('TRF calcs '!$C17+'TRF calcs '!$D17+'TRF calcs '!$E17+'TRF calcs '!$F17)))) -> 0.6387386529 | L24: =(((('TWP Calcs'!L$5)*'TWP Calcs'!$A$2*'TRF calcs '!$B17)+'TWP Calcs'!L$6*('TRF calcs '!$C17+'TRF calcs '!$D17+'TRF calcs '!$E17+'TRF calcs '!$F17))/(('TWP Calcs'!L$7*'TWP Calcs'!$A$2*'TRF calcs '!$B17)+('TWP Calcs'!L$8*('TRF calcs '!$C17+'TRF calcs '!$D17+'TRF calcs '!$E17+'TRF calcs '!$F17)))) -> 0.4869303699 | M24: =(((('TWP Calcs'!M$5)*'TWP Calcs'!$A$2*'TRF calcs '!$B17)+'TWP Calcs'!M$6*('TRF calcs '!$C17+'TRF calcs '!$D17+'TRF calcs '!$E17+'TRF calcs '!$F17))/(('TWP Calcs'!M$7*'TWP Calcs'!$A$2*'TRF calcs '!$B17)+('TWP Calcs'!M$8*('TRF calcs '!$C17+'TRF calcs '!$D17+'TRF calcs '!$E17+'TRF calcs '!$F17)))) -> 0.5922733055 | N24: =(((('TWP Calcs'!N$5)*'TWP Calcs'!$A$2*'TRF calcs '!$B17)+'TWP Calcs'!N$6*('TRF calcs '!$C17+'TRF calcs '!$D17+'TRF calcs '!$E17+'TRF calcs '!$F17))/(('TWP Calcs'!N$7*'TWP Calcs'!$A$2*'TRF calcs '!$B17)+('TWP Calcs'!N$8*('TRF calcs '!$C17+'TRF calcs '!$D17+'TRF calcs '!$E17+'TRF calcs '!$F17)))) -> 0.4958517851 | O24: =(((('TWP Calcs'!O$5)*'TWP Calcs'!$A$2*'TRF calcs '!$B17)+'TWP Calcs'!O$6*('TRF calcs '!$C17+'TRF calcs '!$D17+'TRF calcs '!$E17+'TRF calcs '!$F17))/(('TWP Calcs'!O$7*'TWP Calcs'!$A$2*'TRF calcs '!$B17)+('TWP Calcs'!O$8*('TRF calcs '!$C17+'TRF calcs '!$D17+'TRF calcs '!$E17+'TRF calcs '!$F17)))) -> 0.3994302646 | P24: =(((('TWP Calcs'!P$5)*'TWP Calcs'!$A$2*'TRF calcs '!$B17)+'TWP Calcs'!P$6*('TRF calcs '!$C17+'TRF calcs '!$D17+'TRF calcs '!$E17+'TRF calcs '!$F17))/(('TWP Calcs'!P$7*'TWP Calcs'!$A$2*'TRF calcs '!$B17)+('TWP Calcs'!P$8*('TRF calcs '!$C17+'TRF calcs '!$D17+'TRF calcs '!$E17+'TRF calcs '!$F17)))) -> 0.8672689046 | Q24: =(((('TWP Calcs'!Q$5)*'TWP Calcs'!$A$2*'TRF calcs '!$B17)+'TWP Calcs'!Q$6*('TRF calcs '!$C17+'TRF calcs '!$D17+'TRF calcs '!$E17+'TRF calcs '!$F17))/(('TWP Calcs'!Q$7*'TWP Calcs'!$A$2*'TRF calcs '!$B17)+('TWP Calcs'!Q$8*('TRF calcs '!$C17+'TRF calcs '!$D17+'TRF calcs '!$E17+'TRF calcs '!$F17)))) -> 0.726078367 | R24: =(((('TWP Calcs'!R$5)*'TWP Calcs'!$A$2*'TRF calcs '!$B17)+'TWP Calcs'!R$6*('TRF calcs '!$C17+'TRF calcs '!$D17+'TRF calcs '!$E17+'TRF calcs '!$F17))/(('TWP Calcs'!R$7*'TWP Calcs'!$A$2*'TRF calcs '!$B17)+('TWP Calcs'!R$8*('TRF calcs '!$C17+'TRF calcs '!$D17+'TRF calcs '!$E17+'TRF calcs '!$F17)))) -> 0.5848878294 | S24: =(((('TWP Calcs'!S$5)*'TWP Calcs'!$A$2*'TRF calcs '!$B17)+'TWP Calcs'!S$6*('TRF calcs '!$C17+'TRF calcs '!$D17+'TRF calcs '!$E17+'TRF calcs '!$F17))/(('TWP Calcs'!S$7*'TWP Calcs'!$A$2*'TRF calcs '!$B17)+('TWP Calcs'!S$8*('TRF calcs '!$C17+'TRF calcs '!$D17+'TRF calcs '!$E17+'TRF calcs '!$F17)))) -> 0.6122968749 | T24: =(((('TWP Calcs'!T$5)*'TWP Calcs'!$A$2*'TRF calcs '!$B17)+'TWP Calcs'!T$6*('TRF calcs '!$C17+'TRF calcs '!$D17+'TRF calcs '!$E17+'TRF calcs '!$F17))/(('TWP Calcs'!T$7*'TWP Calcs'!$A$2*'TRF calcs '!$B17)+('TWP Calcs'!T$8*('TRF calcs '!$C17+'TRF calcs '!$D17+'TRF calcs '!$E17+'TRF calcs '!$F17)))) -> 0.5126155368 | U24: =(((('TWP Calcs'!U$5)*'TWP Calcs'!$A$2*'TRF calcs '!$B17)+'TWP Calcs'!U$6*('TRF calcs '!$C17+'TRF calcs '!$D17+'TRF calcs '!$E17+'TRF calcs '!$F17))/(('TWP Calcs'!U$7*'TWP Calcs'!$A$2*'TRF calcs '!$B17)+('TWP Calcs'!U$8*('TRF calcs '!$C17+'TRF calcs '!$D17+'TRF calcs '!$E17+'TRF calcs '!$F17)))) -> 0.4129341986 | V24: =(((('TWP Calcs'!V$5)*'TWP Calcs'!$A$2*'TRF calcs '!$B17)+'TWP Calcs'!V$6*('TRF calcs '!$C17+'TRF calcs '!$D17+'TRF calcs '!$E17+'TRF calcs '!$F17))/(('TWP Calcs'!V$7*'TWP Calcs'!$A$2*'TRF calcs '!$B17)+('TWP Calcs'!V$8*('TRF calcs '!$C17+'TRF calcs '!$D17+'TRF calcs '!$E17+'TRF calcs '!$F17)))) -> 1.331217848 | W24: =(((('TWP Calcs'!W$5)*'TWP Calcs'!$A$2*'TRF calcs '!$B17)+'TWP Calcs'!W$6*('TRF calcs '!$C17+'TRF calcs '!$D17+'TRF calcs '!$E17+'TRF calcs '!$F17))/(('TWP Calcs'!W$7*'TWP Calcs'!$A$2*'TRF calcs '!$B17)+('TWP Calcs'!W$8*('TRF calcs '!$C17+'TRF calcs '!$D17+'TRF calcs '!$E17+'TRF calcs '!$F17)))) -> 1.114496872 | X24: =(((('TWP Calcs'!X$5)*'TWP Calcs'!$A$2*'TRF calcs '!$B17)+'TWP Calcs'!X$6*('TRF calcs '!$C17+'TRF calcs '!$D17+'TRF calcs '!$E17+'TRF calcs '!$F17))/(('TWP Calcs'!X$7*'TWP Calcs'!$A$2*'TRF calcs '!$B17)+('TWP Calcs'!X$8*('TRF calcs '!$C17+'TRF calcs '!$D17+'TRF calcs '!$E17+'TRF calcs '!$F17)))) -> 0.8977758956 | Y24: =(((('TWP Calcs'!Y$5)*'TWP Calcs'!$A$2*'TRF calcs '!$B17)+'TWP Calcs'!Y$6*('TRF calcs '!$C17+'TRF calcs '!$D17+'TRF calcs '!$E17+'TRF calcs '!$F17))/(('TWP Calcs'!Y$7*'TWP Calcs'!$A$2*'TRF calcs '!$B17)+('TWP Calcs'!Y$8*('TRF calcs '!$C17+'TRF calcs '!$D17+'TRF calcs '!$E17+'TRF calcs '!$F17)))) -> 1.51324564 | Z24: =(((('TWP Calcs'!Z$5)*'TWP Calcs'!$A$2*'TRF calcs '!$B17)+'TWP Calcs'!Z$6*('TRF calcs '!$C17+'TRF calcs '!$D17+'TRF calcs '!$E17+'TRF calcs '!$F17))/(('TWP Calcs'!Z$7*'TWP Calcs'!$A$2*'TRF calcs '!$B17)+('TWP Calcs'!Z$8*('TRF calcs '!$C17+'TRF calcs '!$D17+'TRF calcs '!$E17+'TRF calcs '!$F17)))) -> 1.266890715 | AA24: =(((('TWP Calcs'!AA$5)*'TWP Calcs'!$A$2*'TRF calcs '!$B17)+'TWP Calcs'!AA$6*('TRF calcs '!$C17+'TRF calcs '!$D17+'TRF calcs '!$E17+'TRF calcs '!$F17))/(('TWP Calcs'!AA$7*'TWP Calcs'!$A$2*'TRF calcs '!$B17)+('TWP Calcs'!AA$8*('TRF calcs '!$C17+'TRF calcs '!$D17+'TRF calcs '!$E17+'TRF calcs '!$F17)))) -> 1.020535791 | AB24: =(((('TWP Calcs'!AB$5)*'TWP Calcs'!$A$2*'TRF calcs '!$B17)+'TWP Calcs'!AB$6*('TRF calcs '!$C17+'TRF calcs '!$D17+'TRF calcs '!$E17+'TRF calcs '!$F17))/(('TWP Calcs'!AB$7*'TWP Calcs'!$A$2*'TRF calcs '!$B17)+('TWP Calcs'!AB$8*('TRF calcs '!$C17+'TRF calcs '!$D17+'TRF calcs '!$E17+'TRF calcs '!$F17)))) -> 0.5325522543 | AC24: =(((('TWP Calcs'!AC$5)*'TWP Calcs'!$A$2*'TRF calcs '!$B17)+'TWP Calcs'!AC$6*('TRF calcs '!$C17+'TRF calcs '!$D17+'TRF calcs '!$E17+'TRF calcs '!$F17))/(('TWP Calcs'!AC$7*'TWP Calcs'!$A$2*'TRF calcs '!$B17)+('TWP Calcs'!AC$8*('TRF calcs '!$C17+'TRF calcs '!$D17+'TRF calcs '!$E17+'TRF calcs '!$F17)))) -> 0.4273963357 | AD24: =(((('TWP Calcs'!AD$5)*'TWP Calcs'!$A$2*'TRF calcs '!$B17)+'TWP Calcs'!AD$6*('TRF calcs '!$C17+'TRF calcs '!$D17+'TRF calcs '!$E17+'TRF calcs '!$F17))/(('TWP Calcs'!AD$7*'TWP Calcs'!$A$2*'TRF calcs '!$B17)+('TWP Calcs'!AD$8*('TRF calcs '!$C17+'TRF calcs '!$D17+'TRF calcs '!$E17+'TRF calcs '!$F17)))) -> 0.2882369167 | AE24: =(((('TWP Calcs'!AE$5)*'TWP Calcs'!$A$2*'TRF calcs '!$B17)+'TWP Calcs'!AE$6*('TRF calcs '!$C17+'TRF calcs '!$D17+'TRF calcs '!$E17+'TRF calcs '!$F17))/(('TWP Calcs'!AE$7*'TWP Calcs'!$A$2*'TRF calcs '!$B17)+('TWP Calcs'!AE$8*('TRF calcs '!$C17+'TRF calcs '!$D17+'TRF calcs '!$E17+'TRF calcs '!$F17)))) -> 0.9292185761 | AF24: =(((('TWP Calcs'!AF$5)*'TWP Calcs'!$A$2*'TRF calcs '!$B17)+'TWP Calcs'!AF$6*('TRF calcs '!$C17+'TRF calcs '!$D17+'TRF calcs '!$E17+'TRF calcs '!$F17))/(('TWP Calcs'!AF$7*'TWP Calcs'!$A$2*'TRF calcs '!$B17)+('TWP Calcs'!AF$8*('TRF calcs '!$C17+'TRF calcs '!$D17+'TRF calcs '!$E17+'TRF calcs '!$F17)))) -> 0.6960209987 | AG24: =(((('TWP Calcs'!AG$5)*'TWP Calcs'!$A$2*'TRF calcs '!$B17)+'TWP Calcs'!AG$6*('TRF calcs '!$C17+'TRF calcs '!$D17+'TRF calcs '!$E17+'TRF calcs '!$F17))/(('TWP Calcs'!AG$7*'TWP Calcs'!$A$2*'TRF calcs '!$B17)+('TWP Calcs'!AG$8*('TRF calcs '!$C17+'TRF calcs '!$D17+'TRF calcs '!$E17+'TRF calcs '!$F17)))) -> 1.000935242 | AH24: 1 | AI24: 0 | AJ24: =(((('TWP Calcs'!AJ$5)*'TWP Calcs'!$A$2*'TRF calcs '!$B17)+'TWP Calcs'!AJ$6*('TRF calcs '!$C17+'TRF calcs '!$D17+'TRF calcs '!$E17+'TRF calcs '!$F17))/(('TWP Calcs'!AJ$7*'TWP Calcs'!$A$2*'TRF calcs '!$B17)+('TWP Calcs'!AJ$8*('TRF calcs '!$C17+'TRF calcs '!$D17+'TRF calcs '!$E17+'TRF calcs '!$F17)))) -> 0.7629454298 | AK24: =(((('TWP Calcs'!AK$5)*'TWP Calcs'!$A$2*'TRF calcs '!$G17)+'TWP Calcs'!AK$6*('TRF calcs '!$H17+'TRF calcs '!$I17+'TRF calcs '!$J17+'TRF calcs '!$K17))/(('TWP Calcs'!AK$7*'TWP Calcs'!$A$2*'TRF calcs '!$G17)+('TWP Calcs'!AK$8*('TRF calcs '!$H17+'TRF calcs '!$I17+'TRF calcs '!$J17+'TRF calcs '!$K17)))) -> 0.7525719228 | AL24: =(((('TWP Calcs'!AL$5)*'TWP Calcs'!$A$2*'TRF calcs '!$L17)+'TWP Calcs'!AL$6*('TRF calcs '!$M17+'TRF calcs '!$N17+'TRF calcs '!$O17+'TRF calcs '!$P17))/(('TWP Calcs'!AL$7*'TWP Calcs'!$A$2*'TRF calcs '!$L17)+('TWP Calcs'!AL$8*('TRF calcs '!$M17+'TRF calcs '!$N17+'TRF calcs '!$O17+'TRF calcs '!$P17)))) -> 0.7603984237
A25: 7 | B25: =(((('TWP Calcs'!B$5)*'TWP Calcs'!$A$2*'TRF calcs '!$B18)+'TWP Calcs'!B$6*('TRF calcs '!$C18+'TRF calcs '!$D18+'TRF calcs '!$E18+'TRF calcs '!$F18))/(('TWP Calcs'!B$7*'TWP Calcs'!$A$2*'TRF calcs '!$B18)+('TWP Calcs'!B$8*('TRF calcs '!$C18+'TRF calcs '!$D18+'TRF calcs '!$E18+'TRF calcs '!$F18)))) -> 1.561381755 | C25: =(((('TWP Calcs'!C$5)*'TWP Calcs'!$A$2*'TRF calcs '!$B18)+'TWP Calcs'!C$6*('TRF calcs '!$C18+'TRF calcs '!$D18+'TRF calcs '!$E18+'TRF calcs '!$F18))/(('TWP Calcs'!C$7*'TWP Calcs'!$A$2*'TRF calcs '!$B18)+('TWP Calcs'!C$8*('TRF calcs '!$C18+'TRF calcs '!$D18+'TRF calcs '!$E18+'TRF calcs '!$F18)))) -> 1.308759965 | D25: =(((('TWP Calcs'!D$5)*'TWP Calcs'!$A$2*'TRF calcs '!$B18)+'TWP Calcs'!D$6*('TRF calcs '!$C18+'TRF calcs '!$D18+'TRF calcs '!$E18+'TRF calcs '!$F18))/(('TWP Calcs'!D$7*'TWP Calcs'!$A$2*'TRF calcs '!$B18)+('TWP Calcs'!D$8*('TRF calcs '!$C18+'TRF calcs '!$D18+'TRF calcs '!$E18+'TRF calcs '!$F18)))) -> 1.390813885 | E25: =(((('TWP Calcs'!E$5)*'TWP Calcs'!$A$2*'TRF calcs '!$G18)+'TWP Calcs'!E$6*('TRF calcs '!$H18+'TRF calcs '!$I18+'TRF calcs '!$J18+'TRF calcs '!$K18))/(('TWP Calcs'!E$7*'TWP Calcs'!$A$2*'TRF calcs '!$G18)+('TWP Calcs'!E$8*('TRF calcs '!$H18+'TRF calcs '!$I18+'TRF calcs '!$J18+'TRF calcs '!$K18)))) -> 1.376385153 | F25: =(((('TWP Calcs'!F$5)*'TWP Calcs'!$A$2*'TRF calcs '!$B18)+'TWP Calcs'!F$6*('TRF calcs '!$C18+'TRF calcs '!$D18+'TRF calcs '!$E18+'TRF calcs '!$F18))/(('TWP Calcs'!F$7*'TWP Calcs'!$A$2*'TRF calcs '!$B18)+('TWP Calcs'!F$8*('TRF calcs '!$C18+'TRF calcs '!$D18+'TRF calcs '!$E18+'TRF calcs '!$F18)))) -> 0.7877183067 | G25: =(((('TWP Calcs'!G$5)*'TWP Calcs'!$A$2*'TRF calcs '!$B18)+'TWP Calcs'!G$6*('TRF calcs '!$C18+'TRF calcs '!$D18+'TRF calcs '!$E18+'TRF calcs '!$F18))/(('TWP Calcs'!G$7*'TWP Calcs'!$A$2*'TRF calcs '!$B18)+('TWP Calcs'!G$8*('TRF calcs '!$C18+'TRF calcs '!$D18+'TRF calcs '!$E18+'TRF calcs '!$F18)))) -> 0.7253783178 | H25: =(((('TWP Calcs'!H$5)*'TWP Calcs'!$A$2*'TRF calcs '!$B18)+'TWP Calcs'!H$6*('TRF calcs '!$C18+'TRF calcs '!$D18+'TRF calcs '!$E18+'TRF calcs '!$F18))/(('TWP Calcs'!H$7*'TWP Calcs'!$A$2*'TRF calcs '!$B18)+('TWP Calcs'!H$8*('TRF calcs '!$C18+'TRF calcs '!$D18+'TRF calcs '!$E18+'TRF calcs '!$F18)))) -> 0.6080166486 | I25: =(((('TWP Calcs'!I$5)*'TWP Calcs'!$A$2*'TRF calcs '!$B18)+'TWP Calcs'!I$6*('TRF calcs '!$C18+'TRF calcs '!$D18+'TRF calcs '!$E18+'TRF calcs '!$F18))/(('TWP Calcs'!I$7*'TWP Calcs'!$A$2*'TRF calcs '!$B18)+('TWP Calcs'!I$8*('TRF calcs '!$C18+'TRF calcs '!$D18+'TRF calcs '!$E18+'TRF calcs '!$F18)))) -> 0.4906549795 | J25: =(((('TWP Calcs'!J$5)*'TWP Calcs'!$A$2*'TRF calcs '!$B18)+'TWP Calcs'!J$6*('TRF calcs '!$C18+'TRF calcs '!$D18+'TRF calcs '!$E18+'TRF calcs '!$F18))/(('TWP Calcs'!J$7*'TWP Calcs'!$A$2*'TRF calcs '!$B18)+('TWP Calcs'!J$8*('TRF calcs '!$C18+'TRF calcs '!$D18+'TRF calcs '!$E18+'TRF calcs '!$F18)))) -> 0.7603794976 | K25: =(((('TWP Calcs'!K$5)*'TWP Calcs'!$A$2*'TRF calcs '!$B18)+'TWP Calcs'!K$6*('TRF calcs '!$C18+'TRF calcs '!$D18+'TRF calcs '!$E18+'TRF calcs '!$F18))/(('TWP Calcs'!K$7*'TWP Calcs'!$A$2*'TRF calcs '!$B18)+('TWP Calcs'!K$8*('TRF calcs '!$C18+'TRF calcs '!$D18+'TRF calcs '!$E18+'TRF calcs '!$F18)))) -> 0.6373548568 | L25: =(((('TWP Calcs'!L$5)*'TWP Calcs'!$A$2*'TRF calcs '!$B18)+'TWP Calcs'!L$6*('TRF calcs '!$C18+'TRF calcs '!$D18+'TRF calcs '!$E18+'TRF calcs '!$F18))/(('TWP Calcs'!L$7*'TWP Calcs'!$A$2*'TRF calcs '!$B18)+('TWP Calcs'!L$8*('TRF calcs '!$C18+'TRF calcs '!$D18+'TRF calcs '!$E18+'TRF calcs '!$F18)))) -> 0.4869914068 | M25: =(((('TWP Calcs'!M$5)*'TWP Calcs'!$A$2*'TRF calcs '!$B18)+'TWP Calcs'!M$6*('TRF calcs '!$C18+'TRF calcs '!$D18+'TRF calcs '!$E18+'TRF calcs '!$F18))/(('TWP Calcs'!M$7*'TWP Calcs'!$A$2*'TRF calcs '!$B18)+('TWP Calcs'!M$8*('TRF calcs '!$C18+'TRF calcs '!$D18+'TRF calcs '!$E18+'TRF calcs '!$F18)))) -> 0.5917276874 | N25: =(((('TWP Calcs'!N$5)*'TWP Calcs'!$A$2*'TRF calcs '!$B18)+'TWP Calcs'!N$6*('TRF calcs '!$C18+'TRF calcs '!$D18+'TRF calcs '!$E18+'TRF calcs '!$F18))/(('TWP Calcs'!N$7*'TWP Calcs'!$A$2*'TRF calcs '!$B18)+('TWP Calcs'!N$8*('TRF calcs '!$C18+'TRF calcs '!$D18+'TRF calcs '!$E18+'TRF calcs '!$F18)))) -> 0.4959898532 | O25: =(((('TWP Calcs'!O$5)*'TWP Calcs'!$A$2*'TRF calcs '!$B18)+'TWP Calcs'!O$6*('TRF calcs '!$C18+'TRF calcs '!$D18+'TRF calcs '!$E18+'TRF calcs '!$F18))/(('TWP Calcs'!O$7*'TWP Calcs'!$A$2*'TRF calcs '!$B18)+('TWP Calcs'!O$8*('TRF calcs '!$C18+'TRF calcs '!$D18+'TRF calcs '!$E18+'TRF calcs '!$F18)))) -> 0.4002520191 | P25: =(((('TWP Calcs'!P$5)*'TWP Calcs'!$A$2*'TRF calcs '!$B18)+'TWP Calcs'!P$6*('TRF calcs '!$C18+'TRF calcs '!$D18+'TRF calcs '!$E18+'TRF calcs '!$F18))/(('TWP Calcs'!P$7*'TWP Calcs'!$A$2*'TRF calcs '!$B18)+('TWP Calcs'!P$8*('TRF calcs '!$C18+'TRF calcs '!$D18+'TRF calcs '!$E18+'TRF calcs '!$F18)))) -> 0.8643521124 | Q25: =(((('TWP Calcs'!Q$5)*'TWP Calcs'!$A$2*'TRF calcs '!$B18)+'TWP Calcs'!Q$6*('TRF calcs '!$C18+'TRF calcs '!$D18+'TRF calcs '!$E18+'TRF calcs '!$F18))/(('TWP Calcs'!Q$7*'TWP Calcs'!$A$2*'TRF calcs '!$B18)+('TWP Calcs'!Q$8*('TRF calcs '!$C18+'TRF calcs '!$D18+'TRF calcs '!$E18+'TRF calcs '!$F18)))) -> 0.7245053536 | R25: =(((('TWP Calcs'!R$5)*'TWP Calcs'!$A$2*'TRF calcs '!$B18)+'TWP Calcs'!R$6*('TRF calcs '!$C18+'TRF calcs '!$D18+'TRF calcs '!$E18+'TRF calcs '!$F18))/(('TWP Calcs'!R$7*'TWP Calcs'!$A$2*'TRF calcs '!$B18)+('TWP Calcs'!R$8*('TRF calcs '!$C18+'TRF calcs '!$D18+'TRF calcs '!$E18+'TRF calcs '!$F18)))) -> 0.5846585948 | S25: =(((('TWP Calcs'!S$5)*'TWP Calcs'!$A$2*'TRF calcs '!$B18)+'TWP Calcs'!S$6*('TRF calcs '!$C18+'TRF calcs '!$D18+'TRF calcs '!$E18+'TRF calcs '!$F18))/(('TWP Calcs'!S$7*'TWP Calcs'!$A$2*'TRF calcs '!$B18)+('TWP Calcs'!S$8*('TRF calcs '!$C18+'TRF calcs '!$D18+'TRF calcs '!$E18+'TRF calcs '!$F18)))) -> 0.6102376028 | T25: =(((('TWP Calcs'!T$5)*'TWP Calcs'!$A$2*'TRF calcs '!$B18)+'TWP Calcs'!T$6*('TRF calcs '!$C18+'TRF calcs '!$D18+'TRF calcs '!$E18+'TRF calcs '!$F18))/(('TWP Calcs'!T$7*'TWP Calcs'!$A$2*'TRF calcs '!$B18)+('TWP Calcs'!T$8*('TRF calcs '!$C18+'TRF calcs '!$D18+'TRF calcs '!$E18+'TRF calcs '!$F18)))) -> 0.5115049802 | U25: =(((('TWP Calcs'!U$5)*'TWP Calcs'!$A$2*'TRF calcs '!$B18)+'TWP Calcs'!U$6*('TRF calcs '!$C18+'TRF calcs '!$D18+'TRF calcs '!$E18+'TRF calcs '!$F18))/(('TWP Calcs'!U$7*'TWP Calcs'!$A$2*'TRF calcs '!$B18)+('TWP Calcs'!U$8*('TRF calcs '!$C18+'TRF calcs '!$D18+'TRF calcs '!$E18+'TRF calcs '!$F18)))) -> 0.4127723577 | V25: =(((('TWP Calcs'!V$5)*'TWP Calcs'!$A$2*'TRF calcs '!$B18)+'TWP Calcs'!V$6*('TRF calcs '!$C18+'TRF calcs '!$D18+'TRF calcs '!$E18+'TRF calcs '!$F18))/(('TWP Calcs'!V$7*'TWP Calcs'!$A$2*'TRF calcs '!$B18)+('TWP Calcs'!V$8*('TRF calcs '!$C18+'TRF calcs '!$D18+'TRF calcs '!$E18+'TRF calcs '!$F18)))) -> 1.326740706 | W25: =(((('TWP Calcs'!W$5)*'TWP Calcs'!$A$2*'TRF calcs '!$B18)+'TWP Calcs'!W$6*('TRF calcs '!$C18+'TRF calcs '!$D18+'TRF calcs '!$E18+'TRF calcs '!$F18))/(('TWP Calcs'!W$7*'TWP Calcs'!$A$2*'TRF calcs '!$B18)+('TWP Calcs'!W$8*('TRF calcs '!$C18+'TRF calcs '!$D18+'TRF calcs '!$E18+'TRF calcs '!$F18)))) -> 1.112082369 | X25: =(((('TWP Calcs'!X$5)*'TWP Calcs'!$A$2*'TRF calcs '!$B18)+'TWP Calcs'!X$6*('TRF calcs '!$C18+'TRF calcs '!$D18+'TRF calcs '!$E18+'TRF calcs '!$F18))/(('TWP Calcs'!X$7*'TWP Calcs'!$A$2*'TRF calcs '!$B18)+('TWP Calcs'!X$8*('TRF calcs '!$C18+'TRF calcs '!$D18+'TRF calcs '!$E18+'TRF calcs '!$F18)))) -> 0.8974240312 | Y25: =(((('TWP Calcs'!Y$5)*'TWP Calcs'!$A$2*'TRF calcs '!$B18)+'TWP Calcs'!Y$6*('TRF calcs '!$C18+'TRF calcs '!$D18+'TRF calcs '!$E18+'TRF calcs '!$F18))/(('TWP Calcs'!Y$7*'TWP Calcs'!$A$2*'TRF calcs '!$B18)+('TWP Calcs'!Y$8*('TRF calcs '!$C18+'TRF calcs '!$D18+'TRF calcs '!$E18+'TRF calcs '!$F18)))) -> 1.508156303 | Z25: =(((('TWP Calcs'!Z$5)*'TWP Calcs'!$A$2*'TRF calcs '!$B18)+'TWP Calcs'!Z$6*('TRF calcs '!$C18+'TRF calcs '!$D18+'TRF calcs '!$E18+'TRF calcs '!$F18))/(('TWP Calcs'!Z$7*'TWP Calcs'!$A$2*'TRF calcs '!$B18)+('TWP Calcs'!Z$8*('TRF calcs '!$C18+'TRF calcs '!$D18+'TRF calcs '!$E18+'TRF calcs '!$F18)))) -> 1.264146058 | AA25: =(((('TWP Calcs'!AA$5)*'TWP Calcs'!$A$2*'TRF calcs '!$B18)+'TWP Calcs'!AA$6*('TRF calcs '!$C18+'TRF calcs '!$D18+'TRF calcs '!$E18+'TRF calcs '!$F18))/(('TWP Calcs'!AA$7*'TWP Calcs'!$A$2*'TRF calcs '!$B18)+('TWP Calcs'!AA$8*('TRF calcs '!$C18+'TRF calcs '!$D18+'TRF calcs '!$E18+'TRF calcs '!$F18)))) -> 1.020135813 | AB25: =(((('TWP Calcs'!AB$5)*'TWP Calcs'!$A$2*'TRF calcs '!$B18)+'TWP Calcs'!AB$6*('TRF calcs '!$C18+'TRF calcs '!$D18+'TRF calcs '!$E18+'TRF calcs '!$F18))/(('TWP Calcs'!AB$7*'TWP Calcs'!$A$2*'TRF calcs '!$B18)+('TWP Calcs'!AB$8*('TRF calcs '!$C18+'TRF calcs '!$D18+'TRF calcs '!$E18+'TRF calcs '!$F18)))) -> 0.5320616528 | AC25: =(((('TWP Calcs'!AC$5)*'TWP Calcs'!$A$2*'TRF calcs '!$B18)+'TWP Calcs'!AC$6*('TRF calcs '!$C18+'TRF calcs '!$D18+'TRF calcs '!$E18+'TRF calcs '!$F18))/(('TWP Calcs'!AC$7*'TWP Calcs'!$A$2*'TRF calcs '!$B18)+('TWP Calcs'!AC$8*('TRF calcs '!$C18+'TRF calcs '!$D18+'TRF calcs '!$E18+'TRF calcs '!$F18)))) -> 0.4270026066 | AD25: =(((('TWP Calcs'!AD$5)*'TWP Calcs'!$A$2*'TRF calcs '!$B18)+'TWP Calcs'!AD$6*('TRF calcs '!$C18+'TRF calcs '!$D18+'TRF calcs '!$E18+'TRF calcs '!$F18))/(('TWP Calcs'!AD$7*'TWP Calcs'!$A$2*'TRF calcs '!$B18)+('TWP Calcs'!AD$8*('TRF calcs '!$C18+'TRF calcs '!$D18+'TRF calcs '!$E18+'TRF calcs '!$F18)))) -> 0.2888299113 | AE25: =(((('TWP Calcs'!AE$5)*'TWP Calcs'!$A$2*'TRF calcs '!$B18)+'TWP Calcs'!AE$6*('TRF calcs '!$C18+'TRF calcs '!$D18+'TRF calcs '!$E18+'TRF calcs '!$F18))/(('TWP Calcs'!AE$7*'TWP Calcs'!$A$2*'TRF calcs '!$B18)+('TWP Calcs'!AE$8*('TRF calcs '!$C18+'TRF calcs '!$D18+'TRF calcs '!$E18+'TRF calcs '!$F18)))) -> 0.9283625549 | AF25: =(((('TWP Calcs'!AF$5)*'TWP Calcs'!$A$2*'TRF calcs '!$B18)+'TWP Calcs'!AF$6*('TRF calcs '!$C18+'TRF calcs '!$D18+'TRF calcs '!$E18+'TRF calcs '!$F18))/(('TWP Calcs'!AF$7*'TWP Calcs'!$A$2*'TRF calcs '!$B18)+('TWP Calcs'!AF$8*('TRF calcs '!$C18+'TRF calcs '!$D18+'TRF calcs '!$E18+'TRF calcs '!$F18)))) -> 0.6936801462 | AG25: =(((('TWP Calcs'!AG$5)*'TWP Calcs'!$A$2*'TRF calcs '!$B18)+'TWP Calcs'!AG$6*('TRF calcs '!$C18+'TRF calcs '!$D18+'TRF calcs '!$E18+'TRF calcs '!$F18))/(('TWP Calcs'!AG$7*'TWP Calcs'!$A$2*'TRF calcs '!$B18)+('TWP Calcs'!AG$8*('TRF calcs '!$C18+'TRF calcs '!$D18+'TRF calcs '!$E18+'TRF calcs '!$F18)))) -> 0.997568904 | AH25: 1 | AI25: 0 | AJ25: =(((('TWP Calcs'!AJ$5)*'TWP Calcs'!$A$2*'TRF calcs '!$B18)+'TWP Calcs'!AJ$6*('TRF calcs '!$C18+'TRF calcs '!$D18+'TRF calcs '!$E18+'TRF calcs '!$F18))/(('TWP Calcs'!AJ$7*'TWP Calcs'!$A$2*'TRF calcs '!$B18)+('TWP Calcs'!AJ$8*('TRF calcs '!$C18+'TRF calcs '!$D18+'TRF calcs '!$E18+'TRF calcs '!$F18)))) -> 0.7603794976 | AK25: =(((('TWP Calcs'!AK$5)*'TWP Calcs'!$A$2*'TRF calcs '!$G18)+'TWP Calcs'!AK$6*('TRF calcs '!$H18+'TRF calcs '!$I18+'TRF calcs '!$J18+'TRF calcs '!$K18))/(('TWP Calcs'!AK$7*'TWP Calcs'!$A$2*'TRF calcs '!$G18)+('TWP Calcs'!AK$8*('TRF calcs '!$H18+'TRF calcs '!$I18+'TRF calcs '!$J18+'TRF calcs '!$K18)))) -> 0.7480943825 | AL25: =(((('TWP Calcs'!AL$5)*'TWP Calcs'!$A$2*'TRF calcs '!$L18)+'TWP Calcs'!AL$6*('TRF calcs '!$M18+'TRF calcs '!$N18+'TRF calcs '!$O18+'TRF calcs '!$P18))/(('TWP Calcs'!AL$7*'TWP Calcs'!$A$2*'TRF calcs '!$L18)+('TWP Calcs'!AL$8*('TRF calcs '!$M18+'TRF calcs '!$N18+'TRF calcs '!$O18+'TRF calcs '!$P18)))) -> 0.7578321722
A26: 8 | B26: =(((('TWP Calcs'!B$5)*'TWP Calcs'!$A$2*'TRF calcs '!$B19)+'TWP Calcs'!B$6*('TRF calcs '!$C19+'TRF calcs '!$D19+'TRF calcs '!$E19+'TRF calcs '!$F19))/(('TWP Calcs'!B$7*'TWP Calcs'!$A$2*'TRF calcs '!$B19)+('TWP Calcs'!B$8*('TRF calcs '!$C19+'TRF calcs '!$D19+'TRF calcs '!$E19+'TRF calcs '!$F19)))) -> 1.555622477 | C26: =(((('TWP Calcs'!C$5)*'TWP Calcs'!$A$2*'TRF calcs '!$B19)+'TWP Calcs'!C$6*('TRF calcs '!$C19+'TRF calcs '!$D19+'TRF calcs '!$E19+'TRF calcs '!$F19))/(('TWP Calcs'!C$7*'TWP Calcs'!$A$2*'TRF calcs '!$B19)+('TWP Calcs'!C$8*('TRF calcs '!$C19+'TRF calcs '!$D19+'TRF calcs '!$E19+'TRF calcs '!$F19)))) -> 1.305592362 | D26: =(((('TWP Calcs'!D$5)*'TWP Calcs'!$A$2*'TRF calcs '!$B19)+'TWP Calcs'!D$6*('TRF calcs '!$C19+'TRF calcs '!$D19+'TRF calcs '!$E19+'TRF calcs '!$F19))/(('TWP Calcs'!D$7*'TWP Calcs'!$A$2*'TRF calcs '!$B19)+('TWP Calcs'!D$8*('TRF calcs '!$C19+'TRF calcs '!$D19+'TRF calcs '!$E19+'TRF calcs '!$F19)))) -> 1.386804481 | E26: =(((('TWP Calcs'!E$5)*'TWP Calcs'!$A$2*'TRF calcs '!$G19)+'TWP Calcs'!E$6*('TRF calcs '!$H19+'TRF calcs '!$I19+'TRF calcs '!$J19+'TRF calcs '!$K19))/(('TWP Calcs'!E$7*'TWP Calcs'!$A$2*'TRF calcs '!$G19)+('TWP Calcs'!E$8*('TRF calcs '!$H19+'TRF calcs '!$I19+'TRF calcs '!$J19+'TRF calcs '!$K19)))) -> 1.369475169 | F26: =(((('TWP Calcs'!F$5)*'TWP Calcs'!$A$2*'TRF calcs '!$B19)+'TWP Calcs'!F$6*('TRF calcs '!$C19+'TRF calcs '!$D19+'TRF calcs '!$E19+'TRF calcs '!$F19))/(('TWP Calcs'!F$7*'TWP Calcs'!$A$2*'TRF calcs '!$B19)+('TWP Calcs'!F$8*('TRF calcs '!$C19+'TRF calcs '!$D19+'TRF calcs '!$E19+'TRF calcs '!$F19)))) -> 0.7847367733 | G26: =(((('TWP Calcs'!G$5)*'TWP Calcs'!$A$2*'TRF calcs '!$B19)+'TWP Calcs'!G$6*('TRF calcs '!$C19+'TRF calcs '!$D19+'TRF calcs '!$E19+'TRF calcs '!$F19))/(('TWP Calcs'!G$7*'TWP Calcs'!$A$2*'TRF calcs '!$B19)+('TWP Calcs'!G$8*('TRF calcs '!$C19+'TRF calcs '!$D19+'TRF calcs '!$E19+'TRF calcs '!$F19)))) -> 0.7231778879 | H26: =(((('TWP Calcs'!H$5)*'TWP Calcs'!$A$2*'TRF calcs '!$B19)+'TWP Calcs'!H$6*('TRF calcs '!$C19+'TRF calcs '!$D19+'TRF calcs '!$E19+'TRF calcs '!$F19))/(('TWP Calcs'!H$7*'TWP Calcs'!$A$2*'TRF calcs '!$B19)+('TWP Calcs'!H$8*('TRF calcs '!$C19+'TRF calcs '!$D19+'TRF calcs '!$E19+'TRF calcs '!$F19)))) -> 0.6069438704 | I26: =(((('TWP Calcs'!I$5)*'TWP Calcs'!$A$2*'TRF calcs '!$B19)+'TWP Calcs'!I$6*('TRF calcs '!$C19+'TRF calcs '!$D19+'TRF calcs '!$E19+'TRF calcs '!$F19))/(('TWP Calcs'!I$7*'TWP Calcs'!$A$2*'TRF calcs '!$B19)+('TWP Calcs'!I$8*('TRF calcs '!$C19+'TRF calcs '!$D19+'TRF calcs '!$E19+'TRF calcs '!$F19)))) -> 0.490709853 | J26: =(((('TWP Calcs'!J$5)*'TWP Calcs'!$A$2*'TRF calcs '!$B19)+'TWP Calcs'!J$6*('TRF calcs '!$C19+'TRF calcs '!$D19+'TRF calcs '!$E19+'TRF calcs '!$F19))/(('TWP Calcs'!J$7*'TWP Calcs'!$A$2*'TRF calcs '!$B19)+('TWP Calcs'!J$8*('TRF calcs '!$C19+'TRF calcs '!$D19+'TRF calcs '!$E19+'TRF calcs '!$F19)))) -> 0.7576748615 | K26: =(((('TWP Calcs'!K$5)*'TWP Calcs'!$A$2*'TRF calcs '!$B19)+'TWP Calcs'!K$6*('TRF calcs '!$C19+'TRF calcs '!$D19+'TRF calcs '!$E19+'TRF calcs '!$F19))/(('TWP Calcs'!K$7*'TWP Calcs'!$A$2*'TRF calcs '!$B19)+('TWP Calcs'!K$8*('TRF calcs '!$C19+'TRF calcs '!$D19+'TRF calcs '!$E19+'TRF calcs '!$F19)))) -> 0.6358962583 | L26: =(((('TWP Calcs'!L$5)*'TWP Calcs'!$A$2*'TRF calcs '!$B19)+'TWP Calcs'!L$6*('TRF calcs '!$C19+'TRF calcs '!$D19+'TRF calcs '!$E19+'TRF calcs '!$F19))/(('TWP Calcs'!L$7*'TWP Calcs'!$A$2*'TRF calcs '!$B19)+('TWP Calcs'!L$8*('TRF calcs '!$C19+'TRF calcs '!$D19+'TRF calcs '!$E19+'TRF calcs '!$F19)))) -> 0.4870557432 | M26: =(((('TWP Calcs'!M$5)*'TWP Calcs'!$A$2*'TRF calcs '!$B19)+'TWP Calcs'!M$6*('TRF calcs '!$C19+'TRF calcs '!$D19+'TRF calcs '!$E19+'TRF calcs '!$F19))/(('TWP Calcs'!M$7*'TWP Calcs'!$A$2*'TRF calcs '!$B19)+('TWP Calcs'!M$8*('TRF calcs '!$C19+'TRF calcs '!$D19+'TRF calcs '!$E19+'TRF calcs '!$F19)))) -> 0.5911496734 | N26: =(((('TWP Calcs'!N$5)*'TWP Calcs'!$A$2*'TRF calcs '!$B19)+'TWP Calcs'!N$6*('TRF calcs '!$C19+'TRF calcs '!$D19+'TRF calcs '!$E19+'TRF calcs '!$F19))/(('TWP Calcs'!N$7*'TWP Calcs'!$A$2*'TRF calcs '!$B19)+('TWP Calcs'!N$8*('TRF calcs '!$C19+'TRF calcs '!$D19+'TRF calcs '!$E19+'TRF calcs '!$F19)))) -> 0.4961361192 | O26: =(((('TWP Calcs'!O$5)*'TWP Calcs'!$A$2*'TRF calcs '!$B19)+'TWP Calcs'!O$6*('TRF calcs '!$C19+'TRF calcs '!$D19+'TRF calcs '!$E19+'TRF calcs '!$F19))/(('TWP Calcs'!O$7*'TWP Calcs'!$A$2*'TRF calcs '!$B19)+('TWP Calcs'!O$8*('TRF calcs '!$C19+'TRF calcs '!$D19+'TRF calcs '!$E19+'TRF calcs '!$F19)))) -> 0.4011225649 | P26: =(((('TWP Calcs'!P$5)*'TWP Calcs'!$A$2*'TRF calcs '!$B19)+'TWP Calcs'!P$6*('TRF calcs '!$C19+'TRF calcs '!$D19+'TRF calcs '!$E19+'TRF calcs '!$F19))/(('TWP Calcs'!P$7*'TWP Calcs'!$A$2*'TRF calcs '!$B19)+('TWP Calcs'!P$8*('TRF calcs '!$C19+'TRF calcs '!$D19+'TRF calcs '!$E19+'TRF calcs '!$F19)))) -> 0.8612776504 | Q26: =(((('TWP Calcs'!Q$5)*'TWP Calcs'!$A$2*'TRF calcs '!$B19)+'TWP Calcs'!Q$6*('TRF calcs '!$C19+'TRF calcs '!$D19+'TRF calcs '!$E19+'TRF calcs '!$F19))/(('TWP Calcs'!Q$7*'TWP Calcs'!$A$2*'TRF calcs '!$B19)+('TWP Calcs'!Q$8*('TRF calcs '!$C19+'TRF calcs '!$D19+'TRF calcs '!$E19+'TRF calcs '!$F19)))) -> 0.7228473096 | R26: =(((('TWP Calcs'!R$5)*'TWP Calcs'!$A$2*'TRF calcs '!$B19)+'TWP Calcs'!R$6*('TRF calcs '!$C19+'TRF calcs '!$D19+'TRF calcs '!$E19+'TRF calcs '!$F19))/(('TWP Calcs'!R$7*'TWP Calcs'!$A$2*'TRF calcs '!$B19)+('TWP Calcs'!R$8*('TRF calcs '!$C19+'TRF calcs '!$D19+'TRF calcs '!$E19+'TRF calcs '!$F19)))) -> 0.5844169688 | S26: =(((('TWP Calcs'!S$5)*'TWP Calcs'!$A$2*'TRF calcs '!$B19)+'TWP Calcs'!S$6*('TRF calcs '!$C19+'TRF calcs '!$D19+'TRF calcs '!$E19+'TRF calcs '!$F19))/(('TWP Calcs'!S$7*'TWP Calcs'!$A$2*'TRF calcs '!$B19)+('TWP Calcs'!S$8*('TRF calcs '!$C19+'TRF calcs '!$D19+'TRF calcs '!$E19+'TRF calcs '!$F19)))) -> 0.6080670147 | T26: =(((('TWP Calcs'!T$5)*'TWP Calcs'!$A$2*'TRF calcs '!$B19)+'TWP Calcs'!T$6*('TRF calcs '!$C19+'TRF calcs '!$D19+'TRF calcs '!$E19+'TRF calcs '!$F19))/(('TWP Calcs'!T$7*'TWP Calcs'!$A$2*'TRF calcs '!$B19)+('TWP Calcs'!T$8*('TRF calcs '!$C19+'TRF calcs '!$D19+'TRF calcs '!$E19+'TRF calcs '!$F19)))) -> 0.5103343915 | U26: =(((('TWP Calcs'!U$5)*'TWP Calcs'!$A$2*'TRF calcs '!$B19)+'TWP Calcs'!U$6*('TRF calcs '!$C19+'TRF calcs '!$D19+'TRF calcs '!$E19+'TRF calcs '!$F19))/(('TWP Calcs'!U$7*'TWP Calcs'!$A$2*'TRF calcs '!$B19)+('TWP Calcs'!U$8*('TRF calcs '!$C19+'TRF calcs '!$D19+'TRF calcs '!$E19+'TRF calcs '!$F19)))) -> 0.4126017684 | V26: =(((('TWP Calcs'!V$5)*'TWP Calcs'!$A$2*'TRF calcs '!$B19)+'TWP Calcs'!V$6*('TRF calcs '!$C19+'TRF calcs '!$D19+'TRF calcs '!$E19+'TRF calcs '!$F19))/(('TWP Calcs'!V$7*'TWP Calcs'!$A$2*'TRF calcs '!$B19)+('TWP Calcs'!V$8*('TRF calcs '!$C19+'TRF calcs '!$D19+'TRF calcs '!$E19+'TRF calcs '!$F19)))) -> 1.322021549 | W26: =(((('TWP Calcs'!W$5)*'TWP Calcs'!$A$2*'TRF calcs '!$B19)+'TWP Calcs'!W$6*('TRF calcs '!$C19+'TRF calcs '!$D19+'TRF calcs '!$E19+'TRF calcs '!$F19))/(('TWP Calcs'!W$7*'TWP Calcs'!$A$2*'TRF calcs '!$B19)+('TWP Calcs'!W$8*('TRF calcs '!$C19+'TRF calcs '!$D19+'TRF calcs '!$E19+'TRF calcs '!$F19)))) -> 1.109537348 | X26: =(((('TWP Calcs'!X$5)*'TWP Calcs'!$A$2*'TRF calcs '!$B19)+'TWP Calcs'!X$6*('TRF calcs '!$C19+'TRF calcs '!$D19+'TRF calcs '!$E19+'TRF calcs '!$F19))/(('TWP Calcs'!X$7*'TWP Calcs'!$A$2*'TRF calcs '!$B19)+('TWP Calcs'!X$8*('TRF calcs '!$C19+'TRF calcs '!$D19+'TRF calcs '!$E19+'TRF calcs '!$F19)))) -> 0.8970531464 | Y26: =(((('TWP Calcs'!Y$5)*'TWP Calcs'!$A$2*'TRF calcs '!$B19)+'TWP Calcs'!Y$6*('TRF calcs '!$C19+'TRF calcs '!$D19+'TRF calcs '!$E19+'TRF calcs '!$F19))/(('TWP Calcs'!Y$7*'TWP Calcs'!$A$2*'TRF calcs '!$B19)+('TWP Calcs'!Y$8*('TRF calcs '!$C19+'TRF calcs '!$D19+'TRF calcs '!$E19+'TRF calcs '!$F19)))) -> 1.502791858 | Z26: =(((('TWP Calcs'!Z$5)*'TWP Calcs'!$A$2*'TRF calcs '!$B19)+'TWP Calcs'!Z$6*('TRF calcs '!$C19+'TRF calcs '!$D19+'TRF calcs '!$E19+'TRF calcs '!$F19))/(('TWP Calcs'!Z$7*'TWP Calcs'!$A$2*'TRF calcs '!$B19)+('TWP Calcs'!Z$8*('TRF calcs '!$C19+'TRF calcs '!$D19+'TRF calcs '!$E19+'TRF calcs '!$F19)))) -> 1.261253036 | AA26: =(((('TWP Calcs'!AA$5)*'TWP Calcs'!$A$2*'TRF calcs '!$B19)+'TWP Calcs'!AA$6*('TRF calcs '!$C19+'TRF calcs '!$D19+'TRF calcs '!$E19+'TRF calcs '!$F19))/(('TWP Calcs'!AA$7*'TWP Calcs'!$A$2*'TRF calcs '!$B19)+('TWP Calcs'!AA$8*('TRF calcs '!$C19+'TRF calcs '!$D19+'TRF calcs '!$E19+'TRF calcs '!$F19)))) -> 1.019714214 | AB26: =(((('TWP Calcs'!AB$5)*'TWP Calcs'!$A$2*'TRF calcs '!$B19)+'TWP Calcs'!AB$6*('TRF calcs '!$C19+'TRF calcs '!$D19+'TRF calcs '!$E19+'TRF calcs '!$F19))/(('TWP Calcs'!AB$7*'TWP Calcs'!$A$2*'TRF calcs '!$B19)+('TWP Calcs'!AB$8*('TRF calcs '!$C19+'TRF calcs '!$D19+'TRF calcs '!$E19+'TRF calcs '!$F19)))) -> 0.531541922 | AC26: =(((('TWP Calcs'!AC$5)*'TWP Calcs'!$A$2*'TRF calcs '!$B19)+'TWP Calcs'!AC$6*('TRF calcs '!$C19+'TRF calcs '!$D19+'TRF calcs '!$E19+'TRF calcs '!$F19))/(('TWP Calcs'!AC$7*'TWP Calcs'!$A$2*'TRF calcs '!$B19)+('TWP Calcs'!AC$8*('TRF calcs '!$C19+'TRF calcs '!$D19+'TRF calcs '!$E19+'TRF calcs '!$F19)))) -> 0.4265855001 | AD26: =(((('TWP Calcs'!AD$5)*'TWP Calcs'!$A$2*'TRF calcs '!$B19)+'TWP Calcs'!AD$6*('TRF calcs '!$C19+'TRF calcs '!$D19+'TRF calcs '!$E19+'TRF calcs '!$F19))/(('TWP Calcs'!AD$7*'TWP Calcs'!$A$2*'TRF calcs '!$B19)+('TWP Calcs'!AD$8*('TRF calcs '!$C19+'TRF calcs '!$D19+'TRF calcs '!$E19+'TRF calcs '!$F19)))) -> 0.2894581147 | AE26: =(((('TWP Calcs'!AE$5)*'TWP Calcs'!$A$2*'TRF calcs '!$B19)+'TWP Calcs'!AE$6*('TRF calcs '!$C19+'TRF calcs '!$D19+'TRF calcs '!$E19+'TRF calcs '!$F19))/(('TWP Calcs'!AE$7*'TWP Calcs'!$A$2*'TRF calcs '!$B19)+('TWP Calcs'!AE$8*('TRF calcs '!$C19+'TRF calcs '!$D19+'TRF calcs '!$E19+'TRF calcs '!$F19)))) -> 0.9274557077 | AF26: =(((('TWP Calcs'!AF$5)*'TWP Calcs'!$A$2*'TRF calcs '!$B19)+'TWP Calcs'!AF$6*('TRF calcs '!$C19+'TRF calcs '!$D19+'TRF calcs '!$E19+'TRF calcs '!$F19))/(('TWP Calcs'!AF$7*'TWP Calcs'!$A$2*'TRF calcs '!$B19)+('TWP Calcs'!AF$8*('TRF calcs '!$C19+'TRF calcs '!$D19+'TRF calcs '!$E19+'TRF calcs '!$F19)))) -> 0.6912127567 | AG26: =(((('TWP Calcs'!AG$5)*'TWP Calcs'!$A$2*'TRF calcs '!$B19)+'TWP Calcs'!AG$6*('TRF calcs '!$C19+'TRF calcs '!$D19+'TRF calcs '!$E19+'TRF calcs '!$F19))/(('TWP Calcs'!AG$7*'TWP Calcs'!$A$2*'TRF calcs '!$B19)+('TWP Calcs'!AG$8*('TRF calcs '!$C19+'TRF calcs '!$D19+'TRF calcs '!$E19+'TRF calcs '!$F19)))) -> 0.9940205957 | AH26: 1 | AI26: 0 | AJ26: =(((('TWP Calcs'!AJ$5)*'TWP Calcs'!$A$2*'TRF calcs '!$B19)+'TWP Calcs'!AJ$6*('TRF calcs '!$C19+'TRF calcs '!$D19+'TRF calcs '!$E19+'TRF calcs '!$F19))/(('TWP Calcs'!AJ$7*'TWP Calcs'!$A$2*'TRF calcs '!$B19)+('TWP Calcs'!AJ$8*('TRF calcs '!$C19+'TRF calcs '!$D19+'TRF calcs '!$E19+'TRF calcs '!$F19)))) -> 0.7576748615 | AK26: =(((('TWP Calcs'!AK$5)*'TWP Calcs'!$A$2*'TRF calcs '!$G19)+'TWP Calcs'!AK$6*('TRF calcs '!$H19+'TRF calcs '!$I19+'TRF calcs '!$J19+'TRF calcs '!$K19))/(('TWP Calcs'!AK$7*'TWP Calcs'!$A$2*'TRF calcs '!$G19)+('TWP Calcs'!AK$8*('TRF calcs '!$H19+'TRF calcs '!$I19+'TRF calcs '!$J19+'TRF calcs '!$K19)))) -> 0.7434276309 | AL26: =(((('TWP Calcs'!AL$5)*'TWP Calcs'!$A$2*'TRF calcs '!$L19)+'TWP Calcs'!AL$6*('TRF calcs '!$M19+'TRF calcs '!$N19+'TRF calcs '!$O19+'TRF calcs '!$P19))/(('TWP Calcs'!AL$7*'TWP Calcs'!$A$2*'TRF calcs '!$L19)+('TWP Calcs'!AL$8*('TRF calcs '!$M19+'TRF calcs '!$N19+'TRF calcs '!$O19+'TRF calcs '!$P19)))) -> 0.7551271995
A27: 9 | B27: =(((('TWP Calcs'!B$5)*'TWP Calcs'!$A$2*'TRF calcs '!$B20)+'TWP Calcs'!B$6*('TRF calcs '!$C20+'TRF calcs '!$D20+'TRF calcs '!$E20+'TRF calcs '!$F20))/(('TWP Calcs'!B$7*'TWP Calcs'!$A$2*'TRF calcs '!$B20)+('TWP Calcs'!B$8*('TRF calcs '!$C20+'TRF calcs '!$D20+'TRF calcs '!$E20+'TRF calcs '!$F20)))) -> 1.549626972 | C27: =(((('TWP Calcs'!C$5)*'TWP Calcs'!$A$2*'TRF calcs '!$B20)+'TWP Calcs'!C$6*('TRF calcs '!$C20+'TRF calcs '!$D20+'TRF calcs '!$E20+'TRF calcs '!$F20))/(('TWP Calcs'!C$7*'TWP Calcs'!$A$2*'TRF calcs '!$B20)+('TWP Calcs'!C$8*('TRF calcs '!$C20+'TRF calcs '!$D20+'TRF calcs '!$E20+'TRF calcs '!$F20)))) -> 1.302294835 | D27: =(((('TWP Calcs'!D$5)*'TWP Calcs'!$A$2*'TRF calcs '!$B20)+'TWP Calcs'!D$6*('TRF calcs '!$C20+'TRF calcs '!$D20+'TRF calcs '!$E20+'TRF calcs '!$F20))/(('TWP Calcs'!D$7*'TWP Calcs'!$A$2*'TRF calcs '!$B20)+('TWP Calcs'!D$8*('TRF calcs '!$C20+'TRF calcs '!$D20+'TRF calcs '!$E20+'TRF calcs '!$F20)))) -> 1.382630626 | E27: =(((('TWP Calcs'!E$5)*'TWP Calcs'!$A$2*'TRF calcs '!$G20)+'TWP Calcs'!E$6*('TRF calcs '!$H20+'TRF calcs '!$I20+'TRF calcs '!$J20+'TRF calcs '!$K20))/(('TWP Calcs'!E$7*'TWP Calcs'!$A$2*'TRF calcs '!$G20)+('TWP Calcs'!E$8*('TRF calcs '!$H20+'TRF calcs '!$I20+'TRF calcs '!$J20+'TRF calcs '!$K20)))) -> 1.362375127 | F27: =(((('TWP Calcs'!F$5)*'TWP Calcs'!$A$2*'TRF calcs '!$B20)+'TWP Calcs'!F$6*('TRF calcs '!$C20+'TRF calcs '!$D20+'TRF calcs '!$E20+'TRF calcs '!$F20))/(('TWP Calcs'!F$7*'TWP Calcs'!$A$2*'TRF calcs '!$B20)+('TWP Calcs'!F$8*('TRF calcs '!$C20+'TRF calcs '!$D20+'TRF calcs '!$E20+'TRF calcs '!$F20)))) -> 0.7816321105 | G27: =(((('TWP Calcs'!G$5)*'TWP Calcs'!$A$2*'TRF calcs '!$B20)+'TWP Calcs'!G$6*('TRF calcs '!$C20+'TRF calcs '!$D20+'TRF calcs '!$E20+'TRF calcs '!$F20))/(('TWP Calcs'!G$7*'TWP Calcs'!$A$2*'TRF calcs '!$B20)+('TWP Calcs'!G$8*('TRF calcs '!$C20+'TRF calcs '!$D20+'TRF calcs '!$E20+'TRF calcs '!$F20)))) -> 0.7208841276 | H27: =(((('TWP Calcs'!H$5)*'TWP Calcs'!$A$2*'TRF calcs '!$B20)+'TWP Calcs'!H$6*('TRF calcs '!$C20+'TRF calcs '!$D20+'TRF calcs '!$E20+'TRF calcs '!$F20))/(('TWP Calcs'!H$7*'TWP Calcs'!$A$2*'TRF calcs '!$B20)+('TWP Calcs'!H$8*('TRF calcs '!$C20+'TRF calcs '!$D20+'TRF calcs '!$E20+'TRF calcs '!$F20)))) -> 0.6058255907 | I27: =(((('TWP Calcs'!I$5)*'TWP Calcs'!$A$2*'TRF calcs '!$B20)+'TWP Calcs'!I$6*('TRF calcs '!$C20+'TRF calcs '!$D20+'TRF calcs '!$E20+'TRF calcs '!$F20))/(('TWP Calcs'!I$7*'TWP Calcs'!$A$2*'TRF calcs '!$B20)+('TWP Calcs'!I$8*('TRF calcs '!$C20+'TRF calcs '!$D20+'TRF calcs '!$E20+'TRF calcs '!$F20)))) -> 0.4907670539 | J27: =(((('TWP Calcs'!J$5)*'TWP Calcs'!$A$2*'TRF calcs '!$B20)+'TWP Calcs'!J$6*('TRF calcs '!$C20+'TRF calcs '!$D20+'TRF calcs '!$E20+'TRF calcs '!$F20))/(('TWP Calcs'!J$7*'TWP Calcs'!$A$2*'TRF calcs '!$B20)+('TWP Calcs'!J$8*('TRF calcs '!$C20+'TRF calcs '!$D20+'TRF calcs '!$E20+'TRF calcs '!$F20)))) -> 0.754858531 | K27: =(((('TWP Calcs'!K$5)*'TWP Calcs'!$A$2*'TRF calcs '!$B20)+'TWP Calcs'!K$6*('TRF calcs '!$C20+'TRF calcs '!$D20+'TRF calcs '!$E20+'TRF calcs '!$F20))/(('TWP Calcs'!K$7*'TWP Calcs'!$A$2*'TRF calcs '!$B20)+('TWP Calcs'!K$8*('TRF calcs '!$C20+'TRF calcs '!$D20+'TRF calcs '!$E20+'TRF calcs '!$F20)))) -> 0.6343774235 | L27: =(((('TWP Calcs'!L$5)*'TWP Calcs'!$A$2*'TRF calcs '!$B20)+'TWP Calcs'!L$6*('TRF calcs '!$C20+'TRF calcs '!$D20+'TRF calcs '!$E20+'TRF calcs '!$F20))/(('TWP Calcs'!L$7*'TWP Calcs'!$A$2*'TRF calcs '!$B20)+('TWP Calcs'!L$8*('TRF calcs '!$C20+'TRF calcs '!$D20+'TRF calcs '!$E20+'TRF calcs '!$F20)))) -> 0.4871227365 | M27: =(((('TWP Calcs'!M$5)*'TWP Calcs'!$A$2*'TRF calcs '!$B20)+'TWP Calcs'!M$6*('TRF calcs '!$C20+'TRF calcs '!$D20+'TRF calcs '!$E20+'TRF calcs '!$F20))/(('TWP Calcs'!M$7*'TWP Calcs'!$A$2*'TRF calcs '!$B20)+('TWP Calcs'!M$8*('TRF calcs '!$C20+'TRF calcs '!$D20+'TRF calcs '!$E20+'TRF calcs '!$F20)))) -> 0.590544599 | N27: =(((('TWP Calcs'!N$5)*'TWP Calcs'!$A$2*'TRF calcs '!$B20)+'TWP Calcs'!N$6*('TRF calcs '!$C20+'TRF calcs '!$D20+'TRF calcs '!$E20+'TRF calcs '!$F20))/(('TWP Calcs'!N$7*'TWP Calcs'!$A$2*'TRF calcs '!$B20)+('TWP Calcs'!N$8*('TRF calcs '!$C20+'TRF calcs '!$D20+'TRF calcs '!$E20+'TRF calcs '!$F20)))) -> 0.4962892327 | O27: =(((('TWP Calcs'!O$5)*'TWP Calcs'!$A$2*'TRF calcs '!$B20)+'TWP Calcs'!O$6*('TRF calcs '!$C20+'TRF calcs '!$D20+'TRF calcs '!$E20+'TRF calcs '!$F20))/(('TWP Calcs'!O$7*'TWP Calcs'!$A$2*'TRF calcs '!$B20)+('TWP Calcs'!O$8*('TRF calcs '!$C20+'TRF calcs '!$D20+'TRF calcs '!$E20+'TRF calcs '!$F20)))) -> 0.4020338664 | P27: =(((('TWP Calcs'!P$5)*'TWP Calcs'!$A$2*'TRF calcs '!$B20)+'TWP Calcs'!P$6*('TRF calcs '!$C20+'TRF calcs '!$D20+'TRF calcs '!$E20+'TRF calcs '!$F20))/(('TWP Calcs'!P$7*'TWP Calcs'!$A$2*'TRF calcs '!$B20)+('TWP Calcs'!P$8*('TRF calcs '!$C20+'TRF calcs '!$D20+'TRF calcs '!$E20+'TRF calcs '!$F20)))) -> 0.8580762211 | Q27: =(((('TWP Calcs'!Q$5)*'TWP Calcs'!$A$2*'TRF calcs '!$B20)+'TWP Calcs'!Q$6*('TRF calcs '!$C20+'TRF calcs '!$D20+'TRF calcs '!$E20+'TRF calcs '!$F20))/(('TWP Calcs'!Q$7*'TWP Calcs'!$A$2*'TRF calcs '!$B20)+('TWP Calcs'!Q$8*('TRF calcs '!$C20+'TRF calcs '!$D20+'TRF calcs '!$E20+'TRF calcs '!$F20)))) -> 0.7211207927 | R27: =(((('TWP Calcs'!R$5)*'TWP Calcs'!$A$2*'TRF calcs '!$B20)+'TWP Calcs'!R$6*('TRF calcs '!$C20+'TRF calcs '!$D20+'TRF calcs '!$E20+'TRF calcs '!$F20))/(('TWP Calcs'!R$7*'TWP Calcs'!$A$2*'TRF calcs '!$B20)+('TWP Calcs'!R$8*('TRF calcs '!$C20+'TRF calcs '!$D20+'TRF calcs '!$E20+'TRF calcs '!$F20)))) -> 0.5841653643 | S27: =(((('TWP Calcs'!S$5)*'TWP Calcs'!$A$2*'TRF calcs '!$B20)+'TWP Calcs'!S$6*('TRF calcs '!$C20+'TRF calcs '!$D20+'TRF calcs '!$E20+'TRF calcs '!$F20))/(('TWP Calcs'!S$7*'TWP Calcs'!$A$2*'TRF calcs '!$B20)+('TWP Calcs'!S$8*('TRF calcs '!$C20+'TRF calcs '!$D20+'TRF calcs '!$E20+'TRF calcs '!$F20)))) -> 0.6058067871 | T27: =(((('TWP Calcs'!T$5)*'TWP Calcs'!$A$2*'TRF calcs '!$B20)+'TWP Calcs'!T$6*('TRF calcs '!$C20+'TRF calcs '!$D20+'TRF calcs '!$E20+'TRF calcs '!$F20))/(('TWP Calcs'!T$7*'TWP Calcs'!$A$2*'TRF calcs '!$B20)+('TWP Calcs'!T$8*('TRF calcs '!$C20+'TRF calcs '!$D20+'TRF calcs '!$E20+'TRF calcs '!$F20)))) -> 0.5091154606 | U27: =(((('TWP Calcs'!U$5)*'TWP Calcs'!$A$2*'TRF calcs '!$B20)+'TWP Calcs'!U$6*('TRF calcs '!$C20+'TRF calcs '!$D20+'TRF calcs '!$E20+'TRF calcs '!$F20))/(('TWP Calcs'!U$7*'TWP Calcs'!$A$2*'TRF calcs '!$B20)+('TWP Calcs'!U$8*('TRF calcs '!$C20+'TRF calcs '!$D20+'TRF calcs '!$E20+'TRF calcs '!$F20)))) -> 0.4124241341 | V27: =(((('TWP Calcs'!V$5)*'TWP Calcs'!$A$2*'TRF calcs '!$B20)+'TWP Calcs'!V$6*('TRF calcs '!$C20+'TRF calcs '!$D20+'TRF calcs '!$E20+'TRF calcs '!$F20))/(('TWP Calcs'!V$7*'TWP Calcs'!$A$2*'TRF calcs '!$B20)+('TWP Calcs'!V$8*('TRF calcs '!$C20+'TRF calcs '!$D20+'TRF calcs '!$E20+'TRF calcs '!$F20)))) -> 1.317107502 | W27: =(((('TWP Calcs'!W$5)*'TWP Calcs'!$A$2*'TRF calcs '!$B20)+'TWP Calcs'!W$6*('TRF calcs '!$C20+'TRF calcs '!$D20+'TRF calcs '!$E20+'TRF calcs '!$F20))/(('TWP Calcs'!W$7*'TWP Calcs'!$A$2*'TRF calcs '!$B20)+('TWP Calcs'!W$8*('TRF calcs '!$C20+'TRF calcs '!$D20+'TRF calcs '!$E20+'TRF calcs '!$F20)))) -> 1.106887224 | X27: =(((('TWP Calcs'!X$5)*'TWP Calcs'!$A$2*'TRF calcs '!$B20)+'TWP Calcs'!X$6*('TRF calcs '!$C20+'TRF calcs '!$D20+'TRF calcs '!$E20+'TRF calcs '!$F20))/(('TWP Calcs'!X$7*'TWP Calcs'!$A$2*'TRF calcs '!$B20)+('TWP Calcs'!X$8*('TRF calcs '!$C20+'TRF calcs '!$D20+'TRF calcs '!$E20+'TRF calcs '!$F20)))) -> 0.8966669451 | Y27: =(((('TWP Calcs'!Y$5)*'TWP Calcs'!$A$2*'TRF calcs '!$B20)+'TWP Calcs'!Y$6*('TRF calcs '!$C20+'TRF calcs '!$D20+'TRF calcs '!$E20+'TRF calcs '!$F20))/(('TWP Calcs'!Y$7*'TWP Calcs'!$A$2*'TRF calcs '!$B20)+('TWP Calcs'!Y$8*('TRF calcs '!$C20+'TRF calcs '!$D20+'TRF calcs '!$E20+'TRF calcs '!$F20)))) -> 1.497205876 | Z27: =(((('TWP Calcs'!Z$5)*'TWP Calcs'!$A$2*'TRF calcs '!$B20)+'TWP Calcs'!Z$6*('TRF calcs '!$C20+'TRF calcs '!$D20+'TRF calcs '!$E20+'TRF calcs '!$F20))/(('TWP Calcs'!Z$7*'TWP Calcs'!$A$2*'TRF calcs '!$B20)+('TWP Calcs'!Z$8*('TRF calcs '!$C20+'TRF calcs '!$D20+'TRF calcs '!$E20+'TRF calcs '!$F20)))) -> 1.25824054 | AA27: =(((('TWP Calcs'!AA$5)*'TWP Calcs'!$A$2*'TRF calcs '!$B20)+'TWP Calcs'!AA$6*('TRF calcs '!$C20+'TRF calcs '!$D20+'TRF calcs '!$E20+'TRF calcs '!$F20))/(('TWP Calcs'!AA$7*'TWP Calcs'!$A$2*'TRF calcs '!$B20)+('TWP Calcs'!AA$8*('TRF calcs '!$C20+'TRF calcs '!$D20+'TRF calcs '!$E20+'TRF calcs '!$F20)))) -> 1.019275205 | AB27: =(((('TWP Calcs'!AB$5)*'TWP Calcs'!$A$2*'TRF calcs '!$B20)+'TWP Calcs'!AB$6*('TRF calcs '!$C20+'TRF calcs '!$D20+'TRF calcs '!$E20+'TRF calcs '!$F20))/(('TWP Calcs'!AB$7*'TWP Calcs'!$A$2*'TRF calcs '!$B20)+('TWP Calcs'!AB$8*('TRF calcs '!$C20+'TRF calcs '!$D20+'TRF calcs '!$E20+'TRF calcs '!$F20)))) -> 0.5309978594 | AC27: =(((('TWP Calcs'!AC$5)*'TWP Calcs'!$A$2*'TRF calcs '!$B20)+'TWP Calcs'!AC$6*('TRF calcs '!$C20+'TRF calcs '!$D20+'TRF calcs '!$E20+'TRF calcs '!$F20))/(('TWP Calcs'!AC$7*'TWP Calcs'!$A$2*'TRF calcs '!$B20)+('TWP Calcs'!AC$8*('TRF calcs '!$C20+'TRF calcs '!$D20+'TRF calcs '!$E20+'TRF calcs '!$F20)))) -> 0.4261488662 | AD27: =(((('TWP Calcs'!AD$5)*'TWP Calcs'!$A$2*'TRF calcs '!$B20)+'TWP Calcs'!AD$6*('TRF calcs '!$C20+'TRF calcs '!$D20+'TRF calcs '!$E20+'TRF calcs '!$F20))/(('TWP Calcs'!AD$7*'TWP Calcs'!$A$2*'TRF calcs '!$B20)+('TWP Calcs'!AD$8*('TRF calcs '!$C20+'TRF calcs '!$D20+'TRF calcs '!$E20+'TRF calcs '!$F20)))) -> 0.2901157282 | AE27: =(((('TWP Calcs'!AE$5)*'TWP Calcs'!$A$2*'TRF calcs '!$B20)+'TWP Calcs'!AE$6*('TRF calcs '!$C20+'TRF calcs '!$D20+'TRF calcs '!$E20+'TRF calcs '!$F20))/(('TWP Calcs'!AE$7*'TWP Calcs'!$A$2*'TRF calcs '!$B20)+('TWP Calcs'!AE$8*('TRF calcs '!$C20+'TRF calcs '!$D20+'TRF calcs '!$E20+'TRF calcs '!$F20)))) -> 0.9265064055 | AF27: =(((('TWP Calcs'!AF$5)*'TWP Calcs'!$A$2*'TRF calcs '!$B20)+'TWP Calcs'!AF$6*('TRF calcs '!$C20+'TRF calcs '!$D20+'TRF calcs '!$E20+'TRF calcs '!$F20))/(('TWP Calcs'!AF$7*'TWP Calcs'!$A$2*'TRF calcs '!$B20)+('TWP Calcs'!AF$8*('TRF calcs '!$C20+'TRF calcs '!$D20+'TRF calcs '!$E20+'TRF calcs '!$F20)))) -> 0.6886434705 | AG27: =(((('TWP Calcs'!AG$5)*'TWP Calcs'!$A$2*'TRF calcs '!$B20)+'TWP Calcs'!AG$6*('TRF calcs '!$C20+'TRF calcs '!$D20+'TRF calcs '!$E20+'TRF calcs '!$F20))/(('TWP Calcs'!AG$7*'TWP Calcs'!$A$2*'TRF calcs '!$B20)+('TWP Calcs'!AG$8*('TRF calcs '!$C20+'TRF calcs '!$D20+'TRF calcs '!$E20+'TRF calcs '!$F20)))) -> 0.9903257516 | AH27: 1 | AI27: 0 | AJ27: =(((('TWP Calcs'!AJ$5)*'TWP Calcs'!$A$2*'TRF calcs '!$B20)+'TWP Calcs'!AJ$6*('TRF calcs '!$C20+'TRF calcs '!$D20+'TRF calcs '!$E20+'TRF calcs '!$F20))/(('TWP Calcs'!AJ$7*'TWP Calcs'!$A$2*'TRF calcs '!$B20)+('TWP Calcs'!AJ$8*('TRF calcs '!$C20+'TRF calcs '!$D20+'TRF calcs '!$E20+'TRF calcs '!$F20)))) -> 0.754858531 | AK27: =(((('TWP Calcs'!AK$5)*'TWP Calcs'!$A$2*'TRF calcs '!$G20)+'TWP Calcs'!AK$6*('TRF calcs '!$H20+'TRF calcs '!$I20+'TRF calcs '!$J20+'TRF calcs '!$K20))/(('TWP Calcs'!AK$7*'TWP Calcs'!$A$2*'TRF calcs '!$G20)+('TWP Calcs'!AK$8*('TRF calcs '!$H20+'TRF calcs '!$I20+'TRF calcs '!$J20+'TRF calcs '!$K20)))) -> 0.7386303057 | AL27: =(((('TWP Calcs'!AL$5)*'TWP Calcs'!$A$2*'TRF calcs '!$L20)+'TWP Calcs'!AL$6*('TRF calcs '!$M20+'TRF calcs '!$N20+'TRF calcs '!$O20+'TRF calcs '!$P20))/(('TWP Calcs'!AL$7*'TWP Calcs'!$A$2*'TRF calcs '!$L20)+('TWP Calcs'!AL$8*('TRF calcs '!$M20+'TRF calcs '!$N20+'TRF calcs '!$O20+'TRF calcs '!$P20)))) -> 0.7523105186
A28: 10 | B28: =(((('TWP Calcs'!B$5)*'TWP Calcs'!$A$2*'TRF calcs '!$B21)+'TWP Calcs'!B$6*('TRF calcs '!$C21+'TRF calcs '!$D21+'TRF calcs '!$E21+'TRF calcs '!$F21))/(('TWP Calcs'!B$7*'TWP Calcs'!$A$2*'TRF calcs '!$B21)+('TWP Calcs'!B$8*('TRF calcs '!$C21+'TRF calcs '!$D21+'TRF calcs '!$E21+'TRF calcs '!$F21)))) -> 1.543446107 | C28: =(((('TWP Calcs'!C$5)*'TWP Calcs'!$A$2*'TRF calcs '!$B21)+'TWP Calcs'!C$6*('TRF calcs '!$C21+'TRF calcs '!$D21+'TRF calcs '!$E21+'TRF calcs '!$F21))/(('TWP Calcs'!C$7*'TWP Calcs'!$A$2*'TRF calcs '!$B21)+('TWP Calcs'!C$8*('TRF calcs '!$C21+'TRF calcs '!$D21+'TRF calcs '!$E21+'TRF calcs '!$F21)))) -> 1.298895359 | D28: =(((('TWP Calcs'!D$5)*'TWP Calcs'!$A$2*'TRF calcs '!$B21)+'TWP Calcs'!D$6*('TRF calcs '!$C21+'TRF calcs '!$D21+'TRF calcs '!$E21+'TRF calcs '!$F21))/(('TWP Calcs'!D$7*'TWP Calcs'!$A$2*'TRF calcs '!$B21)+('TWP Calcs'!D$8*('TRF calcs '!$C21+'TRF calcs '!$D21+'TRF calcs '!$E21+'TRF calcs '!$F21)))) -> 1.378327729 | E28: =(((('TWP Calcs'!E$5)*'TWP Calcs'!$A$2*'TRF calcs '!$G21)+'TWP Calcs'!E$6*('TRF calcs '!$H21+'TRF calcs '!$I21+'TRF calcs '!$J21+'TRF calcs '!$K21))/(('TWP Calcs'!E$7*'TWP Calcs'!$A$2*'TRF calcs '!$G21)+('TWP Calcs'!E$8*('TRF calcs '!$H21+'TRF calcs '!$I21+'TRF calcs '!$J21+'TRF calcs '!$K21)))) -> 1.355158879 | F28: =(((('TWP Calcs'!F$5)*'TWP Calcs'!$A$2*'TRF calcs '!$B21)+'TWP Calcs'!F$6*('TRF calcs '!$C21+'TRF calcs '!$D21+'TRF calcs '!$E21+'TRF calcs '!$F21))/(('TWP Calcs'!F$7*'TWP Calcs'!$A$2*'TRF calcs '!$B21)+('TWP Calcs'!F$8*('TRF calcs '!$C21+'TRF calcs '!$D21+'TRF calcs '!$E21+'TRF calcs '!$F21)))) -> 0.7784305683 | G28: =(((('TWP Calcs'!G$5)*'TWP Calcs'!$A$2*'TRF calcs '!$B21)+'TWP Calcs'!G$6*('TRF calcs '!$C21+'TRF calcs '!$D21+'TRF calcs '!$E21+'TRF calcs '!$F21))/(('TWP Calcs'!G$7*'TWP Calcs'!$A$2*'TRF calcs '!$B21)+('TWP Calcs'!G$8*('TRF calcs '!$C21+'TRF calcs '!$D21+'TRF calcs '!$E21+'TRF calcs '!$F21)))) -> 0.7185161606 | H28: =(((('TWP Calcs'!H$5)*'TWP Calcs'!$A$2*'TRF calcs '!$B21)+'TWP Calcs'!H$6*('TRF calcs '!$C21+'TRF calcs '!$D21+'TRF calcs '!$E21+'TRF calcs '!$F21))/(('TWP Calcs'!H$7*'TWP Calcs'!$A$2*'TRF calcs '!$B21)+('TWP Calcs'!H$8*('TRF calcs '!$C21+'TRF calcs '!$D21+'TRF calcs '!$E21+'TRF calcs '!$F21)))) -> 0.604671133 | I28: =(((('TWP Calcs'!I$5)*'TWP Calcs'!$A$2*'TRF calcs '!$B21)+'TWP Calcs'!I$6*('TRF calcs '!$C21+'TRF calcs '!$D21+'TRF calcs '!$E21+'TRF calcs '!$F21))/(('TWP Calcs'!I$7*'TWP Calcs'!$A$2*'TRF calcs '!$B21)+('TWP Calcs'!I$8*('TRF calcs '!$C21+'TRF calcs '!$D21+'TRF calcs '!$E21+'TRF calcs '!$F21)))) -> 0.4908261053 | J28: =(((('TWP Calcs'!J$5)*'TWP Calcs'!$A$2*'TRF calcs '!$B21)+'TWP Calcs'!J$6*('TRF calcs '!$C21+'TRF calcs '!$D21+'TRF calcs '!$E21+'TRF calcs '!$F21))/(('TWP Calcs'!J$7*'TWP Calcs'!$A$2*'TRF calcs '!$B21)+('TWP Calcs'!J$8*('TRF calcs '!$C21+'TRF calcs '!$D21+'TRF calcs '!$E21+'TRF calcs '!$F21)))) -> 0.7519543185 | K28: =(((('TWP Calcs'!K$5)*'TWP Calcs'!$A$2*'TRF calcs '!$B21)+'TWP Calcs'!K$6*('TRF calcs '!$C21+'TRF calcs '!$D21+'TRF calcs '!$E21+'TRF calcs '!$F21))/(('TWP Calcs'!K$7*'TWP Calcs'!$A$2*'TRF calcs '!$B21)+('TWP Calcs'!K$8*('TRF calcs '!$C21+'TRF calcs '!$D21+'TRF calcs '!$E21+'TRF calcs '!$F21)))) -> 0.6328111943 | L28: =(((('TWP Calcs'!L$5)*'TWP Calcs'!$A$2*'TRF calcs '!$B21)+'TWP Calcs'!L$6*('TRF calcs '!$C21+'TRF calcs '!$D21+'TRF calcs '!$E21+'TRF calcs '!$F21))/(('TWP Calcs'!L$7*'TWP Calcs'!$A$2*'TRF calcs '!$B21)+('TWP Calcs'!L$8*('TRF calcs '!$C21+'TRF calcs '!$D21+'TRF calcs '!$E21+'TRF calcs '!$F21)))) -> 0.4871918202 | M28: =(((('TWP Calcs'!M$5)*'TWP Calcs'!$A$2*'TRF calcs '!$B21)+'TWP Calcs'!M$6*('TRF calcs '!$C21+'TRF calcs '!$D21+'TRF calcs '!$E21+'TRF calcs '!$F21))/(('TWP Calcs'!M$7*'TWP Calcs'!$A$2*'TRF calcs '!$B21)+('TWP Calcs'!M$8*('TRF calcs '!$C21+'TRF calcs '!$D21+'TRF calcs '!$E21+'TRF calcs '!$F21)))) -> 0.5899172075 | N28: =(((('TWP Calcs'!N$5)*'TWP Calcs'!$A$2*'TRF calcs '!$B21)+'TWP Calcs'!N$6*('TRF calcs '!$C21+'TRF calcs '!$D21+'TRF calcs '!$E21+'TRF calcs '!$F21))/(('TWP Calcs'!N$7*'TWP Calcs'!$A$2*'TRF calcs '!$B21)+('TWP Calcs'!N$8*('TRF calcs '!$C21+'TRF calcs '!$D21+'TRF calcs '!$E21+'TRF calcs '!$F21)))) -> 0.4964479935 | O28: =(((('TWP Calcs'!O$5)*'TWP Calcs'!$A$2*'TRF calcs '!$B21)+'TWP Calcs'!O$6*('TRF calcs '!$C21+'TRF calcs '!$D21+'TRF calcs '!$E21+'TRF calcs '!$F21))/(('TWP Calcs'!O$7*'TWP Calcs'!$A$2*'TRF calcs '!$B21)+('TWP Calcs'!O$8*('TRF calcs '!$C21+'TRF calcs '!$D21+'TRF calcs '!$E21+'TRF calcs '!$F21)))) -> 0.4029787795 | P28: =(((('TWP Calcs'!P$5)*'TWP Calcs'!$A$2*'TRF calcs '!$B21)+'TWP Calcs'!P$6*('TRF calcs '!$C21+'TRF calcs '!$D21+'TRF calcs '!$E21+'TRF calcs '!$F21))/(('TWP Calcs'!P$7*'TWP Calcs'!$A$2*'TRF calcs '!$B21)+('TWP Calcs'!P$8*('TRF calcs '!$C21+'TRF calcs '!$D21+'TRF calcs '!$E21+'TRF calcs '!$F21)))) -> 0.8547748929 | Q28: =(((('TWP Calcs'!Q$5)*'TWP Calcs'!$A$2*'TRF calcs '!$B21)+'TWP Calcs'!Q$6*('TRF calcs '!$C21+'TRF calcs '!$D21+'TRF calcs '!$E21+'TRF calcs '!$F21))/(('TWP Calcs'!Q$7*'TWP Calcs'!$A$2*'TRF calcs '!$B21)+('TWP Calcs'!Q$8*('TRF calcs '!$C21+'TRF calcs '!$D21+'TRF calcs '!$E21+'TRF calcs '!$F21)))) -> 0.7193404008 | R28: =(((('TWP Calcs'!R$5)*'TWP Calcs'!$A$2*'TRF calcs '!$B21)+'TWP Calcs'!R$6*('TRF calcs '!$C21+'TRF calcs '!$D21+'TRF calcs '!$E21+'TRF calcs '!$F21))/(('TWP Calcs'!R$7*'TWP Calcs'!$A$2*'TRF calcs '!$B21)+('TWP Calcs'!R$8*('TRF calcs '!$C21+'TRF calcs '!$D21+'TRF calcs '!$E21+'TRF calcs '!$F21)))) -> 0.5839059086 | S28: =(((('TWP Calcs'!S$5)*'TWP Calcs'!$A$2*'TRF calcs '!$B21)+'TWP Calcs'!S$6*('TRF calcs '!$C21+'TRF calcs '!$D21+'TRF calcs '!$E21+'TRF calcs '!$F21))/(('TWP Calcs'!S$7*'TWP Calcs'!$A$2*'TRF calcs '!$B21)+('TWP Calcs'!S$8*('TRF calcs '!$C21+'TRF calcs '!$D21+'TRF calcs '!$E21+'TRF calcs '!$F21)))) -> 0.6034760303 | T28: =(((('TWP Calcs'!T$5)*'TWP Calcs'!$A$2*'TRF calcs '!$B21)+'TWP Calcs'!T$6*('TRF calcs '!$C21+'TRF calcs '!$D21+'TRF calcs '!$E21+'TRF calcs '!$F21))/(('TWP Calcs'!T$7*'TWP Calcs'!$A$2*'TRF calcs '!$B21)+('TWP Calcs'!T$8*('TRF calcs '!$C21+'TRF calcs '!$D21+'TRF calcs '!$E21+'TRF calcs '!$F21)))) -> 0.5078584936 | U28: =(((('TWP Calcs'!U$5)*'TWP Calcs'!$A$2*'TRF calcs '!$B21)+'TWP Calcs'!U$6*('TRF calcs '!$C21+'TRF calcs '!$D21+'TRF calcs '!$E21+'TRF calcs '!$F21))/(('TWP Calcs'!U$7*'TWP Calcs'!$A$2*'TRF calcs '!$B21)+('TWP Calcs'!U$8*('TRF calcs '!$C21+'TRF calcs '!$D21+'TRF calcs '!$E21+'TRF calcs '!$F21)))) -> 0.4122409569 | V28: =(((('TWP Calcs'!V$5)*'TWP Calcs'!$A$2*'TRF calcs '!$B21)+'TWP Calcs'!V$6*('TRF calcs '!$C21+'TRF calcs '!$D21+'TRF calcs '!$E21+'TRF calcs '!$F21))/(('TWP Calcs'!V$7*'TWP Calcs'!$A$2*'TRF calcs '!$B21)+('TWP Calcs'!V$8*('TRF calcs '!$C21+'TRF calcs '!$D21+'TRF calcs '!$E21+'TRF calcs '!$F21)))) -> 1.312040115 | W28: =(((('TWP Calcs'!W$5)*'TWP Calcs'!$A$2*'TRF calcs '!$B21)+'TWP Calcs'!W$6*('TRF calcs '!$C21+'TRF calcs '!$D21+'TRF calcs '!$E21+'TRF calcs '!$F21))/(('TWP Calcs'!W$7*'TWP Calcs'!$A$2*'TRF calcs '!$B21)+('TWP Calcs'!W$8*('TRF calcs '!$C21+'TRF calcs '!$D21+'TRF calcs '!$E21+'TRF calcs '!$F21)))) -> 1.104154404 | X28: =(((('TWP Calcs'!X$5)*'TWP Calcs'!$A$2*'TRF calcs '!$B21)+'TWP Calcs'!X$6*('TRF calcs '!$C21+'TRF calcs '!$D21+'TRF calcs '!$E21+'TRF calcs '!$F21))/(('TWP Calcs'!X$7*'TWP Calcs'!$A$2*'TRF calcs '!$B21)+('TWP Calcs'!X$8*('TRF calcs '!$C21+'TRF calcs '!$D21+'TRF calcs '!$E21+'TRF calcs '!$F21)))) -> 0.8962686925 | Y28: =(((('TWP Calcs'!Y$5)*'TWP Calcs'!$A$2*'TRF calcs '!$B21)+'TWP Calcs'!Y$6*('TRF calcs '!$C21+'TRF calcs '!$D21+'TRF calcs '!$E21+'TRF calcs '!$F21))/(('TWP Calcs'!Y$7*'TWP Calcs'!$A$2*'TRF calcs '!$B21)+('TWP Calcs'!Y$8*('TRF calcs '!$C21+'TRF calcs '!$D21+'TRF calcs '!$E21+'TRF calcs '!$F21)))) -> 1.491445586 | Z28: =(((('TWP Calcs'!Z$5)*'TWP Calcs'!$A$2*'TRF calcs '!$B21)+'TWP Calcs'!Z$6*('TRF calcs '!$C21+'TRF calcs '!$D21+'TRF calcs '!$E21+'TRF calcs '!$F21))/(('TWP Calcs'!Z$7*'TWP Calcs'!$A$2*'TRF calcs '!$B21)+('TWP Calcs'!Z$8*('TRF calcs '!$C21+'TRF calcs '!$D21+'TRF calcs '!$E21+'TRF calcs '!$F21)))) -> 1.255134041 | AA28: =(((('TWP Calcs'!AA$5)*'TWP Calcs'!$A$2*'TRF calcs '!$B21)+'TWP Calcs'!AA$6*('TRF calcs '!$C21+'TRF calcs '!$D21+'TRF calcs '!$E21+'TRF calcs '!$F21))/(('TWP Calcs'!AA$7*'TWP Calcs'!$A$2*'TRF calcs '!$B21)+('TWP Calcs'!AA$8*('TRF calcs '!$C21+'TRF calcs '!$D21+'TRF calcs '!$E21+'TRF calcs '!$F21)))) -> 1.018822496 | AB28: =(((('TWP Calcs'!AB$5)*'TWP Calcs'!$A$2*'TRF calcs '!$B21)+'TWP Calcs'!AB$6*('TRF calcs '!$C21+'TRF calcs '!$D21+'TRF calcs '!$E21+'TRF calcs '!$F21))/(('TWP Calcs'!AB$7*'TWP Calcs'!$A$2*'TRF calcs '!$B21)+('TWP Calcs'!AB$8*('TRF calcs '!$C21+'TRF calcs '!$D21+'TRF calcs '!$E21+'TRF calcs '!$F21)))) -> 0.5304337301 | AC28: =(((('TWP Calcs'!AC$5)*'TWP Calcs'!$A$2*'TRF calcs '!$B21)+'TWP Calcs'!AC$6*('TRF calcs '!$C21+'TRF calcs '!$D21+'TRF calcs '!$E21+'TRF calcs '!$F21))/(('TWP Calcs'!AC$7*'TWP Calcs'!$A$2*'TRF calcs '!$B21)+('TWP Calcs'!AC$8*('TRF calcs '!$C21+'TRF calcs '!$D21+'TRF calcs '!$E21+'TRF calcs '!$F21)))) -> 0.4256961279 | AD28: =(((('TWP Calcs'!AD$5)*'TWP Calcs'!$A$2*'TRF calcs '!$B21)+'TWP Calcs'!AD$6*('TRF calcs '!$C21+'TRF calcs '!$D21+'TRF calcs '!$E21+'TRF calcs '!$F21))/(('TWP Calcs'!AD$7*'TWP Calcs'!$A$2*'TRF calcs '!$B21)+('TWP Calcs'!AD$8*('TRF calcs '!$C21+'TRF calcs '!$D21+'TRF calcs '!$E21+'TRF calcs '!$F21)))) -> 0.2907975965 | AE28: =(((('TWP Calcs'!AE$5)*'TWP Calcs'!$A$2*'TRF calcs '!$B21)+'TWP Calcs'!AE$6*('TRF calcs '!$C21+'TRF calcs '!$D21+'TRF calcs '!$E21+'TRF calcs '!$F21))/(('TWP Calcs'!AE$7*'TWP Calcs'!$A$2*'TRF calcs '!$B21)+('TWP Calcs'!AE$8*('TRF calcs '!$C21+'TRF calcs '!$D21+'TRF calcs '!$E21+'TRF calcs '!$F21)))) -> 0.92552209 | AF28: =(((('TWP Calcs'!AF$5)*'TWP Calcs'!$A$2*'TRF calcs '!$B21)+'TWP Calcs'!AF$6*('TRF calcs '!$C21+'TRF calcs '!$D21+'TRF calcs '!$E21+'TRF calcs '!$F21))/(('TWP Calcs'!AF$7*'TWP Calcs'!$A$2*'TRF calcs '!$B21)+('TWP Calcs'!AF$8*('TRF calcs '!$C21+'TRF calcs '!$D21+'TRF calcs '!$E21+'TRF calcs '!$F21)))) -> 0.6859940112 | AG28: =(((('TWP Calcs'!AG$5)*'TWP Calcs'!$A$2*'TRF calcs '!$B21)+'TWP Calcs'!AG$6*('TRF calcs '!$C21+'TRF calcs '!$D21+'TRF calcs '!$E21+'TRF calcs '!$F21))/(('TWP Calcs'!AG$7*'TWP Calcs'!$A$2*'TRF calcs '!$B21)+('TWP Calcs'!AG$8*('TRF calcs '!$C21+'TRF calcs '!$D21+'TRF calcs '!$E21+'TRF calcs '!$F21)))) -> 0.9865156119 | AH28: 1 | AI28: 0 | AJ28: =(((('TWP Calcs'!AJ$5)*'TWP Calcs'!$A$2*'TRF calcs '!$B21)+'TWP Calcs'!AJ$6*('TRF calcs '!$C21+'TRF calcs '!$D21+'TRF calcs '!$E21+'TRF calcs '!$F21))/(('TWP Calcs'!AJ$7*'TWP Calcs'!$A$2*'TRF calcs '!$B21)+('TWP Calcs'!AJ$8*('TRF calcs '!$C21+'TRF calcs '!$D21+'TRF calcs '!$E21+'TRF calcs '!$F21)))) -> 0.7519543185 | AK28: =(((('TWP Calcs'!AK$5)*'TWP Calcs'!$A$2*'TRF calcs '!$G21)+'TWP Calcs'!AK$6*('TRF calcs '!$H21+'TRF calcs '!$I21+'TRF calcs '!$J21+'TRF calcs '!$K21))/(('TWP Calcs'!AK$7*'TWP Calcs'!$A$2*'TRF calcs '!$G21)+('TWP Calcs'!AK$8*('TRF calcs '!$H21+'TRF calcs '!$I21+'TRF calcs '!$J21+'TRF calcs '!$K21)))) -> 0.7337521603 | AL28: =(((('TWP Calcs'!AL$5)*'TWP Calcs'!$A$2*'TRF calcs '!$L21)+'TWP Calcs'!AL$6*('TRF calcs '!$M21+'TRF calcs '!$N21+'TRF calcs '!$O21+'TRF calcs '!$P21))/(('TWP Calcs'!AL$7*'TWP Calcs'!$A$2*'TRF calcs '!$L21)+('TWP Calcs'!AL$8*('TRF calcs '!$M21+'TRF calcs '!$N21+'TRF calcs '!$O21+'TRF calcs '!$P21)))) -> 0.7494059447
A29: 11 | B29: =(((('TWP Calcs'!B$5)*'TWP Calcs'!$A$2*'TRF calcs '!$B22)+'TWP Calcs'!B$6*('TRF calcs '!$C22+'TRF calcs '!$D22+'TRF calcs '!$E22+'TRF calcs '!$F22))/(('TWP Calcs'!B$7*'TWP Calcs'!$A$2*'TRF calcs '!$B22)+('TWP Calcs'!B$8*('TRF calcs '!$C22+'TRF calcs '!$D22+'TRF calcs '!$E22+'TRF calcs '!$F22)))) -> 1.537124485 | C29: =(((('TWP Calcs'!C$5)*'TWP Calcs'!$A$2*'TRF calcs '!$B22)+'TWP Calcs'!C$6*('TRF calcs '!$C22+'TRF calcs '!$D22+'TRF calcs '!$E22+'TRF calcs '!$F22))/(('TWP Calcs'!C$7*'TWP Calcs'!$A$2*'TRF calcs '!$B22)+('TWP Calcs'!C$8*('TRF calcs '!$C22+'TRF calcs '!$D22+'TRF calcs '!$E22+'TRF calcs '!$F22)))) -> 1.295418467 | D29: =(((('TWP Calcs'!D$5)*'TWP Calcs'!$A$2*'TRF calcs '!$B22)+'TWP Calcs'!D$6*('TRF calcs '!$C22+'TRF calcs '!$D22+'TRF calcs '!$E22+'TRF calcs '!$F22))/(('TWP Calcs'!D$7*'TWP Calcs'!$A$2*'TRF calcs '!$B22)+('TWP Calcs'!D$8*('TRF calcs '!$C22+'TRF calcs '!$D22+'TRF calcs '!$E22+'TRF calcs '!$F22)))) -> 1.373926842 | E29: =(((('TWP Calcs'!E$5)*'TWP Calcs'!$A$2*'TRF calcs '!$G22)+'TWP Calcs'!E$6*('TRF calcs '!$H22+'TRF calcs '!$I22+'TRF calcs '!$J22+'TRF calcs '!$K22))/(('TWP Calcs'!E$7*'TWP Calcs'!$A$2*'TRF calcs '!$G22)+('TWP Calcs'!E$8*('TRF calcs '!$H22+'TRF calcs '!$I22+'TRF calcs '!$J22+'TRF calcs '!$K22)))) -> 1.347888346 | F29: =(((('TWP Calcs'!F$5)*'TWP Calcs'!$A$2*'TRF calcs '!$B22)+'TWP Calcs'!F$6*('TRF calcs '!$C22+'TRF calcs '!$D22+'TRF calcs '!$E22+'TRF calcs '!$F22))/(('TWP Calcs'!F$7*'TWP Calcs'!$A$2*'TRF calcs '!$B22)+('TWP Calcs'!F$8*('TRF calcs '!$C22+'TRF calcs '!$D22+'TRF calcs '!$E22+'TRF calcs '!$F22)))) -> 0.7751551774 | G29: =(((('TWP Calcs'!G$5)*'TWP Calcs'!$A$2*'TRF calcs '!$B22)+'TWP Calcs'!G$6*('TRF calcs '!$C22+'TRF calcs '!$D22+'TRF calcs '!$E22+'TRF calcs '!$F22))/(('TWP Calcs'!G$7*'TWP Calcs'!$A$2*'TRF calcs '!$B22)+('TWP Calcs'!G$8*('TRF calcs '!$C22+'TRF calcs '!$D22+'TRF calcs '!$E22+'TRF calcs '!$F22)))) -> 0.7160908033 | H29: =(((('TWP Calcs'!H$5)*'TWP Calcs'!$A$2*'TRF calcs '!$B22)+'TWP Calcs'!H$6*('TRF calcs '!$C22+'TRF calcs '!$D22+'TRF calcs '!$E22+'TRF calcs '!$F22))/(('TWP Calcs'!H$7*'TWP Calcs'!$A$2*'TRF calcs '!$B22)+('TWP Calcs'!H$8*('TRF calcs '!$C22+'TRF calcs '!$D22+'TRF calcs '!$E22+'TRF calcs '!$F22)))) -> 0.6034886957 | I29: =(((('TWP Calcs'!I$5)*'TWP Calcs'!$A$2*'TRF calcs '!$B22)+'TWP Calcs'!I$6*('TRF calcs '!$C22+'TRF calcs '!$D22+'TRF calcs '!$E22+'TRF calcs '!$F22))/(('TWP Calcs'!I$7*'TWP Calcs'!$A$2*'TRF calcs '!$B22)+('TWP Calcs'!I$8*('TRF calcs '!$C22+'TRF calcs '!$D22+'TRF calcs '!$E22+'TRF calcs '!$F22)))) -> 0.490886588 | J29: =(((('TWP Calcs'!J$5)*'TWP Calcs'!$A$2*'TRF calcs '!$B22)+'TWP Calcs'!J$6*('TRF calcs '!$C22+'TRF calcs '!$D22+'TRF calcs '!$E22+'TRF calcs '!$F22))/(('TWP Calcs'!J$7*'TWP Calcs'!$A$2*'TRF calcs '!$B22)+('TWP Calcs'!J$8*('TRF calcs '!$C22+'TRF calcs '!$D22+'TRF calcs '!$E22+'TRF calcs '!$F22)))) -> 0.7489831156 | K29: =(((('TWP Calcs'!K$5)*'TWP Calcs'!$A$2*'TRF calcs '!$B22)+'TWP Calcs'!K$6*('TRF calcs '!$C22+'TRF calcs '!$D22+'TRF calcs '!$E22+'TRF calcs '!$F22))/(('TWP Calcs'!K$7*'TWP Calcs'!$A$2*'TRF calcs '!$B22)+('TWP Calcs'!K$8*('TRF calcs '!$C22+'TRF calcs '!$D22+'TRF calcs '!$E22+'TRF calcs '!$F22)))) -> 0.6312088374 | L29: =(((('TWP Calcs'!L$5)*'TWP Calcs'!$A$2*'TRF calcs '!$B22)+'TWP Calcs'!L$6*('TRF calcs '!$C22+'TRF calcs '!$D22+'TRF calcs '!$E22+'TRF calcs '!$F22))/(('TWP Calcs'!L$7*'TWP Calcs'!$A$2*'TRF calcs '!$B22)+('TWP Calcs'!L$8*('TRF calcs '!$C22+'TRF calcs '!$D22+'TRF calcs '!$E22+'TRF calcs '!$F22)))) -> 0.4872624975 | M29: =(((('TWP Calcs'!M$5)*'TWP Calcs'!$A$2*'TRF calcs '!$B22)+'TWP Calcs'!M$6*('TRF calcs '!$C22+'TRF calcs '!$D22+'TRF calcs '!$E22+'TRF calcs '!$F22))/(('TWP Calcs'!M$7*'TWP Calcs'!$A$2*'TRF calcs '!$B22)+('TWP Calcs'!M$8*('TRF calcs '!$C22+'TRF calcs '!$D22+'TRF calcs '!$E22+'TRF calcs '!$F22)))) -> 0.5892717035 | N29: =(((('TWP Calcs'!N$5)*'TWP Calcs'!$A$2*'TRF calcs '!$B22)+'TWP Calcs'!N$6*('TRF calcs '!$C22+'TRF calcs '!$D22+'TRF calcs '!$E22+'TRF calcs '!$F22))/(('TWP Calcs'!N$7*'TWP Calcs'!$A$2*'TRF calcs '!$B22)+('TWP Calcs'!N$8*('TRF calcs '!$C22+'TRF calcs '!$D22+'TRF calcs '!$E22+'TRF calcs '!$F22)))) -> 0.4966113377 | O29: =(((('TWP Calcs'!O$5)*'TWP Calcs'!$A$2*'TRF calcs '!$B22)+'TWP Calcs'!O$6*('TRF calcs '!$C22+'TRF calcs '!$D22+'TRF calcs '!$E22+'TRF calcs '!$F22))/(('TWP Calcs'!O$7*'TWP Calcs'!$A$2*'TRF calcs '!$B22)+('TWP Calcs'!O$8*('TRF calcs '!$C22+'TRF calcs '!$D22+'TRF calcs '!$E22+'TRF calcs '!$F22)))) -> 0.4039509718 | P29: =(((('TWP Calcs'!P$5)*'TWP Calcs'!$A$2*'TRF calcs '!$B22)+'TWP Calcs'!P$6*('TRF calcs '!$C22+'TRF calcs '!$D22+'TRF calcs '!$E22+'TRF calcs '!$F22))/(('TWP Calcs'!P$7*'TWP Calcs'!$A$2*'TRF calcs '!$B22)+('TWP Calcs'!P$8*('TRF calcs '!$C22+'TRF calcs '!$D22+'TRF calcs '!$E22+'TRF calcs '!$F22)))) -> 0.8513974143 | Q29: =(((('TWP Calcs'!Q$5)*'TWP Calcs'!$A$2*'TRF calcs '!$B22)+'TWP Calcs'!Q$6*('TRF calcs '!$C22+'TRF calcs '!$D22+'TRF calcs '!$E22+'TRF calcs '!$F22))/(('TWP Calcs'!Q$7*'TWP Calcs'!$A$2*'TRF calcs '!$B22)+('TWP Calcs'!Q$8*('TRF calcs '!$C22+'TRF calcs '!$D22+'TRF calcs '!$E22+'TRF calcs '!$F22)))) -> 0.7175189412 | R29: =(((('TWP Calcs'!R$5)*'TWP Calcs'!$A$2*'TRF calcs '!$B22)+'TWP Calcs'!R$6*('TRF calcs '!$C22+'TRF calcs '!$D22+'TRF calcs '!$E22+'TRF calcs '!$F22))/(('TWP Calcs'!R$7*'TWP Calcs'!$A$2*'TRF calcs '!$B22)+('TWP Calcs'!R$8*('TRF calcs '!$C22+'TRF calcs '!$D22+'TRF calcs '!$E22+'TRF calcs '!$F22)))) -> 0.5836404682 | S29: =(((('TWP Calcs'!S$5)*'TWP Calcs'!$A$2*'TRF calcs '!$B22)+'TWP Calcs'!S$6*('TRF calcs '!$C22+'TRF calcs '!$D22+'TRF calcs '!$E22+'TRF calcs '!$F22))/(('TWP Calcs'!S$7*'TWP Calcs'!$A$2*'TRF calcs '!$B22)+('TWP Calcs'!S$8*('TRF calcs '!$C22+'TRF calcs '!$D22+'TRF calcs '!$E22+'TRF calcs '!$F22)))) -> 0.6010915107 | T29: =(((('TWP Calcs'!T$5)*'TWP Calcs'!$A$2*'TRF calcs '!$B22)+'TWP Calcs'!T$6*('TRF calcs '!$C22+'TRF calcs '!$D22+'TRF calcs '!$E22+'TRF calcs '!$F22))/(('TWP Calcs'!T$7*'TWP Calcs'!$A$2*'TRF calcs '!$B22)+('TWP Calcs'!T$8*('TRF calcs '!$C22+'TRF calcs '!$D22+'TRF calcs '!$E22+'TRF calcs '!$F22)))) -> 0.5065725326 | U29: =(((('TWP Calcs'!U$5)*'TWP Calcs'!$A$2*'TRF calcs '!$B22)+'TWP Calcs'!U$6*('TRF calcs '!$C22+'TRF calcs '!$D22+'TRF calcs '!$E22+'TRF calcs '!$F22))/(('TWP Calcs'!U$7*'TWP Calcs'!$A$2*'TRF calcs '!$B22)+('TWP Calcs'!U$8*('TRF calcs '!$C22+'TRF calcs '!$D22+'TRF calcs '!$E22+'TRF calcs '!$F22)))) -> 0.4120535544 | V29: =(((('TWP Calcs'!V$5)*'TWP Calcs'!$A$2*'TRF calcs '!$B22)+'TWP Calcs'!V$6*('TRF calcs '!$C22+'TRF calcs '!$D22+'TRF calcs '!$E22+'TRF calcs '!$F22))/(('TWP Calcs'!V$7*'TWP Calcs'!$A$2*'TRF calcs '!$B22)+('TWP Calcs'!V$8*('TRF calcs '!$C22+'TRF calcs '!$D22+'TRF calcs '!$E22+'TRF calcs '!$F22)))) -> 1.306855841 | W29: =(((('TWP Calcs'!W$5)*'TWP Calcs'!$A$2*'TRF calcs '!$B22)+'TWP Calcs'!W$6*('TRF calcs '!$C22+'TRF calcs '!$D22+'TRF calcs '!$E22+'TRF calcs '!$F22))/(('TWP Calcs'!W$7*'TWP Calcs'!$A$2*'TRF calcs '!$B22)+('TWP Calcs'!W$8*('TRF calcs '!$C22+'TRF calcs '!$D22+'TRF calcs '!$E22+'TRF calcs '!$F22)))) -> 1.101358547 | X29: =(((('TWP Calcs'!X$5)*'TWP Calcs'!$A$2*'TRF calcs '!$B22)+'TWP Calcs'!X$6*('TRF calcs '!$C22+'TRF calcs '!$D22+'TRF calcs '!$E22+'TRF calcs '!$F22))/(('TWP Calcs'!X$7*'TWP Calcs'!$A$2*'TRF calcs '!$B22)+('TWP Calcs'!X$8*('TRF calcs '!$C22+'TRF calcs '!$D22+'TRF calcs '!$E22+'TRF calcs '!$F22)))) -> 0.8958612536 | Y29: =(((('TWP Calcs'!Y$5)*'TWP Calcs'!$A$2*'TRF calcs '!$B22)+'TWP Calcs'!Y$6*('TRF calcs '!$C22+'TRF calcs '!$D22+'TRF calcs '!$E22+'TRF calcs '!$F22))/(('TWP Calcs'!Y$7*'TWP Calcs'!$A$2*'TRF calcs '!$B22)+('TWP Calcs'!Y$8*('TRF calcs '!$C22+'TRF calcs '!$D22+'TRF calcs '!$E22+'TRF calcs '!$F22)))) -> 1.485552425 | Z29: =(((('TWP Calcs'!Z$5)*'TWP Calcs'!$A$2*'TRF calcs '!$B22)+'TWP Calcs'!Z$6*('TRF calcs '!$C22+'TRF calcs '!$D22+'TRF calcs '!$E22+'TRF calcs '!$F22))/(('TWP Calcs'!Z$7*'TWP Calcs'!$A$2*'TRF calcs '!$B22)+('TWP Calcs'!Z$8*('TRF calcs '!$C22+'TRF calcs '!$D22+'TRF calcs '!$E22+'TRF calcs '!$F22)))) -> 1.251955885 | AA29: =(((('TWP Calcs'!AA$5)*'TWP Calcs'!$A$2*'TRF calcs '!$B22)+'TWP Calcs'!AA$6*('TRF calcs '!$C22+'TRF calcs '!$D22+'TRF calcs '!$E22+'TRF calcs '!$F22))/(('TWP Calcs'!AA$7*'TWP Calcs'!$A$2*'TRF calcs '!$B22)+('TWP Calcs'!AA$8*('TRF calcs '!$C22+'TRF calcs '!$D22+'TRF calcs '!$E22+'TRF calcs '!$F22)))) -> 1.018359345 | AB29: =(((('TWP Calcs'!AB$5)*'TWP Calcs'!$A$2*'TRF calcs '!$B22)+'TWP Calcs'!AB$6*('TRF calcs '!$C22+'TRF calcs '!$D22+'TRF calcs '!$E22+'TRF calcs '!$F22))/(('TWP Calcs'!AB$7*'TWP Calcs'!$A$2*'TRF calcs '!$B22)+('TWP Calcs'!AB$8*('TRF calcs '!$C22+'TRF calcs '!$D22+'TRF calcs '!$E22+'TRF calcs '!$F22)))) -> 0.5298533146 | AC29: =(((('TWP Calcs'!AC$5)*'TWP Calcs'!$A$2*'TRF calcs '!$B22)+'TWP Calcs'!AC$6*('TRF calcs '!$C22+'TRF calcs '!$D22+'TRF calcs '!$E22+'TRF calcs '!$F22))/(('TWP Calcs'!AC$7*'TWP Calcs'!$A$2*'TRF calcs '!$B22)+('TWP Calcs'!AC$8*('TRF calcs '!$C22+'TRF calcs '!$D22+'TRF calcs '!$E22+'TRF calcs '!$F22)))) -> 0.4252303193 | AD29: =(((('TWP Calcs'!AD$5)*'TWP Calcs'!$A$2*'TRF calcs '!$B22)+'TWP Calcs'!AD$6*('TRF calcs '!$C22+'TRF calcs '!$D22+'TRF calcs '!$E22+'TRF calcs '!$F22))/(('TWP Calcs'!AD$7*'TWP Calcs'!$A$2*'TRF calcs '!$B22)+('TWP Calcs'!AD$8*('TRF calcs '!$C22+'TRF calcs '!$D22+'TRF calcs '!$E22+'TRF calcs '!$F22)))) -> 0.2914991501 | AE29: =(((('TWP Calcs'!AE$5)*'TWP Calcs'!$A$2*'TRF calcs '!$B22)+'TWP Calcs'!AE$6*('TRF calcs '!$C22+'TRF calcs '!$D22+'TRF calcs '!$E22+'TRF calcs '!$F22))/(('TWP Calcs'!AE$7*'TWP Calcs'!$A$2*'TRF calcs '!$B22)+('TWP Calcs'!AE$8*('TRF calcs '!$C22+'TRF calcs '!$D22+'TRF calcs '!$E22+'TRF calcs '!$F22)))) -> 0.9245093577 | AF29: =(((('TWP Calcs'!AF$5)*'TWP Calcs'!$A$2*'TRF calcs '!$B22)+'TWP Calcs'!AF$6*('TRF calcs '!$C22+'TRF calcs '!$D22+'TRF calcs '!$E22+'TRF calcs '!$F22))/(('TWP Calcs'!AF$7*'TWP Calcs'!$A$2*'TRF calcs '!$B22)+('TWP Calcs'!AF$8*('TRF calcs '!$C22+'TRF calcs '!$D22+'TRF calcs '!$E22+'TRF calcs '!$F22)))) -> 0.6832834377 | AG29: =(((('TWP Calcs'!AG$5)*'TWP Calcs'!$A$2*'TRF calcs '!$B22)+'TWP Calcs'!AG$6*('TRF calcs '!$C22+'TRF calcs '!$D22+'TRF calcs '!$E22+'TRF calcs '!$F22))/(('TWP Calcs'!AG$7*'TWP Calcs'!$A$2*'TRF calcs '!$B22)+('TWP Calcs'!AG$8*('TRF calcs '!$C22+'TRF calcs '!$D22+'TRF calcs '!$E22+'TRF calcs '!$F22)))) -> 0.9826175851 | AH29: 1 | AI29: 0 | AJ29: =(((('TWP Calcs'!AJ$5)*'TWP Calcs'!$A$2*'TRF calcs '!$B22)+'TWP Calcs'!AJ$6*('TRF calcs '!$C22+'TRF calcs '!$D22+'TRF calcs '!$E22+'TRF calcs '!$F22))/(('TWP Calcs'!AJ$7*'TWP Calcs'!$A$2*'TRF calcs '!$B22)+('TWP Calcs'!AJ$8*('TRF calcs '!$C22+'TRF calcs '!$D22+'TRF calcs '!$E22+'TRF calcs '!$F22)))) -> 0.7489831156 | AK29: =(((('TWP Calcs'!AK$5)*'TWP Calcs'!$A$2*'TRF calcs '!$G22)+'TWP Calcs'!AK$6*('TRF calcs '!$H22+'TRF calcs '!$I22+'TRF calcs '!$J22+'TRF calcs '!$K22))/(('TWP Calcs'!AK$7*'TWP Calcs'!$A$2*'TRF calcs '!$G22)+('TWP Calcs'!AK$8*('TRF calcs '!$H22+'TRF calcs '!$I22+'TRF calcs '!$J22+'TRF calcs '!$K22)))) -> 0.7288349697 | AL29: =(((('TWP Calcs'!AL$5)*'TWP Calcs'!$A$2*'TRF calcs '!$L22)+'TWP Calcs'!AL$6*('TRF calcs '!$M22+'TRF calcs '!$N22+'TRF calcs '!$O22+'TRF calcs '!$P22))/(('TWP Calcs'!AL$7*'TWP Calcs'!$A$2*'TRF calcs '!$L22)+('TWP Calcs'!AL$8*('TRF calcs '!$M22+'TRF calcs '!$N22+'TRF calcs '!$O22+'TRF calcs '!$P22)))) -> 0.7464343721
A30: 12 | B30: =(((('TWP Calcs'!B$5)*'TWP Calcs'!$A$2*'TRF calcs '!$B23)+'TWP Calcs'!B$6*('TRF calcs '!$C23+'TRF calcs '!$D23+'TRF calcs '!$E23+'TRF calcs '!$F23))/(('TWP Calcs'!B$7*'TWP Calcs'!$A$2*'TRF calcs '!$B23)+('TWP Calcs'!B$8*('TRF calcs '!$C23+'TRF calcs '!$D23+'TRF calcs '!$E23+'TRF calcs '!$F23)))) -> 1.530701031 | C30: =(((('TWP Calcs'!C$5)*'TWP Calcs'!$A$2*'TRF calcs '!$B23)+'TWP Calcs'!C$6*('TRF calcs '!$C23+'TRF calcs '!$D23+'TRF calcs '!$E23+'TRF calcs '!$F23))/(('TWP Calcs'!C$7*'TWP Calcs'!$A$2*'TRF calcs '!$B23)+('TWP Calcs'!C$8*('TRF calcs '!$C23+'TRF calcs '!$D23+'TRF calcs '!$E23+'TRF calcs '!$F23)))) -> 1.291885567 | D30: =(((('TWP Calcs'!D$5)*'TWP Calcs'!$A$2*'TRF calcs '!$B23)+'TWP Calcs'!D$6*('TRF calcs '!$C23+'TRF calcs '!$D23+'TRF calcs '!$E23+'TRF calcs '!$F23))/(('TWP Calcs'!D$7*'TWP Calcs'!$A$2*'TRF calcs '!$B23)+('TWP Calcs'!D$8*('TRF calcs '!$C23+'TRF calcs '!$D23+'TRF calcs '!$E23+'TRF calcs '!$F23)))) -> 1.369455063 | E30: =(((('TWP Calcs'!E$5)*'TWP Calcs'!$A$2*'TRF calcs '!$G23)+'TWP Calcs'!E$6*('TRF calcs '!$H23+'TRF calcs '!$I23+'TRF calcs '!$J23+'TRF calcs '!$K23))/(('TWP Calcs'!E$7*'TWP Calcs'!$A$2*'TRF calcs '!$G23)+('TWP Calcs'!E$8*('TRF calcs '!$H23+'TRF calcs '!$I23+'TRF calcs '!$J23+'TRF calcs '!$K23)))) -> 1.340614906 | F30: =(((('TWP Calcs'!F$5)*'TWP Calcs'!$A$2*'TRF calcs '!$B23)+'TWP Calcs'!F$6*('TRF calcs '!$C23+'TRF calcs '!$D23+'TRF calcs '!$E23+'TRF calcs '!$F23))/(('TWP Calcs'!F$7*'TWP Calcs'!$A$2*'TRF calcs '!$B23)+('TWP Calcs'!F$8*('TRF calcs '!$C23+'TRF calcs '!$D23+'TRF calcs '!$E23+'TRF calcs '!$F23)))) -> 0.7718260516 | G30: =(((('TWP Calcs'!G$5)*'TWP Calcs'!$A$2*'TRF calcs '!$B23)+'TWP Calcs'!G$6*('TRF calcs '!$C23+'TRF calcs '!$D23+'TRF calcs '!$E23+'TRF calcs '!$F23))/(('TWP Calcs'!G$7*'TWP Calcs'!$A$2*'TRF calcs '!$B23)+('TWP Calcs'!G$8*('TRF calcs '!$C23+'TRF calcs '!$D23+'TRF calcs '!$E23+'TRF calcs '!$F23)))) -> 0.7136227814 | H30: =(((('TWP Calcs'!H$5)*'TWP Calcs'!$A$2*'TRF calcs '!$B23)+'TWP Calcs'!H$6*('TRF calcs '!$C23+'TRF calcs '!$D23+'TRF calcs '!$E23+'TRF calcs '!$F23))/(('TWP Calcs'!H$7*'TWP Calcs'!$A$2*'TRF calcs '!$B23)+('TWP Calcs'!H$8*('TRF calcs '!$C23+'TRF calcs '!$D23+'TRF calcs '!$E23+'TRF calcs '!$F23)))) -> 0.602285458 | I30: =(((('TWP Calcs'!I$5)*'TWP Calcs'!$A$2*'TRF calcs '!$B23)+'TWP Calcs'!I$6*('TRF calcs '!$C23+'TRF calcs '!$D23+'TRF calcs '!$E23+'TRF calcs '!$F23))/(('TWP Calcs'!I$7*'TWP Calcs'!$A$2*'TRF calcs '!$B23)+('TWP Calcs'!I$8*('TRF calcs '!$C23+'TRF calcs '!$D23+'TRF calcs '!$E23+'TRF calcs '!$F23)))) -> 0.4909481346 | J30: =(((('TWP Calcs'!J$5)*'TWP Calcs'!$A$2*'TRF calcs '!$B23)+'TWP Calcs'!J$6*('TRF calcs '!$C23+'TRF calcs '!$D23+'TRF calcs '!$E23+'TRF calcs '!$F23))/(('TWP Calcs'!J$7*'TWP Calcs'!$A$2*'TRF calcs '!$B23)+('TWP Calcs'!J$8*('TRF calcs '!$C23+'TRF calcs '!$D23+'TRF calcs '!$E23+'TRF calcs '!$F23)))) -> 0.7459631682 | K30: =(((('TWP Calcs'!K$5)*'TWP Calcs'!$A$2*'TRF calcs '!$B23)+'TWP Calcs'!K$6*('TRF calcs '!$C23+'TRF calcs '!$D23+'TRF calcs '!$E23+'TRF calcs '!$F23))/(('TWP Calcs'!K$7*'TWP Calcs'!$A$2*'TRF calcs '!$B23)+('TWP Calcs'!K$8*('TRF calcs '!$C23+'TRF calcs '!$D23+'TRF calcs '!$E23+'TRF calcs '!$F23)))) -> 0.629580193 | L30: =(((('TWP Calcs'!L$5)*'TWP Calcs'!$A$2*'TRF calcs '!$B23)+'TWP Calcs'!L$6*('TRF calcs '!$C23+'TRF calcs '!$D23+'TRF calcs '!$E23+'TRF calcs '!$F23))/(('TWP Calcs'!L$7*'TWP Calcs'!$A$2*'TRF calcs '!$B23)+('TWP Calcs'!L$8*('TRF calcs '!$C23+'TRF calcs '!$D23+'TRF calcs '!$E23+'TRF calcs '!$F23)))) -> 0.4873343343 | M30: =(((('TWP Calcs'!M$5)*'TWP Calcs'!$A$2*'TRF calcs '!$B23)+'TWP Calcs'!M$6*('TRF calcs '!$C23+'TRF calcs '!$D23+'TRF calcs '!$E23+'TRF calcs '!$F23))/(('TWP Calcs'!M$7*'TWP Calcs'!$A$2*'TRF calcs '!$B23)+('TWP Calcs'!M$8*('TRF calcs '!$C23+'TRF calcs '!$D23+'TRF calcs '!$E23+'TRF calcs '!$F23)))) -> 0.5886118038 | N30: =(((('TWP Calcs'!N$5)*'TWP Calcs'!$A$2*'TRF calcs '!$B23)+'TWP Calcs'!N$6*('TRF calcs '!$C23+'TRF calcs '!$D23+'TRF calcs '!$E23+'TRF calcs '!$F23))/(('TWP Calcs'!N$7*'TWP Calcs'!$A$2*'TRF calcs '!$B23)+('TWP Calcs'!N$8*('TRF calcs '!$C23+'TRF calcs '!$D23+'TRF calcs '!$E23+'TRF calcs '!$F23)))) -> 0.4967783247 | O30: =(((('TWP Calcs'!O$5)*'TWP Calcs'!$A$2*'TRF calcs '!$B23)+'TWP Calcs'!O$6*('TRF calcs '!$C23+'TRF calcs '!$D23+'TRF calcs '!$E23+'TRF calcs '!$F23))/(('TWP Calcs'!O$7*'TWP Calcs'!$A$2*'TRF calcs '!$B23)+('TWP Calcs'!O$8*('TRF calcs '!$C23+'TRF calcs '!$D23+'TRF calcs '!$E23+'TRF calcs '!$F23)))) -> 0.4049448457 | P30: =(((('TWP Calcs'!P$5)*'TWP Calcs'!$A$2*'TRF calcs '!$B23)+'TWP Calcs'!P$6*('TRF calcs '!$C23+'TRF calcs '!$D23+'TRF calcs '!$E23+'TRF calcs '!$F23))/(('TWP Calcs'!P$7*'TWP Calcs'!$A$2*'TRF calcs '!$B23)+('TWP Calcs'!P$8*('TRF calcs '!$C23+'TRF calcs '!$D23+'TRF calcs '!$E23+'TRF calcs '!$F23)))) -> 0.847964526 | Q30: =(((('TWP Calcs'!Q$5)*'TWP Calcs'!$A$2*'TRF calcs '!$B23)+'TWP Calcs'!Q$6*('TRF calcs '!$C23+'TRF calcs '!$D23+'TRF calcs '!$E23+'TRF calcs '!$F23))/(('TWP Calcs'!Q$7*'TWP Calcs'!$A$2*'TRF calcs '!$B23)+('TWP Calcs'!Q$8*('TRF calcs '!$C23+'TRF calcs '!$D23+'TRF calcs '!$E23+'TRF calcs '!$F23)))) -> 0.7156675995 | R30: =(((('TWP Calcs'!R$5)*'TWP Calcs'!$A$2*'TRF calcs '!$B23)+'TWP Calcs'!R$6*('TRF calcs '!$C23+'TRF calcs '!$D23+'TRF calcs '!$E23+'TRF calcs '!$F23))/(('TWP Calcs'!R$7*'TWP Calcs'!$A$2*'TRF calcs '!$B23)+('TWP Calcs'!R$8*('TRF calcs '!$C23+'TRF calcs '!$D23+'TRF calcs '!$E23+'TRF calcs '!$F23)))) -> 0.583370673 | S30: =(((('TWP Calcs'!S$5)*'TWP Calcs'!$A$2*'TRF calcs '!$B23)+'TWP Calcs'!S$6*('TRF calcs '!$C23+'TRF calcs '!$D23+'TRF calcs '!$E23+'TRF calcs '!$F23))/(('TWP Calcs'!S$7*'TWP Calcs'!$A$2*'TRF calcs '!$B23)+('TWP Calcs'!S$8*('TRF calcs '!$C23+'TRF calcs '!$D23+'TRF calcs '!$E23+'TRF calcs '!$F23)))) -> 0.5986678717 | T30: =(((('TWP Calcs'!T$5)*'TWP Calcs'!$A$2*'TRF calcs '!$B23)+'TWP Calcs'!T$6*('TRF calcs '!$C23+'TRF calcs '!$D23+'TRF calcs '!$E23+'TRF calcs '!$F23))/(('TWP Calcs'!T$7*'TWP Calcs'!$A$2*'TRF calcs '!$B23)+('TWP Calcs'!T$8*('TRF calcs '!$C23+'TRF calcs '!$D23+'TRF calcs '!$E23+'TRF calcs '!$F23)))) -> 0.5052654746 | U30: =(((('TWP Calcs'!U$5)*'TWP Calcs'!$A$2*'TRF calcs '!$B23)+'TWP Calcs'!U$6*('TRF calcs '!$C23+'TRF calcs '!$D23+'TRF calcs '!$E23+'TRF calcs '!$F23))/(('TWP Calcs'!U$7*'TWP Calcs'!$A$2*'TRF calcs '!$B23)+('TWP Calcs'!U$8*('TRF calcs '!$C23+'TRF calcs '!$D23+'TRF calcs '!$E23+'TRF calcs '!$F23)))) -> 0.4118630774 | V30: =(((('TWP Calcs'!V$5)*'TWP Calcs'!$A$2*'TRF calcs '!$B23)+'TWP Calcs'!V$6*('TRF calcs '!$C23+'TRF calcs '!$D23+'TRF calcs '!$E23+'TRF calcs '!$F23))/(('TWP Calcs'!V$7*'TWP Calcs'!$A$2*'TRF calcs '!$B23)+('TWP Calcs'!V$8*('TRF calcs '!$C23+'TRF calcs '!$D23+'TRF calcs '!$E23+'TRF calcs '!$F23)))) -> 1.301586516 | W30: =(((('TWP Calcs'!W$5)*'TWP Calcs'!$A$2*'TRF calcs '!$B23)+'TWP Calcs'!W$6*('TRF calcs '!$C23+'TRF calcs '!$D23+'TRF calcs '!$E23+'TRF calcs '!$F23))/(('TWP Calcs'!W$7*'TWP Calcs'!$A$2*'TRF calcs '!$B23)+('TWP Calcs'!W$8*('TRF calcs '!$C23+'TRF calcs '!$D23+'TRF calcs '!$E23+'TRF calcs '!$F23)))) -> 1.098516823 | X30: =(((('TWP Calcs'!X$5)*'TWP Calcs'!$A$2*'TRF calcs '!$B23)+'TWP Calcs'!X$6*('TRF calcs '!$C23+'TRF calcs '!$D23+'TRF calcs '!$E23+'TRF calcs '!$F23))/(('TWP Calcs'!X$7*'TWP Calcs'!$A$2*'TRF calcs '!$B23)+('TWP Calcs'!X$8*('TRF calcs '!$C23+'TRF calcs '!$D23+'TRF calcs '!$E23+'TRF calcs '!$F23)))) -> 0.8954471304 | Y30: =(((('TWP Calcs'!Y$5)*'TWP Calcs'!$A$2*'TRF calcs '!$B23)+'TWP Calcs'!Y$6*('TRF calcs '!$C23+'TRF calcs '!$D23+'TRF calcs '!$E23+'TRF calcs '!$F23))/(('TWP Calcs'!Y$7*'TWP Calcs'!$A$2*'TRF calcs '!$B23)+('TWP Calcs'!Y$8*('TRF calcs '!$C23+'TRF calcs '!$D23+'TRF calcs '!$E23+'TRF calcs '!$F23)))) -> 1.479562584 | Z30: =(((('TWP Calcs'!Z$5)*'TWP Calcs'!$A$2*'TRF calcs '!$B23)+'TWP Calcs'!Z$6*('TRF calcs '!$C23+'TRF calcs '!$D23+'TRF calcs '!$E23+'TRF calcs '!$F23))/(('TWP Calcs'!Z$7*'TWP Calcs'!$A$2*'TRF calcs '!$B23)+('TWP Calcs'!Z$8*('TRF calcs '!$C23+'TRF calcs '!$D23+'TRF calcs '!$E23+'TRF calcs '!$F23)))) -> 1.24872559 | AA30: =(((('TWP Calcs'!AA$5)*'TWP Calcs'!$A$2*'TRF calcs '!$B23)+'TWP Calcs'!AA$6*('TRF calcs '!$C23+'TRF calcs '!$D23+'TRF calcs '!$E23+'TRF calcs '!$F23))/(('TWP Calcs'!AA$7*'TWP Calcs'!$A$2*'TRF calcs '!$B23)+('TWP Calcs'!AA$8*('TRF calcs '!$C23+'TRF calcs '!$D23+'TRF calcs '!$E23+'TRF calcs '!$F23)))) -> 1.017888595 | AB30: =(((('TWP Calcs'!AB$5)*'TWP Calcs'!$A$2*'TRF calcs '!$B23)+'TWP Calcs'!AB$6*('TRF calcs '!$C23+'TRF calcs '!$D23+'TRF calcs '!$E23+'TRF calcs '!$F23))/(('TWP Calcs'!AB$7*'TWP Calcs'!$A$2*'TRF calcs '!$B23)+('TWP Calcs'!AB$8*('TRF calcs '!$C23+'TRF calcs '!$D23+'TRF calcs '!$E23+'TRF calcs '!$F23)))) -> 0.5292599549 | AC30: =(((('TWP Calcs'!AC$5)*'TWP Calcs'!$A$2*'TRF calcs '!$B23)+'TWP Calcs'!AC$6*('TRF calcs '!$C23+'TRF calcs '!$D23+'TRF calcs '!$E23+'TRF calcs '!$F23))/(('TWP Calcs'!AC$7*'TWP Calcs'!$A$2*'TRF calcs '!$B23)+('TWP Calcs'!AC$8*('TRF calcs '!$C23+'TRF calcs '!$D23+'TRF calcs '!$E23+'TRF calcs '!$F23)))) -> 0.4247541223 | AD30: =(((('TWP Calcs'!AD$5)*'TWP Calcs'!$A$2*'TRF calcs '!$B23)+'TWP Calcs'!AD$6*('TRF calcs '!$C23+'TRF calcs '!$D23+'TRF calcs '!$E23+'TRF calcs '!$F23))/(('TWP Calcs'!AD$7*'TWP Calcs'!$A$2*'TRF calcs '!$B23)+('TWP Calcs'!AD$8*('TRF calcs '!$C23+'TRF calcs '!$D23+'TRF calcs '!$E23+'TRF calcs '!$F23)))) -> 0.2922163494 | AE30: =(((('TWP Calcs'!AE$5)*'TWP Calcs'!$A$2*'TRF calcs '!$B23)+'TWP Calcs'!AE$6*('TRF calcs '!$C23+'TRF calcs '!$D23+'TRF calcs '!$E23+'TRF calcs '!$F23))/(('TWP Calcs'!AE$7*'TWP Calcs'!$A$2*'TRF calcs '!$B23)+('TWP Calcs'!AE$8*('TRF calcs '!$C23+'TRF calcs '!$D23+'TRF calcs '!$E23+'TRF calcs '!$F23)))) -> 0.9234740399 | AF30: =(((('TWP Calcs'!AF$5)*'TWP Calcs'!$A$2*'TRF calcs '!$B23)+'TWP Calcs'!AF$6*('TRF calcs '!$C23+'TRF calcs '!$D23+'TRF calcs '!$E23+'TRF calcs '!$F23))/(('TWP Calcs'!AF$7*'TWP Calcs'!$A$2*'TRF calcs '!$B23)+('TWP Calcs'!AF$8*('TRF calcs '!$C23+'TRF calcs '!$D23+'TRF calcs '!$E23+'TRF calcs '!$F23)))) -> 0.6805283956 | AG30: =(((('TWP Calcs'!AG$5)*'TWP Calcs'!$A$2*'TRF calcs '!$B23)+'TWP Calcs'!AG$6*('TRF calcs '!$C23+'TRF calcs '!$D23+'TRF calcs '!$E23+'TRF calcs '!$F23))/(('TWP Calcs'!AG$7*'TWP Calcs'!$A$2*'TRF calcs '!$B23)+('TWP Calcs'!AG$8*('TRF calcs '!$C23+'TRF calcs '!$D23+'TRF calcs '!$E23+'TRF calcs '!$F23)))) -> 0.9786556088 | AH30: 1 | AI30: 0 | AJ30: =(((('TWP Calcs'!AJ$5)*'TWP Calcs'!$A$2*'TRF calcs '!$B23)+'TWP Calcs'!AJ$6*('TRF calcs '!$C23+'TRF calcs '!$D23+'TRF calcs '!$E23+'TRF calcs '!$F23))/(('TWP Calcs'!AJ$7*'TWP Calcs'!$A$2*'TRF calcs '!$B23)+('TWP Calcs'!AJ$8*('TRF calcs '!$C23+'TRF calcs '!$D23+'TRF calcs '!$E23+'TRF calcs '!$F23)))) -> 0.7459631682 | AK30: =(((('TWP Calcs'!AK$5)*'TWP Calcs'!$A$2*'TRF calcs '!$G23)+'TWP Calcs'!AK$6*('TRF calcs '!$H23+'TRF calcs '!$I23+'TRF calcs '!$J23+'TRF calcs '!$K23))/(('TWP Calcs'!AK$7*'TWP Calcs'!$A$2*'TRF calcs '!$G23)+('TWP Calcs'!AK$8*('TRF calcs '!$H23+'TRF calcs '!$I23+'TRF calcs '!$J23+'TRF calcs '!$K23)))) -> 0.7239134521 | AL30: =(((('TWP Calcs'!AL$5)*'TWP Calcs'!$A$2*'TRF calcs '!$L23)+'TWP Calcs'!AL$6*('TRF calcs '!$M23+'TRF calcs '!$N23+'TRF calcs '!$O23+'TRF calcs '!$P23))/(('TWP Calcs'!AL$7*'TWP Calcs'!$A$2*'TRF calcs '!$L23)+('TWP Calcs'!AL$8*('TRF calcs '!$M23+'TRF calcs '!$N23+'TRF calcs '!$O23+'TRF calcs '!$P23)))) -> 0.743414049
A31: 13 | B31: =(((('TWP Calcs'!B$5)*'TWP Calcs'!$A$2*'TRF calcs '!$B24)+'TWP Calcs'!B$6*('TRF calcs '!$C24+'TRF calcs '!$D24+'TRF calcs '!$E24+'TRF calcs '!$F24))/(('TWP Calcs'!B$7*'TWP Calcs'!$A$2*'TRF calcs '!$B24)+('TWP Calcs'!B$8*('TRF calcs '!$C24+'TRF calcs '!$D24+'TRF calcs '!$E24+'TRF calcs '!$F24)))) -> 1.524209569 | C31: =(((('TWP Calcs'!C$5)*'TWP Calcs'!$A$2*'TRF calcs '!$B24)+'TWP Calcs'!C$6*('TRF calcs '!$C24+'TRF calcs '!$D24+'TRF calcs '!$E24+'TRF calcs '!$F24))/(('TWP Calcs'!C$7*'TWP Calcs'!$A$2*'TRF calcs '!$B24)+('TWP Calcs'!C$8*('TRF calcs '!$C24+'TRF calcs '!$D24+'TRF calcs '!$E24+'TRF calcs '!$F24)))) -> 1.288315263 | D31: =(((('TWP Calcs'!D$5)*'TWP Calcs'!$A$2*'TRF calcs '!$B24)+'TWP Calcs'!D$6*('TRF calcs '!$C24+'TRF calcs '!$D24+'TRF calcs '!$E24+'TRF calcs '!$F24))/(('TWP Calcs'!D$7*'TWP Calcs'!$A$2*'TRF calcs '!$B24)+('TWP Calcs'!D$8*('TRF calcs '!$C24+'TRF calcs '!$D24+'TRF calcs '!$E24+'TRF calcs '!$F24)))) -> 1.36493594 | E31: =(((('TWP Calcs'!E$5)*'TWP Calcs'!$A$2*'TRF calcs '!$G24)+'TWP Calcs'!E$6*('TRF calcs '!$H24+'TRF calcs '!$I24+'TRF calcs '!$J24+'TRF calcs '!$K24))/(('TWP Calcs'!E$7*'TWP Calcs'!$A$2*'TRF calcs '!$G24)+('TWP Calcs'!E$8*('TRF calcs '!$H24+'TRF calcs '!$I24+'TRF calcs '!$J24+'TRF calcs '!$K24)))) -> 1.333380733 | F31: =(((('TWP Calcs'!F$5)*'TWP Calcs'!$A$2*'TRF calcs '!$B24)+'TWP Calcs'!F$6*('TRF calcs '!$C24+'TRF calcs '!$D24+'TRF calcs '!$E24+'TRF calcs '!$F24))/(('TWP Calcs'!F$7*'TWP Calcs'!$A$2*'TRF calcs '!$B24)+('TWP Calcs'!F$8*('TRF calcs '!$C24+'TRF calcs '!$D24+'TRF calcs '!$E24+'TRF calcs '!$F24)))) -> 0.7684606812 | G31: =(((('TWP Calcs'!G$5)*'TWP Calcs'!$A$2*'TRF calcs '!$B24)+'TWP Calcs'!G$6*('TRF calcs '!$C24+'TRF calcs '!$D24+'TRF calcs '!$E24+'TRF calcs '!$F24))/(('TWP Calcs'!G$7*'TWP Calcs'!$A$2*'TRF calcs '!$B24)+('TWP Calcs'!G$8*('TRF calcs '!$C24+'TRF calcs '!$D24+'TRF calcs '!$E24+'TRF calcs '!$F24)))) -> 0.7111249384 | H31: =(((('TWP Calcs'!H$5)*'TWP Calcs'!$A$2*'TRF calcs '!$B24)+'TWP Calcs'!H$6*('TRF calcs '!$C24+'TRF calcs '!$D24+'TRF calcs '!$E24+'TRF calcs '!$F24))/(('TWP Calcs'!H$7*'TWP Calcs'!$A$2*'TRF calcs '!$B24)+('TWP Calcs'!H$8*('TRF calcs '!$C24+'TRF calcs '!$D24+'TRF calcs '!$E24+'TRF calcs '!$F24)))) -> 0.6010676816 | I31: =(((('TWP Calcs'!I$5)*'TWP Calcs'!$A$2*'TRF calcs '!$B24)+'TWP Calcs'!I$6*('TRF calcs '!$C24+'TRF calcs '!$D24+'TRF calcs '!$E24+'TRF calcs '!$F24))/(('TWP Calcs'!I$7*'TWP Calcs'!$A$2*'TRF calcs '!$B24)+('TWP Calcs'!I$8*('TRF calcs '!$C24+'TRF calcs '!$D24+'TRF calcs '!$E24+'TRF calcs '!$F24)))) -> 0.4910104248 | J31: =(((('TWP Calcs'!J$5)*'TWP Calcs'!$A$2*'TRF calcs '!$B24)+'TWP Calcs'!J$6*('TRF calcs '!$C24+'TRF calcs '!$D24+'TRF calcs '!$E24+'TRF calcs '!$F24))/(('TWP Calcs'!J$7*'TWP Calcs'!$A$2*'TRF calcs '!$B24)+('TWP Calcs'!J$8*('TRF calcs '!$C24+'TRF calcs '!$D24+'TRF calcs '!$E24+'TRF calcs '!$F24)))) -> 0.7429103423 | K31: =(((('TWP Calcs'!K$5)*'TWP Calcs'!$A$2*'TRF calcs '!$B24)+'TWP Calcs'!K$6*('TRF calcs '!$C24+'TRF calcs '!$D24+'TRF calcs '!$E24+'TRF calcs '!$F24))/(('TWP Calcs'!K$7*'TWP Calcs'!$A$2*'TRF calcs '!$B24)+('TWP Calcs'!K$8*('TRF calcs '!$C24+'TRF calcs '!$D24+'TRF calcs '!$E24+'TRF calcs '!$F24)))) -> 0.6279338172 | L31: =(((('TWP Calcs'!L$5)*'TWP Calcs'!$A$2*'TRF calcs '!$B24)+'TWP Calcs'!L$6*('TRF calcs '!$C24+'TRF calcs '!$D24+'TRF calcs '!$E24+'TRF calcs '!$F24))/(('TWP Calcs'!L$7*'TWP Calcs'!$A$2*'TRF calcs '!$B24)+('TWP Calcs'!L$8*('TRF calcs '!$C24+'TRF calcs '!$D24+'TRF calcs '!$E24+'TRF calcs '!$F24)))) -> 0.4874069532 | M31: =(((('TWP Calcs'!M$5)*'TWP Calcs'!$A$2*'TRF calcs '!$B24)+'TWP Calcs'!M$6*('TRF calcs '!$C24+'TRF calcs '!$D24+'TRF calcs '!$E24+'TRF calcs '!$F24))/(('TWP Calcs'!M$7*'TWP Calcs'!$A$2*'TRF calcs '!$B24)+('TWP Calcs'!M$8*('TRF calcs '!$C24+'TRF calcs '!$D24+'TRF calcs '!$E24+'TRF calcs '!$F24)))) -> 0.5879407856 | N31: =(((('TWP Calcs'!N$5)*'TWP Calcs'!$A$2*'TRF calcs '!$B24)+'TWP Calcs'!N$6*('TRF calcs '!$C24+'TRF calcs '!$D24+'TRF calcs '!$E24+'TRF calcs '!$F24))/(('TWP Calcs'!N$7*'TWP Calcs'!$A$2*'TRF calcs '!$B24)+('TWP Calcs'!N$8*('TRF calcs '!$C24+'TRF calcs '!$D24+'TRF calcs '!$E24+'TRF calcs '!$F24)))) -> 0.4969481252 | O31: =(((('TWP Calcs'!O$5)*'TWP Calcs'!$A$2*'TRF calcs '!$B24)+'TWP Calcs'!O$6*('TRF calcs '!$C24+'TRF calcs '!$D24+'TRF calcs '!$E24+'TRF calcs '!$F24))/(('TWP Calcs'!O$7*'TWP Calcs'!$A$2*'TRF calcs '!$B24)+('TWP Calcs'!O$8*('TRF calcs '!$C24+'TRF calcs '!$D24+'TRF calcs '!$E24+'TRF calcs '!$F24)))) -> 0.4059554648 | P31: =(((('TWP Calcs'!P$5)*'TWP Calcs'!$A$2*'TRF calcs '!$B24)+'TWP Calcs'!P$6*('TRF calcs '!$C24+'TRF calcs '!$D24+'TRF calcs '!$E24+'TRF calcs '!$F24))/(('TWP Calcs'!P$7*'TWP Calcs'!$A$2*'TRF calcs '!$B24)+('TWP Calcs'!P$8*('TRF calcs '!$C24+'TRF calcs '!$D24+'TRF calcs '!$E24+'TRF calcs '!$F24)))) -> 0.8444942633 | Q31: =(((('TWP Calcs'!Q$5)*'TWP Calcs'!$A$2*'TRF calcs '!$B24)+'TWP Calcs'!Q$6*('TRF calcs '!$C24+'TRF calcs '!$D24+'TRF calcs '!$E24+'TRF calcs '!$F24))/(('TWP Calcs'!Q$7*'TWP Calcs'!$A$2*'TRF calcs '!$B24)+('TWP Calcs'!Q$8*('TRF calcs '!$C24+'TRF calcs '!$D24+'TRF calcs '!$E24+'TRF calcs '!$F24)))) -> 0.7137961019 | R31: =(((('TWP Calcs'!R$5)*'TWP Calcs'!$A$2*'TRF calcs '!$B24)+'TWP Calcs'!R$6*('TRF calcs '!$C24+'TRF calcs '!$D24+'TRF calcs '!$E24+'TRF calcs '!$F24))/(('TWP Calcs'!R$7*'TWP Calcs'!$A$2*'TRF calcs '!$B24)+('TWP Calcs'!R$8*('TRF calcs '!$C24+'TRF calcs '!$D24+'TRF calcs '!$E24+'TRF calcs '!$F24)))) -> 0.5830979405 | S31: =(((('TWP Calcs'!S$5)*'TWP Calcs'!$A$2*'TRF calcs '!$B24)+'TWP Calcs'!S$6*('TRF calcs '!$C24+'TRF calcs '!$D24+'TRF calcs '!$E24+'TRF calcs '!$F24))/(('TWP Calcs'!S$7*'TWP Calcs'!$A$2*'TRF calcs '!$B24)+('TWP Calcs'!S$8*('TRF calcs '!$C24+'TRF calcs '!$D24+'TRF calcs '!$E24+'TRF calcs '!$F24)))) -> 0.5962178462 | T31: =(((('TWP Calcs'!T$5)*'TWP Calcs'!$A$2*'TRF calcs '!$B24)+'TWP Calcs'!T$6*('TRF calcs '!$C24+'TRF calcs '!$D24+'TRF calcs '!$E24+'TRF calcs '!$F24))/(('TWP Calcs'!T$7*'TWP Calcs'!$A$2*'TRF calcs '!$B24)+('TWP Calcs'!T$8*('TRF calcs '!$C24+'TRF calcs '!$D24+'TRF calcs '!$E24+'TRF calcs '!$F24)))) -> 0.5039441864 | U31: =(((('TWP Calcs'!U$5)*'TWP Calcs'!$A$2*'TRF calcs '!$B24)+'TWP Calcs'!U$6*('TRF calcs '!$C24+'TRF calcs '!$D24+'TRF calcs '!$E24+'TRF calcs '!$F24))/(('TWP Calcs'!U$7*'TWP Calcs'!$A$2*'TRF calcs '!$B24)+('TWP Calcs'!U$8*('TRF calcs '!$C24+'TRF calcs '!$D24+'TRF calcs '!$E24+'TRF calcs '!$F24)))) -> 0.4116705267 | V31: =(((('TWP Calcs'!V$5)*'TWP Calcs'!$A$2*'TRF calcs '!$B24)+'TWP Calcs'!V$6*('TRF calcs '!$C24+'TRF calcs '!$D24+'TRF calcs '!$E24+'TRF calcs '!$F24))/(('TWP Calcs'!V$7*'TWP Calcs'!$A$2*'TRF calcs '!$B24)+('TWP Calcs'!V$8*('TRF calcs '!$C24+'TRF calcs '!$D24+'TRF calcs '!$E24+'TRF calcs '!$F24)))) -> 1.296259822 | W31: =(((('TWP Calcs'!W$5)*'TWP Calcs'!$A$2*'TRF calcs '!$B24)+'TWP Calcs'!W$6*('TRF calcs '!$C24+'TRF calcs '!$D24+'TRF calcs '!$E24+'TRF calcs '!$F24))/(('TWP Calcs'!W$7*'TWP Calcs'!$A$2*'TRF calcs '!$B24)+('TWP Calcs'!W$8*('TRF calcs '!$C24+'TRF calcs '!$D24+'TRF calcs '!$E24+'TRF calcs '!$F24)))) -> 1.09564416 | X31: =(((('TWP Calcs'!X$5)*'TWP Calcs'!$A$2*'TRF calcs '!$B24)+'TWP Calcs'!X$6*('TRF calcs '!$C24+'TRF calcs '!$D24+'TRF calcs '!$E24+'TRF calcs '!$F24))/(('TWP Calcs'!X$7*'TWP Calcs'!$A$2*'TRF calcs '!$B24)+('TWP Calcs'!X$8*('TRF calcs '!$C24+'TRF calcs '!$D24+'TRF calcs '!$E24+'TRF calcs '!$F24)))) -> 0.8950284986 | Y31: =(((('TWP Calcs'!Y$5)*'TWP Calcs'!$A$2*'TRF calcs '!$B24)+'TWP Calcs'!Y$6*('TRF calcs '!$C24+'TRF calcs '!$D24+'TRF calcs '!$E24+'TRF calcs '!$F24))/(('TWP Calcs'!Y$7*'TWP Calcs'!$A$2*'TRF calcs '!$B24)+('TWP Calcs'!Y$8*('TRF calcs '!$C24+'TRF calcs '!$D24+'TRF calcs '!$E24+'TRF calcs '!$F24)))) -> 1.47350753 | Z31: =(((('TWP Calcs'!Z$5)*'TWP Calcs'!$A$2*'TRF calcs '!$B24)+'TWP Calcs'!Z$6*('TRF calcs '!$C24+'TRF calcs '!$D24+'TRF calcs '!$E24+'TRF calcs '!$F24))/(('TWP Calcs'!Z$7*'TWP Calcs'!$A$2*'TRF calcs '!$B24)+('TWP Calcs'!Z$8*('TRF calcs '!$C24+'TRF calcs '!$D24+'TRF calcs '!$E24+'TRF calcs '!$F24)))) -> 1.245460126 | AA31: =(((('TWP Calcs'!AA$5)*'TWP Calcs'!$A$2*'TRF calcs '!$B24)+'TWP Calcs'!AA$6*('TRF calcs '!$C24+'TRF calcs '!$D24+'TRF calcs '!$E24+'TRF calcs '!$F24))/(('TWP Calcs'!AA$7*'TWP Calcs'!$A$2*'TRF calcs '!$B24)+('TWP Calcs'!AA$8*('TRF calcs '!$C24+'TRF calcs '!$D24+'TRF calcs '!$E24+'TRF calcs '!$F24)))) -> 1.017412721 | AB31: =(((('TWP Calcs'!AB$5)*'TWP Calcs'!$A$2*'TRF calcs '!$B24)+'TWP Calcs'!AB$6*('TRF calcs '!$C24+'TRF calcs '!$D24+'TRF calcs '!$E24+'TRF calcs '!$F24))/(('TWP Calcs'!AB$7*'TWP Calcs'!$A$2*'TRF calcs '!$B24)+('TWP Calcs'!AB$8*('TRF calcs '!$C24+'TRF calcs '!$D24+'TRF calcs '!$E24+'TRF calcs '!$F24)))) -> 0.528656598 | AC31: =(((('TWP Calcs'!AC$5)*'TWP Calcs'!$A$2*'TRF calcs '!$B24)+'TWP Calcs'!AC$6*('TRF calcs '!$C24+'TRF calcs '!$D24+'TRF calcs '!$E24+'TRF calcs '!$F24))/(('TWP Calcs'!AC$7*'TWP Calcs'!$A$2*'TRF calcs '!$B24)+('TWP Calcs'!AC$8*('TRF calcs '!$C24+'TRF calcs '!$D24+'TRF calcs '!$E24+'TRF calcs '!$F24)))) -> 0.4242699021 | AD31: =(((('TWP Calcs'!AD$5)*'TWP Calcs'!$A$2*'TRF calcs '!$B24)+'TWP Calcs'!AD$6*('TRF calcs '!$C24+'TRF calcs '!$D24+'TRF calcs '!$E24+'TRF calcs '!$F24))/(('TWP Calcs'!AD$7*'TWP Calcs'!$A$2*'TRF calcs '!$B24)+('TWP Calcs'!AD$8*('TRF calcs '!$C24+'TRF calcs '!$D24+'TRF calcs '!$E24+'TRF calcs '!$F24)))) -> 0.2929456325 | AE31: =(((('TWP Calcs'!AE$5)*'TWP Calcs'!$A$2*'TRF calcs '!$B24)+'TWP Calcs'!AE$6*('TRF calcs '!$C24+'TRF calcs '!$D24+'TRF calcs '!$E24+'TRF calcs '!$F24))/(('TWP Calcs'!AE$7*'TWP Calcs'!$A$2*'TRF calcs '!$B24)+('TWP Calcs'!AE$8*('TRF calcs '!$C24+'TRF calcs '!$D24+'TRF calcs '!$E24+'TRF calcs '!$F24)))) -> 0.9224212784 | AF31: =(((('TWP Calcs'!AF$5)*'TWP Calcs'!$A$2*'TRF calcs '!$B24)+'TWP Calcs'!AF$6*('TRF calcs '!$C24+'TRF calcs '!$D24+'TRF calcs '!$E24+'TRF calcs '!$F24))/(('TWP Calcs'!AF$7*'TWP Calcs'!$A$2*'TRF calcs '!$B24)+('TWP Calcs'!AF$8*('TRF calcs '!$C24+'TRF calcs '!$D24+'TRF calcs '!$E24+'TRF calcs '!$F24)))) -> 0.677743359 | AG31: =(((('TWP Calcs'!AG$5)*'TWP Calcs'!$A$2*'TRF calcs '!$B24)+'TWP Calcs'!AG$6*('TRF calcs '!$C24+'TRF calcs '!$D24+'TRF calcs '!$E24+'TRF calcs '!$F24))/(('TWP Calcs'!AG$7*'TWP Calcs'!$A$2*'TRF calcs '!$B24)+('TWP Calcs'!AG$8*('TRF calcs '!$C24+'TRF calcs '!$D24+'TRF calcs '!$E24+'TRF calcs '!$F24)))) -> 0.9746504978 | AH31: 1 | AI31: 0 | AJ31: =(((('TWP Calcs'!AJ$5)*'TWP Calcs'!$A$2*'TRF calcs '!$B24)+'TWP Calcs'!AJ$6*('TRF calcs '!$C24+'TRF calcs '!$D24+'TRF calcs '!$E24+'TRF calcs '!$F24))/(('TWP Calcs'!AJ$7*'TWP Calcs'!$A$2*'TRF calcs '!$B24)+('TWP Calcs'!AJ$8*('TRF calcs '!$C24+'TRF calcs '!$D24+'TRF calcs '!$E24+'TRF calcs '!$F24)))) -> 0.7429103423 | AK31: =(((('TWP Calcs'!AK$5)*'TWP Calcs'!$A$2*'TRF calcs '!$G24)+'TWP Calcs'!AK$6*('TRF calcs '!$H24+'TRF calcs '!$I24+'TRF calcs '!$J24+'TRF calcs '!$K24))/(('TWP Calcs'!AK$7*'TWP Calcs'!$A$2*'TRF calcs '!$G24)+('TWP Calcs'!AK$8*('TRF calcs '!$H24+'TRF calcs '!$I24+'TRF calcs '!$J24+'TRF calcs '!$K24)))) -> 0.7190161602 | AL31: =(((('TWP Calcs'!AL$5)*'TWP Calcs'!$A$2*'TRF calcs '!$L24)+'TWP Calcs'!AL$6*('TRF calcs '!$M24+'TRF calcs '!$N24+'TRF calcs '!$O24+'TRF calcs '!$P24))/(('TWP Calcs'!AL$7*'TWP Calcs'!$A$2*'TRF calcs '!$L24)+('TWP Calcs'!AL$8*('TRF calcs '!$M24+'TRF calcs '!$N24+'TRF calcs '!$O24+'TRF calcs '!$P24)))) -> 0.7403608432
A32: 14 | B32: =(((('TWP Calcs'!B$5)*'TWP Calcs'!$A$2*'TRF calcs '!$B25)+'TWP Calcs'!B$6*('TRF calcs '!$C25+'TRF calcs '!$D25+'TRF calcs '!$E25+'TRF calcs '!$F25))/(('TWP Calcs'!B$7*'TWP Calcs'!$A$2*'TRF calcs '!$B25)+('TWP Calcs'!B$8*('TRF calcs '!$C25+'TRF calcs '!$D25+'TRF calcs '!$E25+'TRF calcs '!$F25)))) -> 1.517679357 | C32: =(((('TWP Calcs'!C$5)*'TWP Calcs'!$A$2*'TRF calcs '!$B25)+'TWP Calcs'!C$6*('TRF calcs '!$C25+'TRF calcs '!$D25+'TRF calcs '!$E25+'TRF calcs '!$F25))/(('TWP Calcs'!C$7*'TWP Calcs'!$A$2*'TRF calcs '!$B25)+('TWP Calcs'!C$8*('TRF calcs '!$C25+'TRF calcs '!$D25+'TRF calcs '!$E25+'TRF calcs '!$F25)))) -> 1.284723647 | D32: =(((('TWP Calcs'!D$5)*'TWP Calcs'!$A$2*'TRF calcs '!$B25)+'TWP Calcs'!D$6*('TRF calcs '!$C25+'TRF calcs '!$D25+'TRF calcs '!$E25+'TRF calcs '!$F25))/(('TWP Calcs'!D$7*'TWP Calcs'!$A$2*'TRF calcs '!$B25)+('TWP Calcs'!D$8*('TRF calcs '!$C25+'TRF calcs '!$D25+'TRF calcs '!$E25+'TRF calcs '!$F25)))) -> 1.36038984 | E32: =(((('TWP Calcs'!E$5)*'TWP Calcs'!$A$2*'TRF calcs '!$G25)+'TWP Calcs'!E$6*('TRF calcs '!$H25+'TRF calcs '!$I25+'TRF calcs '!$J25+'TRF calcs '!$K25))/(('TWP Calcs'!E$7*'TWP Calcs'!$A$2*'TRF calcs '!$G25)+('TWP Calcs'!E$8*('TRF calcs '!$H25+'TRF calcs '!$I25+'TRF calcs '!$J25+'TRF calcs '!$K25)))) -> 1.326220052 | F32: =(((('TWP Calcs'!F$5)*'TWP Calcs'!$A$2*'TRF calcs '!$B25)+'TWP Calcs'!F$6*('TRF calcs '!$C25+'TRF calcs '!$D25+'TRF calcs '!$E25+'TRF calcs '!$F25))/(('TWP Calcs'!F$7*'TWP Calcs'!$A$2*'TRF calcs '!$B25)+('TWP Calcs'!F$8*('TRF calcs '!$C25+'TRF calcs '!$D25+'TRF calcs '!$E25+'TRF calcs '!$F25)))) -> 0.7650742096 | G32: =(((('TWP Calcs'!G$5)*'TWP Calcs'!$A$2*'TRF calcs '!$B25)+'TWP Calcs'!G$6*('TRF calcs '!$C25+'TRF calcs '!$D25+'TRF calcs '!$E25+'TRF calcs '!$F25))/(('TWP Calcs'!G$7*'TWP Calcs'!$A$2*'TRF calcs '!$B25)+('TWP Calcs'!G$8*('TRF calcs '!$C25+'TRF calcs '!$D25+'TRF calcs '!$E25+'TRF calcs '!$F25)))) -> 0.7086084332 | H32: =(((('TWP Calcs'!H$5)*'TWP Calcs'!$A$2*'TRF calcs '!$B25)+'TWP Calcs'!H$6*('TRF calcs '!$C25+'TRF calcs '!$D25+'TRF calcs '!$E25+'TRF calcs '!$F25))/(('TWP Calcs'!H$7*'TWP Calcs'!$A$2*'TRF calcs '!$B25)+('TWP Calcs'!H$8*('TRF calcs '!$C25+'TRF calcs '!$D25+'TRF calcs '!$E25+'TRF calcs '!$F25)))) -> 0.5998408068 | I32: =(((('TWP Calcs'!I$5)*'TWP Calcs'!$A$2*'TRF calcs '!$B25)+'TWP Calcs'!I$6*('TRF calcs '!$C25+'TRF calcs '!$D25+'TRF calcs '!$E25+'TRF calcs '!$F25))/(('TWP Calcs'!I$7*'TWP Calcs'!$A$2*'TRF calcs '!$B25)+('TWP Calcs'!I$8*('TRF calcs '!$C25+'TRF calcs '!$D25+'TRF calcs '!$E25+'TRF calcs '!$F25)))) -> 0.4910731805 | J32: =(((('TWP Calcs'!J$5)*'TWP Calcs'!$A$2*'TRF calcs '!$B25)+'TWP Calcs'!J$6*('TRF calcs '!$C25+'TRF calcs '!$D25+'TRF calcs '!$E25+'TRF calcs '!$F25))/(('TWP Calcs'!J$7*'TWP Calcs'!$A$2*'TRF calcs '!$B25)+('TWP Calcs'!J$8*('TRF calcs '!$C25+'TRF calcs '!$D25+'TRF calcs '!$E25+'TRF calcs '!$F25)))) -> 0.7398383749 | K32: =(((('TWP Calcs'!K$5)*'TWP Calcs'!$A$2*'TRF calcs '!$B25)+'TWP Calcs'!K$6*('TRF calcs '!$C25+'TRF calcs '!$D25+'TRF calcs '!$E25+'TRF calcs '!$F25))/(('TWP Calcs'!K$7*'TWP Calcs'!$A$2*'TRF calcs '!$B25)+('TWP Calcs'!K$8*('TRF calcs '!$C25+'TRF calcs '!$D25+'TRF calcs '!$E25+'TRF calcs '!$F25)))) -> 0.6262771185 | L32: =(((('TWP Calcs'!L$5)*'TWP Calcs'!$A$2*'TRF calcs '!$B25)+'TWP Calcs'!L$6*('TRF calcs '!$C25+'TRF calcs '!$D25+'TRF calcs '!$E25+'TRF calcs '!$F25))/(('TWP Calcs'!L$7*'TWP Calcs'!$A$2*'TRF calcs '!$B25)+('TWP Calcs'!L$8*('TRF calcs '!$C25+'TRF calcs '!$D25+'TRF calcs '!$E25+'TRF calcs '!$F25)))) -> 0.4874800275 | M32: =(((('TWP Calcs'!M$5)*'TWP Calcs'!$A$2*'TRF calcs '!$B25)+'TWP Calcs'!M$6*('TRF calcs '!$C25+'TRF calcs '!$D25+'TRF calcs '!$E25+'TRF calcs '!$F25))/(('TWP Calcs'!M$7*'TWP Calcs'!$A$2*'TRF calcs '!$B25)+('TWP Calcs'!M$8*('TRF calcs '!$C25+'TRF calcs '!$D25+'TRF calcs '!$E25+'TRF calcs '!$F25)))) -> 0.587261532 | N32: =(((('TWP Calcs'!N$5)*'TWP Calcs'!$A$2*'TRF calcs '!$B25)+'TWP Calcs'!N$6*('TRF calcs '!$C25+'TRF calcs '!$D25+'TRF calcs '!$E25+'TRF calcs '!$F25))/(('TWP Calcs'!N$7*'TWP Calcs'!$A$2*'TRF calcs '!$B25)+('TWP Calcs'!N$8*('TRF calcs '!$C25+'TRF calcs '!$D25+'TRF calcs '!$E25+'TRF calcs '!$F25)))) -> 0.4971200097 | O32: =(((('TWP Calcs'!O$5)*'TWP Calcs'!$A$2*'TRF calcs '!$B25)+'TWP Calcs'!O$6*('TRF calcs '!$C25+'TRF calcs '!$D25+'TRF calcs '!$E25+'TRF calcs '!$F25))/(('TWP Calcs'!O$7*'TWP Calcs'!$A$2*'TRF calcs '!$B25)+('TWP Calcs'!O$8*('TRF calcs '!$C25+'TRF calcs '!$D25+'TRF calcs '!$E25+'TRF calcs '!$F25)))) -> 0.4069784874 | P32: =(((('TWP Calcs'!P$5)*'TWP Calcs'!$A$2*'TRF calcs '!$B25)+'TWP Calcs'!P$6*('TRF calcs '!$C25+'TRF calcs '!$D25+'TRF calcs '!$E25+'TRF calcs '!$F25))/(('TWP Calcs'!P$7*'TWP Calcs'!$A$2*'TRF calcs '!$B25)+('TWP Calcs'!P$8*('TRF calcs '!$C25+'TRF calcs '!$D25+'TRF calcs '!$E25+'TRF calcs '!$F25)))) -> 0.8410022419 | Q32: =(((('TWP Calcs'!Q$5)*'TWP Calcs'!$A$2*'TRF calcs '!$B25)+'TWP Calcs'!Q$6*('TRF calcs '!$C25+'TRF calcs '!$D25+'TRF calcs '!$E25+'TRF calcs '!$F25))/(('TWP Calcs'!Q$7*'TWP Calcs'!$A$2*'TRF calcs '!$B25)+('TWP Calcs'!Q$8*('TRF calcs '!$C25+'TRF calcs '!$D25+'TRF calcs '!$E25+'TRF calcs '!$F25)))) -> 0.7119128699 | R32: =(((('TWP Calcs'!R$5)*'TWP Calcs'!$A$2*'TRF calcs '!$B25)+'TWP Calcs'!R$6*('TRF calcs '!$C25+'TRF calcs '!$D25+'TRF calcs '!$E25+'TRF calcs '!$F25))/(('TWP Calcs'!R$7*'TWP Calcs'!$A$2*'TRF calcs '!$B25)+('TWP Calcs'!R$8*('TRF calcs '!$C25+'TRF calcs '!$D25+'TRF calcs '!$E25+'TRF calcs '!$F25)))) -> 0.582823498 | S32: =(((('TWP Calcs'!S$5)*'TWP Calcs'!$A$2*'TRF calcs '!$B25)+'TWP Calcs'!S$6*('TRF calcs '!$C25+'TRF calcs '!$D25+'TRF calcs '!$E25+'TRF calcs '!$F25))/(('TWP Calcs'!S$7*'TWP Calcs'!$A$2*'TRF calcs '!$B25)+('TWP Calcs'!S$8*('TRF calcs '!$C25+'TRF calcs '!$D25+'TRF calcs '!$E25+'TRF calcs '!$F25)))) -> 0.5937524588 | T32: =(((('TWP Calcs'!T$5)*'TWP Calcs'!$A$2*'TRF calcs '!$B25)+'TWP Calcs'!T$6*('TRF calcs '!$C25+'TRF calcs '!$D25+'TRF calcs '!$E25+'TRF calcs '!$F25))/(('TWP Calcs'!T$7*'TWP Calcs'!$A$2*'TRF calcs '!$B25)+('TWP Calcs'!T$8*('TRF calcs '!$C25+'TRF calcs '!$D25+'TRF calcs '!$E25+'TRF calcs '!$F25)))) -> 0.5026146137 | U32: =(((('TWP Calcs'!U$5)*'TWP Calcs'!$A$2*'TRF calcs '!$B25)+'TWP Calcs'!U$6*('TRF calcs '!$C25+'TRF calcs '!$D25+'TRF calcs '!$E25+'TRF calcs '!$F25))/(('TWP Calcs'!U$7*'TWP Calcs'!$A$2*'TRF calcs '!$B25)+('TWP Calcs'!U$8*('TRF calcs '!$C25+'TRF calcs '!$D25+'TRF calcs '!$E25+'TRF calcs '!$F25)))) -> 0.4114767687 | V32: =(((('TWP Calcs'!V$5)*'TWP Calcs'!$A$2*'TRF calcs '!$B25)+'TWP Calcs'!V$6*('TRF calcs '!$C25+'TRF calcs '!$D25+'TRF calcs '!$E25+'TRF calcs '!$F25))/(('TWP Calcs'!V$7*'TWP Calcs'!$A$2*'TRF calcs '!$B25)+('TWP Calcs'!V$8*('TRF calcs '!$C25+'TRF calcs '!$D25+'TRF calcs '!$E25+'TRF calcs '!$F25)))) -> 1.29089973 | W32: =(((('TWP Calcs'!W$5)*'TWP Calcs'!$A$2*'TRF calcs '!$B25)+'TWP Calcs'!W$6*('TRF calcs '!$C25+'TRF calcs '!$D25+'TRF calcs '!$E25+'TRF calcs '!$F25))/(('TWP Calcs'!W$7*'TWP Calcs'!$A$2*'TRF calcs '!$B25)+('TWP Calcs'!W$8*('TRF calcs '!$C25+'TRF calcs '!$D25+'TRF calcs '!$E25+'TRF calcs '!$F25)))) -> 1.092753486 | X32: =(((('TWP Calcs'!X$5)*'TWP Calcs'!$A$2*'TRF calcs '!$B25)+'TWP Calcs'!X$6*('TRF calcs '!$C25+'TRF calcs '!$D25+'TRF calcs '!$E25+'TRF calcs '!$F25))/(('TWP Calcs'!X$7*'TWP Calcs'!$A$2*'TRF calcs '!$B25)+('TWP Calcs'!X$8*('TRF calcs '!$C25+'TRF calcs '!$D25+'TRF calcs '!$E25+'TRF calcs '!$F25)))) -> 0.894607242 | Y32: =(((('TWP Calcs'!Y$5)*'TWP Calcs'!$A$2*'TRF calcs '!$B25)+'TWP Calcs'!Y$6*('TRF calcs '!$C25+'TRF calcs '!$D25+'TRF calcs '!$E25+'TRF calcs '!$F25))/(('TWP Calcs'!Y$7*'TWP Calcs'!$A$2*'TRF calcs '!$B25)+('TWP Calcs'!Y$8*('TRF calcs '!$C25+'TRF calcs '!$D25+'TRF calcs '!$E25+'TRF calcs '!$F25)))) -> 1.467414511 | Z32: =(((('TWP Calcs'!Z$5)*'TWP Calcs'!$A$2*'TRF calcs '!$B25)+'TWP Calcs'!Z$6*('TRF calcs '!$C25+'TRF calcs '!$D25+'TRF calcs '!$E25+'TRF calcs '!$F25))/(('TWP Calcs'!Z$7*'TWP Calcs'!$A$2*'TRF calcs '!$B25)+('TWP Calcs'!Z$8*('TRF calcs '!$C25+'TRF calcs '!$D25+'TRF calcs '!$E25+'TRF calcs '!$F25)))) -> 1.242174187 | AA32: =(((('TWP Calcs'!AA$5)*'TWP Calcs'!$A$2*'TRF calcs '!$B25)+'TWP Calcs'!AA$6*('TRF calcs '!$C25+'TRF calcs '!$D25+'TRF calcs '!$E25+'TRF calcs '!$F25))/(('TWP Calcs'!AA$7*'TWP Calcs'!$A$2*'TRF calcs '!$B25)+('TWP Calcs'!AA$8*('TRF calcs '!$C25+'TRF calcs '!$D25+'TRF calcs '!$E25+'TRF calcs '!$F25)))) -> 1.016933862 | AB32: =(((('TWP Calcs'!AB$5)*'TWP Calcs'!$A$2*'TRF calcs '!$B25)+'TWP Calcs'!AB$6*('TRF calcs '!$C25+'TRF calcs '!$D25+'TRF calcs '!$E25+'TRF calcs '!$F25))/(('TWP Calcs'!AB$7*'TWP Calcs'!$A$2*'TRF calcs '!$B25)+('TWP Calcs'!AB$8*('TRF calcs '!$C25+'TRF calcs '!$D25+'TRF calcs '!$E25+'TRF calcs '!$F25)))) -> 0.528045836 | AC32: =(((('TWP Calcs'!AC$5)*'TWP Calcs'!$A$2*'TRF calcs '!$B25)+'TWP Calcs'!AC$6*('TRF calcs '!$C25+'TRF calcs '!$D25+'TRF calcs '!$E25+'TRF calcs '!$F25))/(('TWP Calcs'!AC$7*'TWP Calcs'!$A$2*'TRF calcs '!$B25)+('TWP Calcs'!AC$8*('TRF calcs '!$C25+'TRF calcs '!$D25+'TRF calcs '!$E25+'TRF calcs '!$F25)))) -> 0.4237797391 | AD32: =(((('TWP Calcs'!AD$5)*'TWP Calcs'!$A$2*'TRF calcs '!$B25)+'TWP Calcs'!AD$6*('TRF calcs '!$C25+'TRF calcs '!$D25+'TRF calcs '!$E25+'TRF calcs '!$F25))/(('TWP Calcs'!AD$7*'TWP Calcs'!$A$2*'TRF calcs '!$B25)+('TWP Calcs'!AD$8*('TRF calcs '!$C25+'TRF calcs '!$D25+'TRF calcs '!$E25+'TRF calcs '!$F25)))) -> 0.2936838662 | AE32: =(((('TWP Calcs'!AE$5)*'TWP Calcs'!$A$2*'TRF calcs '!$B25)+'TWP Calcs'!AE$6*('TRF calcs '!$C25+'TRF calcs '!$D25+'TRF calcs '!$E25+'TRF calcs '!$F25))/(('TWP Calcs'!AE$7*'TWP Calcs'!$A$2*'TRF calcs '!$B25)+('TWP Calcs'!AE$8*('TRF calcs '!$C25+'TRF calcs '!$D25+'TRF calcs '!$E25+'TRF calcs '!$F25)))) -> 0.9213555963 | AF32: =(((('TWP Calcs'!AF$5)*'TWP Calcs'!$A$2*'TRF calcs '!$B25)+'TWP Calcs'!AF$6*('TRF calcs '!$C25+'TRF calcs '!$D25+'TRF calcs '!$E25+'TRF calcs '!$F25))/(('TWP Calcs'!AF$7*'TWP Calcs'!$A$2*'TRF calcs '!$B25)+('TWP Calcs'!AF$8*('TRF calcs '!$C25+'TRF calcs '!$D25+'TRF calcs '!$E25+'TRF calcs '!$F25)))) -> 0.67494086 | AG32: =(((('TWP Calcs'!AG$5)*'TWP Calcs'!$A$2*'TRF calcs '!$B25)+'TWP Calcs'!AG$6*('TRF calcs '!$C25+'TRF calcs '!$D25+'TRF calcs '!$E25+'TRF calcs '!$F25))/(('TWP Calcs'!AG$7*'TWP Calcs'!$A$2*'TRF calcs '!$B25)+('TWP Calcs'!AG$8*('TRF calcs '!$C25+'TRF calcs '!$D25+'TRF calcs '!$E25+'TRF calcs '!$F25)))) -> 0.9706202746 | AH32: 1 | AI32: 0 | AJ32: =(((('TWP Calcs'!AJ$5)*'TWP Calcs'!$A$2*'TRF calcs '!$B25)+'TWP Calcs'!AJ$6*('TRF calcs '!$C25+'TRF calcs '!$D25+'TRF calcs '!$E25+'TRF calcs '!$F25))/(('TWP Calcs'!AJ$7*'TWP Calcs'!$A$2*'TRF calcs '!$B25)+('TWP Calcs'!AJ$8*('TRF calcs '!$C25+'TRF calcs '!$D25+'TRF calcs '!$E25+'TRF calcs '!$F25)))) -> 0.7398383749 | AK32: =(((('TWP Calcs'!AK$5)*'TWP Calcs'!$A$2*'TRF calcs '!$G25)+'TWP Calcs'!AK$6*('TRF calcs '!$H25+'TRF calcs '!$I25+'TRF calcs '!$J25+'TRF calcs '!$K25))/(('TWP Calcs'!AK$7*'TWP Calcs'!$A$2*'TRF calcs '!$G25)+('TWP Calcs'!AK$8*('TRF calcs '!$H25+'TRF calcs '!$I25+'TRF calcs '!$J25+'TRF calcs '!$K25)))) -> 0.7141663155 | AL32: =(((('TWP Calcs'!AL$5)*'TWP Calcs'!$A$2*'TRF calcs '!$L25)+'TWP Calcs'!AL$6*('TRF calcs '!$M25+'TRF calcs '!$N25+'TRF calcs '!$O25+'TRF calcs '!$P25))/(('TWP Calcs'!AL$7*'TWP Calcs'!$A$2*'TRF calcs '!$L25)+('TWP Calcs'!AL$8*('TRF calcs '!$M25+'TRF calcs '!$N25+'TRF calcs '!$O25+'TRF calcs '!$P25)))) -> 0.7372884936
A33: 15 | B33: =(((('TWP Calcs'!B$5)*'TWP Calcs'!$A$2*'TRF calcs '!$B26)+'TWP Calcs'!B$6*('TRF calcs '!$C26+'TRF calcs '!$D26+'TRF calcs '!$E26+'TRF calcs '!$F26))/(('TWP Calcs'!B$7*'TWP Calcs'!$A$2*'TRF calcs '!$B26)+('TWP Calcs'!B$8*('TRF calcs '!$C26+'TRF calcs '!$D26+'TRF calcs '!$E26+'TRF calcs '!$F26)))) -> 1.511135595 | C33: =(((('TWP Calcs'!C$5)*'TWP Calcs'!$A$2*'TRF calcs '!$B26)+'TWP Calcs'!C$6*('TRF calcs '!$C26+'TRF calcs '!$D26+'TRF calcs '!$E26+'TRF calcs '!$F26))/(('TWP Calcs'!C$7*'TWP Calcs'!$A$2*'TRF calcs '!$B26)+('TWP Calcs'!C$8*('TRF calcs '!$C26+'TRF calcs '!$D26+'TRF calcs '!$E26+'TRF calcs '!$F26)))) -> 1.281124577 | D33: =(((('TWP Calcs'!D$5)*'TWP Calcs'!$A$2*'TRF calcs '!$B26)+'TWP Calcs'!D$6*('TRF calcs '!$C26+'TRF calcs '!$D26+'TRF calcs '!$E26+'TRF calcs '!$F26))/(('TWP Calcs'!D$7*'TWP Calcs'!$A$2*'TRF calcs '!$B26)+('TWP Calcs'!D$8*('TRF calcs '!$C26+'TRF calcs '!$D26+'TRF calcs '!$E26+'TRF calcs '!$F26)))) -> 1.355834306 | E33: =(((('TWP Calcs'!E$5)*'TWP Calcs'!$A$2*'TRF calcs '!$G26)+'TWP Calcs'!E$6*('TRF calcs '!$H26+'TRF calcs '!$I26+'TRF calcs '!$J26+'TRF calcs '!$K26))/(('TWP Calcs'!E$7*'TWP Calcs'!$A$2*'TRF calcs '!$G26)+('TWP Calcs'!E$8*('TRF calcs '!$H26+'TRF calcs '!$I26+'TRF calcs '!$J26+'TRF calcs '!$K26)))) -> 1.319160279 | F33: =(((('TWP Calcs'!F$5)*'TWP Calcs'!$A$2*'TRF calcs '!$B26)+'TWP Calcs'!F$6*('TRF calcs '!$C26+'TRF calcs '!$D26+'TRF calcs '!$E26+'TRF calcs '!$F26))/(('TWP Calcs'!F$7*'TWP Calcs'!$A$2*'TRF calcs '!$B26)+('TWP Calcs'!F$8*('TRF calcs '!$C26+'TRF calcs '!$D26+'TRF calcs '!$E26+'TRF calcs '!$F26)))) -> 0.7616796919 | G33: =(((('TWP Calcs'!G$5)*'TWP Calcs'!$A$2*'TRF calcs '!$B26)+'TWP Calcs'!G$6*('TRF calcs '!$C26+'TRF calcs '!$D26+'TRF calcs '!$E26+'TRF calcs '!$F26))/(('TWP Calcs'!G$7*'TWP Calcs'!$A$2*'TRF calcs '!$B26)+('TWP Calcs'!G$8*('TRF calcs '!$C26+'TRF calcs '!$D26+'TRF calcs '!$E26+'TRF calcs '!$F26)))) -> 0.7060829228 | H33: =(((('TWP Calcs'!H$5)*'TWP Calcs'!$A$2*'TRF calcs '!$B26)+'TWP Calcs'!H$6*('TRF calcs '!$C26+'TRF calcs '!$D26+'TRF calcs '!$E26+'TRF calcs '!$F26))/(('TWP Calcs'!H$7*'TWP Calcs'!$A$2*'TRF calcs '!$B26)+('TWP Calcs'!H$8*('TRF calcs '!$C26+'TRF calcs '!$D26+'TRF calcs '!$E26+'TRF calcs '!$F26)))) -> 0.5986095418 | I33: =(((('TWP Calcs'!I$5)*'TWP Calcs'!$A$2*'TRF calcs '!$B26)+'TWP Calcs'!I$6*('TRF calcs '!$C26+'TRF calcs '!$D26+'TRF calcs '!$E26+'TRF calcs '!$F26))/(('TWP Calcs'!I$7*'TWP Calcs'!$A$2*'TRF calcs '!$B26)+('TWP Calcs'!I$8*('TRF calcs '!$C26+'TRF calcs '!$D26+'TRF calcs '!$E26+'TRF calcs '!$F26)))) -> 0.4911361607 | J33: =(((('TWP Calcs'!J$5)*'TWP Calcs'!$A$2*'TRF calcs '!$B26)+'TWP Calcs'!J$6*('TRF calcs '!$C26+'TRF calcs '!$D26+'TRF calcs '!$E26+'TRF calcs '!$F26))/(('TWP Calcs'!J$7*'TWP Calcs'!$A$2*'TRF calcs '!$B26)+('TWP Calcs'!J$8*('TRF calcs '!$C26+'TRF calcs '!$D26+'TRF calcs '!$E26+'TRF calcs '!$F26)))) -> 0.7367591086 | K33: =(((('TWP Calcs'!K$5)*'TWP Calcs'!$A$2*'TRF calcs '!$B26)+'TWP Calcs'!K$6*('TRF calcs '!$C26+'TRF calcs '!$D26+'TRF calcs '!$E26+'TRF calcs '!$F26))/(('TWP Calcs'!K$7*'TWP Calcs'!$A$2*'TRF calcs '!$B26)+('TWP Calcs'!K$8*('TRF calcs '!$C26+'TRF calcs '!$D26+'TRF calcs '!$E26+'TRF calcs '!$F26)))) -> 0.6246164836 | L33: =(((('TWP Calcs'!L$5)*'TWP Calcs'!$A$2*'TRF calcs '!$B26)+'TWP Calcs'!L$6*('TRF calcs '!$C26+'TRF calcs '!$D26+'TRF calcs '!$E26+'TRF calcs '!$F26))/(('TWP Calcs'!L$7*'TWP Calcs'!$A$2*'TRF calcs '!$B26)+('TWP Calcs'!L$8*('TRF calcs '!$C26+'TRF calcs '!$D26+'TRF calcs '!$E26+'TRF calcs '!$F26)))) -> 0.4875532753 | M33: =(((('TWP Calcs'!M$5)*'TWP Calcs'!$A$2*'TRF calcs '!$B26)+'TWP Calcs'!M$6*('TRF calcs '!$C26+'TRF calcs '!$D26+'TRF calcs '!$E26+'TRF calcs '!$F26))/(('TWP Calcs'!M$7*'TWP Calcs'!$A$2*'TRF calcs '!$B26)+('TWP Calcs'!M$8*('TRF calcs '!$C26+'TRF calcs '!$D26+'TRF calcs '!$E26+'TRF calcs '!$F26)))) -> 0.586576573 | N33: =(((('TWP Calcs'!N$5)*'TWP Calcs'!$A$2*'TRF calcs '!$B26)+'TWP Calcs'!N$6*('TRF calcs '!$C26+'TRF calcs '!$D26+'TRF calcs '!$E26+'TRF calcs '!$F26))/(('TWP Calcs'!N$7*'TWP Calcs'!$A$2*'TRF calcs '!$B26)+('TWP Calcs'!N$8*('TRF calcs '!$C26+'TRF calcs '!$D26+'TRF calcs '!$E26+'TRF calcs '!$F26)))) -> 0.497293338 | O33: =(((('TWP Calcs'!O$5)*'TWP Calcs'!$A$2*'TRF calcs '!$B26)+'TWP Calcs'!O$6*('TRF calcs '!$C26+'TRF calcs '!$D26+'TRF calcs '!$E26+'TRF calcs '!$F26))/(('TWP Calcs'!O$7*'TWP Calcs'!$A$2*'TRF calcs '!$B26)+('TWP Calcs'!O$8*('TRF calcs '!$C26+'TRF calcs '!$D26+'TRF calcs '!$E26+'TRF calcs '!$F26)))) -> 0.4080101029 | P33: =(((('TWP Calcs'!P$5)*'TWP Calcs'!$A$2*'TRF calcs '!$B26)+'TWP Calcs'!P$6*('TRF calcs '!$C26+'TRF calcs '!$D26+'TRF calcs '!$E26+'TRF calcs '!$F26))/(('TWP Calcs'!P$7*'TWP Calcs'!$A$2*'TRF calcs '!$B26)+('TWP Calcs'!P$8*('TRF calcs '!$C26+'TRF calcs '!$D26+'TRF calcs '!$E26+'TRF calcs '!$F26)))) -> 0.8375019236 | Q33: =(((('TWP Calcs'!Q$5)*'TWP Calcs'!$A$2*'TRF calcs '!$B26)+'TWP Calcs'!Q$6*('TRF calcs '!$C26+'TRF calcs '!$D26+'TRF calcs '!$E26+'TRF calcs '!$F26))/(('TWP Calcs'!Q$7*'TWP Calcs'!$A$2*'TRF calcs '!$B26)+('TWP Calcs'!Q$8*('TRF calcs '!$C26+'TRF calcs '!$D26+'TRF calcs '!$E26+'TRF calcs '!$F26)))) -> 0.7100251635 | R33: =(((('TWP Calcs'!R$5)*'TWP Calcs'!$A$2*'TRF calcs '!$B26)+'TWP Calcs'!R$6*('TRF calcs '!$C26+'TRF calcs '!$D26+'TRF calcs '!$E26+'TRF calcs '!$F26))/(('TWP Calcs'!R$7*'TWP Calcs'!$A$2*'TRF calcs '!$B26)+('TWP Calcs'!R$8*('TRF calcs '!$C26+'TRF calcs '!$D26+'TRF calcs '!$E26+'TRF calcs '!$F26)))) -> 0.5825484034 | S33: =(((('TWP Calcs'!S$5)*'TWP Calcs'!$A$2*'TRF calcs '!$B26)+'TWP Calcs'!S$6*('TRF calcs '!$C26+'TRF calcs '!$D26+'TRF calcs '!$E26+'TRF calcs '!$F26))/(('TWP Calcs'!S$7*'TWP Calcs'!$A$2*'TRF calcs '!$B26)+('TWP Calcs'!S$8*('TRF calcs '!$C26+'TRF calcs '!$D26+'TRF calcs '!$E26+'TRF calcs '!$F26)))) -> 0.5912812137 | T33: =(((('TWP Calcs'!T$5)*'TWP Calcs'!$A$2*'TRF calcs '!$B26)+'TWP Calcs'!T$6*('TRF calcs '!$C26+'TRF calcs '!$D26+'TRF calcs '!$E26+'TRF calcs '!$F26))/(('TWP Calcs'!T$7*'TWP Calcs'!$A$2*'TRF calcs '!$B26)+('TWP Calcs'!T$8*('TRF calcs '!$C26+'TRF calcs '!$D26+'TRF calcs '!$E26+'TRF calcs '!$F26)))) -> 0.501281882 | U33: =(((('TWP Calcs'!U$5)*'TWP Calcs'!$A$2*'TRF calcs '!$B26)+'TWP Calcs'!U$6*('TRF calcs '!$C26+'TRF calcs '!$D26+'TRF calcs '!$E26+'TRF calcs '!$F26))/(('TWP Calcs'!U$7*'TWP Calcs'!$A$2*'TRF calcs '!$B26)+('TWP Calcs'!U$8*('TRF calcs '!$C26+'TRF calcs '!$D26+'TRF calcs '!$E26+'TRF calcs '!$F26)))) -> 0.4112825503 | V33: =(((('TWP Calcs'!V$5)*'TWP Calcs'!$A$2*'TRF calcs '!$B26)+'TWP Calcs'!V$6*('TRF calcs '!$C26+'TRF calcs '!$D26+'TRF calcs '!$E26+'TRF calcs '!$F26))/(('TWP Calcs'!V$7*'TWP Calcs'!$A$2*'TRF calcs '!$B26)+('TWP Calcs'!V$8*('TRF calcs '!$C26+'TRF calcs '!$D26+'TRF calcs '!$E26+'TRF calcs '!$F26)))) -> 1.285526902 | W33: =(((('TWP Calcs'!W$5)*'TWP Calcs'!$A$2*'TRF calcs '!$B26)+'TWP Calcs'!W$6*('TRF calcs '!$C26+'TRF calcs '!$D26+'TRF calcs '!$E26+'TRF calcs '!$F26))/(('TWP Calcs'!W$7*'TWP Calcs'!$A$2*'TRF calcs '!$B26)+('TWP Calcs'!W$8*('TRF calcs '!$C26+'TRF calcs '!$D26+'TRF calcs '!$E26+'TRF calcs '!$F26)))) -> 1.089855943 | X33: =(((('TWP Calcs'!X$5)*'TWP Calcs'!$A$2*'TRF calcs '!$B26)+'TWP Calcs'!X$6*('TRF calcs '!$C26+'TRF calcs '!$D26+'TRF calcs '!$E26+'TRF calcs '!$F26))/(('TWP Calcs'!X$7*'TWP Calcs'!$A$2*'TRF calcs '!$B26)+('TWP Calcs'!X$8*('TRF calcs '!$C26+'TRF calcs '!$D26+'TRF calcs '!$E26+'TRF calcs '!$F26)))) -> 0.8941849844 | Y33: =(((('TWP Calcs'!Y$5)*'TWP Calcs'!$A$2*'TRF calcs '!$B26)+'TWP Calcs'!Y$6*('TRF calcs '!$C26+'TRF calcs '!$D26+'TRF calcs '!$E26+'TRF calcs '!$F26))/(('TWP Calcs'!Y$7*'TWP Calcs'!$A$2*'TRF calcs '!$B26)+('TWP Calcs'!Y$8*('TRF calcs '!$C26+'TRF calcs '!$D26+'TRF calcs '!$E26+'TRF calcs '!$F26)))) -> 1.461307015 | Z33: =(((('TWP Calcs'!Z$5)*'TWP Calcs'!$A$2*'TRF calcs '!$B26)+'TWP Calcs'!Z$6*('TRF calcs '!$C26+'TRF calcs '!$D26+'TRF calcs '!$E26+'TRF calcs '!$F26))/(('TWP Calcs'!Z$7*'TWP Calcs'!$A$2*'TRF calcs '!$B26)+('TWP Calcs'!Z$8*('TRF calcs '!$C26+'TRF calcs '!$D26+'TRF calcs '!$E26+'TRF calcs '!$F26)))) -> 1.238880441 | AA33: =(((('TWP Calcs'!AA$5)*'TWP Calcs'!$A$2*'TRF calcs '!$B26)+'TWP Calcs'!AA$6*('TRF calcs '!$C26+'TRF calcs '!$D26+'TRF calcs '!$E26+'TRF calcs '!$F26))/(('TWP Calcs'!AA$7*'TWP Calcs'!$A$2*'TRF calcs '!$B26)+('TWP Calcs'!AA$8*('TRF calcs '!$C26+'TRF calcs '!$D26+'TRF calcs '!$E26+'TRF calcs '!$F26)))) -> 1.016453866 | AB33: =(((('TWP Calcs'!AB$5)*'TWP Calcs'!$A$2*'TRF calcs '!$B26)+'TWP Calcs'!AB$6*('TRF calcs '!$C26+'TRF calcs '!$D26+'TRF calcs '!$E26+'TRF calcs '!$F26))/(('TWP Calcs'!AB$7*'TWP Calcs'!$A$2*'TRF calcs '!$B26)+('TWP Calcs'!AB$8*('TRF calcs '!$C26+'TRF calcs '!$D26+'TRF calcs '!$E26+'TRF calcs '!$F26)))) -> 0.5274299438 | AC33: =(((('TWP Calcs'!AC$5)*'TWP Calcs'!$A$2*'TRF calcs '!$B26)+'TWP Calcs'!AC$6*('TRF calcs '!$C26+'TRF calcs '!$D26+'TRF calcs '!$E26+'TRF calcs '!$F26))/(('TWP Calcs'!AC$7*'TWP Calcs'!$A$2*'TRF calcs '!$B26)+('TWP Calcs'!AC$8*('TRF calcs '!$C26+'TRF calcs '!$D26+'TRF calcs '!$E26+'TRF calcs '!$F26)))) -> 0.4232854589 | AD33: =(((('TWP Calcs'!AD$5)*'TWP Calcs'!$A$2*'TRF calcs '!$B26)+'TWP Calcs'!AD$6*('TRF calcs '!$C26+'TRF calcs '!$D26+'TRF calcs '!$E26+'TRF calcs '!$F26))/(('TWP Calcs'!AD$7*'TWP Calcs'!$A$2*'TRF calcs '!$B26)+('TWP Calcs'!AD$8*('TRF calcs '!$C26+'TRF calcs '!$D26+'TRF calcs '!$E26+'TRF calcs '!$F26)))) -> 0.2944283007 | AE33: =(((('TWP Calcs'!AE$5)*'TWP Calcs'!$A$2*'TRF calcs '!$B26)+'TWP Calcs'!AE$6*('TRF calcs '!$C26+'TRF calcs '!$D26+'TRF calcs '!$E26+'TRF calcs '!$F26))/(('TWP Calcs'!AE$7*'TWP Calcs'!$A$2*'TRF calcs '!$B26)+('TWP Calcs'!AE$8*('TRF calcs '!$C26+'TRF calcs '!$D26+'TRF calcs '!$E26+'TRF calcs '!$F26)))) -> 0.920280963 | AF33: =(((('TWP Calcs'!AF$5)*'TWP Calcs'!$A$2*'TRF calcs '!$B26)+'TWP Calcs'!AF$6*('TRF calcs '!$C26+'TRF calcs '!$D26+'TRF calcs '!$E26+'TRF calcs '!$F26))/(('TWP Calcs'!AF$7*'TWP Calcs'!$A$2*'TRF calcs '!$B26)+('TWP Calcs'!AF$8*('TRF calcs '!$C26+'TRF calcs '!$D26+'TRF calcs '!$E26+'TRF calcs '!$F26)))) -> 0.6721317023 | AG33: =(((('TWP Calcs'!AG$5)*'TWP Calcs'!$A$2*'TRF calcs '!$B26)+'TWP Calcs'!AG$6*('TRF calcs '!$C26+'TRF calcs '!$D26+'TRF calcs '!$E26+'TRF calcs '!$F26))/(('TWP Calcs'!AG$7*'TWP Calcs'!$A$2*'TRF calcs '!$B26)+('TWP Calcs'!AG$8*('TRF calcs '!$C26+'TRF calcs '!$D26+'TRF calcs '!$E26+'TRF calcs '!$F26)))) -> 0.9665804757 | AH33: 1 | AI33: 0 | AJ33: =(((('TWP Calcs'!AJ$5)*'TWP Calcs'!$A$2*'TRF calcs '!$B26)+'TWP Calcs'!AJ$6*('TRF calcs '!$C26+'TRF calcs '!$D26+'TRF calcs '!$E26+'TRF calcs '!$F26))/(('TWP Calcs'!AJ$7*'TWP Calcs'!$A$2*'TRF calcs '!$B26)+('TWP Calcs'!AJ$8*('TRF calcs '!$C26+'TRF calcs '!$D26+'TRF calcs '!$E26+'TRF calcs '!$F26)))) -> 0.7367591086 | AK33: =(((('TWP Calcs'!AK$5)*'TWP Calcs'!$A$2*'TRF calcs '!$G26)+'TWP Calcs'!AK$6*('TRF calcs '!$H26+'TRF calcs '!$I26+'TRF calcs '!$J26+'TRF calcs '!$K26))/(('TWP Calcs'!AK$7*'TWP Calcs'!$A$2*'TRF calcs '!$G26)+('TWP Calcs'!AK$8*('TRF calcs '!$H26+'TRF calcs '!$I26+'TRF calcs '!$J26+'TRF calcs '!$K26)))) -> 0.7093825697 | AL33: =(((('TWP Calcs'!AL$5)*'TWP Calcs'!$A$2*'TRF calcs '!$L26)+'TWP Calcs'!AL$6*('TRF calcs '!$M26+'TRF calcs '!$N26+'TRF calcs '!$O26+'TRF calcs '!$P26))/(('TWP Calcs'!AL$7*'TWP Calcs'!$A$2*'TRF calcs '!$L26)+('TWP Calcs'!AL$8*('TRF calcs '!$M26+'TRF calcs '!$N26+'TRF calcs '!$O26+'TRF calcs '!$P26)))) -> 0.7342088442
A34: 16 | B34: =(((('TWP Calcs'!B$5)*'TWP Calcs'!$A$2*'TRF calcs '!$B27)+'TWP Calcs'!B$6*('TRF calcs '!$C27+'TRF calcs '!$D27+'TRF calcs '!$E27+'TRF calcs '!$F27))/(('TWP Calcs'!B$7*'TWP Calcs'!$A$2*'TRF calcs '!$B27)+('TWP Calcs'!B$8*('TRF calcs '!$C27+'TRF calcs '!$D27+'TRF calcs '!$E27+'TRF calcs '!$F27)))) -> 1.504599883 | C34: =(((('TWP Calcs'!C$5)*'TWP Calcs'!$A$2*'TRF calcs '!$B27)+'TWP Calcs'!C$6*('TRF calcs '!$C27+'TRF calcs '!$D27+'TRF calcs '!$E27+'TRF calcs '!$F27))/(('TWP Calcs'!C$7*'TWP Calcs'!$A$2*'TRF calcs '!$B27)+('TWP Calcs'!C$8*('TRF calcs '!$C27+'TRF calcs '!$D27+'TRF calcs '!$E27+'TRF calcs '!$F27)))) -> 1.277529936 | D34: =(((('TWP Calcs'!D$5)*'TWP Calcs'!$A$2*'TRF calcs '!$B27)+'TWP Calcs'!D$6*('TRF calcs '!$C27+'TRF calcs '!$D27+'TRF calcs '!$E27+'TRF calcs '!$F27))/(('TWP Calcs'!D$7*'TWP Calcs'!$A$2*'TRF calcs '!$B27)+('TWP Calcs'!D$8*('TRF calcs '!$C27+'TRF calcs '!$D27+'TRF calcs '!$E27+'TRF calcs '!$F27)))) -> 1.351284378 | E34: =(((('TWP Calcs'!E$5)*'TWP Calcs'!$A$2*'TRF calcs '!$G27)+'TWP Calcs'!E$6*('TRF calcs '!$H27+'TRF calcs '!$I27+'TRF calcs '!$J27+'TRF calcs '!$K27))/(('TWP Calcs'!E$7*'TWP Calcs'!$A$2*'TRF calcs '!$G27)+('TWP Calcs'!E$8*('TRF calcs '!$H27+'TRF calcs '!$I27+'TRF calcs '!$J27+'TRF calcs '!$K27)))) -> 1.312223048 | F34: =(((('TWP Calcs'!F$5)*'TWP Calcs'!$A$2*'TRF calcs '!$B27)+'TWP Calcs'!F$6*('TRF calcs '!$C27+'TRF calcs '!$D27+'TRF calcs '!$E27+'TRF calcs '!$F27))/(('TWP Calcs'!F$7*'TWP Calcs'!$A$2*'TRF calcs '!$B27)+('TWP Calcs'!F$8*('TRF calcs '!$C27+'TRF calcs '!$D27+'TRF calcs '!$E27+'TRF calcs '!$F27)))) -> 0.7582883325 | G34: =(((('TWP Calcs'!G$5)*'TWP Calcs'!$A$2*'TRF calcs '!$B27)+'TWP Calcs'!G$6*('TRF calcs '!$C27+'TRF calcs '!$D27+'TRF calcs '!$E27+'TRF calcs '!$F27))/(('TWP Calcs'!G$7*'TWP Calcs'!$A$2*'TRF calcs '!$B27)+('TWP Calcs'!G$8*('TRF calcs '!$C27+'TRF calcs '!$D27+'TRF calcs '!$E27+'TRF calcs '!$F27)))) -> 0.7035567312 | H34: =(((('TWP Calcs'!H$5)*'TWP Calcs'!$A$2*'TRF calcs '!$B27)+'TWP Calcs'!H$6*('TRF calcs '!$C27+'TRF calcs '!$D27+'TRF calcs '!$E27+'TRF calcs '!$F27))/(('TWP Calcs'!H$7*'TWP Calcs'!$A$2*'TRF calcs '!$B27)+('TWP Calcs'!H$8*('TRF calcs '!$C27+'TRF calcs '!$D27+'TRF calcs '!$E27+'TRF calcs '!$F27)))) -> 0.5973779445 | I34: =(((('TWP Calcs'!I$5)*'TWP Calcs'!$A$2*'TRF calcs '!$B27)+'TWP Calcs'!I$6*('TRF calcs '!$C27+'TRF calcs '!$D27+'TRF calcs '!$E27+'TRF calcs '!$F27))/(('TWP Calcs'!I$7*'TWP Calcs'!$A$2*'TRF calcs '!$B27)+('TWP Calcs'!I$8*('TRF calcs '!$C27+'TRF calcs '!$D27+'TRF calcs '!$E27+'TRF calcs '!$F27)))) -> 0.4911991579 | J34: =(((('TWP Calcs'!J$5)*'TWP Calcs'!$A$2*'TRF calcs '!$B27)+'TWP Calcs'!J$6*('TRF calcs '!$C27+'TRF calcs '!$D27+'TRF calcs '!$E27+'TRF calcs '!$F27))/(('TWP Calcs'!J$7*'TWP Calcs'!$A$2*'TRF calcs '!$B27)+('TWP Calcs'!J$8*('TRF calcs '!$C27+'TRF calcs '!$D27+'TRF calcs '!$E27+'TRF calcs '!$F27)))) -> 0.7336827073 | K34: =(((('TWP Calcs'!K$5)*'TWP Calcs'!$A$2*'TRF calcs '!$B27)+'TWP Calcs'!K$6*('TRF calcs '!$C27+'TRF calcs '!$D27+'TRF calcs '!$E27+'TRF calcs '!$F27))/(('TWP Calcs'!K$7*'TWP Calcs'!$A$2*'TRF calcs '!$B27)+('TWP Calcs'!K$8*('TRF calcs '!$C27+'TRF calcs '!$D27+'TRF calcs '!$E27+'TRF calcs '!$F27)))) -> 0.6229573937 | L34: =(((('TWP Calcs'!L$5)*'TWP Calcs'!$A$2*'TRF calcs '!$B27)+'TWP Calcs'!L$6*('TRF calcs '!$C27+'TRF calcs '!$D27+'TRF calcs '!$E27+'TRF calcs '!$F27))/(('TWP Calcs'!L$7*'TWP Calcs'!$A$2*'TRF calcs '!$B27)+('TWP Calcs'!L$8*('TRF calcs '!$C27+'TRF calcs '!$D27+'TRF calcs '!$E27+'TRF calcs '!$F27)))) -> 0.487626455 | M34: =(((('TWP Calcs'!M$5)*'TWP Calcs'!$A$2*'TRF calcs '!$B27)+'TWP Calcs'!M$6*('TRF calcs '!$C27+'TRF calcs '!$D27+'TRF calcs '!$E27+'TRF calcs '!$F27))/(('TWP Calcs'!M$7*'TWP Calcs'!$A$2*'TRF calcs '!$B27)+('TWP Calcs'!M$8*('TRF calcs '!$C27+'TRF calcs '!$D27+'TRF calcs '!$E27+'TRF calcs '!$F27)))) -> 0.5858881235 | N34: =(((('TWP Calcs'!N$5)*'TWP Calcs'!$A$2*'TRF calcs '!$B27)+'TWP Calcs'!N$6*('TRF calcs '!$C27+'TRF calcs '!$D27+'TRF calcs '!$E27+'TRF calcs '!$F27))/(('TWP Calcs'!N$7*'TWP Calcs'!$A$2*'TRF calcs '!$B27)+('TWP Calcs'!N$8*('TRF calcs '!$C27+'TRF calcs '!$D27+'TRF calcs '!$E27+'TRF calcs '!$F27)))) -> 0.4974675495 | O34: =(((('TWP Calcs'!O$5)*'TWP Calcs'!$A$2*'TRF calcs '!$B27)+'TWP Calcs'!O$6*('TRF calcs '!$C27+'TRF calcs '!$D27+'TRF calcs '!$E27+'TRF calcs '!$F27))/(('TWP Calcs'!O$7*'TWP Calcs'!$A$2*'TRF calcs '!$B27)+('TWP Calcs'!O$8*('TRF calcs '!$C27+'TRF calcs '!$D27+'TRF calcs '!$E27+'TRF calcs '!$F27)))) -> 0.4090469754 | P34: =(((('TWP Calcs'!P$5)*'TWP Calcs'!$A$2*'TRF calcs '!$B27)+'TWP Calcs'!P$6*('TRF calcs '!$C27+'TRF calcs '!$D27+'TRF calcs '!$E27+'TRF calcs '!$F27))/(('TWP Calcs'!P$7*'TWP Calcs'!$A$2*'TRF calcs '!$B27)+('TWP Calcs'!P$8*('TRF calcs '!$C27+'TRF calcs '!$D27+'TRF calcs '!$E27+'TRF calcs '!$F27)))) -> 0.8340048619 | Q34: =(((('TWP Calcs'!Q$5)*'TWP Calcs'!$A$2*'TRF calcs '!$B27)+'TWP Calcs'!Q$6*('TRF calcs '!$C27+'TRF calcs '!$D27+'TRF calcs '!$E27+'TRF calcs '!$F27))/(('TWP Calcs'!Q$7*'TWP Calcs'!$A$2*'TRF calcs '!$B27)+('TWP Calcs'!Q$8*('TRF calcs '!$C27+'TRF calcs '!$D27+'TRF calcs '!$E27+'TRF calcs '!$F27)))) -> 0.7081392133 | R34: =(((('TWP Calcs'!R$5)*'TWP Calcs'!$A$2*'TRF calcs '!$B27)+'TWP Calcs'!R$6*('TRF calcs '!$C27+'TRF calcs '!$D27+'TRF calcs '!$E27+'TRF calcs '!$F27))/(('TWP Calcs'!R$7*'TWP Calcs'!$A$2*'TRF calcs '!$B27)+('TWP Calcs'!R$8*('TRF calcs '!$C27+'TRF calcs '!$D27+'TRF calcs '!$E27+'TRF calcs '!$F27)))) -> 0.5822735647 | S34: =(((('TWP Calcs'!S$5)*'TWP Calcs'!$A$2*'TRF calcs '!$B27)+'TWP Calcs'!S$6*('TRF calcs '!$C27+'TRF calcs '!$D27+'TRF calcs '!$E27+'TRF calcs '!$F27))/(('TWP Calcs'!S$7*'TWP Calcs'!$A$2*'TRF calcs '!$B27)+('TWP Calcs'!S$8*('TRF calcs '!$C27+'TRF calcs '!$D27+'TRF calcs '!$E27+'TRF calcs '!$F27)))) -> 0.5888122679 | T34: =(((('TWP Calcs'!T$5)*'TWP Calcs'!$A$2*'TRF calcs '!$B27)+'TWP Calcs'!T$6*('TRF calcs '!$C27+'TRF calcs '!$D27+'TRF calcs '!$E27+'TRF calcs '!$F27))/(('TWP Calcs'!T$7*'TWP Calcs'!$A$2*'TRF calcs '!$B27)+('TWP Calcs'!T$8*('TRF calcs '!$C27+'TRF calcs '!$D27+'TRF calcs '!$E27+'TRF calcs '!$F27)))) -> 0.4999503903 | U34: =(((('TWP Calcs'!U$5)*'TWP Calcs'!$A$2*'TRF calcs '!$B27)+'TWP Calcs'!U$6*('TRF calcs '!$C27+'TRF calcs '!$D27+'TRF calcs '!$E27+'TRF calcs '!$F27))/(('TWP Calcs'!U$7*'TWP Calcs'!$A$2*'TRF calcs '!$B27)+('TWP Calcs'!U$8*('TRF calcs '!$C27+'TRF calcs '!$D27+'TRF calcs '!$E27+'TRF calcs '!$F27)))) -> 0.4110885126 | V34: =(((('TWP Calcs'!V$5)*'TWP Calcs'!$A$2*'TRF calcs '!$B27)+'TWP Calcs'!V$6*('TRF calcs '!$C27+'TRF calcs '!$D27+'TRF calcs '!$E27+'TRF calcs '!$F27))/(('TWP Calcs'!V$7*'TWP Calcs'!$A$2*'TRF calcs '!$B27)+('TWP Calcs'!V$8*('TRF calcs '!$C27+'TRF calcs '!$D27+'TRF calcs '!$E27+'TRF calcs '!$F27)))) -> 1.280159074 | W34: =(((('TWP Calcs'!W$5)*'TWP Calcs'!$A$2*'TRF calcs '!$B27)+'TWP Calcs'!W$6*('TRF calcs '!$C27+'TRF calcs '!$D27+'TRF calcs '!$E27+'TRF calcs '!$F27))/(('TWP Calcs'!W$7*'TWP Calcs'!$A$2*'TRF calcs '!$B27)+('TWP Calcs'!W$8*('TRF calcs '!$C27+'TRF calcs '!$D27+'TRF calcs '!$E27+'TRF calcs '!$F27)))) -> 1.086961097 | X34: =(((('TWP Calcs'!X$5)*'TWP Calcs'!$A$2*'TRF calcs '!$B27)+'TWP Calcs'!X$6*('TRF calcs '!$C27+'TRF calcs '!$D27+'TRF calcs '!$E27+'TRF calcs '!$F27))/(('TWP Calcs'!X$7*'TWP Calcs'!$A$2*'TRF calcs '!$B27)+('TWP Calcs'!X$8*('TRF calcs '!$C27+'TRF calcs '!$D27+'TRF calcs '!$E27+'TRF calcs '!$F27)))) -> 0.8937631198 | Y34: =(((('TWP Calcs'!Y$5)*'TWP Calcs'!$A$2*'TRF calcs '!$B27)+'TWP Calcs'!Y$6*('TRF calcs '!$C27+'TRF calcs '!$D27+'TRF calcs '!$E27+'TRF calcs '!$F27))/(('TWP Calcs'!Y$7*'TWP Calcs'!$A$2*'TRF calcs '!$B27)+('TWP Calcs'!Y$8*('TRF calcs '!$C27+'TRF calcs '!$D27+'TRF calcs '!$E27+'TRF calcs '!$F27)))) -> 1.455205201 | Z34: =(((('TWP Calcs'!Z$5)*'TWP Calcs'!$A$2*'TRF calcs '!$B27)+'TWP Calcs'!Z$6*('TRF calcs '!$C27+'TRF calcs '!$D27+'TRF calcs '!$E27+'TRF calcs '!$F27))/(('TWP Calcs'!Z$7*'TWP Calcs'!$A$2*'TRF calcs '!$B27)+('TWP Calcs'!Z$8*('TRF calcs '!$C27+'TRF calcs '!$D27+'TRF calcs '!$E27+'TRF calcs '!$F27)))) -> 1.235589759 | AA34: =(((('TWP Calcs'!AA$5)*'TWP Calcs'!$A$2*'TRF calcs '!$B27)+'TWP Calcs'!AA$6*('TRF calcs '!$C27+'TRF calcs '!$D27+'TRF calcs '!$E27+'TRF calcs '!$F27))/(('TWP Calcs'!AA$7*'TWP Calcs'!$A$2*'TRF calcs '!$B27)+('TWP Calcs'!AA$8*('TRF calcs '!$C27+'TRF calcs '!$D27+'TRF calcs '!$E27+'TRF calcs '!$F27)))) -> 1.015974317 | AB34: =(((('TWP Calcs'!AB$5)*'TWP Calcs'!$A$2*'TRF calcs '!$B27)+'TWP Calcs'!AB$6*('TRF calcs '!$C27+'TRF calcs '!$D27+'TRF calcs '!$E27+'TRF calcs '!$F27))/(('TWP Calcs'!AB$7*'TWP Calcs'!$A$2*'TRF calcs '!$B27)+('TWP Calcs'!AB$8*('TRF calcs '!$C27+'TRF calcs '!$D27+'TRF calcs '!$E27+'TRF calcs '!$F27)))) -> 0.5268109132 | AC34: =(((('TWP Calcs'!AC$5)*'TWP Calcs'!$A$2*'TRF calcs '!$B27)+'TWP Calcs'!AC$6*('TRF calcs '!$C27+'TRF calcs '!$D27+'TRF calcs '!$E27+'TRF calcs '!$F27))/(('TWP Calcs'!AC$7*'TWP Calcs'!$A$2*'TRF calcs '!$B27)+('TWP Calcs'!AC$8*('TRF calcs '!$C27+'TRF calcs '!$D27+'TRF calcs '!$E27+'TRF calcs '!$F27)))) -> 0.4227886599 | AD34: =(((('TWP Calcs'!AD$5)*'TWP Calcs'!$A$2*'TRF calcs '!$B27)+'TWP Calcs'!AD$6*('TRF calcs '!$C27+'TRF calcs '!$D27+'TRF calcs '!$E27+'TRF calcs '!$F27))/(('TWP Calcs'!AD$7*'TWP Calcs'!$A$2*'TRF calcs '!$B27)+('TWP Calcs'!AD$8*('TRF calcs '!$C27+'TRF calcs '!$D27+'TRF calcs '!$E27+'TRF calcs '!$F27)))) -> 0.2951765288 | AE34: =(((('TWP Calcs'!AE$5)*'TWP Calcs'!$A$2*'TRF calcs '!$B27)+'TWP Calcs'!AE$6*('TRF calcs '!$C27+'TRF calcs '!$D27+'TRF calcs '!$E27+'TRF calcs '!$F27))/(('TWP Calcs'!AE$7*'TWP Calcs'!$A$2*'TRF calcs '!$B27)+('TWP Calcs'!AE$8*('TRF calcs '!$C27+'TRF calcs '!$D27+'TRF calcs '!$E27+'TRF calcs '!$F27)))) -> 0.9192008535 | AF34: =(((('TWP Calcs'!AF$5)*'TWP Calcs'!$A$2*'TRF calcs '!$B27)+'TWP Calcs'!AF$6*('TRF calcs '!$C27+'TRF calcs '!$D27+'TRF calcs '!$E27+'TRF calcs '!$F27))/(('TWP Calcs'!AF$7*'TWP Calcs'!$A$2*'TRF calcs '!$B27)+('TWP Calcs'!AF$8*('TRF calcs '!$C27+'TRF calcs '!$D27+'TRF calcs '!$E27+'TRF calcs '!$F27)))) -> 0.6693251583 | AG34: =(((('TWP Calcs'!AG$5)*'TWP Calcs'!$A$2*'TRF calcs '!$B27)+'TWP Calcs'!AG$6*('TRF calcs '!$C27+'TRF calcs '!$D27+'TRF calcs '!$E27+'TRF calcs '!$F27))/(('TWP Calcs'!AG$7*'TWP Calcs'!$A$2*'TRF calcs '!$B27)+('TWP Calcs'!AG$8*('TRF calcs '!$C27+'TRF calcs '!$D27+'TRF calcs '!$E27+'TRF calcs '!$F27)))) -> 0.9625444353 | AH34: 1 | AI34: 0 | AJ34: =(((('TWP Calcs'!AJ$5)*'TWP Calcs'!$A$2*'TRF calcs '!$B27)+'TWP Calcs'!AJ$6*('TRF calcs '!$C27+'TRF calcs '!$D27+'TRF calcs '!$E27+'TRF calcs '!$F27))/(('TWP Calcs'!AJ$7*'TWP Calcs'!$A$2*'TRF calcs '!$B27)+('TWP Calcs'!AJ$8*('TRF calcs '!$C27+'TRF calcs '!$D27+'TRF calcs '!$E27+'TRF calcs '!$F27)))) -> 0.7336827073 | AK34: =(((('TWP Calcs'!AK$5)*'TWP Calcs'!$A$2*'TRF calcs '!$G27)+'TWP Calcs'!AK$6*('TRF calcs '!$H27+'TRF calcs '!$I27+'TRF calcs '!$J27+'TRF calcs '!$K27))/(('TWP Calcs'!AK$7*'TWP Calcs'!$A$2*'TRF calcs '!$G27)+('TWP Calcs'!AK$8*('TRF calcs '!$H27+'TRF calcs '!$I27+'TRF calcs '!$J27+'TRF calcs '!$K27)))) -> 0.704679686 | AL34: =(((('TWP Calcs'!AL$5)*'TWP Calcs'!$A$2*'TRF calcs '!$L27)+'TWP Calcs'!AL$6*('TRF calcs '!$M27+'TRF calcs '!$N27+'TRF calcs '!$O27+'TRF calcs '!$P27))/(('TWP Calcs'!AL$7*'TWP Calcs'!$A$2*'TRF calcs '!$L27)+('TWP Calcs'!AL$8*('TRF calcs '!$M27+'TRF calcs '!$N27+'TRF calcs '!$O27+'TRF calcs '!$P27)))) -> 0.73113206
